Workbook

Sheet Manual
D17: http://www.reiner-lemoine-institut.de/en/
B105: INPUT MANUAL
B106: General remarks: -Please enter a value for each single field and do not copy & paste values, otherwise format settings might be changed -If components should be ignored in a hybrid system, just set the size to 0, cost and other parameters are then ignored automatically
B107: Tab | C107: Step | D107: Action | E107: Description | F107: Topic
B108: Existing Load | C108: 1 | D108: Seclect type of load input data | E108: Load input data from households or real consumption value | F108: Electricity consumption per day
C109: 1.1.1 | D109: If households are chosen in #1, enter number of households | E109: Number of households
C110: 1.1.2 | D110: If households are chosen in #1, enter consumption per household | E110: Consumption per household per day
C111: 1.1.3 | D111: If households are chosen in #1, enter additional commercial activity | E111: Additional commercial activity
C112: 1.2.1 | D112: If real consumption is chosen in #1, enter energy consumption per workday | E112: Energy consumption per workday
C113: 1.2.2 | D113: If real consumption is chosen in #1, enter energy consumption per weekend day | E113: Energy consumption per weekend day
C114: 2 | D114: Select load curve | E114: Select between evening peak, midday peak or individual load curve | F114: Load curve
C115: 2.1 | D115: If individual load curve is chosen in #2, enter percentual values for each hour of the day | E115: Percentage values for each hour of the day | F115: Energy consumption per hour
C116: 3 | D116: Insert demand growth factor | E116: Percentage of yearly demand growth | F116: Demand growth
B118: Input of RE parameters: Enter parameters of PV, Wind, Hydro or Biomass depending on the hybrid system option
B119: Tab | C119: Step | D119: Action | E119: Description | F119: Topic
B120: Input Solar | C120: 4 | D120: Select cost parameters of PV | E120: Select between default or individual PV cost parameters | F120: PV costs
C121: 4.1 | D121: If Individual is chosen, enter CAPEX | E121: Enter PV CAPEX in PHP per kW
C122: 4.2 | D122: If Individual is chosen, enter OPEX | E122: Enter PV OPEX in PHP per kW per year
C123: 4.3 | D123: If Individual is chosen, enter life span | E123: Enter PV life span in years
C124: 5 | D124: Select PV size | E124: Select between default or individual PV size | F124: PV size
C125: 5.1 | D125: No action required for PV capacity total | E125: Total PV capacity will be calculated from eligible and non-eligible capacities
C126: 5.2 | D126: If individual PV size is chosen, enter eligible capacity of PV system | E126: Enter eligible PV capacity in kW
C127: 5.3 | D127: If individual PV size is chosen in, enter non-eligible capacity of PV system | E127: Enter non-eligible PV capacity in kW
C128: 6 | D128: Select location | E128: Select between 3 main areas | F128: Location
C129: 7 | D129: Select irradiance parameters | E129: Select between default or individual parameters | F129: Irradiance parameters
C130: 7.1 | D130: If irradiance parameters is chosen, enter the daily energy output for your location | E130: Enter the average daily energy output in kWh per kW_peak installed (e.g. available from globalsolaratlas.info)
B132: Input Wind | C132: 8 | D132: Select wind park costs | E132: Select between default or individual values | F132: Wind park costs
C133: 8.1 | D133: If Individual is chosen, enter CAPEX | E133: Enter wind park CAPEX in PHP per kW
C134: 8.2 | D134: If Individual is chosen, enter OPEX | E134: Enter wind park OPEX in PHP per kW per year
C135: 8.3 | D135: If Individual is chosen, enter life span | E135: Enter wind turbine life span in years
C136: 9 | D136: Select wind park size parameters | E136: Select between default or individual values | F136: Wind park size
C137: 9.1 | D137: If Individual is chosen, enter mean wind speed | E137: Enter mean wind speed at 50m height in m/s as reference value, the wind speed will be automatically adjusted according to the hub height
C138: 9.2 | D138: No action required for wind park capacity total | E138: Total wind park capacity will be calculated from eligible and non-eligible capacities
C139: 9.3 | D139: If individual PV size is chosen, enter eligible capacity of wind park | E139: Enter eligible wind park peak capacity in kW
C140: 9.4 | D140: If individual PV size is chosen in, enter non-eligible capacity of wind park | E140: Enter non-eligible wind park peak capacity in kW
C141: 9.3 | D141: If Individual is chosen, enter wind turbine type | E141: Select between the available options in kWp. Due to simplification reasons the choice is limited, the hub height and the number of turbines are automatically calculated in the background
B143: Input Hydro | C143: 10 | D143: Select hydro plant cost parameters | E143: Select between default and individual values | F143: Hydro power plant costs
C144: 10.1 | D144: If Individual is chosen, enter CAPEX | E144: Enter hydro plant CAPEX in PHP per kW
C145: 10.2 | D145: If Individual is chosen, enter OPEX | E145: Enter hydro plant OPEX in PHP per kW per year
C146: 10.3 | D146: If Individual is chosen, enter life span | E146: Enter hydro life span in years
C147: 11 | D147: Select hydro plant size parameters | E147: Select between Default, Individual and Calculation | F147: Hydro power plant size
C148: 11.1.1 | D148: If Individual is chosen, enter the rated capacity potential of the eligible hydro plant | E148: Enter the eligible hydro capacity potential at the location in kW
C149: 11.1.2 | D149: If Individual is chosen, enter the capacity factor of the eligible hydro plant | E149: Enter the average available eligible capacity as a percentage of the total capacity
C150: 11.2.1 | D150: If Calculation is chosen, enter net head of the eligible hydro plant | E150: Enter the net head in m, which is equal to height of water inlet minus height of water turbine
C151: 11.2.2 | D151: If Calculation is chosen, enter water flow of the eligible hydro plant | E151: Enter the water flow in m^3/s
C152: 11.2.3 | D152: If Calculation is chosen, enter the capacity factor of the eligible hydro plant | E152: Enter the average available eligible capacity as a percentage of the total capacity
B154: Input Biomass | C154: 12 | D154: Select biomass/WtE power plant type | E154: Select between default and individual values | F154: Biomass power plant costs
C155: 12.1 | D155: If Default is chosen, select feedstock type from dropdown menu, if Individual enter your preferred Feedstock name | E155: In Default the Feedstock choice will automatically call a heating value (Step 12.6)
C156: 12.2 | D156: If Individual is chosen, enter CAPEX | E156: Enter biomass plant CAPEX in PHP per kW
C157: 12.3 | D157: If Individual is chosen, enter variable biomass OPEX | E157: Enter variable biomass OPEX in PHP per kWh per year
C158: 12.4 | D158: If Individual is chosen, enter fixed biomass OPEX | E158: Enter fixed biomass OPEX in PHP per kWh per year
C159: 12.5 | D159: If Individual is chosen, enter the biomass generator efficiency | E159: Enter the maximum efficiency of the generator at high load in %
C160: 12.6 | D160: If Default is chosen: No action required If Individual is chosen: Enter the heating value | E160: Default: Feedstock heating value will be automatically called for selected feedstock type, Individual: enter heating value (if you don't know it, you can check if in "Default" your feedstock and corresponding heating value is available
C161: 12.7 | D161: No action required for fuel per kWh (high load) | E161: Fuel per kWh will be calculated from selected feedstock type and generator efficiency
C162: 12.8 | D162: If Individual is chosen, enter biomass fuel costs | E162: Enter biomass fuel costs in PHP per liter
C163: 12.9 | D163: If Individual is chosen, enter life span | E163: Enter biomass life span in years
C164: 13 | D164: Select size parameters of biomass/WtE plant | E164: Select between default or individual values | F164: Biomass power plant size
C165: 13.1 | D165: If Individual is chosen, choose the number of units the biomass power plant consists of | E165: Due to simplification reasons the range only goes from "1 to 5+"; the higher the number the higher the efficiency due to the higher load of the gensets
C166: 13.2 | D166: If Individual is chosen, enter the eligible capacity of the biomass power plant | E166: Enter the total rated capacity of all eligible units in kW based on RPS rules
C167: 13.3 | D167: If Individual is chosen, enter the non-eligible capacity of the biomass power plant | E167: Enter the total rated capacity of non-eligible units in kW based on RPS rules
C168: 13.4 | D168: No action required for biomass power plant capacity total | E168: Total power plant capacity will be calculated from eligible and non-eligible capacities
C169: 13.5 | D169: If Individual is chosen, enter the capacity of the smallest unit | E169: Enter the smallest capacity in kW, the size of the smallest unit defines the lower load limit and has an impact on eventual excess generation
B171: Following data is inserted for each hybrid system option
B172: Tab | C172: Step | D172: Action | E172: Description | F172: Topic
B173: Input Solar, Input Wind, Input Hydro, Input Biomass, Input RE | C173: 13 | D173: Select diesel power plant type | E173: Select between default or individual diesel power plant type | F173: Diesel power plant parameters
C174: 13.1 | D174: If individual, enter diesel CAPEX | E174: Enter diesel CAPEX in PHP per kW
C175: 13.2 | D175: If individual, enter variable diesel OPEX | E175: Enter variable diesel OPEX in PHP per kWh per year
C176: 13.3 | D176: If Individual is chosen, enter fixed diesel OPEX | E176: Enter fixed diesel OPEX in PHP per kW per year
C177: 13.4 | D177: If Individual is chosen, enter the genset efficiency | E177: Enter the liters of Diesel the genset needs to generate one kWh at full load
C178: 13.5 | D178: If Individual is chosen, enter intital diesel fuel costs | E178: Enter initital diesel fuel costs in PHP per liter
C179: 13.6 | D179: If Individual is chosen, enter diesel price increase | E179: Enter diesel price increase in percent per year
C180: 13.7 | D180: If Individual is chosen, enter diesel genset life span | E180: Enter diesel genset life span in years
C181: 14 | D181: Select size parameters of diesel genset | E181: Select between default or individual values | F181: Diesel power plant size
C182: 14.1 | D182: If Individual is chosen, choose the number of gensets the diesel power plant consists of | E182: Due to simplification reasons the range only goes from "1 to 5+"; the higher the number the higher the efficiency due to the higher load of the gensets
C183: 14.2 | D183: If Individual is chosen, enter total capacity of diesel power plant | E183: Enter the total rated capacity of all gensets in kW
C184: 14.3 | D184: If Individual is chosen, enter the capacity of the smallest unit | E184: Enter the smallest capacity in kW, the size of the smallest generator defines the lower load limit (30%) and has an impact on eventual excess generation
C186: 15 | D186: Select type of battery storage | E186: Select between default or individual battery type | F186: Battery type
C187: 15.1 | D187: If Individual is chosen, enter battery system CAPEX | E187: Enter battery system CAPEX in PHP per kWh
C188: 15.2 | D188: If Individual is chosen, enter fixed battery OPEX | E188: Enter fixed battery OPEX in PHP per kWh per year
C189: 15.3 | D189: If Individual is chosen, enter battery c-rate | E189: Enter c-rate as ratio between battery power and capacity
C190: 15.4 | D190: If Individual is chosen, enter battery DoD | E190: Enter maximum depth of discharge (DoD) in percent
C191: 15.5 | D191: If Individual is chosen, enter battery charging efficiency | E191: Enter charging efficiency of battery in percent
C192: 15.6 | D192: If Individual is chosen, enter battery discharging efficiency | E192: Enter discharging efficiency of battery in percent
C193: 15.7 | D193: If Individual is chosen, enter battery life span | E193: Enter life span of battery in years
C195: 16 | D195: Select system parameters | E195: Select between default or individual system parameters | F195: System parameters
C196: 16.1 | D196: If Individual is chosen, enter discount rate | E196: Enter discount rate in percent
C197: 16.2 | D197: If Individual is chosen, enter project duration | E197: Enter project duration in years
C198: 16.3 | D198: If Individual is chosen, enter distribution losses | E198: Enter distribution losses in percent
C199: 16.4 | D199: If Individual is chosen, enter system stability | E199: Enter system stability (rotating mass) in percent
C200: 16.5 | D200: If Individual is chosen, enter fixed project development costs | E200: Enter fixed project development costs in PHP
C201: 16.6 | D201: If Individual is chosen, enter fixed other initial costs | E201: Enter fixed other initial costs in PHP
C202: 16.7 | D202: If Individual is chosen, enter fixed other OPEX | E202: Enter fixed other OPEX in PHP per year
C203: 16.8 | D203: If Individual is chosen, enter fixed personnel costs | E203: Enter fixed personnel costs in PHP per year
C205: 17 | D205: Select distribution grid parameters | E205: Select between default or individual distribution grid parameters | F205: Distribution grid parameters
C206: 17.1 | D206: If Individual is chosen, enter initial grid costs | E206: Enter grid initial costs in PHP
C207: 17.2 | D207: If Individual is chosen, enter grid OPEX | E207: Enter grid OPEX in PHP per year
C208: 17.3 | D208: If Individual is chosen, enter life span of grid | E208: Enter life span of grid in years
C210: 18 | D210: Enter the RE Shares required by the RPS | E210: Percentages of RE shares in 5 year steps up to 20, depending on the chosen system lifespan (no default values available) | F210: Renewable portfolio standards (RPS)
C212: 19 | D212: Check the previously selected capacities | E212: The values cannot be modified in these fields only in the corresponding sections above. * | F212: Simulation sizes
C213: 20 | D213: Press the "Start Simulation" Button to simulate the hybrid system | E213: The VBA code will calculate the energy and cost values over time and show them in the Tab "Simulation Results"
C215: 21 | D215: Select Scenario sizes | E215: Select to use multiplier or sizes in scenario simulation (Diesel has to be defined in the inputs and remains at same size) | F215: Scenario parameters
C216: 21.1.1 | D216: If "Multiplier" is chosen, enter RE multiplier values | E216: Enter multiplier values for the RE technology (RE size equals peak load x multiplier factor)
C217: 21.1.2 | D217: If "Multiplier" is chosen, enter battery multiplier values | E217: Enter multiplier values for battery (battery size equals average hourly energy consumption x multiplier factor)
C218: 21.2.1 | D218: If "Sizes" is chosen, enter RE capacity values | E218: Enter capacity values for the RE technology in kW
C219: 21.2.2 | D219: If "Sizes" is chosen, enter battery capacity values | E219: Enter capcacity values for battery in kWh
C220: 22 | D220: Start "simplified" Scenario calculation | E220: Simplified calculation takes few seconds, results are calculated with an average load increase over time
C221: 23 | D221: Start "detailed" Scenario calculation | E221: Detailed calculation takes up to 30 minutes, results are calculated with a yearly load increase
B223: RESULTS MANUAL
B224: Each hybrid system option has a Simulation Resuls tab. The results are listed in columns, the first column shows the average values aver the system period and the following columns to the right show the yearly results in steps of 5 years (max. 20 years). Each columns consists of the following results.
B225: Tab | C225: Step | D225: Result section | E225: Description | F225: Topic
B226: Simulation Results | C226: 23.1 | D226: Load [kWh] | E226: Annual consumption, peak load and Distribution losses | F226: Simulation Results: Installed capacities, yearly energy flows and costs
C227: 23.2 | D227: System | E227: Installed capacities of hybrid system
C228: 23.3 | D228: Output [kWh] | E228: Annual Electricity generation of system components
C229: 23.4 | D229: Investment | E229: Investment costs of system components
C230: 23.5 | D230: Operation & Maintenance costs (O&M) | E230: O&M costs of system components
C231: 23.6 | D231: Annualized total costs | E231: Annual costs of system components
C232: 23.7 | D232: LCOE | E232: Levelized cost of electricity of hybrid system
C233: 23.8 | D233: RE-share | E233: Renewable energy share
C234: 23.9 | D234: Unmet load [kWh] | E234: Annual part of the load which is not covered by the electricity generation of the hybrid system
C236: Below the columns, two diagrams show the power curves of the electric load and the electricity generation of the different power plants.
C237: 24.1 | D237: Power curve diagram | E237: Load curve, genset power curve, RE generation curve, RE consumption curve, battery charge curve, battery discharge curve | F237: Diagrams
C238: 24.2 | D238: Cost diagram | E238: The annualized cost shares of the system components are visualized
B240: Each hybrid system option has a Yearly Simulation Resuls tab which gives a quick overview of the yearly results which eventually could be variable due to demand and fuel price increase.
B241: Tab | C241: Step | D241: Results | E241: Description | F241: Topic
B242: Yearly Simulation Results | C242: 25.1 | D242: LCOE [PHP/kWh] | E242: Yearly results up to year 20 | F242: Yearly Simulation Results table
C243: 25.2 | D243: RE share | E243: Yearly results up to year 20
C244: 25.3 | D244: Annual consumption [kWh] | E244: Yearly results up to year 20
C245: 25.4 | D245: Peak load [kW] | E245: Yearly results up to year 20
C246: 25.5 | D246: Distribution losses [kWh] | E246: Yearly results up to year 20
C247: 25.6 | D247: PV generation [kWh] | E247: Yearly results up to year 20
C248: 25.7 | D248: Battery flow [kWh] | E248: Yearly results up to year 20
C249: 25.8 | D249: Diesel generation [kWh] | E249: Yearly results up to year 20
C250: 25.9 | D250: Fuel consumption [l] | E250: Yearly results up to year 20
C251: 25.10 | D251: Diesel OPEX [PHP] | E251: Yearly results up to year 20
C252: 25.11 | D252: Fuel costs [PHP] | E252: Yearly results up to year 20
C253: 25.12 | D253: Unmet load [kWh] | E253: Yearly results up to year 20
B255: Each hybrid system option has a Scenario Results tab which show matrices of the average LCOE, RE-shares and unmet loads for different system configurations, the optimal system is highlighted. Please note: the scenario function is not available for the „all RE“ hybrid system due to exceeding calculation time
B257: Tab | C257: Step | D257: Results | E257: Description | F257: Topic
B258: Scenario Results | C258: 26.1 | D258: LCOE/RE-Share | E258: Average LCOE and RE-Share for given RE and battery configuration | F258: Scenario Results matrix
C259: 26.2 | D259: LCOE [PHP/kWh] | E259: Average LCOE for given RE and battery configuration
C260: 26.3 | D260: RE-Share | E260: Average RE-Share for given RE and battery configuration
B262: * Don't worry if you see the Default battery size changing in the Input sheet automatically during the "Simulation", this is just an artefact of the VBA process of changing the load (the parameter with which the Default battery value is determined) in the case of load growth. In the calculation sheet the original Default battery size is kept at the initial value or at the determined values of the "Scenario" function respectively.

Sheet Existing Load
C3: Energy demand per year | H3: Energy demand per hour
C5: Input data from: | D5: Total demand | G5: Hours | H5: Percentage per hour | I5: C: Individual Percentage per hour | J5: Kilowatt hour (kWh)
C7: No. of households | D7: 100 | G7: 1 | H7: =IF($D$23=Background!$A$1,Background!D3,IF($D$23=Background!$A$2,Background!E3,"")) -> 0.015 | J7: =IF($D$23=Background!$A$1,H7*IF($D$17=0,$D$19,$D$17),IF($D$23=Background!$A$2,H7*IF($D$17=0,$D$19,$D$17),IF($D$17=0,$D$19,$D$17)*I7)) -> 0
G8: 2 | H8: =IF($D$23=Background!$A$1,Background!D4,IF($D$23=Background!$A$2,Background!E4,"")) -> 0.015 | J8: =IF($D$23=Background!$A$1,H8*IF($D$17=0,$D$19,$D$17),IF($D$23=Background!$A$2,H8*IF($D$17=0,$D$19,$D$17),IF($D$17=0,$D$19,$D$17)*I8)) -> 0
C9: Energy demand per household | D9: 1 | E9: MWh/year | G9: 3 | H9: =IF($D$23=Background!$A$1,Background!D5,IF($D$23=Background!$A$2,Background!E5,"")) -> 0.015 | J9: =IF($D$23=Background!$A$1,H9*IF($D$17=0,$D$19,$D$17),IF($D$23=Background!$A$2,H9*IF($D$17=0,$D$19,$D$17),IF($D$17=0,$D$19,$D$17)*I9)) -> 0
G10: 4 | H10: =IF($D$23=Background!$A$1,Background!D6,IF($D$23=Background!$A$2,Background!E6,"")) -> 0.015 | J10: =IF($D$23=Background!$A$1,H10*IF($D$17=0,$D$19,$D$17),IF($D$23=Background!$A$2,H10*IF($D$17=0,$D$19,$D$17),IF($D$17=0,$D$19,$D$17)*I10)) -> 0
C11: Add. commercial activity | D11: 0.2 | G11: 5 | H11: =IF($D$23=Background!$A$1,Background!D7,IF($D$23=Background!$A$2,Background!E7,"")) -> 0.02 | J11: =IF($D$23=Background!$A$1,H11*IF($D$17=0,$D$19,$D$17),IF($D$23=Background!$A$2,H11*IF($D$17=0,$D$19,$D$17),IF($D$17=0,$D$19,$D$17)*I11)) -> 0
G12: 6 | H12: =IF($D$23=Background!$A$1,Background!D8,IF($D$23=Background!$A$2,Background!E8,"")) -> 0.025 | J12: =IF($D$23=Background!$A$1,H12*IF($D$17=0,$D$19,$D$17),IF($D$23=Background!$A$2,H12*IF($D$17=0,$D$19,$D$17),IF($D$17=0,$D$19,$D$17)*I12)) -> 0
C13: Total energy demand per year | E13: MWh/year | G13: 7 | H13: =IF($D$23=Background!$A$1,Background!D9,IF($D$23=Background!$A$2,Background!E9,"")) -> 0.03 | J13: =IF($D$23=Background!$A$1,H13*IF($D$17=0,$D$19,$D$17),IF($D$23=Background!$A$2,H13*IF($D$17=0,$D$19,$D$17),IF($D$17=0,$D$19,$D$17)*I13)) -> 0
G14: 8 | H14: =IF($D$23=Background!$A$1,Background!D10,IF($D$23=Background!$A$2,Background!E10,"")) -> 0.04 | J14: =IF($D$23=Background!$A$1,H14*IF($D$17=0,$D$19,$D$17),IF($D$23=Background!$A$2,H14*IF($D$17=0,$D$19,$D$17),IF($D$17=0,$D$19,$D$17)*I14)) -> 0
C15: Weekend consumption factor | G15: 9 | H15: =IF($D$23=Background!$A$1,Background!D11,IF($D$23=Background!$A$2,Background!E11,"")) -> 0.04 | J15: =IF($D$23=Background!$A$1,H15*IF($D$17=0,$D$19,$D$17),IF($D$23=Background!$A$2,H15*IF($D$17=0,$D$19,$D$17),IF($D$17=0,$D$19,$D$17)*I15)) -> 0
G16: 10 | H16: =IF($D$23=Background!$A$1,Background!D12,IF($D$23=Background!$A$2,Background!E12,"")) -> 0.04 | J16: =IF($D$23=Background!$A$1,H16*IF($D$17=0,$D$19,$D$17),IF($D$23=Background!$A$2,H16*IF($D$17=0,$D$19,$D$17),IF($D$17=0,$D$19,$D$17)*I16)) -> 0
C17: Total demand (weekday) | D17: =IF(D5=Background!Y2,(D7*D9+(D7*D9*D11))/365*1000,(D13/(365*(5/7+2/7*D15)))*1000) -> 0 | E17: kWh/day | G17: 11 | H17: =IF($D$23=Background!$A$1,Background!D13,IF($D$23=Background!$A$2,Background!E13,"")) -> 0.05 | J17: =IF($D$23=Background!$A$1,H17*IF($D$17=0,$D$19,$D$17),IF($D$23=Background!$A$2,H17*IF($D$17=0,$D$19,$D$17),IF($D$17=0,$D$19,$D$17)*I17)) -> 0
G18: 12 | H18: =IF($D$23=Background!$A$1,Background!D14,IF($D$23=Background!$A$2,Background!E14,"")) -> 0.055 | J18: =IF($D$23=Background!$A$1,H18*IF($D$17=0,$D$19,$D$17),IF($D$23=Background!$A$2,H18*IF($D$17=0,$D$19,$D$17),IF($D$17=0,$D$19,$D$17)*I18)) -> 0
C19: Total demand (weekend day) | D19: =IF(D5=Background!Y2,(D7*D9)/365*1000,D17*D15) -> 0 | E19: kWh/day | G19: 13 | H19: =IF($D$23=Background!$A$1,Background!D15,IF($D$23=Background!$A$2,Background!E15,"")) -> 0.05 | J19: =IF($D$23=Background!$A$1,H19*IF($D$17=0,$D$19,$D$17),IF($D$23=Background!$A$2,H19*IF($D$17=0,$D$19,$D$17),IF($D$17=0,$D$19,$D$17)*I19)) -> 0
G20: 14 | H20: =IF($D$23=Background!$A$1,Background!D16,IF($D$23=Background!$A$2,Background!E16,"")) -> 0.04 | J20: =IF($D$23=Background!$A$1,H20*IF($D$17=0,$D$19,$D$17),IF($D$23=Background!$A$2,H20*IF($D$17=0,$D$19,$D$17),IF($D$17=0,$D$19,$D$17)*I20)) -> 0
G21: 15 | H21: =IF($D$23=Background!$A$1,Background!D17,IF($D$23=Background!$A$2,Background!E17,"")) -> 0.045 | J21: =IF($D$23=Background!$A$1,H21*IF($D$17=0,$D$19,$D$17),IF($D$23=Background!$A$2,H21*IF($D$17=0,$D$19,$D$17),IF($D$17=0,$D$19,$D$17)*I21)) -> 0 | L21: Peak load | N21: =IF(D19>D17,MAX(J7:J30)*(D19/D17),MAX(J7:J30)) -> 0 | O21: kW
G22: 16 | H22: =IF($D$23=Background!$A$1,Background!D18,IF($D$23=Background!$A$2,Background!E18,"")) -> 0.05 | J22: =IF($D$23=Background!$A$1,H22*IF($D$17=0,$D$19,$D$17),IF($D$23=Background!$A$2,H22*IF($D$17=0,$D$19,$D$17),IF($D$17=0,$D$19,$D$17)*I22)) -> 0
C23: Load curve | D23: A: Evening peak | G23: 17 | H23: =IF($D$23=Background!$A$1,Background!D19,IF($D$23=Background!$A$2,Background!E19,"")) -> 0.055 | J23: =IF($D$23=Background!$A$1,H23*IF($D$17=0,$D$19,$D$17),IF($D$23=Background!$A$2,H23*IF($D$17=0,$D$19,$D$17),IF($D$17=0,$D$19,$D$17)*I23)) -> 0
G24: 18 | H24: =IF($D$23=Background!$A$1,Background!D20,IF($D$23=Background!$A$2,Background!E20,"")) -> 0.065 | J24: =IF($D$23=Background!$A$1,H24*IF($D$17=0,$D$19,$D$17),IF($D$23=Background!$A$2,H24*IF($D$17=0,$D$19,$D$17),IF($D$17=0,$D$19,$D$17)*I24)) -> 0
G25: 19 | H25: =IF($D$23=Background!$A$1,Background!D21,IF($D$23=Background!$A$2,Background!E21,"")) -> 0.075 | J25: =IF($D$23=Background!$A$1,H25*IF($D$17=0,$D$19,$D$17),IF($D$23=Background!$A$2,H25*IF($D$17=0,$D$19,$D$17),IF($D$17=0,$D$19,$D$17)*I25)) -> 0
G26: 20 | H26: =IF($D$23=Background!$A$1,Background!D22,IF($D$23=Background!$A$2,Background!E22,"")) -> 0.075 | J26: =IF($D$23=Background!$A$1,H26*IF($D$17=0,$D$19,$D$17),IF($D$23=Background!$A$2,H26*IF($D$17=0,$D$19,$D$17),IF($D$17=0,$D$19,$D$17)*I26)) -> 0
G27: 21 | H27: =IF($D$23=Background!$A$1,Background!D23,IF($D$23=Background!$A$2,Background!E23,"")) -> 0.07 | J27: =IF($D$23=Background!$A$1,H27*IF($D$17=0,$D$19,$D$17),IF($D$23=Background!$A$2,H27*IF($D$17=0,$D$19,$D$17),IF($D$17=0,$D$19,$D$17)*I27)) -> 0
G28: 22 | H28: =IF($D$23=Background!$A$1,Background!D24,IF($D$23=Background!$A$2,Background!E24,"")) -> 0.06 | J28: =IF($D$23=Background!$A$1,H28*IF($D$17=0,$D$19,$D$17),IF($D$23=Background!$A$2,H28*IF($D$17=0,$D$19,$D$17),IF($D$17=0,$D$19,$D$17)*I28)) -> 0
G29: 23 | H29: =IF($D$23=Background!$A$1,Background!D25,IF($D$23=Background!$A$2,Background!E25,"")) -> 0.035 | J29: =IF($D$23=Background!$A$1,H29*IF($D$17=0,$D$19,$D$17),IF($D$23=Background!$A$2,H29*IF($D$17=0,$D$19,$D$17),IF($D$17=0,$D$19,$D$17)*I29)) -> 0
G30: 24 | H30: =IF($D$23=Background!$A$1,Background!D26,IF($D$23=Background!$A$2,Background!E26,"")) -> 0.02 | J30: =IF($D$23=Background!$A$1,H30*IF($D$17=0,$D$19,$D$17),IF($D$23=Background!$A$2,H30*IF($D$17=0,$D$19,$D$17),IF($D$17=0,$D$19,$D$17)*I30)) -> 0
H31: =SUM(H7:H30) -> 1 | I31: =IF(D23=Background!$A$3,SUM(I7:I30),"") ->  | J31: =SUM(J7:J30) -> 0
G35: Annual load | I35: Default
H36: Value (Default) | I36: Value (Individual)
G37: Year 1 | H37: =IF($D$5=Background!$Y$2,(D$17*5/7+D$19*2/7)*365/1000,D$13) -> 0 | I37: =IF($D$5=Background!$Y$2,(D$17*5/7+D$19*2/7)*365/1000,D$13) -> 0 | J37: MWh
G38: Year 2 | H38: =IF($D$5=Background!$Y$2,(D$17*5/7+D$19*2/7)*365/1000,D$13) -> 0 | J38: MWh
G39: Year 3 | H39: =IF($D$5=Background!$Y$2,(D$17*5/7+D$19*2/7)*365/1000,D$13) -> 0 | J39: MWh
G40: Year 4 | H40: =IF($D$5=Background!$Y$2,(D$17*5/7+D$19*2/7)*365/1000,D$13) -> 0 | J40: MWh
G41: Year 5 | H41: =IF($D$5=Background!$Y$2,(D$17*5/7+D$19*2/7)*365/1000,D$13) -> 0 | J41: MWh
G42: Year 6 | H42: =IF($D$5=Background!$Y$2,(D$17*5/7+D$19*2/7)*365/1000,D$13) -> 0 | J42: MWh
G43: Year 7 | H43: =IF($D$5=Background!$Y$2,(D$17*5/7+D$19*2/7)*365/1000,D$13) -> 0 | J43: MWh
G44: Year 8 | H44: =IF($D$5=Background!$Y$2,(D$17*5/7+D$19*2/7)*365/1000,D$13) -> 0 | J44: MWh
G45: Year 9 | H45: =IF($D$5=Background!$Y$2,(D$17*5/7+D$19*2/7)*365/1000,D$13) -> 0 | J45: MWh
G46: Year 10 | H46: =IF($D$5=Background!$Y$2,(D$17*5/7+D$19*2/7)*365/1000,D$13) -> 0 | J46: MWh
G47: Year 11 | H47: =IF($D$5=Background!$Y$2,(D$17*5/7+D$19*2/7)*365/1000,D$13) -> 0 | J47: MWh
G48: Year 12 | H48: =IF($D$5=Background!$Y$2,(D$17*5/7+D$19*2/7)*365/1000,D$13) -> 0 | J48: MWh
G49: Year 13 | H49: =IF($D$5=Background!$Y$2,(D$17*5/7+D$19*2/7)*365/1000,D$13) -> 0 | J49: MWh
G50: Year 14 | H50: =IF($D$5=Background!$Y$2,(D$17*5/7+D$19*2/7)*365/1000,D$13) -> 0 | J50: MWh
G51: Year 15 | H51: =IF($D$5=Background!$Y$2,(D$17*5/7+D$19*2/7)*365/1000,D$13) -> 0 | J51: MWh
G52: Year 16 | H52: =IF($D$5=Background!$Y$2,(D$17*5/7+D$19*2/7)*365/1000,D$13) -> 0 | J52: MWh
G53: Year 17 | H53: =IF($D$5=Background!$Y$2,(D$17*5/7+D$19*2/7)*365/1000,D$13) -> 0 | J53: MWh
G54: Year 18 | H54: =IF($D$5=Background!$Y$2,(D$17*5/7+D$19*2/7)*365/1000,D$13) -> 0 | J54: MWh
G55: Year 19 | H55: =IF($D$5=Background!$Y$2,(D$17*5/7+D$19*2/7)*365/1000,D$13) -> 0 | J55: MWh
G56: Year 20 | H56: =IF($D$5=Background!$Y$2,(D$17*5/7+D$19*2/7)*365/1000,D$13) -> 0 | J56: MWh

Sheet Input Solar
C3: Select PV costs | D3: Default
C5: Parameters | D5: Value (Default) | E5: Value (Individual) | G5: Unit
C7: PV CAPEX | D7: =Background!O4 -> 70000 | G7: PHP/kW
C8: PV OPEX | D8: =Background!O5 -> 1400 | G8: PHP/kW/y
C9: Life span | D9: =Background!O6 -> 20 | G9: years
C11: Select PV size | D11: Default
C13: PV capacity existing eligible | D13: 0 | G13: kW
C14: PV capacity existing non-eligible | D14: 0 | G14: kW
C15: PV capacity new | D15: =Background!Q5 -> 0 | G15: kW
C16: PV capacity total | D16: =SUM(D13:D15) -> 0 | E16: =SUM(E13:E15) -> 0 | G16: kW
C18: Select location | D18: Luzon | G18: Region
C20: Select irradiance parameters | D20: Default
C22: Average daily energy output | D22: =IF('Input Solar'!$D18=Background!$X$2,'Calc Solar'!H171,IF('Input Solar'!$D18=Background!$X$3,'Calc Solar'!I171,'Calc Solar'!J171)) -> 3.738899356 | G22: kWh/kWp
C26: Select diesel GenCo type | D26: Default
C28: Parameters | D28: Value (Default) | E28: Value (Individual) | G28: Unit
C30: Diesel plant name | D30: A
C31: Diesel plant CAPEX | D31: =Background!M4 -> 30000 | G31: PHP/kW
C32: Diesel plant OPEX var. | D32: =Background!M5 -> 2.5 | G32: PHP/kWh
C33: Diesel plant OPEX fix. | D33: =Background!M6 -> 300 | G33: PHP/kW/y
C34: Fuel per kWh | D34: =Background!M7 -> 0.33 | G34: liter/kWh
C35: Initital diesel fuel costs | D35: =Background!M9 -> 35 | G35: PHP/liter
C36: Minimum GenCo offtake | D36: 0 | G36: MWh/year
C37: Maximum GenCo offtake | D37: ='Existing Load'!$I$37*2 -> 0 | G37: MWh/year
C38: Life span | D38: =Background!M11 -> 10 | G38: years
C40: Select diesel plant size | D40: Default
C42: Diesel GenCo total capacity | D42: =Background!$Q$7 -> 0 | G42: kW
C43: Diesel GenCo operational capacity | D43: =Background!$Q$7 -> 0 | G43: kW
C44: Capacity of smallest operational unit | D44: =D42 -> 0 | G44: kW
C48: Select diesel GenCo type | D48: Default
C50: Parameters | D50: Value (Default) | E50: Value (Individual) | G50: Unit
C52: Diesel plant name | D52: B
C53: Diesel plant CAPEX | D53: =Background!M$4 -> 30000 | G53: PHP/kW
C54: Diesel plant OPEX var. | D54: =Background!M$5 -> 2.5 | G54: PHP/kWh
C55: Diesel plant OPEX fix. | D55: =Background!M$6 -> 300 | G55: PHP/kW/y
C56: Fuel per kWh | D56: =Background!M$7 -> 0.33 | G56: liter/kWh
C57: Initital diesel fuel costs | D57: =Background!M$9 -> 35 | G57: PHP/liter
C58: Minimum GenCo offtake | D58: 0 | G58: MWh/year
C59: Maximum GenCo offtake | D59: ='Existing Load'!$I$37*2 -> 0 | G59: MWh/year
C60: Life span | D60: =Background!M$11 -> 10 | G60: years
C62: Select diesel plant size | D62: Default
C64: Diesel GenCo total capacity | D64: 0 | G64: kW
C65: Diesel GenCo operational capacity | D65: 0 | G65: kW
C66: Capacity of smallest unit | D66: 0 | G66: kW
C70: Select diesel GenCo type | D70: Default
C72: Parameters | D72: Value (Default) | E72: Value (Individual) | G72: Unit
C74: Diesel plant name | D74: C
C75: Diesel plant CAPEX | D75: =Background!M$4 -> 30000 | G75: PHP/kW
C76: Diesel plant OPEX var. | D76: =Background!M$5 -> 2.5 | G76: PHP/kWh
C77: Diesel plant OPEX fix. | D77: =Background!M$6 -> 300 | G77: PHP/kW/y
C78: Fuel per kWh | D78: =Background!M$7 -> 0.33 | G78: liter/kWh
C79: Initital diesel fuel costs | D79: =Background!M$9 -> 35 | G79: PHP/liter
C80: Minimum GenCo offtake | D80: 0 | G80: MWh/year
C81: Maximum GenCo offtake | D81: ='Existing Load'!$I$37*2 -> 0 | G81: MWh/year
C82: Life span | D82: =Background!M$11 -> 10 | G82: years
C84: Select diesel plant size | D84: Default
C86: Diesel GenCo total capacity | D86: 0 | G86: kW
C87: Diesel GenCo operational capacity | D87: 0 | G87: kW
C88: Capacity of smallest unit | D88: 0 | G88: kW
C92: Select diesel GenCo type | D92: Default
C94: Parameters | D94: Value (Default) | E94: Value (Individual) | G94: Unit
C96: Diesel plant name | D96: D
C97: Diesel plant CAPEX | D97: =Background!M$4 -> 30000 | G97: PHP/kW
C98: Diesel plant OPEX var. | D98: =Background!M$5 -> 2.5 | G98: PHP/kWh
C99: Diesel plant OPEX fix. | D99: =Background!M$6 -> 300 | G99: PHP/kW/y
C100: Fuel per kWh | D100: =Background!M$7 -> 0.33 | G100: liter/kWh
C101: Initital diesel fuel costs | D101: =Background!M$9 -> 35 | G101: PHP/liter
C102: Minimum GenCo offtake | D102: 0 | G102: MWh/year
C103: Maximum GenCo offtake | D103: ='Existing Load'!$I$37*2 -> 0 | G103: MWh/year
C104: Life span | D104: =Background!M$11 -> 10 | G104: years
C106: Select diesel plant size | D106: Default
C108: Diesel GenCo total capacity | D108: 0 | G108: kW
C109: Diesel GenCo operational capacity | D109: 0 | G109: kW
C110: Capacity of smallest unit | D110: 0 | G110: kW
C114: Select diesel GenCo type | D114: Default
C116: Parameters | D116: Value (Default) | E116: Value (Individual) | G116: Unit
C118: Diesel plant name | D118: E
C119: Diesel plant CAPEX | D119: =Background!M$4 -> 30000 | G119: PHP/kW
C120: Diesel plant OPEX var. | D120: =Background!M$5 -> 2.5 | G120: PHP/kWh
C121: Diesel plant OPEX fix. | D121: =Background!M$6 -> 300 | G121: PHP/kW/y
C122: Fuel per kWh | D122: =Background!M$7 -> 0.33 | G122: liter/kWh
C123: Initital diesel fuel costs | D123: =Background!M$9 -> 35 | G123: PHP/liter
C124: Minimum GenCo offtake | D124: 0 | G124: MWh/year
C125: Maximum GenCo offtake | D125: ='Existing Load'!$I$37*2 -> 0 | G125: MWh/year
C126: Life span | D126: =Background!M$11 -> 10 | G126: years
C128: Select diesel plant size | D128: Default
C130: Diesel GenCo total capacity | D130: 0 | G130: kW
C131: Diesel GenCo operational capacity | D131: 0 | G131: kW
C132: Capacity of smallest unit | D132: 0 | G132: kW
C136: Select diesel GenCo type | D136: Default
C138: Parameters | D138: Value (Default) | E138: Value (Individual) | G138: Unit
C140: Diesel plant name | D140: F
C141: Diesel plant CAPEX | D141: =Background!M$4 -> 30000 | G141: PHP/kW
C142: Diesel plant OPEX var. | D142: =Background!M$5 -> 2.5 | G142: PHP/kWh
C143: Diesel plant OPEX fix. | D143: =Background!M$6 -> 300 | G143: PHP/kW/y
C144: Fuel per kWh | D144: =Background!M$7 -> 0.33 | G144: liter/kWh
C145: Initital diesel fuel costs | D145: =Background!M$9 -> 35 | G145: PHP/liter
C146: Minimum GenCo offtake | D146: 0 | G146: MWh/year
C147: Maximum GenCo offtake | D147: ='Existing Load'!$I$37*2 -> 0 | G147: MWh/year
C148: Life span | D148: =Background!M$11 -> 10 | G148: years
C150: Select diesel plant size | D150: Default
C152: Diesel GenCo total capacity | D152: 0 | G152: kW
C153: Diesel GenCo operational capacity | D153: 0 | G153: kW
C154: Capacity of smallest unit | D154: 0 | G154: kW
C158: Select diesel GenCo type | D158: Default
C160: Parameters | D160: Value (Default) | E160: Value (Individual) | G160: Unit
C162: Diesel plant name | D162: G
C163: Diesel plant CAPEX | D163: =Background!M$4 -> 30000 | G163: PHP/kW
C164: Diesel plant OPEX var. | D164: =Background!M$5 -> 2.5 | G164: PHP/kWh
C165: Diesel plant OPEX fix. | D165: =Background!M$6 -> 300 | G165: PHP/kW/y
C166: Fuel per kWh | D166: =Background!M$7 -> 0.33 | G166: liter/kWh
C167: Initital diesel fuel costs | D167: =Background!M$9 -> 35 | G167: PHP/liter
C168: Minimum GenCo offtake | D168: 0 | G168: MWh/year
C169: Maximum GenCo offtake | D169: ='Existing Load'!$I$37*2 -> 0 | G169: MWh/year
C170: Life span | D170: =Background!M$11 -> 10 | G170: years
C172: Select diesel plant size | D172: Default
C174: Diesel GenCo total capacity | D174: 0 | G174: kW
C175: Diesel GenCo operational capacity | D175: 0 | G175: kW
C176: Capacity of smallest unit | D176: 0 | G176: kW
C180: Select diesel GenCo type | D180: Default
C182: Parameters | D182: Value (Default) | E182: Value (Individual) | G182: Unit
C184: Diesel plant name | D184: H
C185: Diesel plant CAPEX | D185: =Background!M$4 -> 30000 | G185: PHP/kW
C186: Diesel plant OPEX var. | D186: =Background!M$5 -> 2.5 | G186: PHP/kWh
C187: Diesel plant OPEX fix. | D187: =Background!M$6 -> 300 | G187: PHP/kW/y
C188: Fuel per kWh | D188: =Background!M$7 -> 0.33 | G188: liter/kWh
C189: Initital diesel fuel costs | D189: =Background!M$9 -> 35 | G189: PHP/liter
C190: Minimum GenCo offtake | D190: 0 | G190: MWh/year
C191: Maximum GenCo offtake | D191: ='Existing Load'!$I$37*2 -> 0 | G191: MWh/year
C192: Life span | D192: =Background!M$11 -> 10 | G192: years
C194: Select diesel plant size | D194: Default
C196: Diesel GenCo total capacity | D196: 0 | G196: kW
C197: Diesel GenCo operational capacity | D197: 0 | G197: kW
C198: Capacity of smallest unit | D198: 0 | G198: kW
C202: Select diesel GenCo type | D202: Default
C204: Parameters | D204: Value (Default) | E204: Value (Individual) | G204: Unit
C206: Diesel plant name | D206: I
C207: Diesel plant CAPEX | D207: =Background!M$4 -> 30000 | G207: PHP/kW
C208: Diesel plant OPEX var. | D208: =Background!M$5 -> 2.5 | G208: PHP/kWh
C209: Diesel plant OPEX fix. | D209: =Background!M$6 -> 300 | G209: PHP/kW/y
C210: Fuel per kWh | D210: =Background!M$7 -> 0.33 | G210: liter/kWh
C211: Initital diesel fuel costs | D211: =Background!M$9 -> 35 | G211: PHP/liter
C212: Minimum GenCo offtake | D212: 0 | G212: MWh/year
C213: Maximum GenCo offtake | D213: ='Existing Load'!$I$37*2 -> 0 | G213: MWh/year
C214: Life span | D214: =Background!M$11 -> 10 | G214: years
C216: Select diesel plant size | D216: Default
C218: Diesel GenCo total capacity | D218: 0 | G218: kW
C219: Diesel GenCo operational capacity | D219: 0 | G219: kW
C220: Capacity of smallest unit | D220: 0 | G220: kW
C224: Select diesel GenCo type | D224: Default
C226: Parameters | D226: Value (Default) | E226: Value (Individual) | G226: Unit
C228: Diesel plant name | D228: J
C229: Diesel plant CAPEX | D229: =Background!M$4 -> 30000 | G229: PHP/kW
C230: Diesel plant OPEX var. | D230: =Background!M$5 -> 2.5 | G230: PHP/kWh
C231: Diesel plant OPEX fix. | D231: =Background!M$6 -> 300 | G231: PHP/kW/y
C232: Fuel per kWh | D232: =Background!M$7 -> 0.33 | G232: liter/kWh
C233: Initital diesel fuel costs | D233: =Background!M$9 -> 35 | G233: PHP/liter
C234: Minimum GenCo offtake | D234: 0 | G234: MWh/year
C235: Maximum GenCo offtake | D235: ='Existing Load'!$I$37*2 -> 0 | G235: MWh/year
C236: Life span | D236: =Background!M$11 -> 10 | G236: years
C238: Select diesel plant size | D238: Default
C240: Diesel GenCo total capacity | D240: 0 | G240: kW
C241: Diesel GenCo operational capacity | D241: 0 | G241: kW
C242: Capacity of smallest unit | D242: 0 | G242: kW
C246: Select battery type | D246: Lithium-Ion
C248: Parameters | D248: Value (Default) | E248: Value (Individual) | G248: Unit
C250: Battery system CAPEX | D250: =IF($D$246="Lithium-Ion",Background!H7,Background!J7) -> 27000 | G250: PHP/kWh_cap
C251: Battery OPEX | D251: =IF($D$246="Lithium-Ion",Background!H9,Background!J9) -> 405 | G251: PHP/kWh_cap/y
C252: C-rate (kW/kWh) | D252: =IF($D$246="Lithium-Ion",Background!H10,Background!J10) -> 1 | G252: ratio
C253: Maximum Depth of discharge (DoD) | D253: =IF($D$246="Lithium-Ion",Background!H11,Background!J11) -> 0.8
C254: Charging efficiency | D254: =IF($D$246="Lithium-Ion",Background!H13,Background!J13) -> 0.9
C255: Discharging efficiency | D255: =IF($D$246="Lithium-Ion",Background!H14,Background!J14) -> 0.9
C256: Life span | D256: =IF($D$246="Lithium-Ion",Background!H15,Background!J15) -> 10 | G256: years
C258: Select battery size | D258: Default
C260: Battery capacity | D260: =Background!$Q$6 -> 0 | G260: capacity in kWh
C264: Select system parameters | D264: Default
C266: Parameters | D266: Value (Default) | E266: Value (Individual) | G266: Unit
C268: Discount rate | D268: =Background!Q4 -> 0.12
C269: Project duration | D269: =Background!Q8 -> 20 | G269: years
C270: Distribution losses | D270: =Background!Q9 -> 0.05
C271: System stability factor | D271: =Background!Q10 -> 0.4 | G271: % of load
C273: Fixed project development costs | D273: =Background!M12 -> 500000 | G273: PHP
C274: Fixed other initial costs | D274: =Background!M13 -> 0 | G274: PHP
C275: Fixed other opex | D275: =Background!M14 -> 0 | G275: PHP/year
C276: Fixed personnel costs | D276: =Background!M15 -> 0 | G276: PHP/year
C277: Diesel price increase | D277: =Background!M10 -> 0.03 | G277: per year
C281: Distribution grid parameters | D281: Default
C283: Parameters | D283: Value (Default) | E283: Value (Indiviudal) | G283: Unit
C285: Grid initial costs | D285: =Background!M17 -> 0 | G285: PHP
C286: Fixed grid OPEX | D286: =Background!M18 -> 0 | G286: PHP/year
C287: Life span | D287: =Background!M19 -> 20 | G287: years
C291: RE Certificates (REC) | D291: Default
D292: Value (Default) | E292: Value (Individual)
C293: REC amount | D293: 0
C294: RE generation equivalent per REC | D294: 1 | G294: MWh/REC
C295: RE generation equivalen total | D295: =D293*D294 -> 0 | E295: =E294*E293 -> 0 | G295: MWh
G296: MWh
G297: MWh
C301: System simulation
C302: Overview of sizes for simulation | D302: Value (Default) | E302: Value (Individual)
C304: PV capacity total | D304: =IF($D$11="Default",$D$16,"") -> 0 | E304: =IF($D$11="Default","",$E$16) ->  | G304: kW
... 20 more rows

Sheet Simulation Results Solar
B2: Techno-economic Results - PV hybrid system | M2: =Background!M31 -> GenCo A | O2: =Background!O31 -> GenCo B | Q2: =Background!Q31 -> GenCo C | S2: =Background!S31 -> GenCo D | U2: =Background!U31 -> GenCo E | W2: =Background!W31 -> GenCo F | Y2: =Background!Y31 -> GenCo G | AA2: =Background!AA31 -> GenCo H | AC2: =Background!AC31 -> GenCo I | AE2: =Background!AE31 -> GenCo J
B3: =Background!A32 -> Year | C3: =Background!C32 -> LCOE [PHP/kWh] | D3: =Background!D32 -> RE share eligible | E3: =Background!E32 -> Consumption (+losses) [MWh] | F3: =Background!F32 -> Peak load [kW] | G3: =Background!G32 -> Distribution losses [MWh] | H3: =Background!H32 -> PV generation potential [MWh] | I3: =Background!I32 -> Existing non-eligible PV electricity consumed [MWh] | J3: =Background!J32 -> Existing eligible PV electricity consumed [MWh] | K3: =Background!K32 -> New PV electricity consumed [MWh] | L3: =Background!L32 -> Total PV electricity consumed [MWh] | M3: =Background!M32 -> Diesel generation [MWh] | N3: =Background!N32 -> Diesel consumption [L] | O3: =Background!O32 -> Diesel generation [MWh] | P3: =Background!P32 -> Diesel consumption [L] | Q3: =Background!Q32 -> Diesel generation [MWh] | R3: =Background!R32 -> Diesel consumption [L] | S3: =Background!S32 -> Diesel generation [MWh] | T3: =Background!T32 -> Diesel consumption [L] | U3: =Background!U32 -> Diesel generation [MWh] | V3: =Background!V32 -> Diesel consumption [L] | W3: =Background!W32 -> Diesel generation [MWh] | X3: =Background!X32 -> Diesel consumption [L] | Y3: =Background!Y32 -> Diesel generation [MWh] | Z3: =Background!Z32 -> Diesel consumption [L] | AA3: =Background!AA32 -> Diesel generation [MWh] | AB3: =Background!AB32 -> Diesel consumption [L] | AC3: =Background!AC32 -> Diesel generation [MWh] | AD3: =Background!AD32 -> Diesel consumption [L] | AE3: =Background!AE32 -> Diesel generation [MWh] | AF3: =Background!AF32 -> Diesel consumption [L] | AG3: =Background!AG32 -> Total diesel electricity generation [MWh] | AH3: =Background!AH32 -> Total diesel electricity consumed [MWh] | AI3: =Background!AI32 -> Total diesel excess [MWh] | AJ3: =Background!AL32 -> Diesel fuel costs [PHP] | AK3: =Background!AM32 -> Battery discharge [MWh] | AL3: =Background!AN32 -> Unmet load [MWh]
B4: =Background!A33 -> 1 | C4: =Background!C33 -> 0 | D4: =Background!D33 -> 0 | E4: =Background!E33 -> 0 | F4: =Background!F33 -> 0 | G4: =Background!G33 -> 0 | H4: =Background!H33 -> 0 | I4: =Background!I33 -> 0 | J4: =Background!J33 -> 0 | K4: =Background!K33 -> 0 | L4: =Background!L33 -> 0 | M4: =Background!M33 -> 0 | N4: =Background!N33 -> 0 | O4: =Background!O33 -> 0 | P4: =Background!P33 -> 0 | Q4: =Background!Q33 -> 0 | R4: =Background!R33 -> 0 | S4: =Background!S33 -> 0 | T4: =Background!T33 -> 0 | U4: =Background!U33 -> 0 | V4: =Background!V33 -> 0 | W4: =Background!W33 -> 0 | X4: =Background!X33 -> 0 | Y4: =Background!Y33 -> 0 | Z4: =Background!Z33 -> 0 | AA4: =Background!AA33 -> 0 | AB4: =Background!AB33 -> 0 | AC4: =Background!AC33 -> 0 | AD4: =Background!AD33 -> 0 | AE4: =Background!AE33 -> 0 | AF4: =Background!AF33 -> 0 | AG4: =Background!AG33 -> 0 | AH4: =Background!AH33 -> 0 | AI4: =Background!AI33 -> 0 | AJ4: =Background!AL33 -> 0 | AK4: =Background!AM33 -> 0 | AL4: =Background!AN33 -> 0
B5: =Background!A34 -> 2 | C5: =Background!C34 -> 0 | D5: =Background!D34 -> 0 | E5: =Background!E34 -> 0 | F5: =Background!F34 -> 0 | G5: =Background!G34 -> 0 | H5: =Background!H34 -> 0 | I5: =Background!I34 -> 0 | J5: =Background!J34 -> 0 | K5: =Background!K34 -> 0 | L5: =Background!L34 -> 0 | M5: =Background!M34 -> 0 | N5: =Background!N34 -> 0 | O5: =Background!O34 -> 0 | P5: =Background!P34 -> 0 | Q5: =Background!Q34 -> 0 | R5: =Background!R34 -> 0 | S5: =Background!S34 -> 0 | T5: =Background!T34 -> 0 | U5: =Background!U34 -> 0 | V5: =Background!V34 -> 0 | W5: =Background!W34 -> 0 | X5: =Background!X34 -> 0 | Y5: =Background!Y34 -> 0 | Z5: =Background!Z34 -> 0 | AA5: =Background!AA34 -> 0 | AB5: =Background!AB34 -> 0 | AC5: =Background!AC34 -> 0 | AD5: =Background!AD34 -> 0 | AE5: =Background!AE34 -> 0 | AF5: =Background!AF34 -> 0 | AG5: =Background!AG34 -> 0 | AH5: =Background!AH34 -> 0 | AI5: =Background!AI34 -> 0 | AJ5: =Background!AL34 -> 0 | AK5: =Background!AM34 -> 0 | AL5: =Background!AN34 -> 0
B6: =Background!A35 -> 3 | C6: =Background!C35 -> 0 | D6: =Background!D35 -> 0 | E6: =Background!E35 -> 0 | F6: =Background!F35 -> 0 | G6: =Background!G35 -> 0 | H6: =Background!H35 -> 0 | I6: =Background!I35 -> 0 | J6: =Background!J35 -> 0 | K6: =Background!K35 -> 0 | L6: =Background!L35 -> 0 | M6: =Background!M35 -> 0 | N6: =Background!N35 -> 0 | O6: =Background!O35 -> 0 | P6: =Background!P35 -> 0 | Q6: =Background!Q35 -> 0 | R6: =Background!R35 -> 0 | S6: =Background!S35 -> 0 | T6: =Background!T35 -> 0 | U6: =Background!U35 -> 0 | V6: =Background!V35 -> 0 | W6: =Background!W35 -> 0 | X6: =Background!X35 -> 0 | Y6: =Background!Y35 -> 0 | Z6: =Background!Z35 -> 0 | AA6: =Background!AA35 -> 0 | AB6: =Background!AB35 -> 0 | AC6: =Background!AC35 -> 0 | AD6: =Background!AD35 -> 0 | AE6: =Background!AE35 -> 0 | AF6: =Background!AF35 -> 0 | AG6: =Background!AG35 -> 0 | AH6: =Background!AH35 -> 0 | AI6: =Background!AI35 -> 0 | AJ6: =Background!AL35 -> 0 | AK6: =Background!AM35 -> 0 | AL6: =Background!AN35 -> 0
B7: =Background!A36 -> 4 | C7: =Background!C36 -> 0 | D7: =Background!D36 -> 0 | E7: =Background!E36 -> 0 | F7: =Background!F36 -> 0 | G7: =Background!G36 -> 0 | H7: =Background!H36 -> 0 | I7: =Background!I36 -> 0 | J7: =Background!J36 -> 0 | K7: =Background!K36 -> 0 | L7: =Background!L36 -> 0 | M7: =Background!M36 -> 0 | N7: =Background!N36 -> 0 | O7: =Background!O36 -> 0 | P7: =Background!P36 -> 0 | Q7: =Background!Q36 -> 0 | R7: =Background!R36 -> 0 | S7: =Background!S36 -> 0 | T7: =Background!T36 -> 0 | U7: =Background!U36 -> 0 | V7: =Background!V36 -> 0 | W7: =Background!W36 -> 0 | X7: =Background!X36 -> 0 | Y7: =Background!Y36 -> 0 | Z7: =Background!Z36 -> 0 | AA7: =Background!AA36 -> 0 | AB7: =Background!AB36 -> 0 | AC7: =Background!AC36 -> 0 | AD7: =Background!AD36 -> 0 | AE7: =Background!AE36 -> 0 | AF7: =Background!AF36 -> 0 | AG7: =Background!AG36 -> 0 | AH7: =Background!AH36 -> 0 | AI7: =Background!AI36 -> 0 | AJ7: =Background!AL36 -> 0 | AK7: =Background!AM36 -> 0 | AL7: =Background!AN36 -> 0
B8: =Background!A37 -> 5 | C8: =Background!C37 -> 0 | D8: =Background!D37 -> 0 | E8: =Background!E37 -> 0 | F8: =Background!F37 -> 0 | G8: =Background!G37 -> 0 | H8: =Background!H37 -> 0 | I8: =Background!I37 -> 0 | J8: =Background!J37 -> 0 | K8: =Background!K37 -> 0 | L8: =Background!L37 -> 0 | M8: =Background!M37 -> 0 | N8: =Background!N37 -> 0 | O8: =Background!O37 -> 0 | P8: =Background!P37 -> 0 | Q8: =Background!Q37 -> 0 | R8: =Background!R37 -> 0 | S8: =Background!S37 -> 0 | T8: =Background!T37 -> 0 | U8: =Background!U37 -> 0 | V8: =Background!V37 -> 0 | W8: =Background!W37 -> 0 | X8: =Background!X37 -> 0 | Y8: =Background!Y37 -> 0 | Z8: =Background!Z37 -> 0 | AA8: =Background!AA37 -> 0 | AB8: =Background!AB37 -> 0 | AC8: =Background!AC37 -> 0 | AD8: =Background!AD37 -> 0 | AE8: =Background!AE37 -> 0 | AF8: =Background!AF37 -> 0 | AG8: =Background!AG37 -> 0 | AH8: =Background!AH37 -> 0 | AI8: =Background!AI37 -> 0 | AJ8: =Background!AL37 -> 0 | AK8: =Background!AM37 -> 0 | AL8: =Background!AN37 -> 0
B9: =Background!A38 -> 6 | C9: =Background!C38 -> 0 | D9: =Background!D38 -> 0 | E9: =Background!E38 -> 0 | F9: =Background!F38 -> 0 | G9: =Background!G38 -> 0 | H9: =Background!H38 -> 0 | I9: =Background!I38 -> 0 | J9: =Background!J38 -> 0 | K9: =Background!K38 -> 0 | L9: =Background!L38 -> 0 | M9: =Background!M38 -> 0 | N9: =Background!N38 -> 0 | O9: =Background!O38 -> 0 | P9: =Background!P38 -> 0 | Q9: =Background!Q38 -> 0 | R9: =Background!R38 -> 0 | S9: =Background!S38 -> 0 | T9: =Background!T38 -> 0 | U9: =Background!U38 -> 0 | V9: =Background!V38 -> 0 | W9: =Background!W38 -> 0 | X9: =Background!X38 -> 0 | Y9: =Background!Y38 -> 0 | Z9: =Background!Z38 -> 0 | AA9: =Background!AA38 -> 0 | AB9: =Background!AB38 -> 0 | AC9: =Background!AC38 -> 0 | AD9: =Background!AD38 -> 0 | AE9: =Background!AE38 -> 0 | AF9: =Background!AF38 -> 0 | AG9: =Background!AG38 -> 0 | AH9: =Background!AH38 -> 0 | AI9: =Background!AI38 -> 0 | AJ9: =Background!AL38 -> 0 | AK9: =Background!AM38 -> 0 | AL9: =Background!AN38 -> 0
B10: =Background!A39 -> 7 | C10: =Background!C39 -> 0 | D10: =Background!D39 -> 0 | E10: =Background!E39 -> 0 | F10: =Background!F39 -> 0 | G10: =Background!G39 -> 0 | H10: =Background!H39 -> 0 | I10: =Background!I39 -> 0 | J10: =Background!J39 -> 0 | K10: =Background!K39 -> 0 | L10: =Background!L39 -> 0 | M10: =Background!M39 -> 0 | N10: =Background!N39 -> 0 | O10: =Background!O39 -> 0 | P10: =Background!P39 -> 0 | Q10: =Background!Q39 -> 0 | R10: =Background!R39 -> 0 | S10: =Background!S39 -> 0 | T10: =Background!T39 -> 0 | U10: =Background!U39 -> 0 | V10: =Background!V39 -> 0 | W10: =Background!W39 -> 0 | X10: =Background!X39 -> 0 | Y10: =Background!Y39 -> 0 | Z10: =Background!Z39 -> 0 | AA10: =Background!AA39 -> 0 | AB10: =Background!AB39 -> 0 | AC10: =Background!AC39 -> 0 | AD10: =Background!AD39 -> 0 | AE10: =Background!AE39 -> 0 | AF10: =Background!AF39 -> 0 | AG10: =Background!AG39 -> 0 | AH10: =Background!AH39 -> 0 | AI10: =Background!AI39 -> 0 | AJ10: =Background!AL39 -> 0 | AK10: =Background!AM39 -> 0 | AL10: =Background!AN39 -> 0
B11: =Background!A40 -> 8 | C11: =Background!C40 -> 0 | D11: =Background!D40 -> 0 | E11: =Background!E40 -> 0 | F11: =Background!F40 -> 0 | G11: =Background!G40 -> 0 | H11: =Background!H40 -> 0 | I11: =Background!I40 -> 0 | J11: =Background!J40 -> 0 | K11: =Background!K40 -> 0 | L11: =Background!L40 -> 0 | M11: =Background!M40 -> 0 | N11: =Background!N40 -> 0 | O11: =Background!O40 -> 0 | P11: =Background!P40 -> 0 | Q11: =Background!Q40 -> 0 | R11: =Background!R40 -> 0 | S11: =Background!S40 -> 0 | T11: =Background!T40 -> 0 | U11: =Background!U40 -> 0 | V11: =Background!V40 -> 0 | W11: =Background!W40 -> 0 | X11: =Background!X40 -> 0 | Y11: =Background!Y40 -> 0 | Z11: =Background!Z40 -> 0 | AA11: =Background!AA40 -> 0 | AB11: =Background!AB40 -> 0 | AC11: =Background!AC40 -> 0 | AD11: =Background!AD40 -> 0 | AE11: =Background!AE40 -> 0 | AF11: =Background!AF40 -> 0 | AG11: =Background!AG40 -> 0 | AH11: =Background!AH40 -> 0 | AI11: =Background!AI40 -> 0 | AJ11: =Background!AL40 -> 0 | AK11: =Background!AM40 -> 0 | AL11: =Background!AN40 -> 0
B12: =Background!A41 -> 9 | C12: =Background!C41 -> 0 | D12: =Background!D41 -> 0 | E12: =Background!E41 -> 0 | F12: =Background!F41 -> 0 | G12: =Background!G41 -> 0 | H12: =Background!H41 -> 0 | I12: =Background!I41 -> 0 | J12: =Background!J41 -> 0 | K12: =Background!K41 -> 0 | L12: =Background!L41 -> 0 | M12: =Background!M41 -> 0 | N12: =Background!N41 -> 0 | O12: =Background!O41 -> 0 | P12: =Background!P41 -> 0 | Q12: =Background!Q41 -> 0 | R12: =Background!R41 -> 0 | S12: =Background!S41 -> 0 | T12: =Background!T41 -> 0 | U12: =Background!U41 -> 0 | V12: =Background!V41 -> 0 | W12: =Background!W41 -> 0 | X12: =Background!X41 -> 0 | Y12: =Background!Y41 -> 0 | Z12: =Background!Z41 -> 0 | AA12: =Background!AA41 -> 0 | AB12: =Background!AB41 -> 0 | AC12: =Background!AC41 -> 0 | AD12: =Background!AD41 -> 0 | AE12: =Background!AE41 -> 0 | AF12: =Background!AF41 -> 0 | AG12: =Background!AG41 -> 0 | AH12: =Background!AH41 -> 0 | AI12: =Background!AI41 -> 0 | AJ12: =Background!AL41 -> 0 | AK12: =Background!AM41 -> 0 | AL12: =Background!AN41 -> 0
B13: =Background!A42 -> 10 | C13: =Background!C42 -> 0 | D13: =Background!D42 -> 0 | E13: =Background!E42 -> 0 | F13: =Background!F42 -> 0 | G13: =Background!G42 -> 0 | H13: =Background!H42 -> 0 | I13: =Background!I42 -> 0 | J13: =Background!J42 -> 0 | K13: =Background!K42 -> 0 | L13: =Background!L42 -> 0 | M13: =Background!M42 -> 0 | N13: =Background!N42 -> 0 | O13: =Background!O42 -> 0 | P13: =Background!P42 -> 0 | Q13: =Background!Q42 -> 0 | R13: =Background!R42 -> 0 | S13: =Background!S42 -> 0 | T13: =Background!T42 -> 0 | U13: =Background!U42 -> 0 | V13: =Background!V42 -> 0 | W13: =Background!W42 -> 0 | X13: =Background!X42 -> 0 | Y13: =Background!Y42 -> 0 | Z13: =Background!Z42 -> 0 | AA13: =Background!AA42 -> 0 | AB13: =Background!AB42 -> 0 | AC13: =Background!AC42 -> 0 | AD13: =Background!AD42 -> 0 | AE13: =Background!AE42 -> 0 | AF13: =Background!AF42 -> 0 | AG13: =Background!AG42 -> 0 | AH13: =Background!AH42 -> 0 | AI13: =Background!AI42 -> 0 | AJ13: =Background!AL42 -> 0 | AK13: =Background!AM42 -> 0 | AL13: =Background!AN42 -> 0
B14: =Background!A43 -> 11 | C14: =Background!C43 -> 0 | D14: =Background!D43 -> 0 | E14: =Background!E43 -> 0 | F14: =Background!F43 -> 0 | G14: =Background!G43 -> 0 | H14: =Background!H43 -> 0 | I14: =Background!I43 -> 0 | J14: =Background!J43 -> 0 | K14: =Background!K43 -> 0 | L14: =Background!L43 -> 0 | M14: =Background!M43 -> 0 | N14: =Background!N43 -> 0 | O14: =Background!O43 -> 0 | P14: =Background!P43 -> 0 | Q14: =Background!Q43 -> 0 | R14: =Background!R43 -> 0 | S14: =Background!S43 -> 0 | T14: =Background!T43 -> 0 | U14: =Background!U43 -> 0 | V14: =Background!V43 -> 0 | W14: =Background!W43 -> 0 | X14: =Background!X43 -> 0 | Y14: =Background!Y43 -> 0 | Z14: =Background!Z43 -> 0 | AA14: =Background!AA43 -> 0 | AB14: =Background!AB43 -> 0 | AC14: =Background!AC43 -> 0 | AD14: =Background!AD43 -> 0 | AE14: =Background!AE43 -> 0 | AF14: =Background!AF43 -> 0 | AG14: =Background!AG43 -> 0 | AH14: =Background!AH43 -> 0 | AI14: =Background!AI43 -> 0 | AJ14: =Background!AL43 -> 0 | AK14: =Background!AM43 -> 0 | AL14: =Background!AN43 -> 0
B15: =Background!A44 -> 12 | C15: =Background!C44 -> 0 | D15: =Background!D44 -> 0 | E15: =Background!E44 -> 0 | F15: =Background!F44 -> 0 | G15: =Background!G44 -> 0 | H15: =Background!H44 -> 0 | I15: =Background!I44 -> 0 | J15: =Background!J44 -> 0 | K15: =Background!K44 -> 0 | L15: =Background!L44 -> 0 | M15: =Background!M44 -> 0 | N15: =Background!N44 -> 0 | O15: =Background!O44 -> 0 | P15: =Background!P44 -> 0 | Q15: =Background!Q44 -> 0 | R15: =Background!R44 -> 0 | S15: =Background!S44 -> 0 | T15: =Background!T44 -> 0 | U15: =Background!U44 -> 0 | V15: =Background!V44 -> 0 | W15: =Background!W44 -> 0 | X15: =Background!X44 -> 0 | Y15: =Background!Y44 -> 0 | Z15: =Background!Z44 -> 0 | AA15: =Background!AA44 -> 0 | AB15: =Background!AB44 -> 0 | AC15: =Background!AC44 -> 0 | AD15: =Background!AD44 -> 0 | AE15: =Background!AE44 -> 0 | AF15: =Background!AF44 -> 0 | AG15: =Background!AG44 -> 0 | AH15: =Background!AH44 -> 0 | AI15: =Background!AI44 -> 0 | AJ15: =Background!AL44 -> 0 | AK15: =Background!AM44 -> 0 | AL15: =Background!AN44 -> 0
B16: =Background!A45 -> 13 | C16: =Background!C45 -> 0 | D16: =Background!D45 -> 0 | E16: =Background!E45 -> 0 | F16: =Background!F45 -> 0 | G16: =Background!G45 -> 0 | H16: =Background!H45 -> 0 | I16: =Background!I45 -> 0 | J16: =Background!J45 -> 0 | K16: =Background!K45 -> 0 | L16: =Background!L45 -> 0 | M16: =Background!M45 -> 0 | N16: =Background!N45 -> 0 | O16: =Background!O45 -> 0 | P16: =Background!P45 -> 0 | Q16: =Background!Q45 -> 0 | R16: =Background!R45 -> 0 | S16: =Background!S45 -> 0 | T16: =Background!T45 -> 0 | U16: =Background!U45 -> 0 | V16: =Background!V45 -> 0 | W16: =Background!W45 -> 0 | X16: =Background!X45 -> 0 | Y16: =Background!Y45 -> 0 | Z16: =Background!Z45 -> 0 | AA16: =Background!AA45 -> 0 | AB16: =Background!AB45 -> 0 | AC16: =Background!AC45 -> 0 | AD16: =Background!AD45 -> 0 | AE16: =Background!AE45 -> 0 | AF16: =Background!AF45 -> 0 | AG16: =Background!AG45 -> 0 | AH16: =Background!AH45 -> 0 | AI16: =Background!AI45 -> 0 | AJ16: =Background!AL45 -> 0 | AK16: =Background!AM45 -> 0 | AL16: =Background!AN45 -> 0
B17: =Background!A46 -> 14 | C17: =Background!C46 -> 0 | D17: =Background!D46 -> 0 | E17: =Background!E46 -> 0 | F17: =Background!F46 -> 0 | G17: =Background!G46 -> 0 | H17: =Background!H46 -> 0 | I17: =Background!I46 -> 0 | J17: =Background!J46 -> 0 | K17: =Background!K46 -> 0 | L17: =Background!L46 -> 0 | M17: =Background!M46 -> 0 | N17: =Background!N46 -> 0 | O17: =Background!O46 -> 0 | P17: =Background!P46 -> 0 | Q17: =Background!Q46 -> 0 | R17: =Background!R46 -> 0 | S17: =Background!S46 -> 0 | T17: =Background!T46 -> 0 | U17: =Background!U46 -> 0 | V17: =Background!V46 -> 0 | W17: =Background!W46 -> 0 | X17: =Background!X46 -> 0 | Y17: =Background!Y46 -> 0 | Z17: =Background!Z46 -> 0 | AA17: =Background!AA46 -> 0 | AB17: =Background!AB46 -> 0 | AC17: =Background!AC46 -> 0 | AD17: =Background!AD46 -> 0 | AE17: =Background!AE46 -> 0 | AF17: =Background!AF46 -> 0 | AG17: =Background!AG46 -> 0 | AH17: =Background!AH46 -> 0 | AI17: =Background!AI46 -> 0 | AJ17: =Background!AL46 -> 0 | AK17: =Background!AM46 -> 0 | AL17: =Background!AN46 -> 0
B18: =Background!A47 -> 15 | C18: =Background!C47 -> 0 | D18: =Background!D47 -> 0 | E18: =Background!E47 -> 0 | F18: =Background!F47 -> 0 | G18: =Background!G47 -> 0 | H18: =Background!H47 -> 0 | I18: =Background!I47 -> 0 | J18: =Background!J47 -> 0 | K18: =Background!K47 -> 0 | L18: =Background!L47 -> 0 | M18: =Background!M47 -> 0 | N18: =Background!N47 -> 0 | O18: =Background!O47 -> 0 | P18: =Background!P47 -> 0 | Q18: =Background!Q47 -> 0 | R18: =Background!R47 -> 0 | S18: =Background!S47 -> 0 | T18: =Background!T47 -> 0 | U18: =Background!U47 -> 0 | V18: =Background!V47 -> 0 | W18: =Background!W47 -> 0 | X18: =Background!X47 -> 0 | Y18: =Background!Y47 -> 0 | Z18: =Background!Z47 -> 0 | AA18: =Background!AA47 -> 0 | AB18: =Background!AB47 -> 0 | AC18: =Background!AC47 -> 0 | AD18: =Background!AD47 -> 0 | AE18: =Background!AE47 -> 0 | AF18: =Background!AF47 -> 0 | AG18: =Background!AG47 -> 0 | AH18: =Background!AH47 -> 0 | AI18: =Background!AI47 -> 0 | AJ18: =Background!AL47 -> 0 | AK18: =Background!AM47 -> 0 | AL18: =Background!AN47 -> 0
B19: =Background!A48 -> 16 | C19: =Background!C48 -> 0 | D19: =Background!D48 -> 0 | E19: =Background!E48 -> 0 | F19: =Background!F48 -> 0 | G19: =Background!G48 -> 0 | H19: =Background!H48 -> 0 | I19: =Background!I48 -> 0 | J19: =Background!J48 -> 0 | K19: =Background!K48 -> 0 | L19: =Background!L48 -> 0 | M19: =Background!M48 -> 0 | N19: =Background!N48 -> 0 | O19: =Background!O48 -> 0 | P19: =Background!P48 -> 0 | Q19: =Background!Q48 -> 0 | R19: =Background!R48 -> 0 | S19: =Background!S48 -> 0 | T19: =Background!T48 -> 0 | U19: =Background!U48 -> 0 | V19: =Background!V48 -> 0 | W19: =Background!W48 -> 0 | X19: =Background!X48 -> 0 | Y19: =Background!Y48 -> 0 | Z19: =Background!Z48 -> 0 | AA19: =Background!AA48 -> 0 | AB19: =Background!AB48 -> 0 | AC19: =Background!AC48 -> 0 | AD19: =Background!AD48 -> 0 | AE19: =Background!AE48 -> 0 | AF19: =Background!AF48 -> 0 | AG19: =Background!AG48 -> 0 | AH19: =Background!AH48 -> 0 | AI19: =Background!AI48 -> 0 | AJ19: =Background!AL48 -> 0 | AK19: =Background!AM48 -> 0 | AL19: =Background!AN48 -> 0
B20: =Background!A49 -> 17 | C20: =Background!C49 -> 0 | D20: =Background!D49 -> 0 | E20: =Background!E49 -> 0 | F20: =Background!F49 -> 0 | G20: =Background!G49 -> 0 | H20: =Background!H49 -> 0 | I20: =Background!I49 -> 0 | J20: =Background!J49 -> 0 | K20: =Background!K49 -> 0 | L20: =Background!L49 -> 0 | M20: =Background!M49 -> 0 | N20: =Background!N49 -> 0 | O20: =Background!O49 -> 0 | P20: =Background!P49 -> 0 | Q20: =Background!Q49 -> 0 | R20: =Background!R49 -> 0 | S20: =Background!S49 -> 0 | T20: =Background!T49 -> 0 | U20: =Background!U49 -> 0 | V20: =Background!V49 -> 0 | W20: =Background!W49 -> 0 | X20: =Background!X49 -> 0 | Y20: =Background!Y49 -> 0 | Z20: =Background!Z49 -> 0 | AA20: =Background!AA49 -> 0 | AB20: =Background!AB49 -> 0 | AC20: =Background!AC49 -> 0 | AD20: =Background!AD49 -> 0 | AE20: =Background!AE49 -> 0 | AF20: =Background!AF49 -> 0 | AG20: =Background!AG49 -> 0 | AH20: =Background!AH49 -> 0 | AI20: =Background!AI49 -> 0 | AJ20: =Background!AL49 -> 0 | AK20: =Background!AM49 -> 0 | AL20: =Background!AN49 -> 0
B21: =Background!A50 -> 18 | C21: =Background!C50 -> 0 | D21: =Background!D50 -> 0 | E21: =Background!E50 -> 0 | F21: =Background!F50 -> 0 | G21: =Background!G50 -> 0 | H21: =Background!H50 -> 0 | I21: =Background!I50 -> 0 | J21: =Background!J50 -> 0 | K21: =Background!K50 -> 0 | L21: =Background!L50 -> 0 | M21: =Background!M50 -> 0 | N21: =Background!N50 -> 0 | O21: =Background!O50 -> 0 | P21: =Background!P50 -> 0 | Q21: =Background!Q50 -> 0 | R21: =Background!R50 -> 0 | S21: =Background!S50 -> 0 | T21: =Background!T50 -> 0 | U21: =Background!U50 -> 0 | V21: =Background!V50 -> 0 | W21: =Background!W50 -> 0 | X21: =Background!X50 -> 0 | Y21: =Background!Y50 -> 0 | Z21: =Background!Z50 -> 0 | AA21: =Background!AA50 -> 0 | AB21: =Background!AB50 -> 0 | AC21: =Background!AC50 -> 0 | AD21: =Background!AD50 -> 0 | AE21: =Background!AE50 -> 0 | AF21: =Background!AF50 -> 0 | AG21: =Background!AG50 -> 0 | AH21: =Background!AH50 -> 0 | AI21: =Background!AI50 -> 0 | AJ21: =Background!AL50 -> 0 | AK21: =Background!AM50 -> 0 | AL21: =Background!AN50 -> 0
B22: =Background!A51 -> 19 | C22: =Background!C51 -> 0 | D22: =Background!D51 -> 0 | E22: =Background!E51 -> 0 | F22: =Background!F51 -> 0 | G22: =Background!G51 -> 0 | H22: =Background!H51 -> 0 | I22: =Background!I51 -> 0 | J22: =Background!J51 -> 0 | K22: =Background!K51 -> 0 | L22: =Background!L51 -> 0 | M22: =Background!M51 -> 0 | N22: =Background!N51 -> 0 | O22: =Background!O51 -> 0 | P22: =Background!P51 -> 0 | Q22: =Background!Q51 -> 0 | R22: =Background!R51 -> 0 | S22: =Background!S51 -> 0 | T22: =Background!T51 -> 0 | U22: =Background!U51 -> 0 | V22: =Background!V51 -> 0 | W22: =Background!W51 -> 0 | X22: =Background!X51 -> 0 | Y22: =Background!Y51 -> 0 | Z22: =Background!Z51 -> 0 | AA22: =Background!AA51 -> 0 | AB22: =Background!AB51 -> 0 | AC22: =Background!AC51 -> 0 | AD22: =Background!AD51 -> 0 | AE22: =Background!AE51 -> 0 | AF22: =Background!AF51 -> 0 | AG22: =Background!AG51 -> 0 | AH22: =Background!AH51 -> 0 | AI22: =Background!AI51 -> 0 | AJ22: =Background!AL51 -> 0 | AK22: =Background!AM51 -> 0 | AL22: =Background!AN51 -> 0
B23: =Background!A52 -> 20 | C23: =Background!C52 -> 0 | D23: =Background!D52 -> 0 | E23: =Background!E52 -> 0 | F23: =Background!F52 -> 0 | G23: =Background!G52 -> 0 | H23: =Background!H52 -> 0 | I23: =Background!I52 -> 0 | J23: =Background!J52 -> 0 | K23: =Background!K52 -> 0 | L23: =Background!L52 -> 0 | M23: =Background!M52 -> 0 | N23: =Background!N52 -> 0 | O23: =Background!O52 -> 0 | P23: =Background!P52 -> 0 | Q23: =Background!Q52 -> 0 | R23: =Background!R52 -> 0 | S23: =Background!S52 -> 0 | T23: =Background!T52 -> 0 | U23: =Background!U52 -> 0 | V23: =Background!V52 -> 0 | W23: =Background!W52 -> 0 | X23: =Background!X52 -> 0 | Y23: =Background!Y52 -> 0 | Z23: =Background!Z52 -> 0 | AA23: =Background!AA52 -> 0 | AB23: =Background!AB52 -> 0 | AC23: =Background!AC52 -> 0 | AD23: =Background!AD52 -> 0 | AE23: =Background!AE52 -> 0 | AF23: =Background!AF52 -> 0 | AG23: =Background!AG52 -> 0 | AH23: =Background!AH52 -> 0 | AI23: =Background!AI52 -> 0 | AJ23: =Background!AL52 -> 0 | AK23: =Background!AM52 -> 0 | AL23: =Background!AN52 -> 0
B24: =Background!A55 -> Average | C24: =Background!C55 ->  | D24: =Background!D55 ->  | E24: =Background!E55 ->  | F24: =Background!F55 ->  | G24: =Background!G55 ->  | H24: =Background!H55 ->  | I24: =Background!I55 ->  | J24: =Background!J55 ->  | K24: =Background!K55 ->  | L24: =Background!L55 ->  | M24: =Background!M55 ->  | N24: =Background!N55 ->  | O24: =Background!O55 ->  | P24: =Background!P55 ->  | Q24: =Background!Q55 ->  | R24: =Background!R55 ->  | S24: =Background!S55 ->  | T24: =Background!T55 ->  | U24: =Background!U55 ->  | V24: =Background!V55 ->  | W24: =Background!W55 ->  | X24: =Background!X55 ->  | Y24: =Background!Y55 ->  | Z24: =Background!Z55 ->  | AA24: =Background!AA55 ->  | AB24: =Background!AB55 ->  | AC24: =Background!AC55 ->  | AD24: =Background!AD55 ->  | AE24: =Background!AE55 ->  | AF24: =Background!AF55 ->  | AG24: =Background!AG55 ->  | AH24: =Background!AH55 ->  | AI24: =Background!AI55 ->  | AJ24: =Background!AL55 ->  | AK24: =Background!AM55 ->  | AL24: =Background!AN55 -> 
C27: PV investment | D27: Battery investment | E27: Diesel investment | F27: Project investment | G27: Grid investment | H27: Other investment
B28: Initial investment [PHP] | C28: ='Calc Solar'!B38 -> 0 | D28: ='Calc Solar'!B40 -> 2.7e-09 | E28: ='Calc Solar'!B39 -> 0 | F28: ='Calc Solar'!B58 -> 500000 | G28: ='Calc Solar'!B66 -> 0 | H28: ='Calc Solar'!B61 -> 0
B30: Yearly cost results [PHP]
B31: Year | C31: PV OPEX | D31: Battery OPEX | E31: Diesel OPEX | F31: Diesel fuel costs | G31: Grid OPEX | H31: Other OPEX | I31: Personnel OPEX | J31: PV annual costs | K31: Battery annual costs | L31: Diesel annual costs | M31: Grid annual costs | N31: Project annual costs | O31: Other annual costs
B32: 1 | C32: =IF(Background!$B$56>=B32,'Calc Solar'!$B$41,0) -> 0 | D32: =IF(Background!$B$56>=B32,'Calc Solar'!$B$43,0) -> 4.05e-11 | E32: =Background!AK33 -> 0 | F32: =Background!AL33 -> 0 | G32: ='Calc Solar'!$B$67 -> 0 | H32: ='Calc Solar'!$B$63 -> 0 | I32: ='Calc Solar'!$B$64 -> 0 | J32: =IF(Background!$B$56>=B32,'Calc Solar'!$B$48+C32,0) -> 0 | K32: =IF(Background!$B$56>=B32,'Calc Solar'!$B$56+D32,0) -> 5.183572432e-10 | L32: =IF(Background!$B$56>=B32,E32+F32+'Calc Solar'!$B$52,0) -> 0 | M32: =IF(Background!$B$56>=B32,'Calc Solar'!$B$70+G32,0) -> 0 | N32: =IF(Background!$B$56>=B32,'Calc Solar'!$B$60,0) -> 66939.39002 | O32: =IF(Background!$B$56>=B32,'Calc Solar'!$B$62+H32,0) -> 0
B33: 2 | C33: =IF(Background!$B$56>=B33,'Calc Solar'!$B$41,0) -> 0 | D33: =IF(Background!$B$56>=B33,'Calc Solar'!$B$43,0) -> 4.05e-11 | E33: =Background!AK34 -> 0 | F33: =Background!AL34 -> 0 | G33: ='Calc Solar'!$B$67 -> 0 | H33: ='Calc Solar'!$B$63 -> 0 | I33: ='Calc Solar'!$B$64 -> 0 | J33: =IF(Background!$B$56>=B33,'Calc Solar'!$B$48+C33,0) -> 0 | K33: =IF(Background!$B$56>=B33,'Calc Solar'!$B$56+D33,0) -> 5.183572432e-10 | L33: =IF(Background!$B$56>=B33,E33+F33+'Calc Solar'!$B$52,0) -> 0 | M33: =IF(Background!$B$56>=B33,'Calc Solar'!$B$70+G33,0) -> 0 | N33: =IF(Background!$B$56>=B33,'Calc Solar'!$B$60,0) -> 66939.39002 | O33: =IF(Background!$B$56>=B33,'Calc Solar'!$B$62+H33,0) -> 0
B34: 3 | C34: =IF(Background!$B$56>=B34,'Calc Solar'!$B$41,0) -> 0 | D34: =IF(Background!$B$56>=B34,'Calc Solar'!$B$43,0) -> 4.05e-11 | E34: =Background!AK35 -> 0 | F34: =Background!AL35 -> 0 | G34: ='Calc Solar'!$B$67 -> 0 | H34: ='Calc Solar'!$B$63 -> 0 | I34: ='Calc Solar'!$B$64 -> 0 | J34: =IF(Background!$B$56>=B34,'Calc Solar'!$B$48+C34,0) -> 0 | K34: =IF(Background!$B$56>=B34,'Calc Solar'!$B$56+D34,0) -> 5.183572432e-10 | L34: =IF(Background!$B$56>=B34,E34+F34+'Calc Solar'!$B$52,0) -> 0 | M34: =IF(Background!$B$56>=B34,'Calc Solar'!$B$70+G34,0) -> 0 | N34: =IF(Background!$B$56>=B34,'Calc Solar'!$B$60,0) -> 66939.39002 | O34: =IF(Background!$B$56>=B34,'Calc Solar'!$B$62+H34,0) -> 0
B35: 4 | C35: =IF(Background!$B$56>=B35,'Calc Solar'!$B$41,0) -> 0 | D35: =IF(Background!$B$56>=B35,'Calc Solar'!$B$43,0) -> 4.05e-11 | E35: =Background!AK36 -> 0 | F35: =Background!AL36 -> 0 | G35: ='Calc Solar'!$B$67 -> 0 | H35: ='Calc Solar'!$B$63 -> 0 | I35: ='Calc Solar'!$B$64 -> 0 | J35: =IF(Background!$B$56>=B35,'Calc Solar'!$B$48+C35,0) -> 0 | K35: =IF(Background!$B$56>=B35,'Calc Solar'!$B$56+D35,0) -> 5.183572432e-10 | L35: =IF(Background!$B$56>=B35,E35+F35+'Calc Solar'!$B$52,0) -> 0 | M35: =IF(Background!$B$56>=B35,'Calc Solar'!$B$70+G35,0) -> 0 | N35: =IF(Background!$B$56>=B35,'Calc Solar'!$B$60,0) -> 66939.39002 | O35: =IF(Background!$B$56>=B35,'Calc Solar'!$B$62+H35,0) -> 0
B36: 5 | C36: =IF(Background!$B$56>=B36,'Calc Solar'!$B$41,0) -> 0 | D36: =IF(Background!$B$56>=B36,'Calc Solar'!$B$43,0) -> 4.05e-11 | E36: =Background!AK37 -> 0 | F36: =Background!AL37 -> 0 | G36: ='Calc Solar'!$B$67 -> 0 | H36: ='Calc Solar'!$B$63 -> 0 | I36: ='Calc Solar'!$B$64 -> 0 | J36: =IF(Background!$B$56>=B36,'Calc Solar'!$B$48+C36,0) -> 0 | K36: =IF(Background!$B$56>=B36,'Calc Solar'!$B$56+D36,0) -> 5.183572432e-10 | L36: =IF(Background!$B$56>=B36,E36+F36+'Calc Solar'!$B$52,0) -> 0 | M36: =IF(Background!$B$56>=B36,'Calc Solar'!$B$70+G36,0) -> 0 | N36: =IF(Background!$B$56>=B36,'Calc Solar'!$B$60,0) -> 66939.39002 | O36: =IF(Background!$B$56>=B36,'Calc Solar'!$B$62+H36,0) -> 0
B37: 6 | C37: =IF(Background!$B$56>=B37,'Calc Solar'!$B$41,0) -> 0 | D37: =IF(Background!$B$56>=B37,'Calc Solar'!$B$43,0) -> 4.05e-11 | E37: =Background!AK38 -> 0 | F37: =Background!AL38 -> 0 | G37: ='Calc Solar'!$B$67 -> 0 | H37: ='Calc Solar'!$B$63 -> 0 | I37: ='Calc Solar'!$B$64 -> 0 | J37: =IF(Background!$B$56>=B37,'Calc Solar'!$B$48+C37,0) -> 0 | K37: =IF(Background!$B$56>=B37,'Calc Solar'!$B$56+D37,0) -> 5.183572432e-10 | L37: =IF(Background!$B$56>=B37,E37+F37+'Calc Solar'!$B$52,0) -> 0 | M37: =IF(Background!$B$56>=B37,'Calc Solar'!$B$70+G37,0) -> 0 | N37: =IF(Background!$B$56>=B37,'Calc Solar'!$B$60,0) -> 66939.39002 | O37: =IF(Background!$B$56>=B37,'Calc Solar'!$B$62+H37,0) -> 0
B38: 7 | C38: =IF(Background!$B$56>=B38,'Calc Solar'!$B$41,0) -> 0 | D38: =IF(Background!$B$56>=B38,'Calc Solar'!$B$43,0) -> 4.05e-11 | E38: =Background!AK39 -> 0 | F38: =Background!AL39 -> 0 | G38: ='Calc Solar'!$B$67 -> 0 | H38: ='Calc Solar'!$B$63 -> 0 | I38: ='Calc Solar'!$B$64 -> 0 | J38: =IF(Background!$B$56>=B38,'Calc Solar'!$B$48+C38,0) -> 0 | K38: =IF(Background!$B$56>=B38,'Calc Solar'!$B$56+D38,0) -> 5.183572432e-10 | L38: =IF(Background!$B$56>=B38,E38+F38+'Calc Solar'!$B$52,0) -> 0 | M38: =IF(Background!$B$56>=B38,'Calc Solar'!$B$70+G38,0) -> 0 | N38: =IF(Background!$B$56>=B38,'Calc Solar'!$B$60,0) -> 66939.39002 | O38: =IF(Background!$B$56>=B38,'Calc Solar'!$B$62+H38,0) -> 0
B39: 8 | C39: =IF(Background!$B$56>=B39,'Calc Solar'!$B$41,0) -> 0 | D39: =IF(Background!$B$56>=B39,'Calc Solar'!$B$43,0) -> 4.05e-11 | E39: =Background!AK40 -> 0 | F39: =Background!AL40 -> 0 | G39: ='Calc Solar'!$B$67 -> 0 | H39: ='Calc Solar'!$B$63 -> 0 | I39: ='Calc Solar'!$B$64 -> 0 | J39: =IF(Background!$B$56>=B39,'Calc Solar'!$B$48+C39,0) -> 0 | K39: =IF(Background!$B$56>=B39,'Calc Solar'!$B$56+D39,0) -> 5.183572432e-10 | L39: =IF(Background!$B$56>=B39,E39+F39+'Calc Solar'!$B$52,0) -> 0 | M39: =IF(Background!$B$56>=B39,'Calc Solar'!$B$70+G39,0) -> 0 | N39: =IF(Background!$B$56>=B39,'Calc Solar'!$B$60,0) -> 66939.39002 | O39: =IF(Background!$B$56>=B39,'Calc Solar'!$B$62+H39,0) -> 0
B40: 9 | C40: =IF(Background!$B$56>=B40,'Calc Solar'!$B$41,0) -> 0 | D40: =IF(Background!$B$56>=B40,'Calc Solar'!$B$43,0) -> 4.05e-11 | E40: =Background!AK41 -> 0 | F40: =Background!AL41 -> 0 | G40: ='Calc Solar'!$B$67 -> 0 | H40: ='Calc Solar'!$B$63 -> 0 | I40: ='Calc Solar'!$B$64 -> 0 | J40: =IF(Background!$B$56>=B40,'Calc Solar'!$B$48+C40,0) -> 0 | K40: =IF(Background!$B$56>=B40,'Calc Solar'!$B$56+D40,0) -> 5.183572432e-10 | L40: =IF(Background!$B$56>=B40,E40+F40+'Calc Solar'!$B$52,0) -> 0 | M40: =IF(Background!$B$56>=B40,'Calc Solar'!$B$70+G40,0) -> 0 | N40: =IF(Background!$B$56>=B40,'Calc Solar'!$B$60,0) -> 66939.39002 | O40: =IF(Background!$B$56>=B40,'Calc Solar'!$B$62+H40,0) -> 0
B41: 10 | C41: =IF(Background!$B$56>=B41,'Calc Solar'!$B$41,0) -> 0 | D41: =IF(Background!$B$56>=B41,'Calc Solar'!$B$43,0) -> 4.05e-11 | E41: =Background!AK42 -> 0 | F41: =Background!AL42 -> 0 | G41: ='Calc Solar'!$B$67 -> 0 | H41: ='Calc Solar'!$B$63 -> 0 | I41: ='Calc Solar'!$B$64 -> 0 | J41: =IF(Background!$B$56>=B41,'Calc Solar'!$B$48+C41,0) -> 0 | K41: =IF(Background!$B$56>=B41,'Calc Solar'!$B$56+D41,0) -> 5.183572432e-10 | L41: =IF(Background!$B$56>=B41,E41+F41+'Calc Solar'!$B$52,0) -> 0 | M41: =IF(Background!$B$56>=B41,'Calc Solar'!$B$70+G41,0) -> 0 | N41: =IF(Background!$B$56>=B41,'Calc Solar'!$B$60,0) -> 66939.39002 | O41: =IF(Background!$B$56>=B41,'Calc Solar'!$B$62+H41,0) -> 0
B42: 11 | C42: =IF(Background!$B$56>=B42,'Calc Solar'!$B$41,0) -> 0 | D42: =IF(Background!$B$56>=B42,'Calc Solar'!$B$43,0) -> 4.05e-11 | E42: =Background!AK43 -> 0 | F42: =Background!AL43 -> 0 | G42: ='Calc Solar'!$B$67 -> 0 | H42: ='Calc Solar'!$B$63 -> 0 | I42: ='Calc Solar'!$B$64 -> 0 | J42: =IF(Background!$B$56>=B42,'Calc Solar'!$B$48+C42,0) -> 0 | K42: =IF(Background!$B$56>=B42,'Calc Solar'!$B$56+D42,0) -> 5.183572432e-10 | L42: =IF(Background!$B$56>=B42,E42+F42+'Calc Solar'!$B$52,0) -> 0 | M42: =IF(Background!$B$56>=B42,'Calc Solar'!$B$70+G42,0) -> 0 | N42: =IF(Background!$B$56>=B42,'Calc Solar'!$B$60,0) -> 66939.39002 | O42: =IF(Background!$B$56>=B42,'Calc Solar'!$B$62+H42,0) -> 0
B43: 12 | C43: =IF(Background!$B$56>=B43,'Calc Solar'!$B$41,0) -> 0 | D43: =IF(Background!$B$56>=B43,'Calc Solar'!$B$43,0) -> 4.05e-11 | E43: =Background!AK44 -> 0 | F43: =Background!AL44 -> 0 | G43: ='Calc Solar'!$B$67 -> 0 | H43: ='Calc Solar'!$B$63 -> 0 | I43: ='Calc Solar'!$B$64 -> 0 | J43: =IF(Background!$B$56>=B43,'Calc Solar'!$B$48+C43,0) -> 0 | K43: =IF(Background!$B$56>=B43,'Calc Solar'!$B$56+D43,0) -> 5.183572432e-10 | L43: =IF(Background!$B$56>=B43,E43+F43+'Calc Solar'!$B$52,0) -> 0 | M43: =IF(Background!$B$56>=B43,'Calc Solar'!$B$70+G43,0) -> 0 | N43: =IF(Background!$B$56>=B43,'Calc Solar'!$B$60,0) -> 66939.39002 | O43: =IF(Background!$B$56>=B43,'Calc Solar'!$B$62+H43,0) -> 0
B44: 13 | C44: =IF(Background!$B$56>=B44,'Calc Solar'!$B$41,0) -> 0 | D44: =IF(Background!$B$56>=B44,'Calc Solar'!$B$43,0) -> 4.05e-11 | E44: =Background!AK45 -> 0 | F44: =Background!AL45 -> 0 | G44: ='Calc Solar'!$B$67 -> 0 | H44: ='Calc Solar'!$B$63 -> 0 | I44: ='Calc Solar'!$B$64 -> 0 | J44: =IF(Background!$B$56>=B44,'Calc Solar'!$B$48+C44,0) -> 0 | K44: =IF(Background!$B$56>=B44,'Calc Solar'!$B$56+D44,0) -> 5.183572432e-10 | L44: =IF(Background!$B$56>=B44,E44+F44+'Calc Solar'!$B$52,0) -> 0 | M44: =IF(Background!$B$56>=B44,'Calc Solar'!$B$70+G44,0) -> 0 | N44: =IF(Background!$B$56>=B44,'Calc Solar'!$B$60,0) -> 66939.39002 | O44: =IF(Background!$B$56>=B44,'Calc Solar'!$B$62+H44,0) -> 0
B45: 14 | C45: =IF(Background!$B$56>=B45,'Calc Solar'!$B$41,0) -> 0 | D45: =IF(Background!$B$56>=B45,'Calc Solar'!$B$43,0) -> 4.05e-11 | E45: =Background!AK46 -> 0 | F45: =Background!AL46 -> 0 | G45: ='Calc Solar'!$B$67 -> 0 | H45: ='Calc Solar'!$B$63 -> 0 | I45: ='Calc Solar'!$B$64 -> 0 | J45: =IF(Background!$B$56>=B45,'Calc Solar'!$B$48+C45,0) -> 0 | K45: =IF(Background!$B$56>=B45,'Calc Solar'!$B$56+D45,0) -> 5.183572432e-10 | L45: =IF(Background!$B$56>=B45,E45+F45+'Calc Solar'!$B$52,0) -> 0 | M45: =IF(Background!$B$56>=B45,'Calc Solar'!$B$70+G45,0) -> 0 | N45: =IF(Background!$B$56>=B45,'Calc Solar'!$B$60,0) -> 66939.39002 | O45: =IF(Background!$B$56>=B45,'Calc Solar'!$B$62+H45,0) -> 0
B46: 15 | C46: =IF(Background!$B$56>=B46,'Calc Solar'!$B$41,0) -> 0 | D46: =IF(Background!$B$56>=B46,'Calc Solar'!$B$43,0) -> 4.05e-11 | E46: =Background!AK47 -> 0 | F46: =Background!AL47 -> 0 | G46: ='Calc Solar'!$B$67 -> 0 | H46: ='Calc Solar'!$B$63 -> 0 | I46: ='Calc Solar'!$B$64 -> 0 | J46: =IF(Background!$B$56>=B46,'Calc Solar'!$B$48+C46,0) -> 0 | K46: =IF(Background!$B$56>=B46,'Calc Solar'!$B$56+D46,0) -> 5.183572432e-10 | L46: =IF(Background!$B$56>=B46,E46+F46+'Calc Solar'!$B$52,0) -> 0 | M46: =IF(Background!$B$56>=B46,'Calc Solar'!$B$70+G46,0) -> 0 | N46: =IF(Background!$B$56>=B46,'Calc Solar'!$B$60,0) -> 66939.39002 | O46: =IF(Background!$B$56>=B46,'Calc Solar'!$B$62+H46,0) -> 0
B47: 16 | C47: =IF(Background!$B$56>=B47,'Calc Solar'!$B$41,0) -> 0 | D47: =IF(Background!$B$56>=B47,'Calc Solar'!$B$43,0) -> 4.05e-11 | E47: =Background!AK48 -> 0 | F47: =Background!AL48 -> 0 | G47: ='Calc Solar'!$B$67 -> 0 | H47: ='Calc Solar'!$B$63 -> 0 | I47: ='Calc Solar'!$B$64 -> 0 | J47: =IF(Background!$B$56>=B47,'Calc Solar'!$B$48+C47,0) -> 0 | K47: =IF(Background!$B$56>=B47,'Calc Solar'!$B$56+D47,0) -> 5.183572432e-10 | L47: =IF(Background!$B$56>=B47,E47+F47+'Calc Solar'!$B$52,0) -> 0 | M47: =IF(Background!$B$56>=B47,'Calc Solar'!$B$70+G47,0) -> 0 | N47: =IF(Background!$B$56>=B47,'Calc Solar'!$B$60,0) -> 66939.39002 | O47: =IF(Background!$B$56>=B47,'Calc Solar'!$B$62+H47,0) -> 0
B48: 17 | C48: =IF(Background!$B$56>=B48,'Calc Solar'!$B$41,0) -> 0 | D48: =IF(Background!$B$56>=B48,'Calc Solar'!$B$43,0) -> 4.05e-11 | E48: =Background!AK49 -> 0 | F48: =Background!AL49 -> 0 | G48: ='Calc Solar'!$B$67 -> 0 | H48: ='Calc Solar'!$B$63 -> 0 | I48: ='Calc Solar'!$B$64 -> 0 | J48: =IF(Background!$B$56>=B48,'Calc Solar'!$B$48+C48,0) -> 0 | K48: =IF(Background!$B$56>=B48,'Calc Solar'!$B$56+D48,0) -> 5.183572432e-10 | L48: =IF(Background!$B$56>=B48,E48+F48+'Calc Solar'!$B$52,0) -> 0 | M48: =IF(Background!$B$56>=B48,'Calc Solar'!$B$70+G48,0) -> 0 | N48: =IF(Background!$B$56>=B48,'Calc Solar'!$B$60,0) -> 66939.39002 | O48: =IF(Background!$B$56>=B48,'Calc Solar'!$B$62+H48,0) -> 0
B49: 18 | C49: =IF(Background!$B$56>=B49,'Calc Solar'!$B$41,0) -> 0 | D49: =IF(Background!$B$56>=B49,'Calc Solar'!$B$43,0) -> 4.05e-11 | E49: =Background!AK50 -> 0 | F49: =Background!AL50 -> 0 | G49: ='Calc Solar'!$B$67 -> 0 | H49: ='Calc Solar'!$B$63 -> 0 | I49: ='Calc Solar'!$B$64 -> 0 | J49: =IF(Background!$B$56>=B49,'Calc Solar'!$B$48+C49,0) -> 0 | K49: =IF(Background!$B$56>=B49,'Calc Solar'!$B$56+D49,0) -> 5.183572432e-10 | L49: =IF(Background!$B$56>=B49,E49+F49+'Calc Solar'!$B$52,0) -> 0 | M49: =IF(Background!$B$56>=B49,'Calc Solar'!$B$70+G49,0) -> 0 | N49: =IF(Background!$B$56>=B49,'Calc Solar'!$B$60,0) -> 66939.39002 | O49: =IF(Background!$B$56>=B49,'Calc Solar'!$B$62+H49,0) -> 0
B50: 19 | C50: =IF(Background!$B$56>=B50,'Calc Solar'!$B$41,0) -> 0 | D50: =IF(Background!$B$56>=B50,'Calc Solar'!$B$43,0) -> 4.05e-11 | E50: =Background!AK51 -> 0 | F50: =Background!AL51 -> 0 | G50: ='Calc Solar'!$B$67 -> 0 | H50: ='Calc Solar'!$B$63 -> 0 | I50: ='Calc Solar'!$B$64 -> 0 | J50: =IF(Background!$B$56>=B50,'Calc Solar'!$B$48+C50,0) -> 0 | K50: =IF(Background!$B$56>=B50,'Calc Solar'!$B$56+D50,0) -> 5.183572432e-10 | L50: =IF(Background!$B$56>=B50,E50+F50+'Calc Solar'!$B$52,0) -> 0 | M50: =IF(Background!$B$56>=B50,'Calc Solar'!$B$70+G50,0) -> 0 | N50: =IF(Background!$B$56>=B50,'Calc Solar'!$B$60,0) -> 66939.39002 | O50: =IF(Background!$B$56>=B50,'Calc Solar'!$B$62+H50,0) -> 0
B51: 20 | C51: =IF(Background!$B$56>=B51,'Calc Solar'!$B$41,0) -> 0 | D51: =IF(Background!$B$56>=B51,'Calc Solar'!$B$43,0) -> 4.05e-11 | E51: =Background!AK52 -> 0 | F51: =Background!AL52 -> 0 | G51: ='Calc Solar'!$B$67 -> 0 | H51: ='Calc Solar'!$B$63 -> 0 | I51: ='Calc Solar'!$B$64 -> 0 | J51: =IF(Background!$B$56>=B51,'Calc Solar'!$B$48+C51,0) -> 0 | K51: =IF(Background!$B$56>=B51,'Calc Solar'!$B$56+D51,0) -> 5.183572432e-10 | L51: =IF(Background!$B$56>=B51,E51+F51+'Calc Solar'!$B$52,0) -> 0 | M51: =IF(Background!$B$56>=B51,'Calc Solar'!$B$70+G51,0) -> 0 | N51: =IF(Background!$B$56>=B51,'Calc Solar'!$B$60,0) -> 66939.39002 | O51: =IF(Background!$B$56>=B51,'Calc Solar'!$B$62+H51,0) -> 0
B52: Average | C52: =IFERROR(AVERAGEIF(C32:C51,"<>0"),0) -> 0 | D52: =IFERROR(AVERAGEIF(D32:D51,"<>0"),0) -> 4.05e-11 | E52: 0 | F52: 0 | G52: 0 | H52: 0 | I52: 0 | J52: 0 | K52: 5.183572432e-10 | L52: 0 | M52: 0 | N52: 66939.39002 | O52: 0
B72: * Only the share of the PV potential that can be directly consumed or stored in the battery is actually generated, the surplus potential is curtailed and not generated ** The Diesel genset could generate a surplus that is not consumed (due to the lower load limit of the genset) and dumped through a ballast load

Sheet Scenario Results Solar
BR1: 0 | BS1: 0 | BT1: 51.07142857 | BU1: 102.1428571 | BV1: 153.2142857 | BW1: 204.2857143 | BX1: 255.3571429 | BY1: 306.4285714 | BZ1: 357.5 | CA1: 408.5714286 | CB1: 127.4625 | CC1: 510.7142857
B2: Average LCOE & RE-Share | C2: PV-Size
B3: Battery-Capacity | C3: =IF('Input Solar'!$D$318=Background!$M$1,'Input Solar'!$D$322*'Calc Solar'!$B$2,'Input Solar'!$F$322) -> 0 | D3: =IF('Input Solar'!$D$318=Background!$M$1,'Input Solar'!$D$323*'Calc Solar'!$B$2,'Input Solar'!$F$323) -> 10 | E3: =IF('Input Solar'!$D$318=Background!$M$1,'Input Solar'!$D$324*'Calc Solar'!$B$2,'Input Solar'!$F$324) -> 20 | F3: =IF('Input Solar'!$D$318=Background!$M$1,'Input Solar'!$D$325*'Calc Solar'!$B$2,'Input Solar'!$F$325) -> 30 | G3: =IF('Input Solar'!$D$318=Background!$M$1,'Input Solar'!$D$326*'Calc Solar'!$B$2,'Input Solar'!$F$326) -> 40 | H3: =IF('Input Solar'!$D$318=Background!$M$1,'Input Solar'!$D$327*'Calc Solar'!$B$2,'Input Solar'!$F$327) -> 50 | I3: =IF('Input Solar'!$D$318=Background!$M$1,'Input Solar'!$D$328*'Calc Solar'!$B$2,'Input Solar'!$F$328) -> 60 | J3: =IF('Input Solar'!$D$318=Background!$M$1,'Input Solar'!$D$329*'Calc Solar'!$B$2,'Input Solar'!$F$329) -> 70 | K3: =IF('Input Solar'!$D$318=Background!$M$1,'Input Solar'!$D$330*'Calc Solar'!$B$2,'Input Solar'!$F$330) -> 80 | L3: =IF('Input Solar'!$D$318=Background!$M$1,'Input Solar'!$D$331*'Calc Solar'!$B$2,'Input Solar'!$F$331) -> 90 | M3: =IF('Input Solar'!$D$318=Background!$M$1,'Input Solar'!$D$332*'Calc Solar'!$B$2,'Input Solar'!$F$332) -> 100
B4: =IF('Input Solar'!$D$318=Background!$M$1,'Input Solar'!$E322*'Calc Solar'!$B$3/168,'Input Solar'!$G322) -> 0
B6: =IF('Input Solar'!$D$318=Background!$M$1,'Input Solar'!$E323*'Calc Solar'!$B$3/168,'Input Solar'!$G323) -> 20
B8: =IF('Input Solar'!$D$318=Background!$M$1,'Input Solar'!$E324*'Calc Solar'!$B$3/168,'Input Solar'!$G324) -> 40
B10: =IF('Input Solar'!$D$318=Background!$M$1,'Input Solar'!$E325*'Calc Solar'!$B$3/168,'Input Solar'!$G325) -> 60
B12: =IF('Input Solar'!$D$318=Background!$M$1,'Input Solar'!$E326*'Calc Solar'!$B$3/168,'Input Solar'!$G326) -> 80
B14: =IF('Input Solar'!$D$318=Background!$M$1,'Input Solar'!$E327*'Calc Solar'!$B$3/168,'Input Solar'!$G327) -> 100
B16: =IF('Input Solar'!$D$318=Background!$M$1,'Input Solar'!$E328*'Calc Solar'!$B$3/168,'Input Solar'!$G328) -> 120
B18: =IF('Input Solar'!$D$318=Background!$M$1,'Input Solar'!$E329*'Calc Solar'!$B$3/168,'Input Solar'!$G329) -> 140
B20: =IF('Input Solar'!$D$318=Background!$M$1,'Input Solar'!$E330*'Calc Solar'!$B$3/168,'Input Solar'!$G330) -> 160
B22: =IF('Input Solar'!$D$318=Background!$M$1,'Input Solar'!$E331*'Calc Solar'!$B$3/168,'Input Solar'!$G331) -> 180
B24: =IF('Input Solar'!$D$318=Background!$M$1,'Input Solar'!$E332*'Calc Solar'!$B$3/168,'Input Solar'!$G332) -> 200
B27: LCOE [PHP/kWh] | C27: PV-Size
B28: Battery-Capacity | C28: =IF('Input Solar'!$D$318=Background!$M$1,'Input Solar'!$D$322*'Calc Solar'!$B$2,'Input Solar'!$F$322) -> 0 | D28: =IF('Input Solar'!$D$318=Background!$M$1,'Input Solar'!$D$323*'Calc Solar'!$B$2,'Input Solar'!$F$323) -> 10 | E28: =IF('Input Solar'!$D$318=Background!$M$1,'Input Solar'!$D$324*'Calc Solar'!$B$2,'Input Solar'!$F$324) -> 20 | F28: =IF('Input Solar'!$D$318=Background!$M$1,'Input Solar'!$D$325*'Calc Solar'!$B$2,'Input Solar'!$F$325) -> 30 | G28: =IF('Input Solar'!$D$318=Background!$M$1,'Input Solar'!$D$326*'Calc Solar'!$B$2,'Input Solar'!$F$326) -> 40 | H28: =IF('Input Solar'!$D$318=Background!$M$1,'Input Solar'!$D$327*'Calc Solar'!$B$2,'Input Solar'!$F$327) -> 50 | I28: =IF('Input Solar'!$D$318=Background!$M$1,'Input Solar'!$D$328*'Calc Solar'!$B$2,'Input Solar'!$F$328) -> 60 | J28: =IF('Input Solar'!$D$318=Background!$M$1,'Input Solar'!$D$329*'Calc Solar'!$B$2,'Input Solar'!$F$329) -> 70 | K28: =IF('Input Solar'!$D$318=Background!$M$1,'Input Solar'!$D$330*'Calc Solar'!$B$2,'Input Solar'!$F$330) -> 80 | L28: =IF('Input Solar'!$D$318=Background!$M$1,'Input Solar'!$D$331*'Calc Solar'!$B$2,'Input Solar'!$F$331) -> 90 | M28: =IF('Input Solar'!$D$318=Background!$M$1,'Input Solar'!$D$332*'Calc Solar'!$B$2,'Input Solar'!$F$332) -> 100
B29: =IF('Input Solar'!$D$318=Background!$M$1,'Input Solar'!$E322*'Calc Solar'!$B$3/168,'Input Solar'!$G322) -> 0
B30: =IF('Input Solar'!$D$318=Background!$M$1,'Input Solar'!$E323*'Calc Solar'!$B$3/168,'Input Solar'!$G323) -> 20
B31: =IF('Input Solar'!$D$318=Background!$M$1,'Input Solar'!$E324*'Calc Solar'!$B$3/168,'Input Solar'!$G324) -> 40
B32: =IF('Input Solar'!$D$318=Background!$M$1,'Input Solar'!$E325*'Calc Solar'!$B$3/168,'Input Solar'!$G325) -> 60
B33: =IF('Input Solar'!$D$318=Background!$M$1,'Input Solar'!$E326*'Calc Solar'!$B$3/168,'Input Solar'!$G326) -> 80
B34: =IF('Input Solar'!$D$318=Background!$M$1,'Input Solar'!$E327*'Calc Solar'!$B$3/168,'Input Solar'!$G327) -> 100
B35: =IF('Input Solar'!$D$318=Background!$M$1,'Input Solar'!$E328*'Calc Solar'!$B$3/168,'Input Solar'!$G328) -> 120
B36: =IF('Input Solar'!$D$318=Background!$M$1,'Input Solar'!$E329*'Calc Solar'!$B$3/168,'Input Solar'!$G329) -> 140
B37: =IF('Input Solar'!$D$318=Background!$M$1,'Input Solar'!$E330*'Calc Solar'!$B$3/168,'Input Solar'!$G330) -> 160
B38: =IF('Input Solar'!$D$318=Background!$M$1,'Input Solar'!$E331*'Calc Solar'!$B$3/168,'Input Solar'!$G331) -> 180
B39: =IF('Input Solar'!$D$318=Background!$M$1,'Input Solar'!$E332*'Calc Solar'!$B$3/168,'Input Solar'!$G332) -> 200
B41: RE-Share | C41: PV-Size
B42: Battery-Capacity | C42: =IF('Input Solar'!$D$318=Background!$M$1,'Input Solar'!$D$322*'Calc Solar'!$B$2,'Input Solar'!$F$322) -> 0 | D42: =IF('Input Solar'!$D$318=Background!$M$1,'Input Solar'!$D$323*'Calc Solar'!$B$2,'Input Solar'!$F$323) -> 10 | E42: =IF('Input Solar'!$D$318=Background!$M$1,'Input Solar'!$D$324*'Calc Solar'!$B$2,'Input Solar'!$F$324) -> 20 | F42: =IF('Input Solar'!$D$318=Background!$M$1,'Input Solar'!$D$325*'Calc Solar'!$B$2,'Input Solar'!$F$325) -> 30 | G42: =IF('Input Solar'!$D$318=Background!$M$1,'Input Solar'!$D$326*'Calc Solar'!$B$2,'Input Solar'!$F$326) -> 40 | H42: =IF('Input Solar'!$D$318=Background!$M$1,'Input Solar'!$D$327*'Calc Solar'!$B$2,'Input Solar'!$F$327) -> 50 | I42: =IF('Input Solar'!$D$318=Background!$M$1,'Input Solar'!$D$328*'Calc Solar'!$B$2,'Input Solar'!$F$328) -> 60 | J42: =IF('Input Solar'!$D$318=Background!$M$1,'Input Solar'!$D$329*'Calc Solar'!$B$2,'Input Solar'!$F$329) -> 70 | K42: =IF('Input Solar'!$D$318=Background!$M$1,'Input Solar'!$D$330*'Calc Solar'!$B$2,'Input Solar'!$F$330) -> 80 | L42: =IF('Input Solar'!$D$318=Background!$M$1,'Input Solar'!$D$331*'Calc Solar'!$B$2,'Input Solar'!$F$331) -> 90 | M42: =IF('Input Solar'!$D$318=Background!$M$1,'Input Solar'!$D$332*'Calc Solar'!$B$2,'Input Solar'!$F$332) -> 100
B43: =IF('Input Solar'!$D$318=Background!$M$1,'Input Solar'!$E$322*'Calc Solar'!$B$3/168,'Input Solar'!$G$322) -> 0
B44: =IF('Input Solar'!$D$318=Background!$M$1,'Input Solar'!$E323*'Calc Solar'!$B$3/168,'Input Solar'!$G323) -> 20
B45: =IF('Input Solar'!$D$318=Background!$M$1,'Input Solar'!$E324*'Calc Solar'!$B$3/168,'Input Solar'!$G324) -> 40
B46: =IF('Input Solar'!$D$318=Background!$M$1,'Input Solar'!$E325*'Calc Solar'!$B$3/168,'Input Solar'!$G325) -> 60
B47: =IF('Input Solar'!$D$318=Background!$M$1,'Input Solar'!$E326*'Calc Solar'!$B$3/168,'Input Solar'!$G326) -> 80
B48: =IF('Input Solar'!$D$318=Background!$M$1,'Input Solar'!$E327*'Calc Solar'!$B$3/168,'Input Solar'!$G327) -> 100
B49: =IF('Input Solar'!$D$318=Background!$M$1,'Input Solar'!$E328*'Calc Solar'!$B$3/168,'Input Solar'!$G328) -> 120
B50: =IF('Input Solar'!$D$318=Background!$M$1,'Input Solar'!$E329*'Calc Solar'!$B$3/168,'Input Solar'!$G329) -> 140
B51: =IF('Input Solar'!$D$318=Background!$M$1,'Input Solar'!$E330*'Calc Solar'!$B$3/168,'Input Solar'!$G330) -> 160
B52: =IF('Input Solar'!$D$318=Background!$M$1,'Input Solar'!$E331*'Calc Solar'!$B$3/168,'Input Solar'!$G331) -> 180
B53: =IF('Input Solar'!$D$318=Background!$M$1,'Input Solar'!$E332*'Calc Solar'!$B$3/168,'Input Solar'!$G332) -> 200

Sheet Calc Solar (hidden)
A1: Framework | C1: Caution when shifting cells, VBA uses cells in these columns | F1: Total Load | G1: Load plus losses | H1: kWh/kWp (Luzon) | I1: kWh/kWp (Visayas) | J1: kWh/kWp (Mindanao) | K1: kWh/kWP (individual) | L1: kWh/kWp | M1: PV generation | N1: Demand minus PV | O1: Excess | P1: C-rate constraint ch. | Q1: potential charge | R1: Residual | S1: Residual percentage (day) | T1: C-rate constraint dch. | U1: pot. Discharge | V1: pot. Discharge - losses | W1: Diesel requirement | X1: RT requirement | Y1: RT of Batt | Z1: RT req. minus Batt | AA1: Diesel req. total | AB1: Total min. offtake | AC1: Diesel req. - min offtake | AD1: =CONCATENATE("Min. offtake ",A92) -> Min. offtake GenCo A | AE1: =CONCATENATE("Pot. diesel generation ",$A92) -> Pot. diesel generation GenCo A | AF1: =CONCATENATE("Cum. Diesel generation ",$A92) -> Cum. Diesel generation GenCo A | AG1: =CONCATENATE("Diesel generation ",A92) -> Diesel generation GenCo A | AH1: =CONCATENATE("Total generation ",A92) -> Total generation GenCo A | AI1: =CONCATENATE(A92," Consumption [L]") -> GenCo A Consumption [L] | AJ1: Diesel req. - GenCo A | AK1: =CONCATENATE("Min. offtake ",$A112) -> Min. offtake GenCo B | AL1: =CONCATENATE("Pot. diesel generation ",$A112) -> Pot. diesel generation GenCo B | AM1: =CONCATENATE("Cum. Diesel generation ",$A112) -> Cum. Diesel generation GenCo B | AN1: =CONCATENATE("Diesel generation ",$A112) -> Diesel generation GenCo B | AO1: =CONCATENATE("Total generation ",$A112) -> Total generation GenCo B | AP1: =CONCATENATE($A112," Consumption [L]") -> GenCo B Consumption [L] | AQ1: Diesel req. - GenCo AB | AR1: =CONCATENATE("Min. offtake ",$A132) -> Min. offtake GenCo C | AS1: =CONCATENATE("Pot. diesel generation ",$A132) -> Pot. diesel generation GenCo C | AT1: =CONCATENATE("Cum. Diesel generation",$A132) -> Cum. Diesel generationGenCo C | AU1: =CONCATENATE("Diesel generation ",$A132) -> Diesel generation GenCo C | AV1: =CONCATENATE("Total generation ",$A132) -> Total generation GenCo C | AW1: =CONCATENATE(,$A132," Consumption [L]") -> GenCo C Consumption [L] | AX1: Diesel req. - GenCo ABC | AY1: =CONCATENATE("Min. offtake ",$A152) -> Min. offtake GenCo D | AZ1: =CONCATENATE("Pot. diesel generation ",$A152) -> Pot. diesel generation GenCo D | BA1: =CONCATENATE("Cum. Diesel generation ",$A152) -> Cum. Diesel generation GenCo D | BB1: =CONCATENATE("Diesel generation ",$A152) -> Diesel generation GenCo D | BC1: =CONCATENATE("Total generation ",$A152) -> Total generation GenCo D | BD1: =CONCATENATE(,$A152," Consumption [L]") -> GenCo D Consumption [L] | BE1: Diesel req. - GenCo ABCD | BF1: =CONCATENATE("Min. offtake ",$A172) -> Min. offtake GenCo E | BG1: =CONCATENATE("Pot. diesel generation ",$A172) -> Pot. diesel generation GenCo E | BH1: =CONCATENATE("Cum. Diesel generation ",$A172) -> Cum. Diesel generation GenCo E | BI1: =CONCATENATE("Diesel generation ",$A172) -> Diesel generation GenCo E | BJ1: =CONCATENATE("Total generation ",$A172) -> Total generation GenCo E | BK1: =CONCATENATE(,$A172," Consumption [L]") -> GenCo E Consumption [L] | BL1: Diesel req. - GenCo ABCDEF | BM1: =CONCATENATE("Min. offtake ",$A192) -> Min. offtake GenCo F | BN1: =CONCATENATE("Pot. diesel generation ",$A192) -> Pot. diesel generation GenCo F | BO1: =CONCATENATE("Cum. Diesel generation ",$A192) -> Cum. Diesel generation GenCo F | BP1: =CONCATENATE("Diesel generation ",$A192) -> Diesel generation GenCo F | BQ1: =CONCATENATE("Total generation ",$A192) -> Total generation GenCo F | BR1: =CONCATENATE(,$A192," Consumption [L]") -> GenCo F Consumption [L] | BS1: Diesel req. - GenCo ABCDEFG | BT1: =CONCATENATE("Min. offtake ",$A212) -> Min. offtake GenCo G | BU1: =CONCATENATE("Pot. diesel generation ",$A212) -> Pot. diesel generation GenCo G | BV1: =CONCATENATE("Cum. Diesel generation ",$A212) -> Cum. Diesel generation GenCo G | BW1: =CONCATENATE("Diesel generation ",$A212) -> Diesel generation GenCo G | BX1: =CONCATENATE("Total generation ",$A212) -> Total generation GenCo G | BY1: =CONCATENATE(,$A212," Consumption [L]") -> GenCo G Consumption [L] | BZ1: Diesel req. - GenCo ABCDEFGH | CA1: =CONCATENATE("Min. offtake ",$A232) -> Min. offtake GenCo H | CB1: =CONCATENATE("Pot. diesel generation ",$A232) -> Pot. diesel generation GenCo H | CC1: =CONCATENATE("Cum. Diesel generation ",$A232) -> Cum. Diesel generation GenCo H | CD1: =CONCATENATE("Diesel generation ",$A232) -> Diesel generation GenCo H | CE1: =CONCATENATE("Total generation ",$A232) -> Total generation GenCo H | CF1: =CONCATENATE(,$A232," Consumption [L]") -> GenCo H Consumption [L] | CG1: Diesel req. - GenCo ABCDEFGHI | CH1: =CONCATENATE("Min. offtake ",$A252) -> Min. offtake GenCo I | CI1: =CONCATENATE("Pot. diesel generation ",$A252) -> Pot. diesel generation GenCo I | CJ1: =CONCATENATE("Cum. Diesel generation ",$A252) -> Cum. Diesel generation GenCo I | CK1: =CONCATENATE("Diesel generation ",$A252) -> Diesel generation GenCo I | CL1: =CONCATENATE("Total generation ",$A252) -> Total generation GenCo I | CM1: =CONCATENATE(,$A252," Consumption [L]") -> GenCo I Consumption [L] | CN1: Diesel req. - GenCo ABCDEFGHIJ | CO1: =CONCATENATE("Min. offtake ",$A272) -> Min. offtake GenCo J | CP1: =CONCATENATE("Pot. diesel generation ",$A272) -> Pot. diesel generation GenCo J | CQ1: =CONCATENATE("Cum. Diesel generation ",$A272) -> Cum. Diesel generation GenCo J | CR1: =CONCATENATE("Diesel generation ",$A272) -> Diesel generation GenCo J | CS1: =CONCATENATE("Total generation ",$A272) -> Total generation GenCo J | CT1: =CONCATENATE(A272," Consumption [L]") -> GenCo J Consumption [L] | CU1: Diesel generation total | CV1: Surplus/shortage | CW1: C-rate check ch. | CX1: SOC Charge | CY1: C-rate check disch. | CZ1: SOC Discharge | DA1: Battery Discharge | DB1: Battery Charge | DC1: Real SoC | DD1: Initial Batt. Energy | DE1: unmet load | DF1: PV used | DG1: PV battcharge | DH1: Diesel directly used | DI1: Diesel surplus | DJ1: Diesel battcharge | DK1: Diesel excess | DL1: Diesel discharged | DM1: Diesel consumed
A2: Peak load | B2: =MAX(F3:F170) -> 0 | E2: Hours | DA2: (pos. for Diagram) | DB2: (neg. for diagram) | DC2: =MIN(B12+(DD2/B8),0.7) -> 0.2 | DD2: =MAX(DD6-DD8,0)*B10 -> 0 | DL2: =MIN(-SUM(DJ3:DJ170),SUM(DA3:DA171)) -> 
A3: Demand per week | B3: =SUM(F3:F170) -> 0 | E3: 1 | F3: ='Existing Load'!J7 -> 0 | G3: =F3*(1+$B$4) -> 0 | H3: 0 | I3: 0 | J3: 0 | K3: =IF('Input Solar'!$D$18=Background!$X$2,'Calc Solar'!H3*$H$173,IF('Input Solar'!$D$18=Background!$X$3,'Calc Solar'!I3*$I$173,'Calc Solar'!J3*$J$173)) -> 0 | L3: =IF('Input Solar'!$D$20="Default",IF('Input Solar'!$D$18=Background!$X$2,'Calc Solar'!H3,IF('Input Solar'!$D$18=Background!$X$3,'Calc Solar'!I3,'Calc Solar'!J3)),K3) -> 0 | M3: =L3*$B$7 -> 0 | N3: =G3-M3 -> 0 | O3: =MIN(N3,0) -> 0 | P3: =MAX(O3*$B$10,-1*$B$8*$B$9*$B$10) -> 0 | Q3: =MAX(P3,-(1-DC2)*$B$8) -> 0 | R3: =MAX(N3,0) -> 0 | S3: =IFERROR(R3/SUM(R$3:R$26),0) -> 0 | T3: =MIN(R3/$B$11,$B$8*$B$9/$B$11) -> 0 | U3: =MAX(MIN(T3,(DC2-$B$12)*$B$8),0) -> 0 | V3: =U3*$B$11 -> 0 | W3: =ROUND(MAX(0,N3-V3),5) -> 0 | X3: =G3*$B$14 -> 0 | Y3: =MIN($B$9*$B$8,(DC2-$B$12)*$B$8*$B$11) -> 0 | Z3: =MAX(0,X3-Y3) -> 0 | AA3: =MAX($W3,$Z3) -> 0 | AB3: =IF(E3<=120,($B$99+$B$119+$B$139+$B$157+$B$177+$B$197+$B$217+$B$237+$B$257+$B$277),($B$100+$B$120+$B$140+$B$158+$B$178+$B$198+$B$218+$B$238+$B$258+$B$278))*S3 ->  | AC3: =MAX($W3,$Z3)-AB3 ->  | AD3: =IF($E3<=120,MIN($B$99*$S3,$B$96),MIN($B$100*$S3,$B$96)) ->  | AE3: =IF(AC3<=0,0,MIN(MAX(AC3,$B$94),($B$96-AD3))) ->  | AF3: =SUM(AE$3:AE3) ->  | AG3: =IF(AF3<=($B$101-($B$99*5+$B$100*2)),AE3,0) ->  | AH3: =MIN(AG3+AD3,$B$96) ->  | AI3: =$B$97*AH3 ->  | AJ3: =AC3-AG3 ->  | AK3: =IF($E3<=120,MIN($B$119*$S3,$B$116),MIN($B$120*$S3,$B$116)) ->  | AL3: =IF(AJ3<=0,0,MIN(MAX(AJ3,$B$114),($B$116-AK3))) ->  | AM3: =SUM(AL$3:AL3) ->  | AN3: =IF(AM3<=($B$121-($B$119*5+$B$120*2)),AL3,0) ->  | AO3: =MIN(AN3+AK3,$B$116) ->  | AP3: =$B$117*AO3 ->  | AQ3: =AJ3-AN3 ->  | AR3: =IF($E3<=120,MIN($B$139*$S3,$B$136),MIN($B$140*$S3,$B$136)) ->  | AS3: =IF(AQ3<=0,0,MIN(MAX(AQ3,$B$134),($B$136-AR3))) ->  | AT3: =SUM(AS$3:AS3) ->  | AU3: =IF(AT3<=($B$141-($B$139*5+$B$140*2)),AS3,0) ->  | AV3: =MIN(AU3+AR3,$B$136) ->  | AW3: =$B$137*AV3 ->  | AX3: =AQ3-AU3 ->  | AY3: =IF($E3<=120,MIN($B$157*$S3,$B$156),MIN($B$158*$S3,$B$156)) ->  | AZ3: =IF(AX3<=0,0,MIN(MAX(AX3,$B$154),($B$156-AY3))) ->  | BA3: =SUM(AZ$3:AZ3) ->  | BB3: =IF(BA3<=($B$159-($B$157*5+$B$158*2)),AZ3,0) ->  | BC3: =MIN(BB3+AY3,$B$156) ->  | BD3: =$B$160*BC3 ->  | BE3: =AX3-BC3 ->  | BF3: =IF($E3<=120,MIN($B$177*$S3,$B$176),MIN($B$178*$S3,$B$176)) ->  | BG3: =IF(BE3<=0,0,MIN(MAX(BE3,$B$174),($B$176-BF3))) ->  | BH3: =SUM(BG$3:BG3) ->  | BI3: =IF(BH3<=($B$179-($B$177*5+$B$178*2)),BG3,0) ->  | BJ3: =MIN(BI3+BF3,$B$176) ->  | BK3: =$B$180*BJ3 ->  | BL3: =BE3-BJ3 ->  | BM3: =IF($E3<=120,MIN($B$197*$S3,$B$196),MIN($B$198*$S3,$B$196)) ->  | BN3: =IF(BL3<=0,0,MIN(MAX(BL3,$B$194),($B$196-BM3))) ->  | BO3: =SUM(BN$3:BN3) ->  | BP3: =IF(BO3<=($B$199-($B$197*5+$B$198*2)),BN3,0) ->  | BQ3: =MIN(BP3+BM3,$B$196) ->  | BR3: =$B$200*BQ3 ->  | BS3: =BL3-BQ3 ->  | BT3: =IF($E3<=120,MIN($B$217*$S3,$B$216),MIN($B$218*$S3,$B$216)) ->  | BU3: =IF(BS3<=0,0,MIN(MAX(BS3,$B$214),($B$216-BT3))) ->  | BV3: =SUM(BU$3:BU3) ->  | BW3: =IF(BV3<=($B$219-($B$217*5+$B$218*2)),BU3,0) ->  | BX3: =MIN(BW3+BT3,$B$216) ->  | BY3: =$B$220*BX3 ->  | BZ3: =BS3-BX3 ->  | CA3: =IF($E3<=120,MIN($B$237*$S3,$B$236),MIN($B$238*$S3,$B$236)) ->  | CB3: =IF(BZ3<=0,0,MIN(MAX(BZ3,$B$234),($B$236-CA3))) ->  | CC3: =SUM(CB$3:CB3) ->  | CD3: =IF(CC3<=($B$239-($B$237*5+$B$238*2)),CB3,0) ->  | CE3: =MIN(CD3+CA3,$B$236) ->  | CF3: =$B$240*CE3 ->  | CG3: =BZ3-CE3 ->  | CH3: =IF($E3<=120,MIN($B$257*$S3,$B$256),MIN($B$258*$S3,$B$256)) ->  | CI3: =IF(CG3<=0,0,MIN(MAX(CG3,$B$254),($B$256-CH3))) ->  | CJ3: =SUM(CI$3:CI3) ->  | CK3: =IF(CJ3<=($B$259-($B$257*5+$B$258*2)),CI3,0) ->  | CL3: =MIN(CK3+CH3,$B$256) ->  | CM3: =$B$260*CL3 ->  | CN3: =CG3-CL3 ->  | CO3: =IF($E3<=120,MIN($B$277*$S3,$B$276),MIN($B$278*$S3,$B$276)) ->  | CP3: =IF(CN3<=0,0,MIN(MAX(CN3,$B$274),($B$276-CO3))) ->  | CQ3: =SUM(CP$3:CP3) ->  | CR3: =IF(CQ3<=($B$279-($B$277*5+$B$278*2)),CP3,0) ->  | CS3: =MIN(CR3+CO3,$B$276) ->  | CT3: =$B$280*CS3 ->  | CU3: =CS3+CL3+CE3+BX3+BQ3+BJ3+BC3+AV3+AO3+AH3 ->  | CV3: =CU3+M3-G3 ->  | CW3: =IF(CV3>0,MIN(CV3*$B$10,$B$8*$B$9*$B$10),0) ->  | CX3: =MAX(0,MIN(CW3/$B$8,1-DC2)) ->  | CY3: =IF(CV3<0,MAX(CV3/$B$11,-$B$8*$B$9/$B$11),0) ->  | CZ3: =MIN(0,MAX(CY3/$B$8,-1*(DC2-$B$12))) ->  | DA3: =CZ3*-$B$8*$B$11 ->  | DB3: =CX3*-$B$8 ->  | DC3: =MIN(1,DC2+CZ3+CX3) ->  | DD3: initial Batt. used | DE3: =MAX(G3-M3-CU3-DA3,0) ->  | DF3: =MAX(G3-CU3-DE3-DA3,0) ->  | DG3: =MAX(DB3,-1*(M3-DF3)) ->  | DH3: =G3-DF3-DA3-DE3 ->  | DI3: =CU3-DH3 ->  | DJ3: =MAX(DB3-DG3,-1*DI3) ->  | DK3: =-(DI3+DJ3) ->  | DM3: =DH3-DJ3 -> 
A4: Losses | B4: =IF('Input Solar'!D264="Default",'Input Solar'!D270,'Input Solar'!E270) -> 0.05 | E4: 2 | F4: ='Existing Load'!J8 -> 0 | G4: =F4*(1+$B$4) -> 0 | H4: 0 | I4: 0 | J4: 0 | K4: =IF('Input Solar'!$D$18=Background!$X$2,'Calc Solar'!H4*$H$173,IF('Input Solar'!$D$18=Background!$X$3,'Calc Solar'!I4*$I$173,'Calc Solar'!J4*$J$173)) -> 0 | L4: =IF('Input Solar'!$D$20="Default",IF('Input Solar'!$D$18=Background!$X$2,'Calc Solar'!H4,IF('Input Solar'!$D$18=Background!$X$3,'Calc Solar'!I4,'Calc Solar'!J4)),K4) -> 0 | M4: =L4*$B$7 -> 0 | N4: =G4-M4 -> 0 | O4: 0 | P4: =MAX(O4*$B$10,-1*$B$8*$B$9*$B$10) -> 0 | R4: 0 | S4: =IFERROR(R4/SUM(R$3:R$26),0) -> 0 | T4: =MIN(R4/$B$11,$B$8*$B$9/$B$11) -> 0 | V4: =U4*$B$11 ->  | X4: 0 | Y4: =MIN($B$9*$B$8,(DC3-$B$12)*$B$8*$B$11) ->  | Z4: =MAX(0,X4-Y4) ->  | AA4: =MAX($W4,$Z4) ->  | AB4: =IF(E4<=120,($B$99+$B$119+$B$139+$B$157+$B$177+$B$197+$B$217+$B$237+$B$257+$B$277),($B$100+$B$120+$B$140+$B$158+$B$178+$B$198+$B$218+$B$238+$B$258+$B$278))*S4 ->  | AC4: =MAX($W4,$Z4)-AB4 ->  | AD4: =IF($E4<=120,MIN($B$99*$S4,$B$96),MIN($B$100*$S4,$B$96)) ->  | AE4: =IF(AC4<=0,0,MIN(MAX(AC4,$B$94),($B$96-AD4))) ->  | AF4: =SUM(AE$3:AE4) ->  | AG4: =IF(AF4<=($B$101-($B$99*5+$B$100*2)),AE4,0) ->  | AH4: =MIN(AG4+AD4,$B$96) ->  | AI4: =$B$97*AH4 ->  | AK4: =IF($E4<=120,MIN($B$119*$S4,$B$116),MIN($B$120*$S4,$B$116)) ->  | AL4: =IF(AJ4<=0,0,MIN(MAX(AJ4,$B$114),($B$116-AK4))) ->  | AM4: =SUM(AL$3:AL4) ->  | AN4: =IF(AM4<=($B$121-($B$119*5+$B$120*2)),AL4,0) ->  | AP4: =$B$117*AO4 ->  | AR4: =IF(E4<=120,MIN($B$139*S4,$B$136),MIN($B$140*S4,$B$136)) ->  | AS4: =IF(AQ4<=0,0,MIN(MAX(AQ4,$B$134),($B$136-AR4))) ->  | AT4: =SUM(AS$3:AS4) ->  | AU4: =IF(AT4<=($B$141-($B$139*5+$B$140*2)),AS4,0) ->  | AV4: =MIN(AU4+AR4,$B$136) ->  | AY4: =IF($E4<=120,MIN($B$157*$S4,$B$156),MIN($B$158*$S4,$B$156)) ->  | AZ4: =IF(AX4<=0,0,MIN(MAX(AX4,$B$154),($B$156-AY4))) ->  | BA4: =SUM(AZ$3:AZ4) ->  | BB4: =IF(BA4<=($B$159-($B$157*5+$B$158*2)),AZ4,0) ->  | BC4: =MIN(BB4+AY4,$B$156) ->  | BE4: =AX4-BC4 ->  | BF4: =IF($E4<=120,MIN($B$177*$S4,$B$176),MIN($B$178*$S4,$B$176)) ->  | BG4: =IF(BE4<=0,0,MIN(MAX(BE4,$B$174),($B$176-BF4))) ->  | BH4: =SUM(BG$3:BG4) ->  | BI4: =IF(BH4<=($B$179-($B$177*5+$B$178*2)),BG4,0) ->  | BJ4: =MIN(BI4+BF4,$B$176) ->  | BL4: =BE4-BJ4 ->  | BM4: =IF($E4<=120,MIN($B$197*$S4,$B$196),MIN($B$198*$S4,$B$196)) ->  | BN4: =IF(BL4<=0,0,MIN(MAX(BL4,$B$194),($B$196-BM4))) ->  | BO4: =SUM(BN$3:BN4) ->  | BP4: =IF(BO4<=($B$199-($B$197*5+$B$198*2)),BN4,0) ->  | BQ4: =MIN(BP4+BM4,$B$196) ->  | BR4: =$B$200*BQ4 ->  | BS4: =BL4-BQ4 ->  | BT4: =IF($E4<=120,MIN($B$217*$S4,$B$216),MIN($B$218*$S4,$B$216)) ->  | BU4: =IF(BS4<=0,0,MIN(MAX(BS4,$B$214),($B$216-BT4))) ->  | BV4: =SUM(BU$3:BU4) ->  | BW4: =IF(BV4<=($B$219-($B$217*5+$B$218*2)),BU4,0) ->  | BX4: =MIN(BW4+BT4,$B$216) ->  | BZ4: =BS4-BX4 ->  | CA4: =IF($E4<=120,MIN($B$237*$S4,$B$236),MIN($B$238*$S4,$B$236)) ->  | CB4: =IF(BZ4<=0,0,MIN(MAX(BZ4,$B$234),($B$236-CA4))) ->  | CC4: =SUM(CB$3:CB4) ->  | CD4: =IF(CC4<=($B$239-($B$237*5+$B$238*2)),CB4,0) ->  | CE4: =MIN(CD4+CA4,$B$236) ->  | CG4: =BZ4-CE4 ->  | CH4: =IF($E4<=120,MIN($B$257*$S4,$B$256),MIN($B$258*$S4,$B$256)) ->  | CI4: =IF(CG4<=0,0,MIN(MAX(CG4,$B$254),($B$256-CH4))) ->  | CJ4: =SUM(CI$3:CI4) ->  | CK4: =IF(CJ4<=($B$259-($B$257*5+$B$258*2)),CI4,0) ->  | CL4: =MIN(CK4+CH4,$B$256) ->  | CN4: =CG4-CL4 ->  | CO4: =IF($E4<=120,MIN($B$277*$S4,$B$276),MIN($B$278*$S4,$B$276)) ->  | CP4: =IF(CN4<=0,0,MIN(MAX(CN4,$B$274),($B$276-CO4))) ->  | CQ4: =SUM(CP$3:CP4) ->  | CR4: =IF(CQ4<=($B$279-($B$277*5+$B$278*2)),CP4,0) ->  | CS4: =MIN(CR4+CO4,$B$276) ->  | CW4: =IF(CV4>0,MIN(CV4*$B$10,$B$8*$B$9*$B$10),0) ->  | CX4: =MAX(0,MIN(CW4/$B$8,1-DC3)) ->  | CY4: =IF(CV4<0,MAX(CV4/$B$11,-$B$8*$B$9/$B$11),0) ->  | CZ4: =MIN(0,MAX(CY4/$B$8,-1*(DC3-$B$12))) ->  | DA4: =CZ4*-$B$8*$B$11 ->  | DB4: =CX4*-$B$8 ->  | DC4: =MIN(1,DC3+CZ4+CX4) ->  | DD4: =MAX(0,SUM(DA3:DA170)-(-1*SUM(DB3:DB170))) ->  | DH4: =G4-DF4-DA4-DE4 ->  | DI4: =CU4-DH4 ->  | DJ4: =MAX(DB4-DG4,-1*DI4) ->  | DK4: =-(DI4+DJ4) ->  | DM4: =DH4-DJ4 -> 
A5: Caution when shifting cells, VBA uses cells in these columns | E5: 3 | F5: ='Existing Load'!J9 -> 0 | G5: 0 | H5: 0 | I5: 0 | J5: 0 | K5: =IF('Input Solar'!$D$18=Background!$X$2,'Calc Solar'!H5*$H$173,IF('Input Solar'!$D$18=Background!$X$3,'Calc Solar'!I5*$I$173,'Calc Solar'!J5*$J$173)) -> 0 | L5: =IF('Input Solar'!$D$20="Default",IF('Input Solar'!$D$18=Background!$X$2,'Calc Solar'!H5,IF('Input Solar'!$D$18=Background!$X$3,'Calc Solar'!I5,'Calc Solar'!J5)),K5) -> 0 | M5: 0 | N5: 0 | O5: 0 | P5: 0 | R5: 0 | S5: 0 | T5: 0 | X5: 0 | AF5: =SUM(AE$3:AE5) ->  | AM5: =SUM(AL$3:AL5) ->  | AT5: =SUM(AS$3:AS5) ->  | BA5: =SUM(AZ$3:AZ5) ->  | BH5: =SUM(BG$3:BG5) ->  | BO5: =SUM(BN$3:BN5) ->  | BV5: =SUM(BU$3:BU5) ->  | CC5: =SUM(CB$3:CB5) ->  | CJ5: =SUM(CI$3:CI5) ->  | CQ5: =SUM(CP$3:CP5) ->  | DD5: RE excess
A6: System parameters | E6: 4 | F6: ='Existing Load'!J10 -> 0 | G6: =F6*(1+$B$4) -> 0 | H6: 0 | I6: 0 | J6: 0 | K6: =IF('Input Solar'!$D$18=Background!$X$2,'Calc Solar'!H6*$H$173,IF('Input Solar'!$D$18=Background!$X$3,'Calc Solar'!I6*$I$173,'Calc Solar'!J6*$J$173)) -> 0 | L6: =IF('Input Solar'!$D$20="Default",IF('Input Solar'!$D$18=Background!$X$2,'Calc Solar'!H6,IF('Input Solar'!$D$18=Background!$X$3,'Calc Solar'!I6,'Calc Solar'!J6)),K6) -> 0 | M6: 0 | N6: 0 | O6: 0 | P6: 0 | R6: 0 | S6: 0 | T6: 0 | X6: 0 | AF6: =SUM(AE$3:AE6) ->  | AM6: =SUM(AL$3:AL6) ->  | AT6: =SUM(AS$3:AS6) ->  | BA6: =SUM(AZ$3:AZ6) ->  | BH6: =SUM(BG$3:BG6) ->  | BO6: =SUM(BN$3:BN6) ->  | BV6: =SUM(BU$3:BU6) ->  | CC6: =SUM(CB$3:CB6) ->  | CJ6: =SUM(CI$3:CI6) ->  | CQ6: =SUM(CP$3:CP6) ->  | DD6: =-1*SUM(O3:O170) -> 0
A7: PV capacity | B7: =IF(Background!U2,Background!U3,IF('Input Solar'!$D$11="Default",'Input Solar'!$D$16,'Input Solar'!$E$16)) -> 0 | E7: 5 | F7: ='Existing Load'!J11 -> 0 | G7: 0 | H7: 0 | I7: 0 | J7: 0 | K7: =IF('Input Solar'!$D$18=Background!$X$2,'Calc Solar'!H7*$H$173,IF('Input Solar'!$D$18=Background!$X$3,'Calc Solar'!I7*$I$173,'Calc Solar'!J7*$J$173)) -> 0 | L7: =IF('Input Solar'!$D$20="Default",IF('Input Solar'!$D$18=Background!$X$2,'Calc Solar'!H7,IF('Input Solar'!$D$18=Background!$X$3,'Calc Solar'!I7,'Calc Solar'!J7)),K7) -> 0 | M7: 0 | N7: 0 | O7: 0 | P7: 0 | R7: 0 | S7: 0 | T7: 0 | X7: 0 | AF7: =SUM(AE$3:AE7) ->  | AM7: =SUM(AL$3:AL7) ->  | AT7: =SUM(AS$3:AS7) ->  | BA7: =SUM(AZ$3:AZ7) ->  | BH7: =SUM(BG$3:BG7) ->  | BO7: =SUM(BN$3:BN7) ->  | BV7: =SUM(BU$3:BU7) ->  | CC7: =SUM(CB$3:CB7) ->  | CJ7: =SUM(CI$3:CI7) ->  | CQ7: =SUM(CP$3:CP7) ->  | DD7: Residual
A8: Battery capacity | B8: =MAX(IF(Background!U2,Background!U4,IF('Input Solar'!$D$258="Default",'Input Solar'!$D$260,'Input Solar'!$E$260)),0.0000000000001) -> 1e-13 | E8: 6 | F8: ='Existing Load'!J12 -> 0 | G8: 0 | H8: 0 | I8: 0 | J8: 0 | K8: =IF('Input Solar'!$D$18=Background!$X$2,'Calc Solar'!H8*$H$173,IF('Input Solar'!$D$18=Background!$X$3,'Calc Solar'!I8*$I$173,'Calc Solar'!J8*$J$173)) -> 0 | L8: =IF('Input Solar'!$D$20="Default",IF('Input Solar'!$D$18=Background!$X$2,'Calc Solar'!H8,IF('Input Solar'!$D$18=Background!$X$3,'Calc Solar'!I8,'Calc Solar'!J8)),K8) -> 0 | M8: 0 | N8: 0 | O8: 0 | P8: 0 | R8: 0 | S8: 0 | T8: 0 | X8: 0 | AF8: =SUM(AE$3:AE8) ->  | AM8: =SUM(AL$3:AL8) ->  | AT8: =SUM(AS$3:AS8) ->  | BA8: =SUM(AZ$3:AZ8) ->  | BH8: =SUM(BG$3:BG8) ->  | BO8: =SUM(BN$3:BN8) ->  | BV8: =SUM(BU$3:BU8) ->  | CC8: =SUM(CB$3:CB8) ->  | CJ8: =SUM(CI$3:CI8) ->  | CQ8: =SUM(CP$3:CP8) ->  | DD8: =SUM(R3:R170) -> 0
A9: C-rate 1: | B9: =IF('Input Solar'!D246<>"Individual",'Input Solar'!D252,'Input Solar'!E252) -> 1 | E9: 7 | F9: ='Existing Load'!J13 -> 0 | G9: =F9*(1+$B$4) -> 0 | H9: 0.02204130119 | I9: 0.06907030188 | J9: 0.08119854264 | K9: =IF('Input Solar'!$D$18=Background!$X$2,'Calc Solar'!H9*$H$173,IF('Input Solar'!$D$18=Background!$X$3,'Calc Solar'!I9*$I$173,'Calc Solar'!J9*$J$173)) -> 0 | L9: =IF('Input Solar'!$D$20="Default",IF('Input Solar'!$D$18=Background!$X$2,'Calc Solar'!H9,IF('Input Solar'!$D$18=Background!$X$3,'Calc Solar'!I9,'Calc Solar'!J9)),K9) -> 0.02204130119 | M9: 0 | N9: 0 | O9: 0 | P9: 0 | R9: 0 | S9: 0 | T9: 0 | X9: 0 | AF9: =SUM(AE$3:AE9) ->  | AM9: =SUM(AL$3:AL9) ->  | AT9: =SUM(AS$3:AS9) ->  | BA9: =SUM(AZ$3:AZ9) ->  | BC9: =MIN(BB9+AY9,$B$156) ->  | BH9: =SUM(BG$3:BG9) ->  | BO9: =SUM(BN$3:BN9) ->  | BV9: =SUM(BU$3:BU9) ->  | CC9: =SUM(CB$3:CB9) ->  | CJ9: =SUM(CI$3:CI9) ->  | CQ9: =SUM(CP$3:CP9) -> 
A10: Charge efficiency | B10: =IF('Input Solar'!D246<>"Individual",'Input Solar'!D254,'Input Solar'!E254) -> 0.9 | E10: 8 | F10: ='Existing Load'!J14 -> 0 | G10: 0 | H10: 0.1827715836 | I10: 0.2185324631 | J10: 0.1804460136 | K10: =IF('Input Solar'!$D$18=Background!$X$2,'Calc Solar'!H10*$H$173,IF('Input Solar'!$D$18=Background!$X$3,'Calc Solar'!I10*$I$173,'Calc Solar'!J10*$J$173)) -> 0 | L10: =IF('Input Solar'!$D$20="Default",IF('Input Solar'!$D$18=Background!$X$2,'Calc Solar'!H10,IF('Input Solar'!$D$18=Background!$X$3,'Calc Solar'!I10,'Calc Solar'!J10)),K10) -> 0.1827715836 | M10: =L10*$B$7 -> 0 | N10: 0 | O10: 0 | P10: 0 | R10: 0 | S10: 0 | T10: 0 | X10: 0 | AF10: =SUM(AE$3:AE10) ->  | AM10: =SUM(AL$3:AL10) ->  | AT10: =SUM(AS$3:AS10) ->  | BA10: =SUM(AZ$3:AZ10) ->  | BH10: =SUM(BG$3:BG10) ->  | BO10: =SUM(BN$3:BN10) ->  | BV10: =SUM(BU$3:BU10) ->  | CC10: =SUM(CB$3:CB10) ->  | CJ10: =SUM(CI$3:CI10) ->  | CQ10: =SUM(CP$3:CP10) -> 
A11: Discharge efficiency | B11: =IF('Input Solar'!D246<>"Individual",'Input Solar'!D255,'Input Solar'!E255) -> 0.9 | E11: 9 | F11: ='Existing Load'!J15 -> 0 | G11: 0 | H11: 0.3194359526 | I11: 0.3700385344 | J11: 0.3223982513 | K11: =IF('Input Solar'!$D$18=Background!$X$2,'Calc Solar'!H11*$H$173,IF('Input Solar'!$D$18=Background!$X$3,'Calc Solar'!I11*$I$173,'Calc Solar'!J11*$J$173)) -> 0 | L11: =IF('Input Solar'!$D$20="Default",IF('Input Solar'!$D$18=Background!$X$2,'Calc Solar'!H11,IF('Input Solar'!$D$18=Background!$X$3,'Calc Solar'!I11,'Calc Solar'!J11)),K11) -> 0.3194359526 | M11: 0 | N11: 0 | O11: 0 | P11: =MAX(O11*$B$10,-1*$B$8*$B$9*$B$10) -> 0 | R11: 0 | S11: 0 | T11: 0 | X11: 0 | AF11: =SUM(AE$3:AE11) ->  | AM11: =SUM(AL$3:AL11) ->  | AT11: =SUM(AS$3:AS11) ->  | BA11: =SUM(AZ$3:AZ11) ->  | BH11: =SUM(BG$3:BG11) ->  | BO11: =SUM(BN$3:BN11) ->  | BV11: =SUM(BU$3:BU11) ->  | CC11: =SUM(CB$3:CB11) ->  | CJ11: =SUM(CI$3:CI11) ->  | CQ11: =SUM(CP$3:CP11) -> 
A12: min SOC | B12: =(1-IF('Input Solar'!D246<>"Individual",'Input Solar'!D253,'Input Solar'!E253)) -> 0.2 | E12: 10 | F12: ='Existing Load'!J16 -> 0 | G12: 0 | H12: 0.3690614556 | I12: 0.4794290403 | J12: 0.4464779373 | K12: =IF('Input Solar'!$D$18=Background!$X$2,'Calc Solar'!H12*$H$173,IF('Input Solar'!$D$18=Background!$X$3,'Calc Solar'!I12*$I$173,'Calc Solar'!J12*$J$173)) -> 0 | L12: =IF('Input Solar'!$D$20="Default",IF('Input Solar'!$D$18=Background!$X$2,'Calc Solar'!H12,IF('Input Solar'!$D$18=Background!$X$3,'Calc Solar'!I12,'Calc Solar'!J12)),K12) -> 0.3690614556 | M12: 0 | N12: 0 | O12: 0 | P12: 0 | R12: 0 | S12: 0 | T12: 0 | X12: 0 | AF12: =SUM(AE$3:AE12) ->  | AM12: =SUM(AL$3:AL12) ->  | AT12: =SUM(AS$3:AS12) ->  | BA12: =SUM(AZ$3:AZ12) ->  | BH12: =SUM(BG$3:BG12) ->  | BO12: =SUM(BN$3:BN12) ->  | BV12: =SUM(BU$3:BU12) ->  | CC12: =SUM(CB$3:CB12) ->  | CJ12: =SUM(CI$3:CI12) ->  | CQ12: =SUM(CP$3:CP12) -> 
A13: Diesel capacity total | B13: =B95+B115+B135+B155+B175+B195+B215+B235+B255+B275 -> 0 | E13: 11 | F13: ='Existing Load'!J17 -> 0 | G13: 0 | H13: 0.3400743477 | I13: 0.542267762 | J13: 0.5404036159 | K13: =IF('Input Solar'!$D$18=Background!$X$2,'Calc Solar'!H13*$H$173,IF('Input Solar'!$D$18=Background!$X$3,'Calc Solar'!I13*$I$173,'Calc Solar'!J13*$J$173)) -> 0 | L13: =IF('Input Solar'!$D$20="Default",IF('Input Solar'!$D$18=Background!$X$2,'Calc Solar'!H13,IF('Input Solar'!$D$18=Background!$X$3,'Calc Solar'!I13,'Calc Solar'!J13)),K13) -> 0.3400743477 | M13: 0 | N13: 0 | O13: 0 | P13: 0 | R13: 0 | S13: 0 | T13: 0 | X13: 0 | Y13: =MIN($B$9*$B$8,(DC12-$B$12)*$B$8*$B$11) ->  | AF13: =SUM(AE$3:AE13) ->  | AM13: =SUM(AL$3:AL13) ->  | AT13: =SUM(AS$3:AS13) ->  | BA13: =SUM(AZ$3:AZ13) ->  | BH13: =SUM(BG$3:BG13) ->  | BO13: =SUM(BN$3:BN13) ->  | BV13: =SUM(BU$3:BU13) ->  | CC13: =SUM(CB$3:CB13) ->  | CJ13: =SUM(CI$3:CI13) ->  | CQ13: =SUM(CP$3:CP13) -> 
A14: Rotating mass | B14: =IF('Input Solar'!D264="Default",'Input Solar'!D271,'Input Solar'!E271) -> 0.4 | E14: 12 | F14: ='Existing Load'!J18 -> 0 | G14: =F14*(1+$B$4) -> 0 | H14: 0.3712007088 | I14: 0.5261863344 | J14: 0.5090854408 | K14: =IF('Input Solar'!$D$18=Background!$X$2,'Calc Solar'!H14*$H$173,IF('Input Solar'!$D$18=Background!$X$3,'Calc Solar'!I14*$I$173,'Calc Solar'!J14*$J$173)) -> 0 | L14: =IF('Input Solar'!$D$20="Default",IF('Input Solar'!$D$18=Background!$X$2,'Calc Solar'!H14,IF('Input Solar'!$D$18=Background!$X$3,'Calc Solar'!I14,'Calc Solar'!J14)),K14) -> 0.3712007088 | M14: 0 | N14: 0 | O14: 0 | P14: 0 | R14: 0 | S14: 0 | T14: 0 | X14: 0 | AF14: =SUM(AE$3:AE14) ->  | AM14: =SUM(AL$3:AL14) ->  | AT14: =SUM(AS$3:AS14) ->  | BA14: =SUM(AZ$3:AZ14) ->  | BH14: =SUM(BG$3:BG14) ->  | BO14: =SUM(BN$3:BN14) ->  | BV14: =SUM(BU$3:BU14) ->  | CC14: =SUM(CB$3:CB14) ->  | CJ14: =SUM(CI$3:CI14) ->  | CQ14: =SUM(CP$3:CP14) -> 
A15: Distribution losses | B15: =(SUM('Calc Solar'!$G$3:$G$170)-SUM('Calc Solar'!$F$3:$F$170)) -> 0 | E15: 13 | F15: ='Existing Load'!J19 -> 0 | G15: 0 | H15: 0.3705241149 | I15: 0.4668090038 | J15: 0.4350134597 | K15: =IF('Input Solar'!$D$18=Background!$X$2,'Calc Solar'!H15*$H$173,IF('Input Solar'!$D$18=Background!$X$3,'Calc Solar'!I15*$I$173,'Calc Solar'!J15*$J$173)) -> 0 | L15: =IF('Input Solar'!$D$20="Default",IF('Input Solar'!$D$18=Background!$X$2,'Calc Solar'!H15,IF('Input Solar'!$D$18=Background!$X$3,'Calc Solar'!I15,'Calc Solar'!J15)),K15) -> 0.3705241149 | M15: 0 | N15: 0 | O15: 0 | P15: 0 | R15: 0 | S15: 0 | T15: 0 | X15: 0 | AF15: =SUM(AE$3:AE15) ->  | AM15: =SUM(AL$3:AL15) ->  | AT15: =SUM(AS$3:AS15) ->  | BA15: =SUM(AZ$3:AZ15) ->  | BH15: =SUM(BG$3:BG15) ->  | BO15: =SUM(BN$3:BN15) ->  | BV15: =SUM(BU$3:BU15) ->  | CC15: =SUM(CB$3:CB15) ->  | CJ15: =SUM(CI$3:CI15) ->  | CQ15: =SUM(CP$3:CP15) -> 
A16: PV generation | B16: =SUM(M2:M170) -> 0 | E16: 14 | F16: ='Existing Load'!J20 -> 0 | G16: 0 | H16: 0.3362899831 | I16: 0.3749783065 | J16: 0.3323390083 | K16: =IF('Input Solar'!$D$18=Background!$X$2,'Calc Solar'!H16*$H$173,IF('Input Solar'!$D$18=Background!$X$3,'Calc Solar'!I16*$I$173,'Calc Solar'!J16*$J$173)) -> 0 | L16: =IF('Input Solar'!$D$20="Default",IF('Input Solar'!$D$18=Background!$X$2,'Calc Solar'!H16,IF('Input Solar'!$D$18=Background!$X$3,'Calc Solar'!I16,'Calc Solar'!J16)),K16) -> 0.3362899831 | M16: 0 | N16: 0 | O16: 0 | P16: 0 | R16: 0 | S16: 0 | T16: 0 | X16: 0 | AF16: =SUM(AE$3:AE16) ->  | AM16: =SUM(AL$3:AL16) ->  | AT16: =SUM(AS$3:AS16) ->  | BA16: =SUM(AZ$3:AZ16) ->  | BH16: =SUM(BG$3:BG16) ->  | BO16: =SUM(BN$3:BN16) ->  | BV16: =SUM(BU$3:BU16) ->  | CC16: =SUM(CB$3:CB16) ->  | CJ16: =SUM(CI$3:CI16) ->  | CQ16: =SUM(CP$3:CP16) -> 
A17: Battery discharge | B17: =SUM(DA3:DA170) ->  | E17: 15 | F17: ='Existing Load'!J21 -> 0 | G17: 0 | H17: 0.2395294508 | I17: 0.2433206291 | J17: 0.2450150885 | K17: =IF('Input Solar'!$D$18=Background!$X$2,'Calc Solar'!H17*$H$173,IF('Input Solar'!$D$18=Background!$X$3,'Calc Solar'!I17*$I$173,'Calc Solar'!J17*$J$173)) -> 0 | L17: =IF('Input Solar'!$D$20="Default",IF('Input Solar'!$D$18=Background!$X$2,'Calc Solar'!H17,IF('Input Solar'!$D$18=Background!$X$3,'Calc Solar'!I17,'Calc Solar'!J17)),K17) -> 0.2395294508 | M17: 0 | N17: 0 | O17: 0 | P17: 0 | R17: 0 | S17: 0 | T17: 0 | X17: 0 | AF17: =SUM(AE$3:AE17) ->  | AM17: =SUM(AL$3:AL17) ->  | AT17: =SUM(AS$3:AS17) ->  | BA17: =SUM(AZ$3:AZ17) ->  | BH17: =SUM(BG$3:BG17) ->  | BO17: =SUM(BN$3:BN17) ->  | BV17: =SUM(BU$3:BU17) ->  | CC17: =SUM(CB$3:CB17) ->  | CJ17: =SUM(CI$3:CI17) ->  | CQ17: =SUM(CP$3:CP17) -> 
A18: Diesel generation total | B18: =SUM(CU3:CU170) ->  | E18: 16 | F18: ='Existing Load'!J22 -> 0 | G18: 0 | H18: 0.1368709962 | I18: 0.1213294542 | J18: 0.1502693412 | K18: =IF('Input Solar'!$D$18=Background!$X$2,'Calc Solar'!H18*$H$173,IF('Input Solar'!$D$18=Background!$X$3,'Calc Solar'!I18*$I$173,'Calc Solar'!J18*$J$173)) -> 0 | L18: =IF('Input Solar'!$D$20="Default",IF('Input Solar'!$D$18=Background!$X$2,'Calc Solar'!H18,IF('Input Solar'!$D$18=Background!$X$3,'Calc Solar'!I18,'Calc Solar'!J18)),K18) -> 0.1368709962 | M18: 0 | N18: 0 | O18: 0 | P18: 0 | R18: 0 | S18: 0 | T18: =MIN(R18/$B$11,$B$8*$B$9/$B$11) -> 0 | V18: =U18*$B$11 ->  | X18: 0 | AF18: =SUM(AE$3:AE18) ->  | AM18: =SUM(AL$3:AL18) ->  | AT18: =SUM(AS$3:AS18) ->  | BA18: =SUM(AZ$3:AZ18) ->  | BH18: =SUM(BG$3:BG18) ->  | BO18: =SUM(BN$3:BN18) ->  | BV18: =SUM(BU$3:BU18) ->  | CC18: =SUM(CB$3:CB18) ->  | CJ18: =SUM(CI$3:CI18) ->  | CQ18: =SUM(CP$3:CP18) -> 
A19: Diesel fuel l/week total | B19: =B104+B124+B144+B164+B184+B204+B224+B244+B264+B284 ->  | E19: 17 | F19: ='Existing Load'!J23 -> 0 | G19: 0 | H19: 0.04578549045 | I19: 0.03190881903 | J19: 0.06157304257 | K19: =IF('Input Solar'!$D$18=Background!$X$2,'Calc Solar'!H19*$H$173,IF('Input Solar'!$D$18=Background!$X$3,'Calc Solar'!I19*$I$173,'Calc Solar'!J19*$J$173)) -> 0 | L19: =IF('Input Solar'!$D$20="Default",IF('Input Solar'!$D$18=Background!$X$2,'Calc Solar'!H19,IF('Input Solar'!$D$18=Background!$X$3,'Calc Solar'!I19,'Calc Solar'!J19)),K19) -> 0.04578549045 | M19: 0 | N19: 0 | O19: 0 | P19: 0 | R19: 0 | S19: 0 | T19: 0 | X19: 0 | AF19: =SUM(AE$3:AE19) ->  | AM19: =SUM(AL$3:AL19) ->  | AT19: =SUM(AS$3:AS19) ->  | BA19: =SUM(AZ$3:AZ19) ->  | BH19: =SUM(BG$3:BG19) ->  | BO19: =SUM(BN$3:BN19) ->  | BV19: =SUM(BU$3:BU19) ->  | CC19: =SUM(CB$3:CB19) ->  | CJ19: =SUM(CI$3:CI19) ->  | CQ19: =SUM(CP$3:CP19) -> 
A20: Diesel fuel l/year total | B20: =B19/168*8760 ->  | E20: 18 | F20: ='Existing Load'!J24 -> 0 | G20: 0 | H20: 0 | I20: 0 | J20: 0.001205943941 | K20: =IF('Input Solar'!$D$18=Background!$X$2,'Calc Solar'!H20*$H$173,IF('Input Solar'!$D$18=Background!$X$3,'Calc Solar'!I20*$I$173,'Calc Solar'!J20*$J$173)) -> 0 | L20: =IF('Input Solar'!$D$20="Default",IF('Input Solar'!$D$18=Background!$X$2,'Calc Solar'!H20,IF('Input Solar'!$D$18=Background!$X$3,'Calc Solar'!I20,'Calc Solar'!J20)),K20) -> 0 | M20: 0 | N20: 0 | O20: 0 | P20: 0 | R20: 0 | S20: 0 | T20: 0 | X20: 0 | AF20: =SUM(AE$3:AE20) ->  | AM20: =SUM(AL$3:AL20) ->  | AT20: =SUM(AS$3:AS20) ->  | BA20: =SUM(AZ$3:AZ20) ->  | BH20: =SUM(BG$3:BG20) ->  | BO20: =SUM(BN$3:BN20) ->  | BV20: =SUM(BU$3:BU20) ->  | CC20: =SUM(CB$3:CB20) ->  | CJ20: =SUM(CI$3:CI20) ->  | CQ20: =SUM(CP$3:CP20) -> 
A21: PV from batt. | B21: =IF(B18=0,B17,MIN(-1*SUM(DG3:DG170)+DD4,B17)) ->  | E21: 19 | F21: ='Existing Load'!J25 -> 0 | G21: 0 | H21: 0 | I21: 0 | J21: 0 | K21: =IF('Input Solar'!$D$18=Background!$X$2,'Calc Solar'!H21*$H$173,IF('Input Solar'!$D$18=Background!$X$3,'Calc Solar'!I21*$I$173,'Calc Solar'!J21*$J$173)) -> 0 | L21: =IF('Input Solar'!$D$20="Default",IF('Input Solar'!$D$18=Background!$X$2,'Calc Solar'!H21,IF('Input Solar'!$D$18=Background!$X$3,'Calc Solar'!I21,'Calc Solar'!J21)),K21) -> 0 | M21: 0 | N21: 0 | O21: 0 | P21: 0 | R21: 0 | S21: 0 | T21: 0 | X21: 0 | AF21: =SUM(AE$3:AE21) ->  | AM21: =SUM(AL$3:AL21) ->  | AT21: =SUM(AS$3:AS21) ->  | BA21: =SUM(AZ$3:AZ21) ->  | BH21: =SUM(BG$3:BG21) ->  | BO21: =SUM(BN$3:BN21) ->  | BV21: =SUM(BU$3:BU21) ->  | CC21: =SUM(CB$3:CB21) ->  | CJ21: =SUM(CI$3:CI21) ->  | CQ21: =SUM(CP$3:CP21) -> 
A22: PV capacity new | B22: =IF(Background!U2,Background!U5,IF('Input Solar'!$D$11="Default",'Input Solar'!$D$15,'Input Solar'!$E$15)) -> 0 | E22: 20 | F22: ='Existing Load'!J26 -> 0 | G22: 0 | H22: 0 | I22: 0 | J22: 0 | K22: =IF('Input Solar'!$D$18=Background!$X$2,'Calc Solar'!H22*$H$173,IF('Input Solar'!$D$18=Background!$X$3,'Calc Solar'!I22*$I$173,'Calc Solar'!J22*$J$173)) -> 0 | L22: =IF('Input Solar'!$D$20="Default",IF('Input Solar'!$D$18=Background!$X$2,'Calc Solar'!H22,IF('Input Solar'!$D$18=Background!$X$3,'Calc Solar'!I22,'Calc Solar'!J22)),K22) -> 0 | M22: 0 | N22: 0 | O22: 0 | P22: 0 | R22: 0 | S22: 0 | T22: 0 | X22: 0 | AF22: =SUM(AE$3:AE22) ->  | AM22: =SUM(AL$3:AL22) ->  | AT22: =SUM(AS$3:AS22) ->  | BA22: =SUM(AZ$3:AZ22) ->  | BH22: =SUM(BG$3:BG22) ->  | BO22: =SUM(BN$3:BN22) ->  | BV22: =SUM(BU$3:BU22) ->  | CC22: =SUM(CB$3:CB22) ->  | CJ22: =SUM(CI$3:CI22) ->  | CQ22: =SUM(CP$3:CP22) -> 
A23: PV capacity existing eligible | B23: =IF('Input Solar'!$D$11="Default",'Input Solar'!$D$13,'Input Solar'!$E$13) -> 0 | E23: 21 | F23: ='Existing Load'!J27 -> 0 | G23: 0 | H23: 0 | I23: 0 | J23: 0 | K23: =IF('Input Solar'!$D$18=Background!$X$2,'Calc Solar'!H23*$H$173,IF('Input Solar'!$D$18=Background!$X$3,'Calc Solar'!I23*$I$173,'Calc Solar'!J23*$J$173)) -> 0 | L23: =IF('Input Solar'!$D$20="Default",IF('Input Solar'!$D$18=Background!$X$2,'Calc Solar'!H23,IF('Input Solar'!$D$18=Background!$X$3,'Calc Solar'!I23,'Calc Solar'!J23)),K23) -> 0 | M23: 0 | N23: 0 | O23: 0 | P23: 0 | R23: 0 | S23: 0 | T23: 0 | X23: 0 | AF23: =SUM(AE$3:AE23) ->  | AM23: =SUM(AL$3:AL23) ->  | AT23: =SUM(AS$3:AS23) ->  | BA23: =SUM(AZ$3:AZ23) ->  | BH23: =SUM(BG$3:BG23) ->  | BO23: =SUM(BN$3:BN23) ->  | BV23: =SUM(BU$3:BU23) ->  | CC23: =SUM(CB$3:CB23) ->  | CJ23: =SUM(CI$3:CI23) ->  | CQ23: =SUM(CP$3:CP23) -> 
A24: PV Capex | B24: =IF('Input Solar'!D3="Default",'Input Solar'!D7,'Input Solar'!E7) -> 70000 | E24: 22 | F24: ='Existing Load'!J28 -> 0 | G24: 0 | H24: 0 | I24: 0 | J24: 0 | K24: =IF('Input Solar'!$D$18=Background!$X$2,'Calc Solar'!H24*$H$173,IF('Input Solar'!$D$18=Background!$X$3,'Calc Solar'!I24*$I$173,'Calc Solar'!J24*$J$173)) -> 0 | L24: =IF('Input Solar'!$D$20="Default",IF('Input Solar'!$D$18=Background!$X$2,'Calc Solar'!H24,IF('Input Solar'!$D$18=Background!$X$3,'Calc Solar'!I24,'Calc Solar'!J24)),K24) -> 0 | M24: 0 | N24: 0 | O24: 0 | P24: 0 | R24: 0 | S24: 0 | T24: 0 | X24: 0 | AF24: =SUM(AE$3:AE24) ->  | AM24: =SUM(AL$3:AL24) ->  | AT24: =SUM(AS$3:AS24) ->  | BA24: =SUM(AZ$3:AZ24) ->  | BH24: =SUM(BG$3:BG24) ->  | BO24: =SUM(BN$3:BN24) ->  | BV24: =SUM(BU$3:BU24) ->  | CC24: =SUM(CB$3:CB24) ->  | CJ24: =SUM(CI$3:CI24) ->  | CQ24: =SUM(CP$3:CP24) -> 
A25: PV OPEX | B25: =IF('Input Solar'!D3="Default",'Input Solar'!D8,'Input Solar'!E8) -> 1400 | E25: 23 | F25: ='Existing Load'!J29 -> 0 | G25: 0 | H25: 0 | I25: 0 | J25: 0 | K25: =IF('Input Solar'!$D$18=Background!$X$2,'Calc Solar'!H25*$H$173,IF('Input Solar'!$D$18=Background!$X$3,'Calc Solar'!I25*$I$173,'Calc Solar'!J25*$J$173)) -> 0 | L25: =IF('Input Solar'!$D$20="Default",IF('Input Solar'!$D$18=Background!$X$2,'Calc Solar'!H25,IF('Input Solar'!$D$18=Background!$X$3,'Calc Solar'!I25,'Calc Solar'!J25)),K25) -> 0 | M25: 0 | N25: 0 | O25: 0 | P25: 0 | R25: 0 | S25: 0 | T25: 0 | X25: 0 | AF25: =SUM(AE$3:AE25) ->  | AM25: =SUM(AL$3:AL25) ->  | AT25: =SUM(AS$3:AS25) ->  | BA25: =SUM(AZ$3:AZ25) ->  | BH25: =SUM(BG$3:BG25) ->  | BO25: =SUM(BN$3:BN25) ->  | BV25: =SUM(BU$3:BU25) ->  | CC25: =SUM(CB$3:CB25) ->  | CJ25: =SUM(CI$3:CI25) ->  | CQ25: =SUM(CP$3:CP25) -> 
E26: 24 | F26: ='Existing Load'!J30 -> 0 | G26: 0 | H26: 0 | I26: 0 | J26: 0 | K26: =IF('Input Solar'!$D$18=Background!$X$2,'Calc Solar'!H26*$H$173,IF('Input Solar'!$D$18=Background!$X$3,'Calc Solar'!I26*$I$173,'Calc Solar'!J26*$J$173)) -> 0 | L26: =IF('Input Solar'!$D$20="Default",IF('Input Solar'!$D$18=Background!$X$2,'Calc Solar'!H26,IF('Input Solar'!$D$18=Background!$X$3,'Calc Solar'!I26,'Calc Solar'!J26)),K26) -> 0 | M26: 0 | N26: 0 | O26: 0 | P26: 0 | R26: 0 | S26: 0 | T26: 0 | X26: 0 | AF26: =SUM(AE$3:AE26) ->  | AM26: =SUM(AL$3:AL26) ->  | AT26: =SUM(AS$3:AS26) ->  | BA26: =SUM(AZ$3:AZ26) ->  | BH26: =SUM(BG$3:BG26) ->  | BO26: =SUM(BN$3:BN26) ->  | BV26: =SUM(BU$3:BU26) ->  | CC26: =SUM(CB$3:CB26) ->  | CJ26: =SUM(CI$3:CI26) ->  | CQ26: =SUM(CP$3:CP26) -> 
E27: 25 | F27: =IF(E27-E3=24,F3,"") -> 0 | G27: 0 | H27: 0 | I27: 0 | J27: 0 | K27: =IF('Input Solar'!$D$18=Background!$X$2,'Calc Solar'!H27*$H$173,IF('Input Solar'!$D$18=Background!$X$3,'Calc Solar'!I27*$I$173,'Calc Solar'!J27*$J$173)) -> 0 | L27: =IF('Input Solar'!$D$20="Default",IF('Input Solar'!$D$18=Background!$X$2,'Calc Solar'!H27,IF('Input Solar'!$D$18=Background!$X$3,'Calc Solar'!I27,'Calc Solar'!J27)),K27) -> 0 | M27: 0 | N27: 0 | O27: 0 | P27: 0 | R27: 0 | S27: =IFERROR(R27/SUM(R$27:R$50),0) -> 0 | T27: 0 | X27: 0 | AF27: =SUM(AE$3:AE27) ->  | AM27: =SUM(AL$3:AL27) ->  | AT27: =SUM(AS$3:AS27) ->  | BA27: =SUM(AZ$3:AZ27) ->  | BH27: =SUM(BG$3:BG27) ->  | BO27: =SUM(BN$3:BN27) ->  | BV27: =SUM(BU$3:BU27) ->  | CC27: =SUM(CB$3:CB27) ->  | CJ27: =SUM(CI$3:CI27) ->  | CQ27: =SUM(CP$3:CP27) -> 
A28: Battery Capex | B28: =IF('Input Solar'!D246<>"Individual",'Input Solar'!D250,'Input Solar'!E250) -> 27000 | E28: 26 | F28: =IF(E28-E4=24,F4,"") -> 0 | G28: 0 | H28: 0 | I28: 0 | J28: 0 | K28: =IF('Input Solar'!$D$18=Background!$X$2,'Calc Solar'!H28*$H$173,IF('Input Solar'!$D$18=Background!$X$3,'Calc Solar'!I28*$I$173,'Calc Solar'!J28*$J$173)) -> 0 | L28: =IF('Input Solar'!$D$20="Default",IF('Input Solar'!$D$18=Background!$X$2,'Calc Solar'!H28,IF('Input Solar'!$D$18=Background!$X$3,'Calc Solar'!I28,'Calc Solar'!J28)),K28) -> 0 | M28: 0 | N28: 0 | O28: 0 | P28: 0 | R28: 0 | S28: =IFERROR(R28/SUM(R$27:R$50),0) -> 0 | T28: 0 | X28: 0 | AF28: =SUM(AE$3:AE28) ->  | AM28: =SUM(AL$3:AL28) ->  | AT28: =SUM(AS$3:AS28) ->  | BA28: =SUM(AZ$3:AZ28) ->  | BH28: =SUM(BG$3:BG28) ->  | BO28: =SUM(BN$3:BN28) ->  | BV28: =SUM(BU$3:BU28) ->  | CC28: =SUM(CB$3:CB28) ->  | CJ28: =SUM(CI$3:CI28) ->  | CQ28: =SUM(CP$3:CP28) -> 
A29: Battery OPEX fix | B29: =IF('Input Solar'!D246<>"Individual",'Input Solar'!D251,'Input Solar'!E251) -> 405 | E29: 27 | F29: =IF(E29-E5=24,F5,"") -> 0 | G29: 0 | H29: 0 | I29: 0 | J29: 0 | K29: =IF('Input Solar'!$D$18=Background!$X$2,'Calc Solar'!H29*$H$173,IF('Input Solar'!$D$18=Background!$X$3,'Calc Solar'!I29*$I$173,'Calc Solar'!J29*$J$173)) -> 0 | L29: =IF('Input Solar'!$D$20="Default",IF('Input Solar'!$D$18=Background!$X$2,'Calc Solar'!H29,IF('Input Solar'!$D$18=Background!$X$3,'Calc Solar'!I29,'Calc Solar'!J29)),K29) -> 0 | M29: 0 | N29: 0 | O29: 0 | P29: 0 | R29: 0 | S29: 0 | T29: 0 | X29: 0 | AF29: =SUM(AE$3:AE29) ->  | AM29: =SUM(AL$3:AL29) ->  | AT29: =SUM(AS$3:AS29) ->  | BA29: =SUM(AZ$3:AZ29) ->  | BH29: =SUM(BG$3:BG29) ->  | BO29: =SUM(BN$3:BN29) ->  | BV29: =SUM(BU$3:BU29) ->  | CC29: =SUM(CB$3:CB29) ->  | CJ29: =SUM(CI$3:CI29) ->  | CQ29: =SUM(CP$3:CP29) -> 
E30: 28 | F30: 0 | G30: 0 | H30: 0 | I30: 0 | J30: 0 | K30: =IF('Input Solar'!$D$18=Background!$X$2,'Calc Solar'!H30*$H$173,IF('Input Solar'!$D$18=Background!$X$3,'Calc Solar'!I30*$I$173,'Calc Solar'!J30*$J$173)) -> 0 | L30: =IF('Input Solar'!$D$20="Default",IF('Input Solar'!$D$18=Background!$X$2,'Calc Solar'!H30,IF('Input Solar'!$D$18=Background!$X$3,'Calc Solar'!I30,'Calc Solar'!J30)),K30) -> 0 | M30: 0 | N30: 0 | O30: 0 | P30: 0 | R30: 0 | S30: 0 | T30: 0 | X30: 0 | AF30: =SUM(AE$3:AE30) ->  | AM30: =SUM(AL$3:AL30) ->  | AT30: =SUM(AS$3:AS30) ->  | BA30: =SUM(AZ$3:AZ30) ->  | BH30: =SUM(BG$3:BG30) ->  | BO30: =SUM(BN$3:BN30) ->  | BV30: =SUM(BU$3:BU30) ->  | CC30: =SUM(CB$3:CB30) ->  | CJ30: =SUM(CI$3:CI30) ->  | CQ30: =SUM(CP$3:CP30) -> 
E31: 29 | F31: 0 | G31: 0 | H31: 0 | I31: 0 | J31: 0 | K31: =IF('Input Solar'!$D$18=Background!$X$2,'Calc Solar'!H31*$H$173,IF('Input Solar'!$D$18=Background!$X$3,'Calc Solar'!I31*$I$173,'Calc Solar'!J31*$J$173)) -> 0 | L31: =IF('Input Solar'!$D$20="Default",IF('Input Solar'!$D$18=Background!$X$2,'Calc Solar'!H31,IF('Input Solar'!$D$18=Background!$X$3,'Calc Solar'!I31,'Calc Solar'!J31)),K31) -> 0 | M31: 0 | N31: 0 | O31: 0 | P31: 0 | R31: 0 | S31: 0 | T31: 0 | X31: 0 | AF31: =SUM(AE$3:AE31) ->  | AM31: =SUM(AL$3:AL31) ->  | AT31: =SUM(AS$3:AS31) ->  | BA31: =SUM(AZ$3:AZ31) ->  | BH31: =SUM(BG$3:BG31) ->  | BO31: =SUM(BN$3:BN31) ->  | BV31: =SUM(BU$3:BU31) ->  | CC31: =SUM(CB$3:CB31) ->  | CJ31: =SUM(CI$3:CI31) ->  | CQ31: =SUM(CP$3:CP31) -> 
A32: Fuel increase | B32: =IF('Input Solar'!D264="Default",'Input Solar'!D277,'Input Solar'!E277) -> 0.03 | E32: 30 | F32: 0 | G32: 0 | H32: 0 | I32: 0 | J32: 0 | K32: =IF('Input Solar'!$D$18=Background!$X$2,'Calc Solar'!H32*$H$173,IF('Input Solar'!$D$18=Background!$X$3,'Calc Solar'!I32*$I$173,'Calc Solar'!J32*$J$173)) -> 0 | L32: =IF('Input Solar'!$D$20="Default",IF('Input Solar'!$D$18=Background!$X$2,'Calc Solar'!H32,IF('Input Solar'!$D$18=Background!$X$3,'Calc Solar'!I32,'Calc Solar'!J32)),K32) -> 0 | M32: 0 | N32: 0 | O32: 0 | P32: 0 | R32: 0 | S32: 0 | T32: 0 | X32: 0 | AF32: =SUM(AE$3:AE32) ->  | AM32: =SUM(AL$3:AL32) ->  | AT32: =SUM(AS$3:AS32) ->  | BA32: =SUM(AZ$3:AZ32) ->  | BH32: =SUM(BG$3:BG32) ->  | BO32: =SUM(BN$3:BN32) ->  | BV32: =SUM(BU$3:BU32) ->  | CC32: =SUM(CB$3:CB32) ->  | CJ32: =SUM(CI$3:CI32) ->  | CQ32: =SUM(CP$3:CP32) -> 
E33: 31 | F33: =IF(E33-E9=24,F9,"") -> 0 | G33: 0 | H33: 0.01182018695 | I33: 0.055311783 | J33: 0.04286908952 | K33: =IF('Input Solar'!$D$18=Background!$X$2,'Calc Solar'!H33*$H$173,IF('Input Solar'!$D$18=Background!$X$3,'Calc Solar'!I33*$I$173,'Calc Solar'!J33*$J$173)) -> 0 | L33: =IF('Input Solar'!$D$20="Default",IF('Input Solar'!$D$18=Background!$X$2,'Calc Solar'!H33,IF('Input Solar'!$D$18=Background!$X$3,'Calc Solar'!I33,'Calc Solar'!J33)),K33) -> 0.01182018695 | M33: 0 | N33: 0 | O33: 0 | P33: 0 | R33: 0 | S33: 0 | T33: 0 | X33: 0 | AF33: =SUM(AE$3:AE33) ->  | AM33: =SUM(AL$3:AL33) ->  | AT33: =SUM(AS$3:AS33) ->  | BA33: =SUM(AZ$3:AZ33) ->  | BH33: =SUM(BG$3:BG33) ->  | BO33: =SUM(BN$3:BN33) ->  | BV33: =SUM(BU$3:BU33) ->  | CC33: =SUM(CB$3:CB33) ->  | CJ33: =SUM(CI$3:CI33) ->  | CQ33: =SUM(CP$3:CP33) -> 
A34: Project duration | B34: =IF('Input Solar'!D264="Default",'Input Solar'!D269,'Input Solar'!E269) -> 20 | E34: 32 | F34: =IF(E34-E10=24,F10,"") -> 0 | G34: 0 | H34: 0.08980757949 | I34: 0.2268819799 | J34: 0.1045772992 | K34: =IF('Input Solar'!$D$18=Background!$X$2,'Calc Solar'!H34*$H$173,IF('Input Solar'!$D$18=Background!$X$3,'Calc Solar'!I34*$I$173,'Calc Solar'!J34*$J$173)) -> 0 | L34: =IF('Input Solar'!$D$20="Default",IF('Input Solar'!$D$18=Background!$X$2,'Calc Solar'!H34,IF('Input Solar'!$D$18=Background!$X$3,'Calc Solar'!I34,'Calc Solar'!J34)),K34) -> 0.08980757949 | M34: 0 | N34: 0 | O34: 0 | P34: 0 | R34: 0 | S34: 0 | T34: 0 | X34: 0 | AF34: =SUM(AE$3:AE34) ->  | AM34: =SUM(AL$3:AL34) ->  | AT34: =SUM(AS$3:AS34) ->  | BA34: =SUM(AZ$3:AZ34) ->  | BH34: =SUM(BG$3:BG34) ->  | BO34: =SUM(BN$3:BN34) ->  | BV34: =SUM(BU$3:BU34) ->  | CC34: =SUM(CB$3:CB34) ->  | CJ34: =SUM(CI$3:CI34) ->  | CQ34: =SUM(CP$3:CP34) -> 
E35: 33 | F35: 0 | G35: 0 | H35: 0.2246337416 | I35: 0.3474205971 | J35: 0.2474989899 | K35: =IF('Input Solar'!$D$18=Background!$X$2,'Calc Solar'!H35*$H$173,IF('Input Solar'!$D$18=Background!$X$3,'Calc Solar'!I35*$I$173,'Calc Solar'!J35*$J$173)) -> 0 | L35: =IF('Input Solar'!$D$20="Default",IF('Input Solar'!$D$18=Background!$X$2,'Calc Solar'!H35,IF('Input Solar'!$D$18=Background!$X$3,'Calc Solar'!I35,'Calc Solar'!J35)),K35) -> 0.2246337416 | M35: 0 | N35: 0 | O35: =MIN(N35,0) -> 0 | P35: 0 | Q35: =MAX(P35,-(1-DC34)*$B$8) ->  | R35: =MAX(N35,0) -> 0 | S35: 0 | T35: 0 | U35: =MAX(MIN(T35,(DC34-$B$12)*$B$8),0) ->  | W35: =ROUND(MAX(0,N35-V35),5) ->  | X35: =G35*$B$14 -> 0 | AF35: =SUM(AE$3:AE35) ->  | AJ35: =AC35-AG35 ->  | AL35: =IF(AJ35<=0,0,MIN(MAX(AJ35,$B$114),($B$116-AK35))) ->  | AM35: =SUM(AL$3:AL35) ->  | AP35: =$B$117*AO35 ->  | AQ35: =AJ35-AN35 ->  | AS35: =IF(AQ35<=0,0,MIN(MAX(AQ35,$B$134),($B$136-AR35))) ->  | AT35: =SUM(AS$3:AS35) ->  | AW35: =$B$137*AV35 ->  | AX35: =AQ35-AU35 ->  | BA35: =SUM(AZ$3:AZ35) ->  | BD35: =$B$160*BC35 ->  | BH35: =SUM(BG$3:BG35) ->  | BK35: =$B$180*BJ35 ->  | BO35: =SUM(BN$3:BN35) ->  | BR35: =$B$200*BQ35 ->  | BV35: =SUM(BU$3:BU35) ->  | BY35: =$B$220*BX35 ->  | CC35: =SUM(CB$3:CB35) ->  | CF35: =$B$240*CE35 ->  | CJ35: =SUM(CI$3:CI35) ->  | CM35: =$B$260*CL35 ->  | CQ35: =SUM(CP$3:CP35) ->  | CT35: =$B$280*CS35 ->  | CU35: =CS35+CL35+CE35+BX35+BQ35+BJ35+BC35+AV35+AO35+AH35 ->  | CV35: =CU35+M35-G35 ->  | DE35: =MAX(G35-M35-CU35-DA35,0) ->  | DF35: =MAX(G35-CU35-DE35-DA35,0) ->  | DG35: =MAX(DB35,-1*(M35-DF35)) ->  | DH35: =G35-DF35-DA35-DE35 ->  | DJ35: =MAX(DB35-DG35,-1*DI35) -> 
E36: 34 | F36: 0 | G36: 0 | H36: 0.367241494 | I36: 0.4013320069 | J36: 0.4149382612 | K36: =IF('Input Solar'!$D$18=Background!$X$2,'Calc Solar'!H36*$H$173,IF('Input Solar'!$D$18=Background!$X$3,'Calc Solar'!I36*$I$173,'Calc Solar'!J36*$J$173)) -> 0 | L36: =IF('Input Solar'!$D$20="Default",IF('Input Solar'!$D$18=Background!$X$2,'Calc Solar'!H36,IF('Input Solar'!$D$18=Background!$X$3,'Calc Solar'!I36,'Calc Solar'!J36)),K36) -> 0.367241494 | M36: 0 | N36: 0 | O36: 0 | P36: 0 | R36: 0 | S36: 0 | T36: 0 | X36: 0 | AF36: =SUM(AE$3:AE36) ->  | AM36: =SUM(AL$3:AL36) ->  | AT36: =SUM(AS$3:AS36) ->  | BA36: =SUM(AZ$3:AZ36) ->  | BH36: =SUM(BG$3:BG36) ->  | BO36: =SUM(BN$3:BN36) ->  | BV36: =SUM(BU$3:BU36) ->  | CC36: =SUM(CB$3:CB36) ->  | CJ36: =SUM(CI$3:CI36) ->  | CQ36: =SUM(CP$3:CP36) -> 
E37: 35 | F37: =IF(E37-E13=24,F13,"") -> 0 | G37: 0 | H37: 0.4959159731 | I37: 0.3958531745 | J37: 0.5771789565 | K37: =IF('Input Solar'!$D$18=Background!$X$2,'Calc Solar'!H37*$H$173,IF('Input Solar'!$D$18=Background!$X$3,'Calc Solar'!I37*$I$173,'Calc Solar'!J37*$J$173)) -> 0 | L37: =IF('Input Solar'!$D$20="Default",IF('Input Solar'!$D$18=Background!$X$2,'Calc Solar'!H37,IF('Input Solar'!$D$18=Background!$X$3,'Calc Solar'!I37,'Calc Solar'!J37)),K37) -> 0.4959159731 | M37: 0 | N37: 0 | O37: 0 | P37: 0 | R37: 0 | S37: 0 | T37: 0 | X37: 0 | AF37: =SUM(AE$3:AE37) ->  | AM37: =SUM(AL$3:AL37) ->  | AT37: =SUM(AS$3:AS37) ->  | BA37: =SUM(AZ$3:AZ37) ->  | BH37: =SUM(BG$3:BG37) ->  | BO37: =SUM(BN$3:BN37) ->  | BV37: =SUM(BU$3:BU37) ->  | CC37: =SUM(CB$3:CB37) ->  | CJ37: =SUM(CI$3:CI37) ->  | CQ37: =SUM(CP$3:CP37) -> 
A38: PV Capex | B38: =B22*B24 -> 0 | E38: 36 | F38: 0 | G38: 0 | H38: 0.4949672211 | I38: 0.4164805697 | J38: 0.5054116156 | K38: =IF('Input Solar'!$D$18=Background!$X$2,'Calc Solar'!H38*$H$173,IF('Input Solar'!$D$18=Background!$X$3,'Calc Solar'!I38*$I$173,'Calc Solar'!J38*$J$173)) -> 0 | L38: =IF('Input Solar'!$D$20="Default",IF('Input Solar'!$D$18=Background!$X$2,'Calc Solar'!H38,IF('Input Solar'!$D$18=Background!$X$3,'Calc Solar'!I38,'Calc Solar'!J38)),K38) -> 0.4949672211 | M38: 0 | N38: 0 | O38: 0 | P38: 0 | R38: 0 | S38: 0 | T38: 0 | X38: 0 | AF38: =SUM(AE$3:AE38) ->  | AM38: =SUM(AL$3:AL38) ->  | AT38: =SUM(AS$3:AS38) ->  | BA38: =SUM(AZ$3:AZ38) ->  | BH38: =SUM(BG$3:BG38) ->  | BO38: =SUM(BN$3:BN38) ->  | BV38: =SUM(BU$3:BU38) ->  | CC38: =SUM(CB$3:CB38) ->  | CJ38: =SUM(CI$3:CI38) ->  | CQ38: =SUM(CP$3:CP38) -> 
A39: Diesel Capex total | B39: =B106+B126+B146+B166+B186+B206+B226+B246+B266+B286 -> 0 | E39: 37 | F39: =IF(E39-E15=24,F15,"") -> 0 | G39: 0 | H39: 0.4481925352 | I39: 0.4031428622 | J39: 0.3868900584 | K39: =IF('Input Solar'!$D$18=Background!$X$2,'Calc Solar'!H39*$H$173,IF('Input Solar'!$D$18=Background!$X$3,'Calc Solar'!I39*$I$173,'Calc Solar'!J39*$J$173)) -> 0 | L39: =IF('Input Solar'!$D$20="Default",IF('Input Solar'!$D$18=Background!$X$2,'Calc Solar'!H39,IF('Input Solar'!$D$18=Background!$X$3,'Calc Solar'!I39,'Calc Solar'!J39)),K39) -> 0.4481925352 | M39: 0 | N39: 0 | O39: 0 | P39: 0 | R39: 0 | S39: 0 | T39: 0 | X39: 0 | AF39: =SUM(AE$3:AE39) ->  | AM39: =SUM(AL$3:AL39) ->  | AT39: =SUM(AS$3:AS39) ->  | BA39: =SUM(AZ$3:AZ39) ->  | BH39: =SUM(BG$3:BG39) ->  | BO39: =SUM(BN$3:BN39) ->  | BV39: =SUM(BU$3:BU39) ->  | CC39: =SUM(CB$3:CB39) ->  | CJ39: =SUM(CI$3:CI39) ->  | CQ39: =SUM(CP$3:CP39) -> 
A40: Battery Capex | B40: =B8*B28 -> 2.7e-09 | E40: 38 | F40: 0 | G40: 0 | H40: 0.3660053798 | I40: 0.3577724916 | J40: 0.2458197036 | K40: =IF('Input Solar'!$D$18=Background!$X$2,'Calc Solar'!H40*$H$173,IF('Input Solar'!$D$18=Background!$X$3,'Calc Solar'!I40*$I$173,'Calc Solar'!J40*$J$173)) -> 0 | L40: =IF('Input Solar'!$D$20="Default",IF('Input Solar'!$D$18=Background!$X$2,'Calc Solar'!H40,IF('Input Solar'!$D$18=Background!$X$3,'Calc Solar'!I40,'Calc Solar'!J40)),K40) -> 0.3660053798 | M40: 0 | N40: 0 | O40: 0 | P40: 0 | R40: 0 | S40: 0 | T40: 0 | X40: 0 | AF40: =SUM(AE$3:AE40) ->  | AM40: =SUM(AL$3:AL40) ->  | AT40: =SUM(AS$3:AS40) ->  | BA40: =SUM(AZ$3:AZ40) ->  | BH40: =SUM(BG$3:BG40) ->  | BO40: =SUM(BN$3:BN40) ->  | BV40: =SUM(BU$3:BU40) ->  | CC40: =SUM(CB$3:CB40) ->  | CJ40: =SUM(CI$3:CI40) ->  | CQ40: =SUM(CP$3:CP40) -> 
A41: PV OPEX | B41: =B25*B7 -> 0 | E41: 39 | F41: 0 | G41: 0 | H41: 0.2716076047 | I41: 0.2517174885 | J41: 0.1624673474 | K41: =IF('Input Solar'!$D$18=Background!$X$2,'Calc Solar'!H41*$H$173,IF('Input Solar'!$D$18=Background!$X$3,'Calc Solar'!I41*$I$173,'Calc Solar'!J41*$J$173)) -> 0 | L41: =IF('Input Solar'!$D$20="Default",IF('Input Solar'!$D$18=Background!$X$2,'Calc Solar'!H41,IF('Input Solar'!$D$18=Background!$X$3,'Calc Solar'!I41,'Calc Solar'!J41)),K41) -> 0.2716076047 | M41: 0 | N41: 0 | O41: 0 | P41: 0 | R41: 0 | S41: 0 | T41: 0 | X41: 0 | AF41: =SUM(AE$3:AE41) ->  | AM41: =SUM(AL$3:AL41) ->  | AT41: =SUM(AS$3:AS41) ->  | BA41: =SUM(AZ$3:AZ41) ->  | BH41: =SUM(BG$3:BG41) ->  | BO41: =SUM(BN$3:BN41) ->  | BV41: =SUM(BU$3:BU41) ->  | CC41: =SUM(CB$3:CB41) ->  | CJ41: =SUM(CI$3:CI41) ->  | CQ41: =SUM(CP$3:CP41) -> 
A42: Diesel OPEX var total | B42: =B110+B130+B150+B170+B190+B210+B230+B250+B270+B290 ->  | E42: 40 | F42: 0 | G42: 0 | H42: 0.1645415588 | I42: 0.1425701515 | J42: 0.08496972524 | K42: =IF('Input Solar'!$D$18=Background!$X$2,'Calc Solar'!H42*$H$173,IF('Input Solar'!$D$18=Background!$X$3,'Calc Solar'!I42*$I$173,'Calc Solar'!J42*$J$173)) -> 0 | L42: =IF('Input Solar'!$D$20="Default",IF('Input Solar'!$D$18=Background!$X$2,'Calc Solar'!H42,IF('Input Solar'!$D$18=Background!$X$3,'Calc Solar'!I42,'Calc Solar'!J42)),K42) -> 0.1645415588 | M42: 0 | N42: 0 | O42: 0 | P42: 0 | R42: 0 | S42: 0 | T42: 0 | X42: 0 | AF42: =SUM(AE$3:AE42) ->  | AM42: =SUM(AL$3:AL42) ->  | AT42: =SUM(AS$3:AS42) ->  | BA42: =SUM(AZ$3:AZ42) ->  | BH42: =SUM(BG$3:BG42) ->  | BO42: =SUM(BN$3:BN42) ->  | BV42: =SUM(BU$3:BU42) ->  | CC42: =SUM(CB$3:CB42) ->  | CJ42: =SUM(CI$3:CI42) ->  | CQ42: =SUM(CP$3:CP42) -> 
A43: Battery OPEX | B43: =B29*B8 -> 4.05e-11 | E43: 41 | F43: 0 | G43: 0 | H43: 0.06029257628 | I43: 0.0476245249 | J43: 0.02650058076 | K43: =IF('Input Solar'!$D$18=Background!$X$2,'Calc Solar'!H43*$H$173,IF('Input Solar'!$D$18=Background!$X$3,'Calc Solar'!I43*$I$173,'Calc Solar'!J43*$J$173)) -> 0 | L43: =IF('Input Solar'!$D$20="Default",IF('Input Solar'!$D$18=Background!$X$2,'Calc Solar'!H43,IF('Input Solar'!$D$18=Background!$X$3,'Calc Solar'!I43,'Calc Solar'!J43)),K43) -> 0.06029257628 | M43: 0 | N43: 0 | O43: 0 | P43: 0 | R43: 0 | S43: 0 | T43: 0 | X43: 0 | AF43: =SUM(AE$3:AE43) ->  | AM43: =SUM(AL$3:AL43) ->  | AT43: =SUM(AS$3:AS43) ->  | BA43: =SUM(AZ$3:AZ43) ->  | BH43: =SUM(BG$3:BG43) ->  | BO43: =SUM(BN$3:BN43) ->  | BV43: =SUM(BU$3:BU43) ->  | CC43: =SUM(CB$3:CB43) ->  | CJ43: =SUM(CI$3:CI43) ->  | CQ43: =SUM(CP$3:CP43) -> 
A44: Fuel costs total | B44: =(B105+B125+B145+B165+B185+B205+B225+B245+B265+B285)*8760/168 ->  | E44: 42 | F44: 0 | G44: 0 | H44: 0 | I44: 0 | J44: 0 | K44: =IF('Input Solar'!$D$18=Background!$X$2,'Calc Solar'!H44*$H$173,IF('Input Solar'!$D$18=Background!$X$3,'Calc Solar'!I44*$I$173,'Calc Solar'!J44*$J$173)) -> 0 | L44: =IF('Input Solar'!$D$20="Default",IF('Input Solar'!$D$18=Background!$X$2,'Calc Solar'!H44,IF('Input Solar'!$D$18=Background!$X$3,'Calc Solar'!I44,'Calc Solar'!J44)),K44) -> 0 | M44: 0 | N44: 0 | O44: 0 | P44: 0 | R44: 0 | S44: 0 | T44: 0 | X44: 0 | AF44: =SUM(AE$3:AE44) ->  | AM44: =SUM(AL$3:AL44) ->  | AT44: =SUM(AS$3:AS44) ->  | BA44: =SUM(AZ$3:AZ44) ->  | BH44: =SUM(BG$3:BG44) ->  | BO44: =SUM(BN$3:BN44) ->  | BV44: =SUM(BU$3:BU44) ->  | CC44: =SUM(CB$3:CB44) ->  | CJ44: =SUM(CI$3:CI44) ->  | CQ44: =SUM(CP$3:CP44) -> 
A45: Diesel OPEX fix total | B45: =B111+B131+B151+B171+B191+B211+B231+B251+B271+B291 -> 0 | E45: 43 | F45: 0 | G45: =F45*(1+$B$4) -> 0 | H45: 0 | I45: 0 | J45: 0 | K45: =IF('Input Solar'!$D$18=Background!$X$2,'Calc Solar'!H45*$H$173,IF('Input Solar'!$D$18=Background!$X$3,'Calc Solar'!I45*$I$173,'Calc Solar'!J45*$J$173)) -> 0 | L45: =IF('Input Solar'!$D$20="Default",IF('Input Solar'!$D$18=Background!$X$2,'Calc Solar'!H45,IF('Input Solar'!$D$18=Background!$X$3,'Calc Solar'!I45,'Calc Solar'!J45)),K45) -> 0 | M45: 0 | N45: 0 | O45: 0 | P45: 0 | R45: 0 | S45: 0 | T45: 0 | X45: 0 | AF45: =SUM(AE$3:AE45) ->  | AM45: =SUM(AL$3:AL45) ->  | AT45: =SUM(AS$3:AS45) ->  | BA45: =SUM(AZ$3:AZ45) ->  | BH45: =SUM(BG$3:BG45) ->  | BO45: =SUM(BN$3:BN45) ->  | BV45: =SUM(BU$3:BU45) ->  | CC45: =SUM(CB$3:CB45) ->  | CJ45: =SUM(CI$3:CI45) ->  | CQ45: =SUM(CP$3:CP45) -> 
A46: PV lifetime | B46: =IF('Input Solar'!D3="Default",'Input Solar'!D9,'Input Solar'!E9) -> 20 | E46: 44 | F46: 0 | G46: 0 | H46: 0 | I46: 0 | J46: 0 | K46: =IF('Input Solar'!$D$18=Background!$X$2,'Calc Solar'!H46*$H$173,IF('Input Solar'!$D$18=Background!$X$3,'Calc Solar'!I46*$I$173,'Calc Solar'!J46*$J$173)) -> 0 | L46: =IF('Input Solar'!$D$20="Default",IF('Input Solar'!$D$18=Background!$X$2,'Calc Solar'!H46,IF('Input Solar'!$D$18=Background!$X$3,'Calc Solar'!I46,'Calc Solar'!J46)),K46) -> 0 | M46: 0 | N46: 0 | O46: 0 | P46: 0 | R46: 0 | S46: 0 | T46: 0 | X46: 0 | AF46: =SUM(AE$3:AE46) ->  | AM46: =SUM(AL$3:AL46) ->  | AT46: =SUM(AS$3:AS46) ->  | BA46: =SUM(AZ$3:AZ46) ->  | BH46: =SUM(BG$3:BG46) ->  | BO46: =SUM(BN$3:BN46) ->  | BV46: =SUM(BU$3:BU46) ->  | CC46: =SUM(CB$3:CB46) ->  | CJ46: =SUM(CI$3:CI46) ->  | CQ46: =SUM(CP$3:CP46) -> 
A47: PV CRF | B47: =B77*POWER(1+B77,B46)/(POWER(1+B77,B46)-1) -> 0.13387878 | E47: 45 | F47: 0 | G47: 0 | H47: 0 | I47: 0 | J47: 0 | K47: =IF('Input Solar'!$D$18=Background!$X$2,'Calc Solar'!H47*$H$173,IF('Input Solar'!$D$18=Background!$X$3,'Calc Solar'!I47*$I$173,'Calc Solar'!J47*$J$173)) -> 0 | L47: =IF('Input Solar'!$D$20="Default",IF('Input Solar'!$D$18=Background!$X$2,'Calc Solar'!H47,IF('Input Solar'!$D$18=Background!$X$3,'Calc Solar'!I47,'Calc Solar'!J47)),K47) -> 0 | M47: 0 | N47: 0 | O47: 0 | P47: 0 | R47: 0 | S47: 0 | T47: 0 | X47: 0 | AF47: =SUM(AE$3:AE47) ->  | AM47: =SUM(AL$3:AL47) ->  | AT47: =SUM(AS$3:AS47) ->  | BA47: =SUM(AZ$3:AZ47) ->  | BH47: =SUM(BG$3:BG47) ->  | BO47: =SUM(BN$3:BN47) ->  | BV47: =SUM(BU$3:BU47) ->  | CC47: =SUM(CB$3:CB47) ->  | CJ47: =SUM(CI$3:CI47) ->  | CQ47: =SUM(CP$3:CP47) -> 
A48: PV Ann | B48: =B47*B38 -> 0 | E48: 46 | F48: 0 | G48: 0 | H48: 0 | I48: 0 | J48: 0 | K48: =IF('Input Solar'!$D$18=Background!$X$2,'Calc Solar'!H48*$H$173,IF('Input Solar'!$D$18=Background!$X$3,'Calc Solar'!I48*$I$173,'Calc Solar'!J48*$J$173)) -> 0 | L48: =IF('Input Solar'!$D$20="Default",IF('Input Solar'!$D$18=Background!$X$2,'Calc Solar'!H48,IF('Input Solar'!$D$18=Background!$X$3,'Calc Solar'!I48,'Calc Solar'!J48)),K48) -> 0 | M48: 0 | N48: 0 | O48: 0 | P48: 0 | R48: 0 | S48: 0 | T48: 0 | X48: 0 | AF48: =SUM(AE$3:AE48) ->  | AM48: =SUM(AL$3:AL48) ->  | AT48: =SUM(AS$3:AS48) ->  | BA48: =SUM(AZ$3:AZ48) ->  | BH48: =SUM(BG$3:BG48) ->  | BO48: =SUM(BN$3:BN48) ->  | BV48: =SUM(BU$3:BU48) ->  | CC48: =SUM(CB$3:CB48) ->  | CJ48: =SUM(CI$3:CI48) ->  | CQ48: =SUM(CP$3:CP48) -> 
E49: 47 | F49: 0 | G49: 0 | H49: 0 | I49: 0 | J49: 0 | K49: =IF('Input Solar'!$D$18=Background!$X$2,'Calc Solar'!H49*$H$173,IF('Input Solar'!$D$18=Background!$X$3,'Calc Solar'!I49*$I$173,'Calc Solar'!J49*$J$173)) -> 0 | L49: =IF('Input Solar'!$D$20="Default",IF('Input Solar'!$D$18=Background!$X$2,'Calc Solar'!H49,IF('Input Solar'!$D$18=Background!$X$3,'Calc Solar'!I49,'Calc Solar'!J49)),K49) -> 0 | M49: 0 | N49: 0 | O49: 0 | P49: 0 | R49: 0 | S49: 0 | T49: 0 | X49: 0 | AF49: =SUM(AE$3:AE49) ->  | AM49: =SUM(AL$3:AL49) ->  | AT49: =SUM(AS$3:AS49) ->  | BA49: =SUM(AZ$3:AZ49) ->  | BH49: =SUM(BG$3:BG49) ->  | BO49: =SUM(BN$3:BN49) ->  | BV49: =SUM(BU$3:BU49) ->  | CC49: =SUM(CB$3:CB49) ->  | CJ49: =SUM(CI$3:CI49) ->  | CQ49: =SUM(CP$3:CP49) -> 
E50: 48 | F50: 0 | G50: 0 | H50: 0 | I50: 0 | J50: 0 | K50: =IF('Input Solar'!$D$18=Background!$X$2,'Calc Solar'!H50*$H$173,IF('Input Solar'!$D$18=Background!$X$3,'Calc Solar'!I50*$I$173,'Calc Solar'!J50*$J$173)) -> 0 | L50: =IF('Input Solar'!$D$20="Default",IF('Input Solar'!$D$18=Background!$X$2,'Calc Solar'!H50,IF('Input Solar'!$D$18=Background!$X$3,'Calc Solar'!I50,'Calc Solar'!J50)),K50) -> 0 | M50: 0 | N50: 0 | O50: 0 | P50: 0 | R50: 0 | S50: 0 | T50: 0 | X50: 0 | AF50: =SUM(AE$3:AE50) ->  | AM50: =SUM(AL$3:AL50) ->  | AT50: =SUM(AS$3:AS50) ->  | BA50: =SUM(AZ$3:AZ50) ->  | BH50: =SUM(BG$3:BG50) ->  | BO50: =SUM(BN$3:BN50) ->  | BV50: =SUM(BU$3:BU50) ->  | CC50: =SUM(CB$3:CB50) ->  | CJ50: =SUM(CI$3:CI50) ->  | CQ50: =SUM(CP$3:CP50) -> 
E51: 49 | F51: 0 | G51: 0 | H51: 0 | I51: 0 | J51: 0 | K51: =IF('Input Solar'!$D$18=Background!$X$2,'Calc Solar'!H51*$H$173,IF('Input Solar'!$D$18=Background!$X$3,'Calc Solar'!I51*$I$173,'Calc Solar'!J51*$J$173)) -> 0 | L51: =IF('Input Solar'!$D$20="Default",IF('Input Solar'!$D$18=Background!$X$2,'Calc Solar'!H51,IF('Input Solar'!$D$18=Background!$X$3,'Calc Solar'!I51,'Calc Solar'!J51)),K51) -> 0 | M51: 0 | N51: 0 | O51: 0 | P51: 0 | R51: 0 | S51: =IFERROR(R51/SUM(R$51:R$74),0) -> 0 | T51: 0 | X51: 0 | AF51: =SUM(AE$3:AE51) ->  | AM51: =SUM(AL$3:AL51) ->  | AT51: =SUM(AS$3:AS51) ->  | BA51: =SUM(AZ$3:AZ51) ->  | BH51: =SUM(BG$3:BG51) ->  | BO51: =SUM(BN$3:BN51) ->  | BV51: =SUM(BU$3:BU51) ->  | CC51: =SUM(CB$3:CB51) ->  | CJ51: =SUM(CI$3:CI51) ->  | CQ51: =SUM(CP$3:CP51) -> 
A52: Diesel Ann total | B52: =B109+B129+B149+B169+B189+B209+B229+B249+B269+B289 -> 0 | E52: 50 | F52: 0 | G52: 0 | H52: 0 | I52: 0 | J52: 0 | K52: =IF('Input Solar'!$D$18=Background!$X$2,'Calc Solar'!H52*$H$173,IF('Input Solar'!$D$18=Background!$X$3,'Calc Solar'!I52*$I$173,'Calc Solar'!J52*$J$173)) -> 0 | L52: =IF('Input Solar'!$D$20="Default",IF('Input Solar'!$D$18=Background!$X$2,'Calc Solar'!H52,IF('Input Solar'!$D$18=Background!$X$3,'Calc Solar'!I52,'Calc Solar'!J52)),K52) -> 0 | M52: 0 | N52: 0 | O52: 0 | P52: 0 | R52: 0 | S52: 0 | T52: 0 | X52: 0 | AF52: =SUM(AE$3:AE52) ->  | AM52: =SUM(AL$3:AL52) ->  | AT52: =SUM(AS$3:AS52) ->  | BA52: =SUM(AZ$3:AZ52) ->  | BH52: =SUM(BG$3:BG52) ->  | BO52: =SUM(BN$3:BN52) ->  | BV52: =SUM(BU$3:BU52) ->  | CC52: =SUM(CB$3:CB52) ->  | CJ52: =SUM(CI$3:CI52) ->  | CQ52: =SUM(CP$3:CP52) -> 
A53: Diesel Opex total | B53: =B45+B42 ->  | E53: 51 | F53: 0 | G53: 0 | H53: 0 | I53: 0 | J53: 0 | K53: =IF('Input Solar'!$D$18=Background!$X$2,'Calc Solar'!H53*$H$173,IF('Input Solar'!$D$18=Background!$X$3,'Calc Solar'!I53*$I$173,'Calc Solar'!J53*$J$173)) -> 0 | L53: =IF('Input Solar'!$D$20="Default",IF('Input Solar'!$D$18=Background!$X$2,'Calc Solar'!H53,IF('Input Solar'!$D$18=Background!$X$3,'Calc Solar'!I53,'Calc Solar'!J53)),K53) -> 0 | M53: 0 | N53: 0 | O53: 0 | P53: 0 | R53: 0 | S53: 0 | T53: 0 | X53: 0 | AF53: =SUM(AE$3:AE53) ->  | AM53: =SUM(AL$3:AL53) ->  | AT53: =SUM(AS$3:AS53) ->  | BA53: =SUM(AZ$3:AZ53) ->  | BH53: =SUM(BG$3:BG53) ->  | BO53: =SUM(BN$3:BN53) ->  | BV53: =SUM(BU$3:BU53) ->  | CC53: =SUM(CB$3:CB53) ->  | CJ53: =SUM(CI$3:CI53) ->  | CQ53: =SUM(CP$3:CP53) -> 
A54: Bat lifetime | B54: =IF('Input Solar'!D246<>"Individual",'Input Solar'!D256,'Input Solar'!E256) -> 10 | E54: 52 | F54: 0 | G54: 0 | H54: 0 | I54: 0 | J54: 0 | K54: =IF('Input Solar'!$D$18=Background!$X$2,'Calc Solar'!H54*$H$173,IF('Input Solar'!$D$18=Background!$X$3,'Calc Solar'!I54*$I$173,'Calc Solar'!J54*$J$173)) -> 0 | L54: =IF('Input Solar'!$D$20="Default",IF('Input Solar'!$D$18=Background!$X$2,'Calc Solar'!H54,IF('Input Solar'!$D$18=Background!$X$3,'Calc Solar'!I54,'Calc Solar'!J54)),K54) -> 0 | M54: 0 | N54: 0 | O54: 0 | P54: 0 | R54: 0 | S54: 0 | T54: 0 | X54: 0 | AF54: =SUM(AE$3:AE54) ->  | AM54: =SUM(AL$3:AL54) ->  | AT54: =SUM(AS$3:AS54) ->  | BA54: =SUM(AZ$3:AZ54) ->  | BH54: =SUM(BG$3:BG54) ->  | BO54: =SUM(BN$3:BN54) ->  | BV54: =SUM(BU$3:BU54) ->  | CC54: =SUM(CB$3:CB54) ->  | CJ54: =SUM(CI$3:CI54) ->  | CQ54: =SUM(CP$3:CP54) -> 
A55: Bat CRF | B55: =B77*POWER(1+B77,B54)/(POWER(1+B77,B54)-1) -> 0.1769841642 | E55: 53 | F55: =IF(E55-E31=24,F31,"") -> 0 | G55: 0 | H55: 0 | I55: 0 | J55: 0 | K55: =IF('Input Solar'!$D$18=Background!$X$2,'Calc Solar'!H55*$H$173,IF('Input Solar'!$D$18=Background!$X$3,'Calc Solar'!I55*$I$173,'Calc Solar'!J55*$J$173)) -> 0 | L55: =IF('Input Solar'!$D$20="Default",IF('Input Solar'!$D$18=Background!$X$2,'Calc Solar'!H55,IF('Input Solar'!$D$18=Background!$X$3,'Calc Solar'!I55,'Calc Solar'!J55)),K55) -> 0 | M55: 0 | N55: 0 | O55: 0 | P55: 0 | R55: 0 | S55: 0 | T55: 0 | X55: 0 | AF55: =SUM(AE$3:AE55) ->  | AM55: =SUM(AL$3:AL55) ->  | AT55: =SUM(AS$3:AS55) ->  | BA55: =SUM(AZ$3:AZ55) ->  | BH55: =SUM(BG$3:BG55) ->  | BO55: =SUM(BN$3:BN55) ->  | BV55: =SUM(BU$3:BU55) ->  | CC55: =SUM(CB$3:CB55) ->  | CJ55: =SUM(CI$3:CI55) ->  | CQ55: =SUM(CP$3:CP55) -> 
A56: Bat Ann | B56: =B55*B40 -> 4.778572432e-10 | E56: 54 | F56: =IF(E56-E32=24,F32,"") -> 0 | G56: 0 | H56: 0 | I56: 0 | J56: 0 | K56: =IF('Input Solar'!$D$18=Background!$X$2,'Calc Solar'!H56*$H$173,IF('Input Solar'!$D$18=Background!$X$3,'Calc Solar'!I56*$I$173,'Calc Solar'!J56*$J$173)) -> 0 | L56: =IF('Input Solar'!$D$20="Default",IF('Input Solar'!$D$18=Background!$X$2,'Calc Solar'!H56,IF('Input Solar'!$D$18=Background!$X$3,'Calc Solar'!I56,'Calc Solar'!J56)),K56) -> 0 | M56: 0 | N56: 0 | O56: 0 | P56: 0 | R56: 0 | S56: 0 | T56: 0 | X56: 0 | AF56: =SUM(AE$3:AE56) ->  | AM56: =SUM(AL$3:AL56) ->  | AT56: =SUM(AS$3:AS56) ->  | BA56: =SUM(AZ$3:AZ56) ->  | BH56: =SUM(BG$3:BG56) ->  | BO56: =SUM(BN$3:BN56) ->  | BV56: =SUM(BU$3:BU56) ->  | CC56: =SUM(CB$3:CB56) ->  | CJ56: =SUM(CI$3:CI56) ->  | CQ56: =SUM(CP$3:CP56) -> 
E57: 55 | F57: 0 | G57: 0 | H57: 0.01484196181 | I57: 0.06216279826 | J57: 0.05784997204 | K57: =IF('Input Solar'!$D$18=Background!$X$2,'Calc Solar'!H57*$H$173,IF('Input Solar'!$D$18=Background!$X$3,'Calc Solar'!I57*$I$173,'Calc Solar'!J57*$J$173)) -> 0 | L57: =IF('Input Solar'!$D$20="Default",IF('Input Solar'!$D$18=Background!$X$2,'Calc Solar'!H57,IF('Input Solar'!$D$18=Background!$X$3,'Calc Solar'!I57,'Calc Solar'!J57)),K57) -> 0.01484196181 | M57: 0 | N57: 0 | O57: 0 | P57: 0 | R57: 0 | S57: 0 | T57: 0 | X57: 0 | AF57: =SUM(AE$3:AE57) ->  | AM57: =SUM(AL$3:AL57) ->  | AT57: =SUM(AS$3:AS57) ->  | BA57: =SUM(AZ$3:AZ57) ->  | BH57: =SUM(BG$3:BG57) ->  | BO57: =SUM(BN$3:BN57) ->  | BV57: =SUM(BU$3:BU57) ->  | CC57: =SUM(CB$3:CB57) ->  | CJ57: =SUM(CI$3:CI57) ->  | CQ57: =SUM(CP$3:CP57) -> 
A58: Project CAPEX | B58: =IF('Input Solar'!D264<>"Individual",'Input Solar'!D273,'Input Solar'!E273) -> 500000 | E58: 56 | F58: 0 | G58: 0 | H58: 0.1400236198 | I58: 0.2704716223 | J58: 0.1895873067 | K58: =IF('Input Solar'!$D$18=Background!$X$2,'Calc Solar'!H58*$H$173,IF('Input Solar'!$D$18=Background!$X$3,'Calc Solar'!I58*$I$173,'Calc Solar'!J58*$J$173)) -> 0 | L58: =IF('Input Solar'!$D$20="Default",IF('Input Solar'!$D$18=Background!$X$2,'Calc Solar'!H58,IF('Input Solar'!$D$18=Background!$X$3,'Calc Solar'!I58,'Calc Solar'!J58)),K58) -> 0.1400236198 | M58: 0 | N58: 0 | O58: 0 | P58: 0 | R58: 0 | S58: 0 | T58: 0 | X58: 0 | AF58: =SUM(AE$3:AE58) ->  | AM58: =SUM(AL$3:AL58) ->  | AT58: =SUM(AS$3:AS58) ->  | BA58: =SUM(AZ$3:AZ58) ->  | BH58: =SUM(BG$3:BG58) ->  | BO58: =SUM(BN$3:BN58) ->  | BV58: =SUM(BU$3:BU58) ->  | CC58: =SUM(CB$3:CB58) ->  | CJ58: =SUM(CI$3:CI58) ->  | CQ58: =SUM(CP$3:CP58) -> 
A59: Project CRF | B59: =B77*POWER(1+B77,B34)/(POWER(1+B77,B34)-1) -> 0.13387878 | E59: 57 | F59: 0 | G59: 0 | H59: 0.2747366615 | I59: 0.4390113535 | J59: 0.3443361184 | K59: =IF('Input Solar'!$D$18=Background!$X$2,'Calc Solar'!H59*$H$173,IF('Input Solar'!$D$18=Background!$X$3,'Calc Solar'!I59*$I$173,'Calc Solar'!J59*$J$173)) -> 0 | L59: =IF('Input Solar'!$D$20="Default",IF('Input Solar'!$D$18=Background!$X$2,'Calc Solar'!H59,IF('Input Solar'!$D$18=Background!$X$3,'Calc Solar'!I59,'Calc Solar'!J59)),K59) -> 0.2747366615 | M59: 0 | N59: 0 | O59: 0 | P59: 0 | R59: 0 | S59: 0 | T59: 0 | X59: 0 | AF59: =SUM(AE$3:AE59) ->  | AM59: =SUM(AL$3:AL59) ->  | AT59: =SUM(AS$3:AS59) ->  | BA59: =SUM(AZ$3:AZ59) ->  | BH59: =SUM(BG$3:BG59) ->  | BO59: =SUM(BN$3:BN59) ->  | BV59: =SUM(BU$3:BU59) ->  | CC59: =SUM(CB$3:CB59) ->  | CJ59: =SUM(CI$3:CI59) ->  | CQ59: =SUM(CP$3:CP59) -> 
A60: Project Ann | B60: =B58*B59 -> 66939.39002 | E60: 58 | F60: 0 | G60: 0 | H60: 0.3628200668 | I60: 0.5451599658 | J60: 0.4826310147 | K60: =IF('Input Solar'!$D$18=Background!$X$2,'Calc Solar'!H60*$H$173,IF('Input Solar'!$D$18=Background!$X$3,'Calc Solar'!I60*$I$173,'Calc Solar'!J60*$J$173)) -> 0 | L60: =IF('Input Solar'!$D$20="Default",IF('Input Solar'!$D$18=Background!$X$2,'Calc Solar'!H60,IF('Input Solar'!$D$18=Background!$X$3,'Calc Solar'!I60,'Calc Solar'!J60)),K60) -> 0.3628200668 | M60: 0 | N60: 0 | O60: 0 | P60: 0 | R60: 0 | S60: 0 | T60: 0 | X60: 0 | AF60: =SUM(AE$3:AE60) ->  | AM60: =SUM(AL$3:AL60) ->  | AT60: =SUM(AS$3:AS60) ->  | BA60: =SUM(AZ$3:AZ60) ->  | BH60: =SUM(BG$3:BG60) ->  | BO60: =SUM(BN$3:BN60) ->  | BV60: =SUM(BU$3:BU60) ->  | CC60: =SUM(CB$3:CB60) ->  | CJ60: =SUM(CI$3:CI60) ->  | CQ60: =SUM(CP$3:CP60) -> 
A61: Other CAPEX | B61: =IF('Input Solar'!D264<>"Individual",'Input Solar'!D274,'Input Solar'!E274) -> 0 | E61: 59 | F61: 0 | G61: 0 | H61: 0.4013190209 | I61: 0.5903129907 | J61: 0.5900486773 | K61: =IF('Input Solar'!$D$18=Background!$X$2,'Calc Solar'!H61*$H$173,IF('Input Solar'!$D$18=Background!$X$3,'Calc Solar'!I61*$I$173,'Calc Solar'!J61*$J$173)) -> 0 | L61: =IF('Input Solar'!$D$20="Default",IF('Input Solar'!$D$18=Background!$X$2,'Calc Solar'!H61,IF('Input Solar'!$D$18=Background!$X$3,'Calc Solar'!I61,'Calc Solar'!J61)),K61) -> 0.4013190209 | M61: 0 | N61: 0 | O61: 0 | P61: 0 | R61: 0 | S61: 0 | T61: 0 | X61: 0 | AF61: =SUM(AE$3:AE61) ->  | AM61: =SUM(AL$3:AL61) ->  | AT61: =SUM(AS$3:AS61) ->  | BA61: =SUM(AZ$3:AZ61) ->  | BH61: =SUM(BG$3:BG61) ->  | BO61: =SUM(BN$3:BN61) ->  | BV61: =SUM(BU$3:BU61) ->  | CC61: =SUM(CB$3:CB61) ->  | CJ61: =SUM(CI$3:CI61) ->  | CQ61: =SUM(CP$3:CP61) -> 
A62: Other Ann | B62: =B61*B59 -> 0 | E62: 60 | F62: 0 | G62: 0 | H62: 0.5233735226 | I62: 0.6133032131 | J62: 0.6075081041 | K62: =IF('Input Solar'!$D$18=Background!$X$2,'Calc Solar'!H62*$H$173,IF('Input Solar'!$D$18=Background!$X$3,'Calc Solar'!I62*$I$173,'Calc Solar'!J62*$J$173)) -> 0 | L62: =IF('Input Solar'!$D$20="Default",IF('Input Solar'!$D$18=Background!$X$2,'Calc Solar'!H62,IF('Input Solar'!$D$18=Background!$X$3,'Calc Solar'!I62,'Calc Solar'!J62)),K62) -> 0.5233735226 | M62: 0 | N62: 0 | O62: 0 | P62: 0 | R62: 0 | S62: 0 | T62: 0 | X62: 0 | AF62: =SUM(AE$3:AE62) ->  | AM62: =SUM(AL$3:AL62) ->  | AT62: =SUM(AS$3:AS62) ->  | BA62: =SUM(AZ$3:AZ62) ->  | BH62: =SUM(BG$3:BG62) ->  | BO62: =SUM(BN$3:BN62) ->  | BV62: =SUM(BU$3:BU62) ->  | CC62: =SUM(CB$3:CB62) ->  | CJ62: =SUM(CI$3:CI62) ->  | CQ62: =SUM(CP$3:CP62) -> 
A63: Other OPEX fix | B63: =IF('Input Solar'!D264<>"Individual",'Input Solar'!D275,'Input Solar'!E275) -> 0 | E63: 61 | F63: 0 | G63: 0 | H63: 0.6052003347 | I63: 0.5895705723 | J63: 0.579002476 | K63: =IF('Input Solar'!$D$18=Background!$X$2,'Calc Solar'!H63*$H$173,IF('Input Solar'!$D$18=Background!$X$3,'Calc Solar'!I63*$I$173,'Calc Solar'!J63*$J$173)) -> 0 | L63: =IF('Input Solar'!$D$20="Default",IF('Input Solar'!$D$18=Background!$X$2,'Calc Solar'!H63,IF('Input Solar'!$D$18=Background!$X$3,'Calc Solar'!I63,'Calc Solar'!J63)),K63) -> 0.6052003347 | M63: 0 | N63: 0 | O63: 0 | P63: 0 | R63: 0 | S63: 0 | T63: 0 | X63: 0 | AF63: =SUM(AE$3:AE63) ->  | AM63: =SUM(AL$3:AL63) ->  | AT63: =SUM(AS$3:AS63) ->  | BA63: =SUM(AZ$3:AZ63) ->  | BH63: =SUM(BG$3:BG63) ->  | BO63: =SUM(BN$3:BN63) ->  | BV63: =SUM(BU$3:BU63) ->  | CC63: =SUM(CB$3:CB63) ->  | CJ63: =SUM(CI$3:CI63) ->  | CQ63: =SUM(CP$3:CP63) -> 
A64: Personal OPEX fix | B64: =IF('Input Solar'!D264<>"Individual",'Input Solar'!D276,'Input Solar'!E276) -> 0 | E64: 62 | F64: 0 | G64: 0 | H64: 0.6262902993 | I64: 0.5215596692 | J64: 0.508555899 | K64: =IF('Input Solar'!$D$18=Background!$X$2,'Calc Solar'!H64*$H$173,IF('Input Solar'!$D$18=Background!$X$3,'Calc Solar'!I64*$I$173,'Calc Solar'!J64*$J$173)) -> 0 | L64: =IF('Input Solar'!$D$20="Default",IF('Input Solar'!$D$18=Background!$X$2,'Calc Solar'!H64,IF('Input Solar'!$D$18=Background!$X$3,'Calc Solar'!I64,'Calc Solar'!J64)),K64) -> 0.6262902993 | M64: 0 | N64: 0 | O64: 0 | P64: 0 | R64: 0 | S64: 0 | T64: 0 | X64: 0 | AF64: =SUM(AE$3:AE64) ->  | AM64: =SUM(AL$3:AL64) ->  | AT64: =SUM(AS$3:AS64) ->  | BA64: =SUM(AZ$3:AZ64) ->  | BH64: =SUM(BG$3:BG64) ->  | BO64: =SUM(BN$3:BN64) ->  | BV64: =SUM(BU$3:BU64) ->  | CC64: =SUM(CB$3:CB64) ->  | CJ64: =SUM(CI$3:CI64) ->  | CQ64: =SUM(CP$3:CP64) -> 
E65: 63 | F65: 0 | G65: 0 | H65: 0.4645797919 | I65: 0.3498985529 | J65: 0.3708214517 | K65: =IF('Input Solar'!$D$18=Background!$X$2,'Calc Solar'!H65*$H$173,IF('Input Solar'!$D$18=Background!$X$3,'Calc Solar'!I65*$I$173,'Calc Solar'!J65*$J$173)) -> 0 | L65: =IF('Input Solar'!$D$20="Default",IF('Input Solar'!$D$18=Background!$X$2,'Calc Solar'!H65,IF('Input Solar'!$D$18=Background!$X$3,'Calc Solar'!I65,'Calc Solar'!J65)),K65) -> 0.4645797919 | M65: 0 | N65: 0 | O65: 0 | P65: 0 | R65: 0 | S65: 0 | T65: 0 | X65: 0 | AF65: =SUM(AE$3:AE65) ->  | AM65: =SUM(AL$3:AL65) ->  | AT65: =SUM(AS$3:AS65) ->  | BA65: =SUM(AZ$3:AZ65) ->  | BH65: =SUM(BG$3:BG65) ->  | BO65: =SUM(BN$3:BN65) ->  | BV65: =SUM(BU$3:BU65) ->  | CC65: =SUM(CB$3:CB65) ->  | CJ65: =SUM(CI$3:CI65) ->  | CQ65: =SUM(CP$3:CP65) -> 
A66: Grid CAPEX | B66: =IF('Input Solar'!D281<>"Individual",'Input Solar'!D285,'Input Solar'!E285) -> 0 | E66: 64 | F66: 0 | G66: 0 | H66: 0.2818811892 | I66: 0.1834687963 | J66: 0.2241847262 | K66: =IF('Input Solar'!$D$18=Background!$X$2,'Calc Solar'!H66*$H$173,IF('Input Solar'!$D$18=Background!$X$3,'Calc Solar'!I66*$I$173,'Calc Solar'!J66*$J$173)) -> 0 | L66: =IF('Input Solar'!$D$20="Default",IF('Input Solar'!$D$18=Background!$X$2,'Calc Solar'!H66,IF('Input Solar'!$D$18=Background!$X$3,'Calc Solar'!I66,'Calc Solar'!J66)),K66) -> 0.2818811892 | M66: 0 | N66: 0 | O66: 0 | P66: 0 | R66: 0 | S66: 0 | T66: 0 | X66: 0 | AF66: =SUM(AE$3:AE66) ->  | AM66: =SUM(AL$3:AL66) ->  | AT66: =SUM(AS$3:AS66) ->  | BA66: =SUM(AZ$3:AZ66) ->  | BH66: =SUM(BG$3:BG66) ->  | BO66: =SUM(BN$3:BN66) ->  | BV66: =SUM(BU$3:BU66) ->  | CC66: =SUM(CB$3:CB66) ->  | CJ66: =SUM(CI$3:CI66) ->  | CQ66: =SUM(CP$3:CP66) -> 
A67: Grid OPEX | B67: =IF('Input Solar'!D281<>"Individual",'Input Solar'!D286,'Input Solar'!E286) -> 0 | E67: 65 | F67: 0 | G67: 0 | H67: 0.1058107741 | I67: 0.054007171 | J67: 0.09079643674 | K67: =IF('Input Solar'!$D$18=Background!$X$2,'Calc Solar'!H67*$H$173,IF('Input Solar'!$D$18=Background!$X$3,'Calc Solar'!I67*$I$173,'Calc Solar'!J67*$J$173)) -> 0 | L67: =IF('Input Solar'!$D$20="Default",IF('Input Solar'!$D$18=Background!$X$2,'Calc Solar'!H67,IF('Input Solar'!$D$18=Background!$X$3,'Calc Solar'!I67,'Calc Solar'!J67)),K67) -> 0.1058107741 | M67: 0 | N67: 0 | O67: =MIN(N67,0) -> 0 | P67: 0 | Q67: =MAX(P67,-(1-DC66)*$B$8) ->  | R67: =MAX(N67,0) -> 0 | S67: 0 | T67: 0 | U67: =MAX(MIN(T67,(DC66-$B$12)*$B$8),0) ->  | W67: =ROUND(MAX(0,N67-V67),5) ->  | X67: =G67*$B$14 -> 0 | AF67: =SUM(AE$3:AE67) ->  | AH67: =MIN(AG67+AD67,$B$96) ->  | AJ67: =AC67-AG67 ->  | AL67: =IF(AJ67<=0,0,MIN(MAX(AJ67,$B$114),($B$116-AK67))) ->  | AM67: =SUM(AL$3:AL67) ->  | AO67: =MIN(AN67+AK67,$B$116) ->  | AP67: =$B$117*AO67 ->  | AQ67: =AJ67-AN67 ->  | AS67: =IF(AQ67<=0,0,MIN(MAX(AQ67,$B$134),($B$136-AR67))) ->  | AT67: =SUM(AS$3:AS67) ->  | AV67: =MIN(AU67+AR67,$B$136) ->  | AW67: =$B$137*AV67 ->  | AX67: =AQ67-AU67 ->  | BA67: =SUM(AZ$3:AZ67) ->  | BD67: =$B$160*BC67 ->  | BH67: =SUM(BG$3:BG67) ->  | BK67: =$B$180*BJ67 ->  | BO67: =SUM(BN$3:BN67) ->  | BR67: =$B$200*BQ67 ->  | BV67: =SUM(BU$3:BU67) ->  | BY67: =$B$220*BX67 ->  | CC67: =SUM(CB$3:CB67) ->  | CF67: =$B$240*CE67 ->  | CJ67: =SUM(CI$3:CI67) ->  | CM67: =$B$260*CL67 ->  | CQ67: =SUM(CP$3:CP67) ->  | CT67: =$B$280*CS67 ->  | CU67: =CS67+CL67+CE67+BX67+BQ67+BJ67+BC67+AV67+AO67+AH67 ->  | CV67: =CU67+M67-G67 ->  | DE67: =MAX(G67-M67-CU67-DA67,0) ->  | DF67: =MAX(G67-CU67-DE67-DA67,0) ->  | DG67: =MAX(DB67,-1*(M67-DF67)) ->  | DH67: =G67-DF67-DA67-DE67 ->  | DJ67: =MAX(DB67-DG67,-1*DI67) -> 
A68: Grid lifetime | B68: =IF('Input Solar'!$D$281<>"Individual",'Input Solar'!D287,'Input Solar'!E287) -> 20 | E68: 66 | F68: 0 | G68: =F68*(1+$B$4) -> 0 | H68: 0 | I68: 0 | J68: 0.003864820846 | K68: =IF('Input Solar'!$D$18=Background!$X$2,'Calc Solar'!H68*$H$173,IF('Input Solar'!$D$18=Background!$X$3,'Calc Solar'!I68*$I$173,'Calc Solar'!J68*$J$173)) -> 0 | L68: =IF('Input Solar'!$D$20="Default",IF('Input Solar'!$D$18=Background!$X$2,'Calc Solar'!H68,IF('Input Solar'!$D$18=Background!$X$3,'Calc Solar'!I68,'Calc Solar'!J68)),K68) -> 0 | M68: =L68*$B$7 -> 0 | N68: =G68-M68 -> 0 | O68: 0 | P68: =MAX(O68*$B$10,-1*$B$8*$B$9*$B$10) -> 0 | R68: 0 | S68: 0 | T68: =MIN(R68/$B$11,$B$8*$B$9/$B$11) -> 0 | V68: =U68*$B$11 ->  | X68: 0 | Y68: =MIN($B$9*$B$8,(DC67-$B$12)*$B$8*$B$11) ->  | Z68: =MAX(0,X68-Y68) ->  | AA68: =MAX($W68,$Z68) ->  | AB68: =IF(E68<=120,($B$99+$B$119+$B$139+$B$157+$B$177+$B$197+$B$217+$B$237+$B$257+$B$277),($B$100+$B$120+$B$140+$B$158+$B$178+$B$198+$B$218+$B$238+$B$258+$B$278))*S68 ->  | AC68: =MAX($W68,$Z68)-AB68 ->  | AD68: =IF($E68<=120,MIN($B$99*$S68,$B$96),MIN($B$100*$S68,$B$96)) ->  | AE68: =IF(AC68<=0,0,MIN(MAX(AC68,$B$94),($B$96-AD68))) ->  | AF68: =SUM(AE$3:AE68) ->  | AG68: =IF(AF68<=($B$101-($B$99*5+$B$100*2)),AE68,0) ->  | AI68: =$B$97*AH68 ->  | AK68: =IF($E68<=120,MIN($B$119*$S68,$B$116),MIN($B$120*$S68,$B$116)) ->  | AM68: =SUM(AL$3:AL68) ->  | AN68: =IF(AM68<=($B$121-($B$119*5+$B$120*2)),AL68,0) ->  | AR68: =IF(E68<=120,MIN($B$139*S68,$B$136),MIN($B$140*S68,$B$136)) ->  | AT68: =SUM(AS$3:AS68) ->  | AU68: =IF(AT68<=($B$141-($B$139*5+$B$140*2)),AS68,0) ->  | AY68: =IF($E68<=120,MIN($B$157*$S68,$B$156),MIN($B$158*$S68,$B$156)) ->  | AZ68: =IF(AX68<=0,0,MIN(MAX(AX68,$B$154),($B$156-AY68))) ->  | BA68: =SUM(AZ$3:AZ68) ->  | BB68: =IF(BA68<=($B$159-($B$157*5+$B$158*2)),AZ68,0) ->  | BC68: =MIN(BB68+AY68,$B$156) ->  | BE68: =AX68-BC68 ->  | BF68: =IF($E68<=120,MIN($B$177*$S68,$B$176),MIN($B$178*$S68,$B$176)) ->  | BG68: =IF(BE68<=0,0,MIN(MAX(BE68,$B$174),($B$176-BF68))) ->  | BH68: =SUM(BG$3:BG68) ->  | BI68: =IF(BH68<=($B$179-($B$177*5+$B$178*2)),BG68,0) ->  | BJ68: =MIN(BI68+BF68,$B$176) ->  | BL68: =BE68-BJ68 ->  | BM68: =IF($E68<=120,MIN($B$197*$S68,$B$196),MIN($B$198*$S68,$B$196)) ->  | BN68: =IF(BL68<=0,0,MIN(MAX(BL68,$B$194),($B$196-BM68))) ->  | BO68: =SUM(BN$3:BN68) ->  | BP68: =IF(BO68<=($B$199-($B$197*5+$B$198*2)),BN68,0) ->  | BQ68: =MIN(BP68+BM68,$B$196) ->  | BS68: =BL68-BQ68 ->  | BT68: =IF($E68<=120,MIN($B$217*$S68,$B$216),MIN($B$218*$S68,$B$216)) ->  | BU68: =IF(BS68<=0,0,MIN(MAX(BS68,$B$214),($B$216-BT68))) ->  | BV68: =SUM(BU$3:BU68) ->  | BW68: =IF(BV68<=($B$219-($B$217*5+$B$218*2)),BU68,0) ->  | BX68: =MIN(BW68+BT68,$B$216) ->  | BZ68: =BS68-BX68 ->  | CA68: =IF($E68<=120,MIN($B$237*$S68,$B$236),MIN($B$238*$S68,$B$236)) ->  | CB68: =IF(BZ68<=0,0,MIN(MAX(BZ68,$B$234),($B$236-CA68))) ->  | CC68: =SUM(CB$3:CB68) ->  | CD68: =IF(CC68<=($B$239-($B$237*5+$B$238*2)),CB68,0) ->  | CE68: =MIN(CD68+CA68,$B$236) ->  | CG68: =BZ68-CE68 ->  | CH68: =IF($E68<=120,MIN($B$257*$S68,$B$256),MIN($B$258*$S68,$B$256)) ->  | CI68: =IF(CG68<=0,0,MIN(MAX(CG68,$B$254),($B$256-CH68))) ->  | CJ68: =SUM(CI$3:CI68) ->  | CK68: =IF(CJ68<=($B$259-($B$257*5+$B$258*2)),CI68,0) ->  | CL68: =MIN(CK68+CH68,$B$256) ->  | CN68: =CG68-CL68 ->  | CO68: =IF($E68<=120,MIN($B$277*$S68,$B$276),MIN($B$278*$S68,$B$276)) ->  | CP68: =IF(CN68<=0,0,MIN(MAX(CN68,$B$274),($B$276-CO68))) ->  | CQ68: =SUM(CP$3:CP68) ->  | CR68: =IF(CQ68<=($B$279-($B$277*5+$B$278*2)),CP68,0) ->  | CS68: =MIN(CR68+CO68,$B$276) ->  | CW68: =IF(CV68>0,MIN(CV68*$B$10,$B$8*$B$9*$B$10),0) ->  | CX68: =MAX(0,MIN(CW68/$B$8,1-DC67)) ->  | CY68: =IF(CV68<0,MAX(CV68/$B$11,-$B$8*$B$9/$B$11),0) ->  | CZ68: =MIN(0,MAX(CY68/$B$8,-1*(DC67-$B$12))) ->  | DA68: =CZ68*-$B$8*$B$11 ->  | DB68: =CX68*-$B$8 ->  | DC68: =MIN(1,DC67+CZ68+CX68) ->  | DI68: =CU68-DH68 ->  | DK68: =-(DI68+DJ68) ->  | DM68: =DH68-DJ68 -> 
A69: Grid CRF | B69: =B77*POWER(1+B77,B68)/(POWER(1+B77,B68)-1) -> 0.13387878 | E69: 67 | F69: 0 | G69: 0 | H69: 0 | I69: 0 | J69: 0 | K69: =IF('Input Solar'!$D$18=Background!$X$2,'Calc Solar'!H69*$H$173,IF('Input Solar'!$D$18=Background!$X$3,'Calc Solar'!I69*$I$173,'Calc Solar'!J69*$J$173)) -> 0 | L69: =IF('Input Solar'!$D$20="Default",IF('Input Solar'!$D$18=Background!$X$2,'Calc Solar'!H69,IF('Input Solar'!$D$18=Background!$X$3,'Calc Solar'!I69,'Calc Solar'!J69)),K69) -> 0 | M69: =L69*$B$7 -> 0 | N69: =G69-M69 -> 0 | O69: 0 | P69: 0 | R69: 0 | S69: 0 | T69: 0 | X69: 0 | AF69: =SUM(AE$3:AE69) ->  | AM69: =SUM(AL$3:AL69) ->  | AT69: =SUM(AS$3:AS69) ->  | BA69: =SUM(AZ$3:AZ69) ->  | BH69: =SUM(BG$3:BG69) ->  | BO69: =SUM(BN$3:BN69) ->  | BV69: =SUM(BU$3:BU69) ->  | CC69: =SUM(CB$3:CB69) ->  | CJ69: =SUM(CI$3:CI69) ->  | CQ69: =SUM(CP$3:CP69) -> 
A70: Grid Ann | B70: =B66*B69 -> 0 | E70: 68 | F70: 0 | G70: 0 | H70: 0 | I70: 0 | J70: 0 | K70: =IF('Input Solar'!$D$18=Background!$X$2,'Calc Solar'!H70*$H$173,IF('Input Solar'!$D$18=Background!$X$3,'Calc Solar'!I70*$I$173,'Calc Solar'!J70*$J$173)) -> 0 | L70: =IF('Input Solar'!$D$20="Default",IF('Input Solar'!$D$18=Background!$X$2,'Calc Solar'!H70,IF('Input Solar'!$D$18=Background!$X$3,'Calc Solar'!I70,'Calc Solar'!J70)),K70) -> 0 | M70: 0 | N70: 0 | O70: 0 | P70: 0 | R70: 0 | S70: 0 | T70: 0 | X70: 0 | AF70: =SUM(AE$3:AE70) ->  | AM70: =SUM(AL$3:AL70) ->  | AT70: =SUM(AS$3:AS70) ->  | BA70: =SUM(AZ$3:AZ70) ->  | BH70: =SUM(BG$3:BG70) ->  | BO70: =SUM(BN$3:BN70) ->  | BV70: =SUM(BU$3:BU70) ->  | CC70: =SUM(CB$3:CB70) ->  | CJ70: =SUM(CI$3:CI70) ->  | CQ70: =SUM(CP$3:CP70) -> 
E71: 69 | F71: 0 | G71: 0 | H71: 0 | I71: 0 | J71: 0 | K71: =IF('Input Solar'!$D$18=Background!$X$2,'Calc Solar'!H71*$H$173,IF('Input Solar'!$D$18=Background!$X$3,'Calc Solar'!I71*$I$173,'Calc Solar'!J71*$J$173)) -> 0 | L71: =IF('Input Solar'!$D$20="Default",IF('Input Solar'!$D$18=Background!$X$2,'Calc Solar'!H71,IF('Input Solar'!$D$18=Background!$X$3,'Calc Solar'!I71,'Calc Solar'!J71)),K71) -> 0 | M71: 0 | N71: 0 | O71: 0 | P71: 0 | R71: 0 | S71: 0 | T71: 0 | X71: 0 | AF71: =SUM(AE$3:AE71) ->  | AM71: =SUM(AL$3:AL71) ->  | AT71: =SUM(AS$3:AS71) ->  | BA71: =SUM(AZ$3:AZ71) ->  | BH71: =SUM(BG$3:BG71) ->  | BO71: =SUM(BN$3:BN71) ->  | BV71: =SUM(BU$3:BU71) ->  | CC71: =SUM(CB$3:CB71) ->  | CJ71: =SUM(CI$3:CI71) ->  | CQ71: =SUM(CP$3:CP71) -> 
E72: 70 | F72: 0 | G72: 0 | H72: 0 | I72: 0 | J72: 0 | K72: =IF('Input Solar'!$D$18=Background!$X$2,'Calc Solar'!H72*$H$173,IF('Input Solar'!$D$18=Background!$X$3,'Calc Solar'!I72*$I$173,'Calc Solar'!J72*$J$173)) -> 0 | L72: =IF('Input Solar'!$D$20="Default",IF('Input Solar'!$D$18=Background!$X$2,'Calc Solar'!H72,IF('Input Solar'!$D$18=Background!$X$3,'Calc Solar'!I72,'Calc Solar'!J72)),K72) -> 0 | M72: 0 | N72: 0 | O72: 0 | P72: 0 | R72: 0 | S72: 0 | T72: 0 | X72: 0 | AF72: =SUM(AE$3:AE72) ->  | AM72: =SUM(AL$3:AL72) ->  | AT72: =SUM(AS$3:AS72) ->  | BA72: =SUM(AZ$3:AZ72) ->  | BH72: =SUM(BG$3:BG72) ->  | BO72: =SUM(BN$3:BN72) ->  | BV72: =SUM(BU$3:BU72) ->  | CC72: =SUM(CB$3:CB72) ->  | CJ72: =SUM(CI$3:CI72) ->  | CQ72: =SUM(CP$3:CP72) -> 
E73: 71 | F73: 0 | G73: 0 | H73: 0 | I73: 0 | J73: 0 | K73: =IF('Input Solar'!$D$18=Background!$X$2,'Calc Solar'!H73*$H$173,IF('Input Solar'!$D$18=Background!$X$3,'Calc Solar'!I73*$I$173,'Calc Solar'!J73*$J$173)) -> 0 | L73: =IF('Input Solar'!$D$20="Default",IF('Input Solar'!$D$18=Background!$X$2,'Calc Solar'!H73,IF('Input Solar'!$D$18=Background!$X$3,'Calc Solar'!I73,'Calc Solar'!J73)),K73) -> 0 | M73: 0 | N73: 0 | O73: 0 | P73: 0 | R73: 0 | S73: 0 | T73: 0 | X73: 0 | AF73: =SUM(AE$3:AE73) ->  | AM73: =SUM(AL$3:AL73) ->  | AT73: =SUM(AS$3:AS73) ->  | BA73: =SUM(AZ$3:AZ73) ->  | BH73: =SUM(BG$3:BG73) ->  | BO73: =SUM(BN$3:BN73) ->  | BV73: =SUM(BU$3:BU73) ->  | CC73: =SUM(CB$3:CB73) ->  | CJ73: =SUM(CI$3:CI73) ->  | CQ73: =SUM(CP$3:CP73) -> 
A74: Opex | B74: =SUM(B41:B43)+B45+B63+B64+B67 ->  | E74: 72 | F74: 0 | G74: 0 | H74: 0 | I74: 0 | J74: 0 | K74: =IF('Input Solar'!$D$18=Background!$X$2,'Calc Solar'!H74*$H$173,IF('Input Solar'!$D$18=Background!$X$3,'Calc Solar'!I74*$I$173,'Calc Solar'!J74*$J$173)) -> 0 | L74: =IF('Input Solar'!$D$20="Default",IF('Input Solar'!$D$18=Background!$X$2,'Calc Solar'!H74,IF('Input Solar'!$D$18=Background!$X$3,'Calc Solar'!I74,'Calc Solar'!J74)),K74) -> 0 | M74: 0 | N74: 0 | O74: 0 | P74: 0 | R74: 0 | S74: 0 | T74: 0 | X74: 0 | AF74: =SUM(AE$3:AE74) ->  | AM74: =SUM(AL$3:AL74) ->  | AT74: =SUM(AS$3:AS74) ->  | BA74: =SUM(AZ$3:AZ74) ->  | BH74: =SUM(BG$3:BG74) ->  | BO74: =SUM(BN$3:BN74) ->  | BV74: =SUM(BU$3:BU74) ->  | CC74: =SUM(CB$3:CB74) ->  | CJ74: =SUM(CI$3:CI74) ->  | CQ74: =SUM(CP$3:CP74) -> 
A75: Fuel costs | B75: =B44 ->  | E75: 73 | F75: 0 | G75: 0 | H75: 0 | I75: 0 | J75: 0 | K75: =IF('Input Solar'!$D$18=Background!$X$2,'Calc Solar'!H75*$H$173,IF('Input Solar'!$D$18=Background!$X$3,'Calc Solar'!I75*$I$173,'Calc Solar'!J75*$J$173)) -> 0 | L75: =IF('Input Solar'!$D$20="Default",IF('Input Solar'!$D$18=Background!$X$2,'Calc Solar'!H75,IF('Input Solar'!$D$18=Background!$X$3,'Calc Solar'!I75,'Calc Solar'!J75)),K75) -> 0 | M75: 0 | N75: 0 | O75: 0 | P75: 0 | R75: 0 | S75: =IFERROR(R75/SUM(R$75:R$98),0) -> 0 | T75: 0 | X75: 0 | AF75: =SUM(AE$3:AE75) ->  | AM75: =SUM(AL$3:AL75) ->  | AT75: =SUM(AS$3:AS75) ->  | BA75: =SUM(AZ$3:AZ75) ->  | BH75: =SUM(BG$3:BG75) ->  | BO75: =SUM(BN$3:BN75) ->  | BV75: =SUM(BU$3:BU75) ->  | CC75: =SUM(CB$3:CB75) ->  | CJ75: =SUM(CI$3:CI75) ->  | CQ75: =SUM(CP$3:CP75) -> 
A76: Annual cons. | B76: =ROUND((SUM(G3:G170)-B81)*8760/168,2) ->  | E76: 74 | F76: 0 | G76: 0 | H76: 0 | I76: 0 | J76: 0 | K76: =IF('Input Solar'!$D$18=Background!$X$2,'Calc Solar'!H76*$H$173,IF('Input Solar'!$D$18=Background!$X$3,'Calc Solar'!I76*$I$173,'Calc Solar'!J76*$J$173)) -> 0 | L76: =IF('Input Solar'!$D$20="Default",IF('Input Solar'!$D$18=Background!$X$2,'Calc Solar'!H76,IF('Input Solar'!$D$18=Background!$X$3,'Calc Solar'!I76,'Calc Solar'!J76)),K76) -> 0 | M76: 0 | N76: 0 | O76: 0 | P76: 0 | R76: 0 | S76: 0 | T76: 0 | X76: 0 | AF76: =SUM(AE$3:AE76) ->  | AM76: =SUM(AL$3:AL76) ->  | AT76: =SUM(AS$3:AS76) ->  | BA76: =SUM(AZ$3:AZ76) ->  | BH76: =SUM(BG$3:BG76) ->  | BO76: =SUM(BN$3:BN76) ->  | BV76: =SUM(BU$3:BU76) ->  | CC76: =SUM(CB$3:CB76) ->  | CJ76: =SUM(CI$3:CI76) ->  | CQ76: =SUM(CP$3:CP76) -> 
A77: WACC | B77: =IF('Input Solar'!D264="Default",'Input Solar'!D268,'Input Solar'!E268) -> 0.12 | E77: 75 | F77: 0 | G77: 0 | H77: 0 | I77: 0 | J77: 0 | K77: =IF('Input Solar'!$D$18=Background!$X$2,'Calc Solar'!H77*$H$173,IF('Input Solar'!$D$18=Background!$X$3,'Calc Solar'!I77*$I$173,'Calc Solar'!J77*$J$173)) -> 0 | L77: =IF('Input Solar'!$D$20="Default",IF('Input Solar'!$D$18=Background!$X$2,'Calc Solar'!H77,IF('Input Solar'!$D$18=Background!$X$3,'Calc Solar'!I77,'Calc Solar'!J77)),K77) -> 0 | M77: 0 | N77: 0 | O77: 0 | P77: 0 | R77: 0 | S77: 0 | T77: 0 | X77: 0 | AF77: =SUM(AE$3:AE77) ->  | AM77: =SUM(AL$3:AL77) ->  | AT77: =SUM(AS$3:AS77) ->  | BA77: =SUM(AZ$3:AZ77) ->  | BH77: =SUM(BG$3:BG77) ->  | BO77: =SUM(BN$3:BN77) ->  | BV77: =SUM(BU$3:BU77) ->  | CC77: =SUM(CB$3:CB77) ->  | CJ77: =SUM(CI$3:CI77) ->  | CQ77: =SUM(CP$3:CP77) -> 
A78: Ann Capex | B78: =B56+B52+B48+B60+B62+B70 -> 66939.39002 | E78: 76 | F78: 0 | G78: 0 | H78: 0 | I78: 0 | J78: 0 | K78: =IF('Input Solar'!$D$18=Background!$X$2,'Calc Solar'!H78*$H$173,IF('Input Solar'!$D$18=Background!$X$3,'Calc Solar'!I78*$I$173,'Calc Solar'!J78*$J$173)) -> 0 | L78: =IF('Input Solar'!$D$20="Default",IF('Input Solar'!$D$18=Background!$X$2,'Calc Solar'!H78,IF('Input Solar'!$D$18=Background!$X$3,'Calc Solar'!I78,'Calc Solar'!J78)),K78) -> 0 | M78: 0 | N78: 0 | O78: 0 | P78: 0 | R78: 0 | S78: 0 | T78: 0 | X78: 0 | AF78: =SUM(AE$3:AE78) ->  | AM78: =SUM(AL$3:AL78) ->  | AT78: =SUM(AS$3:AS78) ->  | BA78: =SUM(AZ$3:AZ78) ->  | BH78: =SUM(BG$3:BG78) ->  | BO78: =SUM(BN$3:BN78) ->  | BV78: =SUM(BU$3:BU78) ->  | CC78: =SUM(CB$3:CB78) ->  | CJ78: =SUM(CI$3:CI78) ->  | CQ78: =SUM(CP$3:CP78) -> 
A79: LCOE | B79: =IFERROR(MAX(0,(B78+B74+B75)/B76),0) -> 0 | E79: 77 | F79: 0 | G79: 0 | H79: 0 | I79: 0 | J79: 0 | K79: =IF('Input Solar'!$D$18=Background!$X$2,'Calc Solar'!H79*$H$173,IF('Input Solar'!$D$18=Background!$X$3,'Calc Solar'!I79*$I$173,'Calc Solar'!J79*$J$173)) -> 0 | L79: =IF('Input Solar'!$D$20="Default",IF('Input Solar'!$D$18=Background!$X$2,'Calc Solar'!H79,IF('Input Solar'!$D$18=Background!$X$3,'Calc Solar'!I79,'Calc Solar'!J79)),K79) -> 0 | M79: 0 | N79: 0 | O79: 0 | P79: 0 | R79: 0 | S79: 0 | T79: 0 | X79: 0 | AF79: =SUM(AE$3:AE79) ->  | AM79: =SUM(AL$3:AL79) ->  | AT79: =SUM(AS$3:AS79) ->  | BA79: =SUM(AZ$3:AZ79) ->  | BH79: =SUM(BG$3:BG79) ->  | BO79: =SUM(BN$3:BN79) ->  | BV79: =SUM(BU$3:BU79) ->  | CC79: =SUM(CB$3:CB79) ->  | CJ79: =SUM(CI$3:CI79) ->  | CQ79: =SUM(CP$3:CP79) -> 
A80: RE Share eligible | B80: =IFERROR((B83+C82)/(B82-B81),0) -> 0 | E80: 78 | F80: 0 | G80: 0 | H80: 0 | I80: 0 | J80: 0 | K80: =IF('Input Solar'!$D$18=Background!$X$2,'Calc Solar'!H80*$H$173,IF('Input Solar'!$D$18=Background!$X$3,'Calc Solar'!I80*$I$173,'Calc Solar'!J80*$J$173)) -> 0 | L80: =IF('Input Solar'!$D$20="Default",IF('Input Solar'!$D$18=Background!$X$2,'Calc Solar'!H80,IF('Input Solar'!$D$18=Background!$X$3,'Calc Solar'!I80,'Calc Solar'!J80)),K80) -> 0 | M80: 0 | N80: 0 | O80: 0 | P80: 0 | R80: 0 | S80: 0 | T80: 0 | X80: 0 | AF80: =SUM(AE$3:AE80) ->  | AM80: =SUM(AL$3:AL80) ->  | AT80: =SUM(AS$3:AS80) ->  | BA80: =SUM(AZ$3:AZ80) ->  | BH80: =SUM(BG$3:BG80) ->  | BO80: =SUM(BN$3:BN80) ->  | BV80: =SUM(BU$3:BU80) ->  | CC80: =SUM(CB$3:CB80) ->  | CJ80: =SUM(CI$3:CI80) ->  | CQ80: =SUM(CP$3:CP80) -> 
A81: Weekly unmet load | B81: =SUM(DE3:DE170) ->  | C81: RECs kwh total | E81: 79 | F81: 0 | G81: =F81*(1+$B$4) -> 0 | H81: 0.02025266056 | I81: 0.05277195898 | J81: 0.07808506335 | K81: =IF('Input Solar'!$D$18=Background!$X$2,'Calc Solar'!H81*$H$173,IF('Input Solar'!$D$18=Background!$X$3,'Calc Solar'!I81*$I$173,'Calc Solar'!J81*$J$173)) -> 0 | L81: =IF('Input Solar'!$D$20="Default",IF('Input Solar'!$D$18=Background!$X$2,'Calc Solar'!H81,IF('Input Solar'!$D$18=Background!$X$3,'Calc Solar'!I81,'Calc Solar'!J81)),K81) -> 0.02025266056 | M81: 0 | N81: 0 | O81: 0 | P81: 0 | R81: 0 | S81: 0 | T81: 0 | X81: 0 | AF81: =SUM(AE$3:AE81) ->  | AM81: =SUM(AL$3:AL81) ->  | AT81: =SUM(AS$3:AS81) ->  | BA81: =SUM(AZ$3:AZ81) ->  | BH81: =SUM(BG$3:BG81) ->  | BO81: =SUM(BN$3:BN81) ->  | BV81: =SUM(BU$3:BU81) ->  | CC81: =SUM(CB$3:CB81) ->  | CJ81: =SUM(CI$3:CI81) ->  | CQ81: =SUM(CP$3:CP81) ->  | CX81: =MAX(0,MIN(CW81/$B$8,1-DC80)) ->  | CZ81: =MIN(0,MAX(CY81/$B$8,-1*(DC80-$B$12))) ->  | DC81: =MIN(1,DC80+CZ81+CX81) -> 
A82: weekly demand+losses | B82: =SUM(G3:G170) -> 0 | C82: =IF('Input Solar'!D291="Default",'Input Solar'!D295,'Input Solar'!E295)/(365/7)*1000 -> 0 | E82: 80 | F82: 0 | G82: 0 | H82: 0.2240058017 | I82: 0.2191350055 | J82: 0.3030988213 | K82: =IF('Input Solar'!$D$18=Background!$X$2,'Calc Solar'!H82*$H$173,IF('Input Solar'!$D$18=Background!$X$3,'Calc Solar'!I82*$I$173,'Calc Solar'!J82*$J$173)) -> 0 | L82: =IF('Input Solar'!$D$20="Default",IF('Input Solar'!$D$18=Background!$X$2,'Calc Solar'!H82,IF('Input Solar'!$D$18=Background!$X$3,'Calc Solar'!I82,'Calc Solar'!J82)),K82) -> 0.2240058017 | M82: 0 | N82: 0 | O82: 0 | P82: 0 | R82: 0 | S82: 0 | T82: 0 | X82: 0 | AF82: =SUM(AE$3:AE82) ->  | AM82: =SUM(AL$3:AL82) ->  | AT82: =SUM(AS$3:AS82) ->  | BA82: =SUM(AZ$3:AZ82) ->  | BH82: =SUM(BG$3:BG82) ->  | BO82: =SUM(BN$3:BN82) ->  | BV82: =SUM(BU$3:BU82) ->  | CC82: =SUM(CB$3:CB82) ->  | CJ82: =SUM(CI$3:CI82) ->  | CQ82: =SUM(CP$3:CP82) -> 
A83: weekly PV+ PV_Batt eligible | B83: =IFERROR(IF(B16=0,0,B86+B87)*(C84/B7),0) -> 0 | C83: eligible PV capacity | E83: 81 | F83: 0 | G83: 0 | H83: 0.4319314746 | I83: 0.3287202618 | J83: 0.4834737486 | K83: =IF('Input Solar'!$D$18=Background!$X$2,'Calc Solar'!H83*$H$173,IF('Input Solar'!$D$18=Background!$X$3,'Calc Solar'!I83*$I$173,'Calc Solar'!J83*$J$173)) -> 0 | L83: =IF('Input Solar'!$D$20="Default",IF('Input Solar'!$D$18=Background!$X$2,'Calc Solar'!H83,IF('Input Solar'!$D$18=Background!$X$3,'Calc Solar'!I83,'Calc Solar'!J83)),K83) -> 0.4319314746 | M83: 0 | N83: 0 | O83: 0 | P83: 0 | R83: 0 | S83: 0 | T83: 0 | X83: 0 | AF83: =SUM(AE$3:AE83) ->  | AM83: =SUM(AL$3:AL83) ->  | AT83: =SUM(AS$3:AS83) ->  | BA83: =SUM(AZ$3:AZ83) ->  | BH83: =SUM(BG$3:BG83) ->  | BO83: =SUM(BN$3:BN83) ->  | BV83: =SUM(BU$3:BU83) ->  | CC83: =SUM(CB$3:CB83) ->  | CJ83: =SUM(CI$3:CI83) ->  | CQ83: =SUM(CP$3:CP83) -> 
A84: weekly PV total consumed | B84: =B86+B87 ->  | C84: =B22+B23 -> 0 | E84: 82 | F84: 0 | G84: 0 | H84: 0.5659898167 | I84: 0.36716785 | J84: 0.6023795842 | K84: =IF('Input Solar'!$D$18=Background!$X$2,'Calc Solar'!H84*$H$173,IF('Input Solar'!$D$18=Background!$X$3,'Calc Solar'!I84*$I$173,'Calc Solar'!J84*$J$173)) -> 0 | L84: =IF('Input Solar'!$D$20="Default",IF('Input Solar'!$D$18=Background!$X$2,'Calc Solar'!H84,IF('Input Solar'!$D$18=Background!$X$3,'Calc Solar'!I84,'Calc Solar'!J84)),K84) -> 0.5659898167 | M84: 0 | N84: 0 | O84: 0 | P84: 0 | R84: 0 | S84: 0 | T84: 0 | X84: 0 | AF84: =SUM(AE$3:AE84) ->  | AM84: =SUM(AL$3:AL84) ->  | AT84: =SUM(AS$3:AS84) ->  | BA84: =SUM(AZ$3:AZ84) ->  | BH84: =SUM(BG$3:BG84) ->  | BO84: =SUM(BN$3:BN84) ->  | BV84: =SUM(BU$3:BU84) ->  | CC84: =SUM(CB$3:CB84) ->  | CJ84: =SUM(CI$3:CI84) ->  | CQ84: =SUM(CP$3:CP84) -> 
A85: weekly Diesel consumed directly | B85: =SUM(DH3:DH170) ->  | C85: weekly existing nn-eligible PV consumed | E85: 83 | F85: 0 | G85: 0 | H85: 0.6231399564 | I85: 0.3441195253 | J85: 0.6596267646 | K85: =IF('Input Solar'!$D$18=Background!$X$2,'Calc Solar'!H85*$H$173,IF('Input Solar'!$D$18=Background!$X$3,'Calc Solar'!I85*$I$173,'Calc Solar'!J85*$J$173)) -> 0 | L85: =IF('Input Solar'!$D$20="Default",IF('Input Solar'!$D$18=Background!$X$2,'Calc Solar'!H85,IF('Input Solar'!$D$18=Background!$X$3,'Calc Solar'!I85,'Calc Solar'!J85)),K85) -> 0.6231399564 | M85: 0 | N85: 0 | O85: 0 | P85: 0 | R85: 0 | S85: 0 | T85: 0 | X85: 0 | AF85: =SUM(AE$3:AE85) ->  | AM85: =SUM(AL$3:AL85) ->  | AT85: =SUM(AS$3:AS85) ->  | BA85: =SUM(AZ$3:AZ85) ->  | BH85: =SUM(BG$3:BG85) ->  | BO85: =SUM(BN$3:BN85) ->  | BV85: =SUM(BU$3:BU85) ->  | CC85: =SUM(CB$3:CB85) ->  | CJ85: =SUM(CI$3:CI85) ->  | CQ85: =SUM(CP$3:CP85) -> 
A86: weekly PV consumed directly | B86: =SUM(DF3:DF170) ->  | C86: =IFERROR(IF(B16=0,0,B86+B87)*((B7-C84)/B7),0) -> 0 | E86: 84 | F86: 0 | G86: 0 | H86: 0.7023500985 | I86: 0.409910705 | J86: 0.6628864345 | K86: =IF('Input Solar'!$D$18=Background!$X$2,'Calc Solar'!H86*$H$173,IF('Input Solar'!$D$18=Background!$X$3,'Calc Solar'!I86*$I$173,'Calc Solar'!J86*$J$173)) -> 0 | L86: =IF('Input Solar'!$D$20="Default",IF('Input Solar'!$D$18=Background!$X$2,'Calc Solar'!H86,IF('Input Solar'!$D$18=Background!$X$3,'Calc Solar'!I86,'Calc Solar'!J86)),K86) -> 0.7023500985 | M86: 0 | N86: 0 | O86: 0 | P86: 0 | R86: 0 | S86: 0 | T86: 0 | X86: 0 | AF86: =SUM(AE$3:AE86) ->  | AM86: =SUM(AL$3:AL86) ->  | AT86: =SUM(AS$3:AS86) ->  | BA86: =SUM(AZ$3:AZ86) ->  | BH86: =SUM(BG$3:BG86) ->  | BO86: =SUM(BN$3:BN86) ->  | BV86: =SUM(BU$3:BU86) ->  | CC86: =SUM(CB$3:CB86) ->  | CJ86: =SUM(CI$3:CI86) ->  | CQ86: =SUM(CP$3:CP86) -> 
A87: weekly PV from Batt consumed | B87: =B21 ->  | C87: weekly existing eligible PV consumed | E87: 85 | F87: 0 | G87: 0 | H87: 0.7246107986 | I87: 0.4436444745 | J87: 0.6157263048 | K87: =IF('Input Solar'!$D$18=Background!$X$2,'Calc Solar'!H87*$H$173,IF('Input Solar'!$D$18=Background!$X$3,'Calc Solar'!I87*$I$173,'Calc Solar'!J87*$J$173)) -> 0 | L87: =IF('Input Solar'!$D$20="Default",IF('Input Solar'!$D$18=Background!$X$2,'Calc Solar'!H87,IF('Input Solar'!$D$18=Background!$X$3,'Calc Solar'!I87,'Calc Solar'!J87)),K87) -> 0.7246107986 | M87: 0 | N87: 0 | O87: 0 | P87: 0 | R87: 0 | S87: 0 | T87: 0 | X87: 0 | AF87: =SUM(AE$3:AE87) ->  | AM87: =SUM(AL$3:AL87) ->  | AT87: =SUM(AS$3:AS87) ->  | BA87: =SUM(AZ$3:AZ87) ->  | BH87: =SUM(BG$3:BG87) ->  | BO87: =SUM(BN$3:BN87) ->  | BV87: =SUM(BU$3:BU87) ->  | CC87: =SUM(CB$3:CB87) ->  | CJ87: =SUM(CI$3:CI87) ->  | CQ87: =SUM(CP$3:CP87) -> 
A88: weekly batt discharge | B88: =B17 ->  | C88: =IFERROR(IF(B16=0,0,B86+B87)*(B23/B7),0) -> 0 | E88: 86 | F88: 0 | G88: 0 | H88: 0.6857180517 | I88: 0.4356564832 | J88: 0.5254507559 | K88: =IF('Input Solar'!$D$18=Background!$X$2,'Calc Solar'!H88*$H$173,IF('Input Solar'!$D$18=Background!$X$3,'Calc Solar'!I88*$I$173,'Calc Solar'!J88*$J$173)) -> 0 | L88: =IF('Input Solar'!$D$20="Default",IF('Input Solar'!$D$18=Background!$X$2,'Calc Solar'!H88,IF('Input Solar'!$D$18=Background!$X$3,'Calc Solar'!I88,'Calc Solar'!J88)),K88) -> 0.6857180517 | M88: 0 | N88: 0 | O88: 0 | P88: 0 | R88: 0 | S88: 0 | T88: 0 | X88: 0 | AF88: =SUM(AE$3:AE88) ->  | AM88: =SUM(AL$3:AL88) ->  | AT88: =SUM(AS$3:AS88) ->  | BA88: =SUM(AZ$3:AZ88) ->  | BH88: =SUM(BG$3:BG88) ->  | BO88: =SUM(BN$3:BN88) ->  | BV88: =SUM(BU$3:BU88) ->  | CC88: =SUM(CB$3:CB88) ->  | CJ88: =SUM(CI$3:CI88) ->  | CQ88: =SUM(CP$3:CP88) -> 
A89: weekly Diesel loaded to batt | B89: =(-1)*SUM(DJ3:DJ170) ->  | C89: weekly new PV consumed | E89: 87 | F89: 0 | G89: 0 | H89: 0.4931107691 | I89: 0.3031122076 | J89: 0.3269230523 | K89: =IF('Input Solar'!$D$18=Background!$X$2,'Calc Solar'!H89*$H$173,IF('Input Solar'!$D$18=Background!$X$3,'Calc Solar'!I89*$I$173,'Calc Solar'!J89*$J$173)) -> 0 | L89: =IF('Input Solar'!$D$20="Default",IF('Input Solar'!$D$18=Background!$X$2,'Calc Solar'!H89,IF('Input Solar'!$D$18=Background!$X$3,'Calc Solar'!I89,'Calc Solar'!J89)),K89) -> 0.4931107691 | M89: 0 | N89: 0 | O89: 0 | P89: 0 | R89: 0 | S89: 0 | T89: 0 | X89: 0 | AF89: =SUM(AE$3:AE89) ->  | AM89: =SUM(AL$3:AL89) ->  | AT89: =SUM(AS$3:AS89) ->  | BA89: =SUM(AZ$3:AZ89) ->  | BH89: =SUM(BG$3:BG89) ->  | BO89: =SUM(BN$3:BN89) ->  | BV89: =SUM(BU$3:BU89) ->  | CC89: =SUM(CB$3:CB89) ->  | CJ89: =SUM(CI$3:CI89) ->  | CQ89: =SUM(CP$3:CP89) -> 
A90: weekly Diesel total consumed | B90: =B85+B89 ->  | C90: =IFERROR(IF(B16=0,0,B86+B87)*(B22/B7),0) -> 0 | E90: 88 | F90: 0 | G90: 0 | H90: 0.2866736027 | I90: 0.1686871389 | J90: 0.1502775831 | K90: =IF('Input Solar'!$D$18=Background!$X$2,'Calc Solar'!H90*$H$173,IF('Input Solar'!$D$18=Background!$X$3,'Calc Solar'!I90*$I$173,'Calc Solar'!J90*$J$173)) -> 0 | L90: =IF('Input Solar'!$D$20="Default",IF('Input Solar'!$D$18=Background!$X$2,'Calc Solar'!H90,IF('Input Solar'!$D$18=Background!$X$3,'Calc Solar'!I90,'Calc Solar'!J90)),K90) -> 0.2866736027 | M90: 0 | N90: 0 | O90: 0 | P90: 0 | R90: 0 | S90: 0 | T90: 0 | X90: 0 | AF90: =SUM(AE$3:AE90) ->  | AM90: =SUM(AL$3:AL90) ->  | AT90: =SUM(AS$3:AS90) ->  | BA90: =SUM(AZ$3:AZ90) ->  | BH90: =SUM(BG$3:BG90) ->  | BO90: =SUM(BN$3:BN90) ->  | BV90: =SUM(BU$3:BU90) ->  | CC90: =SUM(CB$3:CB90) ->  | CJ90: =SUM(CI$3:CI90) ->  | CQ90: =SUM(CP$3:CP90) -> 
A91: excess Diesel weekly | B91: =ABS(SUM(DK3:DK170)) ->  | E91: 89 | F91: 0 | G91: 0 | H91: 0.1015427589 | I91: 0.0554937293 | J91: 0.03339255733 | K91: =IF('Input Solar'!$D$18=Background!$X$2,'Calc Solar'!H91*$H$173,IF('Input Solar'!$D$18=Background!$X$3,'Calc Solar'!I91*$I$173,'Calc Solar'!J91*$J$173)) -> 0 | L91: =IF('Input Solar'!$D$20="Default",IF('Input Solar'!$D$18=Background!$X$2,'Calc Solar'!H91,IF('Input Solar'!$D$18=Background!$X$3,'Calc Solar'!I91,'Calc Solar'!J91)),K91) -> 0.1015427589 | M91: 0 | N91: 0 | O91: 0 | P91: 0 | R91: 0 | S91: 0 | T91: 0 | X91: 0 | AF91: =SUM(AE$3:AE91) ->  | AM91: =SUM(AL$3:AL91) ->  | AT91: =SUM(AS$3:AS91) ->  | BA91: =SUM(AZ$3:AZ91) ->  | BH91: =SUM(BG$3:BG91) ->  | BO91: =SUM(BN$3:BN91) ->  | BV91: =SUM(BU$3:BU91) ->  | CC91: =SUM(CB$3:CB91) ->  | CJ91: =SUM(CI$3:CI91) ->  | CQ91: =SUM(CP$3:CP91) -> 
A92: =CONCATENATE("GenCo ",IF('Input Solar'!D26="Default",'Input Solar'!D30,'Input Solar'!E30)) -> GenCo A | E92: 90 | F92: 0 | G92: 0 | H92: 0 | I92: 0 | J92: 0 | K92: =IF('Input Solar'!$D$18=Background!$X$2,'Calc Solar'!H92*$H$173,IF('Input Solar'!$D$18=Background!$X$3,'Calc Solar'!I92*$I$173,'Calc Solar'!J92*$J$173)) -> 0 | L92: =IF('Input Solar'!$D$20="Default",IF('Input Solar'!$D$18=Background!$X$2,'Calc Solar'!H92,IF('Input Solar'!$D$18=Background!$X$3,'Calc Solar'!I92,'Calc Solar'!J92)),K92) -> 0 | M92: 0 | N92: 0 | O92: 0 | P92: 0 | R92: 0 | S92: 0 | T92: 0 | X92: 0 | AF92: =SUM(AE$3:AE92) ->  | AM92: =SUM(AL$3:AL92) ->  | AT92: =SUM(AS$3:AS92) ->  | BA92: =SUM(AZ$3:AZ92) ->  | BH92: =SUM(BG$3:BG92) ->  | BO92: =SUM(BN$3:BN92) ->  | BV92: =SUM(BU$3:BU92) ->  | CC92: =SUM(CB$3:CB92) ->  | CJ92: =SUM(CI$3:CI92) ->  | CQ92: =SUM(CP$3:CP92) -> 
A93: P_smallest gen | B93: =IF('Input Solar'!$D$40="Default",'Input Solar'!$D$44,'Input Solar'!$E$44) -> 0 | E93: 91 | F93: =IF(E93-E69=24,F69,"") -> 0 | G93: 0 | H93: 0 | I93: 0 | J93: 0 | K93: =IF('Input Solar'!$D$18=Background!$X$2,'Calc Solar'!H93*$H$173,IF('Input Solar'!$D$18=Background!$X$3,'Calc Solar'!I93*$I$173,'Calc Solar'!J93*$J$173)) -> 0 | L93: =IF('Input Solar'!$D$20="Default",IF('Input Solar'!$D$18=Background!$X$2,'Calc Solar'!H93,IF('Input Solar'!$D$18=Background!$X$3,'Calc Solar'!I93,'Calc Solar'!J93)),K93) -> 0 | M93: 0 | N93: 0 | O93: 0 | P93: 0 | R93: 0 | S93: 0 | T93: 0 | X93: 0 | AF93: =SUM(AE$3:AE93) ->  | AM93: =SUM(AL$3:AL93) ->  | AT93: =SUM(AS$3:AS93) ->  | BA93: =SUM(AZ$3:AZ93) ->  | BH93: =SUM(BG$3:BG93) ->  | BO93: =SUM(BN$3:BN93) ->  | BV93: =SUM(BU$3:BU93) ->  | CC93: =SUM(CB$3:CB93) ->  | CJ93: =SUM(CI$3:CI93) ->  | CQ93: =SUM(CP$3:CP93) -> 
A94: P_min | B94: =0.3*B93 -> 0 | E94: 92 | F94: 0 | G94: 0 | H94: 0 | I94: 0 | J94: 0 | K94: =IF('Input Solar'!$D$18=Background!$X$2,'Calc Solar'!H94*$H$173,IF('Input Solar'!$D$18=Background!$X$3,'Calc Solar'!I94*$I$173,'Calc Solar'!J94*$J$173)) -> 0 | L94: =IF('Input Solar'!$D$20="Default",IF('Input Solar'!$D$18=Background!$X$2,'Calc Solar'!H94,IF('Input Solar'!$D$18=Background!$X$3,'Calc Solar'!I94,'Calc Solar'!J94)),K94) -> 0 | M94: 0 | N94: 0 | O94: 0 | P94: 0 | R94: 0 | S94: 0 | T94: 0 | X94: 0 | AF94: =SUM(AE$3:AE94) ->  | AM94: =SUM(AL$3:AL94) ->  | AT94: =SUM(AS$3:AS94) ->  | BA94: =SUM(AZ$3:AZ94) ->  | BH94: =SUM(BG$3:BG94) ->  | BO94: =SUM(BN$3:BN94) ->  | BV94: =SUM(BU$3:BU94) ->  | CC94: =SUM(CB$3:CB94) ->  | CJ94: =SUM(CI$3:CI94) ->  | CQ94: =SUM(CP$3:CP94) -> 
A95: P_max | B95: =IF('Input Solar'!$D$40="Default",'Input Solar'!$D$42,'Input Solar'!$E$42) -> 0 | E95: 93 | F95: 0 | G95: 0 | H95: 0 | I95: 0 | J95: 0 | K95: =IF('Input Solar'!$D$18=Background!$X$2,'Calc Solar'!H95*$H$173,IF('Input Solar'!$D$18=Background!$X$3,'Calc Solar'!I95*$I$173,'Calc Solar'!J95*$J$173)) -> 0 | L95: =IF('Input Solar'!$D$20="Default",IF('Input Solar'!$D$18=Background!$X$2,'Calc Solar'!H95,IF('Input Solar'!$D$18=Background!$X$3,'Calc Solar'!I95,'Calc Solar'!J95)),K95) -> 0 | M95: 0 | N95: 0 | O95: 0 | P95: 0 | R95: 0 | S95: 0 | T95: 0 | X95: 0 | AF95: =SUM(AE$3:AE95) ->  | AM95: =SUM(AL$3:AL95) ->  | AT95: =SUM(AS$3:AS95) ->  | BA95: =SUM(AZ$3:AZ95) ->  | BH95: =SUM(BG$3:BG95) ->  | BO95: =SUM(BN$3:BN95) ->  | BV95: =SUM(BU$3:BU95) ->  | CC95: =SUM(CB$3:CB95) ->  | CJ95: =SUM(CI$3:CI95) ->  | CQ95: =SUM(CP$3:CP95) -> 
A96: P_operational | B96: =IF('Input Solar'!$D$40="Default",'Input Solar'!$D$43,'Input Solar'!$E$43) -> 0 | E96: 94 | F96: 0 | G96: 0 | H96: 0 | I96: 0 | J96: 0 | K96: =IF('Input Solar'!$D$18=Background!$X$2,'Calc Solar'!H96*$H$173,IF('Input Solar'!$D$18=Background!$X$3,'Calc Solar'!I96*$I$173,'Calc Solar'!J96*$J$173)) -> 0 | L96: =IF('Input Solar'!$D$20="Default",IF('Input Solar'!$D$18=Background!$X$2,'Calc Solar'!H96,IF('Input Solar'!$D$18=Background!$X$3,'Calc Solar'!I96,'Calc Solar'!J96)),K96) -> 0 | M96: 0 | N96: 0 | O96: 0 | P96: 0 | R96: 0 | S96: 0 | T96: 0 | X96: 0 | Y96: =MIN($B$9*$B$8,(DC95-$B$12)*$B$8*$B$11) ->  | AF96: =SUM(AE$3:AE96) ->  | AM96: =SUM(AL$3:AL96) ->  | AT96: =SUM(AS$3:AS96) ->  | BA96: =SUM(AZ$3:AZ96) ->  | BH96: =SUM(BG$3:BG96) ->  | BO96: =SUM(BN$3:BN96) ->  | BV96: =SUM(BU$3:BU96) ->  | CC96: =SUM(CB$3:CB96) ->  | CJ96: =SUM(CI$3:CI96) ->  | CQ96: =SUM(CP$3:CP96) ->  | CX96: =MAX(0,MIN(CW96/$B$8,1-DC95)) ->  | CZ96: =MIN(0,MAX(CY96/$B$8,-1*(DC95-$B$12))) ->  | DC96: =MIN(1,DC95+CZ96+CX96) -> 
A97: Liter/kWh | B97: =IF('Input Solar'!$D$26="Default",'Input Solar'!$D34,'Input Solar'!$E34) -> 0.33 | E97: 95 | F97: 0 | G97: 0 | H97: 0 | I97: 0 | J97: 0 | K97: =IF('Input Solar'!$D$18=Background!$X$2,'Calc Solar'!H97*$H$173,IF('Input Solar'!$D$18=Background!$X$3,'Calc Solar'!I97*$I$173,'Calc Solar'!J97*$J$173)) -> 0 | L97: =IF('Input Solar'!$D$20="Default",IF('Input Solar'!$D$18=Background!$X$2,'Calc Solar'!H97,IF('Input Solar'!$D$18=Background!$X$3,'Calc Solar'!I97,'Calc Solar'!J97)),K97) -> 0 | M97: 0 | N97: 0 | O97: 0 | P97: 0 | R97: 0 | S97: 0 | T97: 0 | X97: 0 | AF97: =SUM(AE$3:AE97) ->  | AM97: =SUM(AL$3:AL97) ->  | AT97: =SUM(AS$3:AS97) ->  | BA97: =SUM(AZ$3:AZ97) ->  | BH97: =SUM(BG$3:BG97) ->  | BO97: =SUM(BN$3:BN97) ->  | BV97: =SUM(BU$3:BU97) ->  | CC97: =SUM(CB$3:CB97) ->  | CJ97: =SUM(CI$3:CI97) ->  | CQ97: =SUM(CP$3:CP97) -> 
A98: Fuel costs start | B98: =IF('Input Solar'!$D$26="Default",'Input Solar'!$D35,'Input Solar'!$E35) -> 35 | E98: 96 | F98: 0 | G98: 0 | H98: 0 | I98: 0 | J98: 0 | K98: =IF('Input Solar'!$D$18=Background!$X$2,'Calc Solar'!H98*$H$173,IF('Input Solar'!$D$18=Background!$X$3,'Calc Solar'!I98*$I$173,'Calc Solar'!J98*$J$173)) -> 0 | L98: =IF('Input Solar'!$D$20="Default",IF('Input Solar'!$D$18=Background!$X$2,'Calc Solar'!H98,IF('Input Solar'!$D$18=Background!$X$3,'Calc Solar'!I98,'Calc Solar'!J98)),K98) -> 0 | M98: 0 | N98: 0 | O98: 0 | P98: 0 | R98: 0 | S98: 0 | T98: 0 | X98: 0 | AF98: =SUM(AE$3:AE98) ->  | AM98: =SUM(AL$3:AL98) ->  | AT98: =SUM(AS$3:AS98) ->  | BA98: =SUM(AZ$3:AZ98) ->  | BH98: =SUM(BG$3:BG98) ->  | BO98: =SUM(BN$3:BN98) ->  | BV98: =SUM(BU$3:BU98) ->  | CC98: =SUM(CB$3:CB98) ->  | CJ98: =SUM(CI$3:CI98) ->  | CQ98: =SUM(CP$3:CP98) -> 
A99: Min offtake/weekday | B99: =IF('Input Solar'!$D$26="Default",'Input Solar'!$D36,'Input Solar'!E36)/(5+2*('Existing Load'!$D$19/'Existing Load'!$D$17))*1000/(8760/168) ->  | E99: 97 | F99: 0 | G99: 0 | H99: 0 | I99: 0 | J99: 0 | K99: =IF('Input Solar'!$D$18=Background!$X$2,'Calc Solar'!H99*$H$173,IF('Input Solar'!$D$18=Background!$X$3,'Calc Solar'!I99*$I$173,'Calc Solar'!J99*$J$173)) -> 0 | L99: =IF('Input Solar'!$D$20="Default",IF('Input Solar'!$D$18=Background!$X$2,'Calc Solar'!H99,IF('Input Solar'!$D$18=Background!$X$3,'Calc Solar'!I99,'Calc Solar'!J99)),K99) -> 0 | M99: 0 | N99: 0 | O99: =MIN(N99,0) -> 0 | P99: 0 | Q99: =MAX(P99,-(1-DC98)*$B$8) ->  | R99: =MAX(N99,0) -> 0 | S99: =IFERROR(R99/SUM(R$99:R$122),0) -> 0 | T99: 0 | U99: =MAX(MIN(T99,(DC98-$B$12)*$B$8),0) ->  | W99: =ROUND(MAX(0,N99-V99),5) ->  | X99: =G99*$B$14 -> 0 | AF99: =SUM(AE$3:AE99) ->  | AJ99: =AC99-AG99 ->  | AL99: =IF(AJ99<=0,0,MIN(MAX(AJ99,$B$114),($B$116-AK99))) ->  | AM99: =SUM(AL$3:AL99) ->  | AP99: =$B$117*AO99 ->  | AQ99: =AJ99-AN99 ->  | AS99: =IF(AQ99<=0,0,MIN(MAX(AQ99,$B$134),($B$136-AR99))) ->  | AT99: =SUM(AS$3:AS99) ->  | AW99: =$B$137*AV99 ->  | AX99: =AQ99-AU99 ->  | BA99: =SUM(AZ$3:AZ99) ->  | BD99: =$B$160*BC99 ->  | BH99: =SUM(BG$3:BG99) ->  | BK99: =$B$180*BJ99 ->  | BO99: =SUM(BN$3:BN99) ->  | BR99: =$B$200*BQ99 ->  | BV99: =SUM(BU$3:BU99) ->  | BY99: =$B$220*BX99 ->  | CC99: =SUM(CB$3:CB99) ->  | CF99: =$B$240*CE99 ->  | CJ99: =SUM(CI$3:CI99) ->  | CM99: =$B$260*CL99 ->  | CQ99: =SUM(CP$3:CP99) ->  | CT99: =$B$280*CS99 ->  | CU99: =CS99+CL99+CE99+BX99+BQ99+BJ99+BC99+AV99+AO99+AH99 ->  | CV99: =CU99+M99-G99 ->  | DE99: =MAX(G99-M99-CU99-DA99,0) ->  | DF99: =MAX(G99-CU99-DE99-DA99,0) ->  | DG99: =MAX(DB99,-1*(M99-DF99)) ->  | DH99: =G99-DF99-DA99-DE99 ->  | DJ99: =MAX(DB99-DG99,-1*DI99) -> 
A100: Min offtake/weekend | B100: =('Existing Load'!$D$19/'Existing Load'!$D$17)*B99 ->  | E100: 98 | F100: 0 | G100: 0 | H100: 0 | I100: 0 | J100: 0 | K100: =IF('Input Solar'!$D$18=Background!$X$2,'Calc Solar'!H100*$H$173,IF('Input Solar'!$D$18=Background!$X$3,'Calc Solar'!I100*$I$173,'Calc Solar'!J100*$J$173)) -> 0 | L100: =IF('Input Solar'!$D$20="Default",IF('Input Solar'!$D$18=Background!$X$2,'Calc Solar'!H100,IF('Input Solar'!$D$18=Background!$X$3,'Calc Solar'!I100,'Calc Solar'!J100)),K100) -> 0 | M100: 0 | N100: 0 | O100: 0 | P100: 0 | Q100: =MAX(P100,-(1-DC99)*$B$8) ->  | R100: 0 | S100: 0 | T100: 0 | U100: =MAX(MIN(T100,(DC99-$B$12)*$B$8),0) ->  | X100: 0 | Y100: =MIN($B$9*$B$8,(DC99-$B$12)*$B$8*$B$11) ->  | AF100: =SUM(AE$3:AE100) ->  | AM100: =SUM(AL$3:AL100) ->  | AT100: =SUM(AS$3:AS100) ->  | BA100: =SUM(AZ$3:AZ100) ->  | BH100: =SUM(BG$3:BG100) ->  | BO100: =SUM(BN$3:BN100) ->  | BV100: =SUM(BU$3:BU100) ->  | CC100: =SUM(CB$3:CB100) ->  | CJ100: =SUM(CI$3:CI100) ->  | CQ100: =SUM(CP$3:CP100) ->  | CX100: =MAX(0,MIN(CW100/$B$8,1-DC99)) ->  | CZ100: =MIN(0,MAX(CY100/$B$8,-1*(DC99-$B$12))) ->  | DC100: =MIN(1,DC99+CZ100+CX100) -> 
A101: Max offtake/week | B101: =IF('Input Solar'!$D$26="Default",'Input Solar'!$D37,'Input Solar'!$E37)*1000/(8760/168) -> 0 | E101: 99 | F101: 0 | G101: 0 | H101: 0 | I101: 0 | J101: 0 | K101: =IF('Input Solar'!$D$18=Background!$X$2,'Calc Solar'!H101*$H$173,IF('Input Solar'!$D$18=Background!$X$3,'Calc Solar'!I101*$I$173,'Calc Solar'!J101*$J$173)) -> 0 | L101: =IF('Input Solar'!$D$20="Default",IF('Input Solar'!$D$18=Background!$X$2,'Calc Solar'!H101,IF('Input Solar'!$D$18=Background!$X$3,'Calc Solar'!I101,'Calc Solar'!J101)),K101) -> 0 | M101: 0 | N101: 0 | O101: 0 | P101: 0 | R101: 0 | S101: 0 | T101: 0 | X101: 0 | AF101: =SUM(AE$3:AE101) ->  | AM101: =SUM(AL$3:AL101) ->  | AT101: =SUM(AS$3:AS101) ->  | BA101: =SUM(AZ$3:AZ101) ->  | BH101: =SUM(BG$3:BG101) ->  | BO101: =SUM(BN$3:BN101) ->  | BV101: =SUM(BU$3:BU101) ->  | CC101: =SUM(CB$3:CB101) ->  | CJ101: =SUM(CI$3:CI101) ->  | CQ101: =SUM(CP$3:CP101) -> 
A102: Fuel costs (sim) | B102: =IF(Background!$W$2,B98*(1+B$32)^(Background!$B$56-1),IF(Background!$U$2,fuel_costs(B98,B$32,B$34),B98)) -> 35 | E102: 100 | F102: 0 | G102: 0 | H102: 0 | I102: 0 | J102: 0 | K102: =IF('Input Solar'!$D$18=Background!$X$2,'Calc Solar'!H102*$H$173,IF('Input Solar'!$D$18=Background!$X$3,'Calc Solar'!I102*$I$173,'Calc Solar'!J102*$J$173)) -> 0 | L102: =IF('Input Solar'!$D$20="Default",IF('Input Solar'!$D$18=Background!$X$2,'Calc Solar'!H102,IF('Input Solar'!$D$18=Background!$X$3,'Calc Solar'!I102,'Calc Solar'!J102)),K102) -> 0 | M102: 0 | N102: 0 | O102: 0 | P102: 0 | R102: 0 | S102: 0 | T102: 0 | X102: 0 | AF102: =SUM(AE$3:AE102) ->  | AM102: =SUM(AL$3:AL102) ->  | AT102: =SUM(AS$3:AS102) ->  | BA102: =SUM(AZ$3:AZ102) ->  | BH102: =SUM(BG$3:BG102) ->  | BO102: =SUM(BN$3:BN102) ->  | BV102: =SUM(BU$3:BU102) ->  | CC102: =SUM(CB$3:CB102) ->  | CJ102: =SUM(CI$3:CI102) ->  | CQ102: =SUM(CP$3:CP102) -> 
A103: Diesel generation | B103: =SUM(AH3:AH170) ->  | E103: 101 | F103: 0 | G103: 0 | H103: 0 | I103: 0 | J103: 0 | K103: =IF('Input Solar'!$D$18=Background!$X$2,'Calc Solar'!H103*$H$173,IF('Input Solar'!$D$18=Background!$X$3,'Calc Solar'!I103*$I$173,'Calc Solar'!J103*$J$173)) -> 0 | L103: =IF('Input Solar'!$D$20="Default",IF('Input Solar'!$D$18=Background!$X$2,'Calc Solar'!H103,IF('Input Solar'!$D$18=Background!$X$3,'Calc Solar'!I103,'Calc Solar'!J103)),K103) -> 0 | M103: 0 | N103: 0 | O103: 0 | P103: 0 | R103: 0 | S103: 0 | T103: 0 | X103: 0 | AF103: =SUM(AE$3:AE103) ->  | AM103: =SUM(AL$3:AL103) ->  | AT103: =SUM(AS$3:AS103) ->  | BA103: =SUM(AZ$3:AZ103) ->  | BH103: =SUM(BG$3:BG103) ->  | BO103: =SUM(BN$3:BN103) ->  | BV103: =SUM(BU$3:BU103) ->  | CC103: =SUM(CB$3:CB103) ->  | CJ103: =SUM(CI$3:CI103) ->  | CQ103: =SUM(CP$3:CP103) -> 
A104: Diesel l/week | B104: =SUM(AI3:AI170) ->  | E104: 102 | F104: 0 | G104: 0 | H104: 0 | I104: 0 | J104: 0 | K104: =IF('Input Solar'!$D$18=Background!$X$2,'Calc Solar'!H104*$H$173,IF('Input Solar'!$D$18=Background!$X$3,'Calc Solar'!I104*$I$173,'Calc Solar'!J104*$J$173)) -> 0 | L104: =IF('Input Solar'!$D$20="Default",IF('Input Solar'!$D$18=Background!$X$2,'Calc Solar'!H104,IF('Input Solar'!$D$18=Background!$X$3,'Calc Solar'!I104,'Calc Solar'!J104)),K104) -> 0 | M104: 0 | N104: 0 | O104: 0 | P104: 0 | R104: 0 | S104: 0 | T104: 0 | X104: 0 | AF104: =SUM(AE$3:AE104) ->  | AM104: =SUM(AL$3:AL104) ->  | AT104: =SUM(AS$3:AS104) ->  | BA104: =SUM(AZ$3:AZ104) ->  | BH104: =SUM(BG$3:BG104) ->  | BO104: =SUM(BN$3:BN104) ->  | BV104: =SUM(BU$3:BU104) ->  | CC104: =SUM(CB$3:CB104) ->  | CJ104: =SUM(CI$3:CI104) ->  | CQ104: =SUM(CP$3:CP104) -> 
A105: Diesel cost PHP/week | B105: =B104*B102 ->  | E105: 103 | F105: 0 | G105: 0 | H105: 0.02072962126 | I105: 0.04260297916 | J105: 0.07727024889 | K105: =IF('Input Solar'!$D$18=Background!$X$2,'Calc Solar'!H105*$H$173,IF('Input Solar'!$D$18=Background!$X$3,'Calc Solar'!I105*$I$173,'Calc Solar'!J105*$J$173)) -> 0 | L105: =IF('Input Solar'!$D$20="Default",IF('Input Solar'!$D$18=Background!$X$2,'Calc Solar'!H105,IF('Input Solar'!$D$18=Background!$X$3,'Calc Solar'!I105,'Calc Solar'!J105)),K105) -> 0.02072962126 | M105: 0 | N105: 0 | O105: 0 | P105: 0 | R105: 0 | S105: 0 | T105: 0 | X105: 0 | AF105: =SUM(AE$3:AE105) ->  | AM105: =SUM(AL$3:AL105) ->  | AT105: =SUM(AS$3:AS105) ->  | BA105: =SUM(AZ$3:AZ105) ->  | BH105: =SUM(BG$3:BG105) ->  | BO105: =SUM(BN$3:BN105) ->  | BV105: =SUM(BU$3:BU105) ->  | CC105: =SUM(CB$3:CB105) ->  | CJ105: =SUM(CI$3:CI105) ->  | CQ105: =SUM(CP$3:CP105) -> 
A106: Diesel CAPEX | B106: =IF('Input Solar'!D26="Default",'Input Solar'!D31,'Input Solar'!E31)*B95 -> 0 | E106: 104 | F106: 0 | G106: 0 | H106: 0.2351353915 | I106: 0.1567460387 | J106: 0.3026207913 | K106: =IF('Input Solar'!$D$18=Background!$X$2,'Calc Solar'!H106*$H$173,IF('Input Solar'!$D$18=Background!$X$3,'Calc Solar'!I106*$I$173,'Calc Solar'!J106*$J$173)) -> 0 | L106: =IF('Input Solar'!$D$20="Default",IF('Input Solar'!$D$18=Background!$X$2,'Calc Solar'!H106,IF('Input Solar'!$D$18=Background!$X$3,'Calc Solar'!I106,'Calc Solar'!J106)),K106) -> 0.2351353915 | M106: 0 | N106: 0 | O106: 0 | P106: 0 | R106: 0 | S106: 0 | T106: 0 | X106: 0 | AF106: =SUM(AE$3:AE106) ->  | AM106: =SUM(AL$3:AL106) ->  | AT106: =SUM(AS$3:AS106) ->  | BA106: =SUM(AZ$3:AZ106) ->  | BH106: =SUM(BG$3:BG106) ->  | BO106: =SUM(BN$3:BN106) ->  | BV106: =SUM(BU$3:BU106) ->  | CC106: =SUM(CB$3:CB106) ->  | CJ106: =SUM(CI$3:CI106) ->  | CQ106: =SUM(CP$3:CP106) -> 
A107: Diesel lifetime | B107: =IF('Input Solar'!D26="Default",'Input Solar'!D38,'Input Solar'!E38) -> 10 | E107: 105 | F107: 0 | G107: 0 | H107: 0.4200903209 | I107: 0.3065154965 | J107: 0.4940017407 | K107: =IF('Input Solar'!$D$18=Background!$X$2,'Calc Solar'!H107*$H$173,IF('Input Solar'!$D$18=Background!$X$3,'Calc Solar'!I107*$I$173,'Calc Solar'!J107*$J$173)) -> 0 | L107: =IF('Input Solar'!$D$20="Default",IF('Input Solar'!$D$18=Background!$X$2,'Calc Solar'!H107,IF('Input Solar'!$D$18=Background!$X$3,'Calc Solar'!I107,'Calc Solar'!J107)),K107) -> 0.4200903209 | M107: 0 | N107: 0 | O107: 0 | P107: 0 | R107: 0 | S107: 0 | T107: 0 | X107: 0 | AF107: =SUM(AE$3:AE107) ->  | AM107: =SUM(AL$3:AL107) ->  | AT107: =SUM(AS$3:AS107) ->  | BA107: =SUM(AZ$3:AZ107) ->  | BH107: =SUM(BG$3:BG107) ->  | BO107: =SUM(BN$3:BN107) ->  | BV107: =SUM(BU$3:BU107) ->  | CC107: =SUM(CB$3:CB107) ->  | CJ107: =SUM(CI$3:CI107) ->  | CQ107: =SUM(CP$3:CP107) -> 
A108: Diesel CRF | B108: =B$77*POWER(1+B$77,B107)/(POWER(1+B$77,B107)-1) -> 0.1769841642 | E108: 106 | F108: 0 | G108: 0 | H108: 0.4994373023 | I108: 0.4456651437 | J108: 0.6290946603 | K108: =IF('Input Solar'!$D$18=Background!$X$2,'Calc Solar'!H108*$H$173,IF('Input Solar'!$D$18=Background!$X$3,'Calc Solar'!I108*$I$173,'Calc Solar'!J108*$J$173)) -> 0 | L108: =IF('Input Solar'!$D$20="Default",IF('Input Solar'!$D$18=Background!$X$2,'Calc Solar'!H108,IF('Input Solar'!$D$18=Background!$X$3,'Calc Solar'!I108,'Calc Solar'!J108)),K108) -> 0.4994373023 | M108: 0 | N108: 0 | O108: 0 | P108: 0 | R108: 0 | S108: 0 | T108: 0 | X108: 0 | AF108: =SUM(AE$3:AE108) ->  | AM108: =SUM(AL$3:AL108) ->  | AT108: =SUM(AS$3:AS108) ->  | BA108: =SUM(AZ$3:AZ108) ->  | BH108: =SUM(BG$3:BG108) ->  | BO108: =SUM(BN$3:BN108) ->  | BV108: =SUM(BU$3:BU108) ->  | CC108: =SUM(CB$3:CB108) ->  | CJ108: =SUM(CI$3:CI108) ->  | CQ108: =SUM(CP$3:CP108) -> 
A109: Diesel Ann | B109: =B108*B106 -> 0 | E109: 107 | F109: 0 | G109: 0 | H109: 0.482447953 | I109: 0.5591561662 | J109: 0.704825323 | K109: =IF('Input Solar'!$D$18=Background!$X$2,'Calc Solar'!H109*$H$173,IF('Input Solar'!$D$18=Background!$X$3,'Calc Solar'!I109*$I$173,'Calc Solar'!J109*$J$173)) -> 0 | L109: =IF('Input Solar'!$D$20="Default",IF('Input Solar'!$D$18=Background!$X$2,'Calc Solar'!H109,IF('Input Solar'!$D$18=Background!$X$3,'Calc Solar'!I109,'Calc Solar'!J109)),K109) -> 0.482447953 | M109: 0 | N109: 0 | O109: 0 | P109: 0 | R109: 0 | S109: 0 | T109: 0 | X109: 0 | AF109: =SUM(AE$3:AE109) ->  | AM109: =SUM(AL$3:AL109) ->  | AT109: =SUM(AS$3:AS109) ->  | BA109: =SUM(AZ$3:AZ109) ->  | BH109: =SUM(BG$3:BG109) ->  | BO109: =SUM(BN$3:BN109) ->  | BV109: =SUM(BU$3:BU109) ->  | CC109: =SUM(CB$3:CB109) ->  | CJ109: =SUM(CI$3:CI109) ->  | CQ109: =SUM(CP$3:CP109) -> 
A110: Diesel Opex var | B110: =IF('Input Solar'!D26="Default",'Input Solar'!D32,'Input Solar'!E32)*B103*8760/168 ->  | E110: 108 | F110: 0 | G110: 0 | H110: 0.5372733464 | I110: 0.6146427941 | J110: 0.7224011665 | K110: =IF('Input Solar'!$D$18=Background!$X$2,'Calc Solar'!H110*$H$173,IF('Input Solar'!$D$18=Background!$X$3,'Calc Solar'!I110*$I$173,'Calc Solar'!J110*$J$173)) -> 0 | L110: =IF('Input Solar'!$D$20="Default",IF('Input Solar'!$D$18=Background!$X$2,'Calc Solar'!H110,IF('Input Solar'!$D$18=Background!$X$3,'Calc Solar'!I110,'Calc Solar'!J110)),K110) -> 0.5372733464 | M110: 0 | N110: 0 | O110: 0 | P110: 0 | R110: 0 | S110: 0 | T110: 0 | X110: 0 | AF110: =SUM(AE$3:AE110) ->  | AM110: =SUM(AL$3:AL110) ->  | AT110: =SUM(AS$3:AS110) ->  | BA110: =SUM(AZ$3:AZ110) ->  | BH110: =SUM(BG$3:BG110) ->  | BO110: =SUM(BN$3:BN110) ->  | BV110: =SUM(BU$3:BU110) ->  | CC110: =SUM(CB$3:CB110) ->  | CJ110: =SUM(CI$3:CI110) ->  | CQ110: =SUM(CP$3:CP110) -> 
A111: Diesel Opex fix | B111: =IF('Input Solar'!D26="Default",'Input Solar'!D33,'Input Solar'!E33)*B95 -> 0 | E111: 109 | F111: 0 | G111: 0 | H111: 0.5473143042 | I111: 0.6234818766 | J111: 0.6868487173 | K111: =IF('Input Solar'!$D$18=Background!$X$2,'Calc Solar'!H111*$H$173,IF('Input Solar'!$D$18=Background!$X$3,'Calc Solar'!I111*$I$173,'Calc Solar'!J111*$J$173)) -> 0 | L111: =IF('Input Solar'!$D$20="Default",IF('Input Solar'!$D$18=Background!$X$2,'Calc Solar'!H111,IF('Input Solar'!$D$18=Background!$X$3,'Calc Solar'!I111,'Calc Solar'!J111)),K111) -> 0.5473143042 | M111: 0 | N111: 0 | O111: 0 | P111: 0 | R111: 0 | S111: 0 | T111: 0 | X111: 0 | AF111: =SUM(AE$3:AE111) ->  | AM111: =SUM(AL$3:AL111) ->  | AT111: =SUM(AS$3:AS111) ->  | BA111: =SUM(AZ$3:AZ111) ->  | BH111: =SUM(BG$3:BG111) ->  | BO111: =SUM(BN$3:BN111) ->  | BV111: =SUM(BU$3:BU111) ->  | CC111: =SUM(CB$3:CB111) ->  | CJ111: =SUM(CI$3:CI111) ->  | CQ111: =SUM(CP$3:CP111) -> 
A112: =CONCATENATE("GenCo ",IF('Input Solar'!D48="Default",'Input Solar'!D52,'Input Solar'!E52)) -> GenCo B | E112: 110 | F112: 0 | G112: 0 | H112: 0.5105136769 | I112: 0.583399892 | J112: 0.6029977264 | K112: =IF('Input Solar'!$D$18=Background!$X$2,'Calc Solar'!H112*$H$173,IF('Input Solar'!$D$18=Background!$X$3,'Calc Solar'!I112*$I$173,'Calc Solar'!J112*$J$173)) -> 0 | L112: =IF('Input Solar'!$D$20="Default",IF('Input Solar'!$D$18=Background!$X$2,'Calc Solar'!H112,IF('Input Solar'!$D$18=Background!$X$3,'Calc Solar'!I112,'Calc Solar'!J112)),K112) -> 0.5105136769 | M112: 0 | N112: 0 | O112: 0 | P112: 0 | R112: 0 | S112: 0 | T112: 0 | X112: 0 | AF112: =SUM(AE$3:AE112) ->  | AM112: =SUM(AL$3:AL112) ->  | AT112: =SUM(AS$3:AS112) ->  | BA112: =SUM(AZ$3:AZ112) ->  | BH112: =SUM(BG$3:BG112) ->  | BO112: =SUM(BN$3:BN112) ->  | BV112: =SUM(BU$3:BU112) ->  | CC112: =SUM(CB$3:CB112) ->  | CJ112: =SUM(CI$3:CI112) ->  | CQ112: =SUM(CP$3:CP112) -> 
A113: P_smallest gen | B113: =IF('Input Solar'!$D$62="Default",'Input Solar'!$D$66,'Input Solar'!$E$66) -> 0 | E113: 111 | F113: 0 | G113: 0 | H113: 0.3625129388 | I113: 0.4018570796 | J113: 0.4185677862 | K113: =IF('Input Solar'!$D$18=Background!$X$2,'Calc Solar'!H113*$H$173,IF('Input Solar'!$D$18=Background!$X$3,'Calc Solar'!I113*$I$173,'Calc Solar'!J113*$J$173)) -> 0 | L113: =IF('Input Solar'!$D$20="Default",IF('Input Solar'!$D$18=Background!$X$2,'Calc Solar'!H113,IF('Input Solar'!$D$18=Background!$X$3,'Calc Solar'!I113,'Calc Solar'!J113)),K113) -> 0.3625129388 | M113: 0 | N113: 0 | O113: 0 | P113: 0 | R113: 0 | S113: 0 | T113: 0 | X113: 0 | AF113: =SUM(AE$3:AE113) ->  | AM113: =SUM(AL$3:AL113) ->  | AT113: =SUM(AS$3:AS113) ->  | BA113: =SUM(AZ$3:AZ113) ->  | BH113: =SUM(BG$3:BG113) ->  | BO113: =SUM(BN$3:BN113) ->  | BV113: =SUM(BU$3:BU113) ->  | CC113: =SUM(CB$3:CB113) ->  | CJ113: =SUM(CI$3:CI113) ->  | CQ113: =SUM(CP$3:CP113) -> 
A114: P_min | B114: =0.3*B113 -> 0 | E114: 112 | F114: 0 | G114: 0 | H114: 0.2073494278 | I114: 0.2192479822 | J114: 0.2345149128 | K114: =IF('Input Solar'!$D$18=Background!$X$2,'Calc Solar'!H114*$H$173,IF('Input Solar'!$D$18=Background!$X$3,'Calc Solar'!I114*$I$173,'Calc Solar'!J114*$J$173)) -> 0 | L114: =IF('Input Solar'!$D$20="Default",IF('Input Solar'!$D$18=Background!$X$2,'Calc Solar'!H114,IF('Input Solar'!$D$18=Background!$X$3,'Calc Solar'!I114,'Calc Solar'!J114)),K114) -> 0.2073494278 | M114: 0 | N114: 0 | O114: 0 | P114: 0 | R114: 0 | S114: 0 | T114: 0 | X114: 0 | AF114: =SUM(AE$3:AE114) ->  | AM114: =SUM(AL$3:AL114) ->  | AT114: =SUM(AS$3:AS114) ->  | BA114: =SUM(AZ$3:AZ114) ->  | BH114: =SUM(BG$3:BG114) ->  | BO114: =SUM(BN$3:BN114) ->  | BV114: =SUM(BU$3:BU114) ->  | CC114: =SUM(CB$3:CB114) ->  | CJ114: =SUM(CI$3:CI114) ->  | CQ114: =SUM(CP$3:CP114) -> 
A115: P_max | B115: =IF('Input Solar'!$D$62="Default",'Input Solar'!$D64,'Input Solar'!$E64) -> 0 | E115: 113 | F115: 0 | G115: 0 | H115: 0.07157694646 | I115: 0.06973621888 | J115: 0.08403787586 | K115: =IF('Input Solar'!$D$18=Background!$X$2,'Calc Solar'!H115*$H$173,IF('Input Solar'!$D$18=Background!$X$3,'Calc Solar'!I115*$I$173,'Calc Solar'!J115*$J$173)) -> 0 | L115: =IF('Input Solar'!$D$20="Default",IF('Input Solar'!$D$18=Background!$X$2,'Calc Solar'!H115,IF('Input Solar'!$D$18=Background!$X$3,'Calc Solar'!I115,'Calc Solar'!J115)),K115) -> 0.07157694646 | M115: 0 | N115: 0 | O115: 0 | P115: 0 | R115: 0 | S115: 0 | T115: 0 | X115: 0 | AF115: =SUM(AE$3:AE115) ->  | AM115: =SUM(AL$3:AL115) ->  | AT115: =SUM(AS$3:AS115) ->  | BA115: =SUM(AZ$3:AZ115) ->  | BH115: =SUM(BG$3:BG115) ->  | BO115: =SUM(BN$3:BN115) ->  | BV115: =SUM(BU$3:BU115) ->  | CC115: =SUM(CB$3:CB115) ->  | CJ115: =SUM(CI$3:CI115) ->  | CQ115: =SUM(CP$3:CP115) -> 
A116: P_operational | B116: =IF('Input Solar'!$D$62="Default",'Input Solar'!$D65,'Input Solar'!$E65) -> 0 | E116: 114 | F116: 0 | G116: 0 | H116: 0 | I116: 0 | J116: 0.003571203296 | K116: =IF('Input Solar'!$D$18=Background!$X$2,'Calc Solar'!H116*$H$173,IF('Input Solar'!$D$18=Background!$X$3,'Calc Solar'!I116*$I$173,'Calc Solar'!J116*$J$173)) -> 0 | L116: =IF('Input Solar'!$D$20="Default",IF('Input Solar'!$D$18=Background!$X$2,'Calc Solar'!H116,IF('Input Solar'!$D$18=Background!$X$3,'Calc Solar'!I116,'Calc Solar'!J116)),K116) -> 0 | M116: 0 | N116: 0 | O116: 0 | P116: 0 | R116: 0 | S116: 0 | T116: 0 | X116: 0 | AF116: =SUM(AE$3:AE116) ->  | AM116: =SUM(AL$3:AL116) ->  | AT116: =SUM(AS$3:AS116) ->  | BA116: =SUM(AZ$3:AZ116) ->  | BH116: =SUM(BG$3:BG116) ->  | BO116: =SUM(BN$3:BN116) ->  | BV116: =SUM(BU$3:BU116) ->  | CC116: =SUM(CB$3:CB116) ->  | CJ116: =SUM(CI$3:CI116) ->  | CQ116: =SUM(CP$3:CP116) -> 
A117: Liter/kWh | B117: =IF('Input Solar'!$D$48="Default",'Input Solar'!$D56,'Input Solar'!$E56) -> 0.33 | E117: 115 | F117: 0 | G117: 0 | H117: 0 | I117: 0 | J117: 0 | K117: =IF('Input Solar'!$D$18=Background!$X$2,'Calc Solar'!H117*$H$173,IF('Input Solar'!$D$18=Background!$X$3,'Calc Solar'!I117*$I$173,'Calc Solar'!J117*$J$173)) -> 0 | L117: =IF('Input Solar'!$D$20="Default",IF('Input Solar'!$D$18=Background!$X$2,'Calc Solar'!H117,IF('Input Solar'!$D$18=Background!$X$3,'Calc Solar'!I117,'Calc Solar'!J117)),K117) -> 0 | M117: 0 | N117: 0 | O117: 0 | P117: 0 | R117: 0 | S117: 0 | T117: 0 | X117: 0 | AC117: =MAX($W117,$Z117)-AB117 ->  | AF117: =SUM(AE$3:AE117) ->  | AM117: =SUM(AL$3:AL117) ->  | AT117: =SUM(AS$3:AS117) ->  | BA117: =SUM(AZ$3:AZ117) ->  | BH117: =SUM(BG$3:BG117) ->  | BO117: =SUM(BN$3:BN117) ->  | BV117: =SUM(BU$3:BU117) ->  | CC117: =SUM(CB$3:CB117) ->  | CJ117: =SUM(CI$3:CI117) ->  | CQ117: =SUM(CP$3:CP117) -> 
A118: Fuel costs start | B118: =IF('Input Solar'!$D$48="Default",'Input Solar'!$D57,'Input Solar'!$E57) -> 35 | E118: 116 | F118: 0 | G118: 0 | H118: 0 | I118: 0 | J118: 0 | K118: =IF('Input Solar'!$D$18=Background!$X$2,'Calc Solar'!H118*$H$173,IF('Input Solar'!$D$18=Background!$X$3,'Calc Solar'!I118*$I$173,'Calc Solar'!J118*$J$173)) -> 0 | L118: =IF('Input Solar'!$D$20="Default",IF('Input Solar'!$D$18=Background!$X$2,'Calc Solar'!H118,IF('Input Solar'!$D$18=Background!$X$3,'Calc Solar'!I118,'Calc Solar'!J118)),K118) -> 0 | M118: 0 | N118: 0 | O118: 0 | P118: 0 | R118: 0 | S118: 0 | T118: 0 | X118: 0 | AF118: =SUM(AE$3:AE118) ->  | AM118: =SUM(AL$3:AL118) ->  | AT118: =SUM(AS$3:AS118) ->  | BA118: =SUM(AZ$3:AZ118) ->  | BH118: =SUM(BG$3:BG118) ->  | BO118: =SUM(BN$3:BN118) ->  | BV118: =SUM(BU$3:BU118) ->  | CC118: =SUM(CB$3:CB118) ->  | CJ118: =SUM(CI$3:CI118) ->  | CQ118: =SUM(CP$3:CP118) -> 
A119: Min offtake/weekday | B119: =IF('Input Solar'!$D$48="Default",'Input Solar'!$D80,'Input Solar'!$E58)/(5+2*('Existing Load'!$D$19/'Existing Load'!$D$17))*1000/(8760/168) ->  | E119: 117 | F119: 0 | G119: 0 | H119: 0 | I119: 0 | J119: 0 | K119: =IF('Input Solar'!$D$18=Background!$X$2,'Calc Solar'!H119*$H$173,IF('Input Solar'!$D$18=Background!$X$3,'Calc Solar'!I119*$I$173,'Calc Solar'!J119*$J$173)) -> 0 | L119: =IF('Input Solar'!$D$20="Default",IF('Input Solar'!$D$18=Background!$X$2,'Calc Solar'!H119,IF('Input Solar'!$D$18=Background!$X$3,'Calc Solar'!I119,'Calc Solar'!J119)),K119) -> 0 | M119: 0 | N119: 0 | O119: 0 | P119: 0 | Q119: =MAX(P119,-(1-DC118)*$B$8) ->  | R119: 0 | S119: 0 | T119: 0 | U119: =MAX(MIN(T119,(DC118-$B$12)*$B$8),0) ->  | X119: 0 | Y119: =MIN($B$9*$B$8,(DC118-$B$12)*$B$8*$B$11) ->  | AF119: =SUM(AE$3:AE119) ->  | AM119: =SUM(AL$3:AL119) ->  | AT119: =SUM(AS$3:AS119) ->  | BA119: =SUM(AZ$3:AZ119) ->  | BH119: =SUM(BG$3:BG119) ->  | BO119: =SUM(BN$3:BN119) ->  | BV119: =SUM(BU$3:BU119) ->  | CC119: =SUM(CB$3:CB119) ->  | CJ119: =SUM(CI$3:CI119) ->  | CQ119: =SUM(CP$3:CP119) ->  | CX119: =MAX(0,MIN(CW119/$B$8,1-DC118)) ->  | CZ119: =MIN(0,MAX(CY119/$B$8,-1*(DC118-$B$12))) ->  | DC119: =MIN(1,DC118+CZ119+CX119) -> 
A120: Min offtake/weekend | B120: =('Existing Load'!$D$19/'Existing Load'!$D$17)*B119 ->  | E120: 118 | F120: 0 | G120: 0 | H120: 0 | I120: 0 | J120: 0 | K120: =IF('Input Solar'!$D$18=Background!$X$2,'Calc Solar'!H120*$H$173,IF('Input Solar'!$D$18=Background!$X$3,'Calc Solar'!I120*$I$173,'Calc Solar'!J120*$J$173)) -> 0 | L120: =IF('Input Solar'!$D$20="Default",IF('Input Solar'!$D$18=Background!$X$2,'Calc Solar'!H120,IF('Input Solar'!$D$18=Background!$X$3,'Calc Solar'!I120,'Calc Solar'!J120)),K120) -> 0 | M120: 0 | N120: 0 | O120: 0 | P120: 0 | R120: 0 | S120: 0 | T120: 0 | X120: 0 | AF120: =SUM(AE$3:AE120) ->  | AM120: =SUM(AL$3:AL120) ->  | AT120: =SUM(AS$3:AS120) ->  | BA120: =SUM(AZ$3:AZ120) ->  | BH120: =SUM(BG$3:BG120) ->  | BO120: =SUM(BN$3:BN120) ->  | BV120: =SUM(BU$3:BU120) ->  | CC120: =SUM(CB$3:CB120) ->  | CJ120: =SUM(CI$3:CI120) ->  | CQ120: =SUM(CP$3:CP120) -> 
A121: Max offtake/week | B121: =IF('Input Solar'!$D$48="Default",'Input Solar'!$D81,'Input Solar'!$E59)*1000/(8760/168) -> 0 | E121: 119 | F121: 0 | G121: 0 | H121: 0 | I121: 0 | J121: 0 | K121: =IF('Input Solar'!$D$18=Background!$X$2,'Calc Solar'!H121*$H$173,IF('Input Solar'!$D$18=Background!$X$3,'Calc Solar'!I121*$I$173,'Calc Solar'!J121*$J$173)) -> 0 | L121: =IF('Input Solar'!$D$20="Default",IF('Input Solar'!$D$18=Background!$X$2,'Calc Solar'!H121,IF('Input Solar'!$D$18=Background!$X$3,'Calc Solar'!I121,'Calc Solar'!J121)),K121) -> 0 | M121: 0 | N121: 0 | O121: 0 | P121: 0 | R121: 0 | S121: 0 | T121: 0 | X121: 0 | AF121: =SUM(AE$3:AE121) ->  | AM121: =SUM(AL$3:AL121) ->  | AT121: =SUM(AS$3:AS121) ->  | BA121: =SUM(AZ$3:AZ121) ->  | BH121: =SUM(BG$3:BG121) ->  | BO121: =SUM(BN$3:BN121) ->  | BV121: =SUM(BU$3:BU121) ->  | CC121: =SUM(CB$3:CB121) ->  | CJ121: =SUM(CI$3:CI121) ->  | CQ121: =SUM(CP$3:CP121) -> 
A122: Fuel costs (sim) | B122: =IF(Background!$W$2,B118*(1+B$32)^(Background!$B$56-1),IF(Background!$U$2,fuel_costs(B118,B$32,B$34),B118)) -> 35 | E122: 120 | F122: 0 | G122: 0 | H122: 0 | I122: 0 | J122: 0 | K122: =IF('Input Solar'!$D$18=Background!$X$2,'Calc Solar'!H122*$H$173,IF('Input Solar'!$D$18=Background!$X$3,'Calc Solar'!I122*$I$173,'Calc Solar'!J122*$J$173)) -> 0 | L122: =IF('Input Solar'!$D$20="Default",IF('Input Solar'!$D$18=Background!$X$2,'Calc Solar'!H122,IF('Input Solar'!$D$18=Background!$X$3,'Calc Solar'!I122,'Calc Solar'!J122)),K122) -> 0 | M122: 0 | N122: 0 | O122: 0 | P122: 0 | R122: 0 | S122: 0 | T122: 0 | X122: 0 | AF122: =SUM(AE$3:AE122) ->  | AM122: =SUM(AL$3:AL122) ->  | AT122: =SUM(AS$3:AS122) ->  | BA122: =SUM(AZ$3:AZ122) ->  | BH122: =SUM(BG$3:BG122) ->  | BO122: =SUM(BN$3:BN122) ->  | BV122: =SUM(BU$3:BU122) ->  | CC122: =SUM(CB$3:CB122) ->  | CJ122: =SUM(CI$3:CI122) ->  | CQ122: =SUM(CP$3:CP122) -> 
A123: Diesel generation | B123: =SUM(AO3:AO170) ->  | E123: 121 | F123: =IF('Existing Load'!$D$17='Existing Load'!$D$19,'Existing Load'!J7,'Existing Load'!J7*'Existing Load'!$D$19/'Existing Load'!$D$17) -> 0 | G123: 0 | H123: 0 | I123: 0 | J123: 0 | K123: =IF('Input Solar'!$D$18=Background!$X$2,'Calc Solar'!H123*$H$173,IF('Input Solar'!$D$18=Background!$X$3,'Calc Solar'!I123*$I$173,'Calc Solar'!J123*$J$173)) -> 0 | L123: =IF('Input Solar'!$D$20="Default",IF('Input Solar'!$D$18=Background!$X$2,'Calc Solar'!H123,IF('Input Solar'!$D$18=Background!$X$3,'Calc Solar'!I123,'Calc Solar'!J123)),K123) -> 0 | M123: 0 | N123: 0 | O123: 0 | P123: 0 | R123: 0 | S123: =IFERROR(R123/SUM(R$123:R$146),0) -> 0 | T123: 0 | X123: 0 | AF123: =SUM(AE$3:AE123) ->  | AM123: =SUM(AL$3:AL123) ->  | AT123: =SUM(AS$3:AS123) ->  | BA123: =SUM(AZ$3:AZ123) ->  | BH123: =SUM(BG$3:BG123) ->  | BO123: =SUM(BN$3:BN123) ->  | BV123: =SUM(BU$3:BU123) ->  | CC123: =SUM(CB$3:CB123) ->  | CJ123: =SUM(CI$3:CI123) ->  | CQ123: =SUM(CP$3:CP123) -> 
A124: Diesel l/week | B124: =SUM(AP3:AP170) ->  | E124: 122 | F124: =IF('Existing Load'!$D$17='Existing Load'!$D$19,'Existing Load'!J8,'Existing Load'!J8*'Existing Load'!$D$19/'Existing Load'!$D$17) -> 0 | G124: 0 | H124: 0 | I124: 0 | J124: 0 | K124: =IF('Input Solar'!$D$18=Background!$X$2,'Calc Solar'!H124*$H$173,IF('Input Solar'!$D$18=Background!$X$3,'Calc Solar'!I124*$I$173,'Calc Solar'!J124*$J$173)) -> 0 | L124: =IF('Input Solar'!$D$20="Default",IF('Input Solar'!$D$18=Background!$X$2,'Calc Solar'!H124,IF('Input Solar'!$D$18=Background!$X$3,'Calc Solar'!I124,'Calc Solar'!J124)),K124) -> 0 | M124: 0 | N124: 0 | O124: 0 | P124: 0 | R124: 0 | S124: 0 | T124: 0 | X124: 0 | AF124: =SUM(AE$3:AE124) ->  | AM124: =SUM(AL$3:AL124) ->  | AT124: =SUM(AS$3:AS124) ->  | BA124: =SUM(AZ$3:AZ124) ->  | BH124: =SUM(BG$3:BG124) ->  | BO124: =SUM(BN$3:BN124) ->  | BV124: =SUM(BU$3:BU124) ->  | CC124: =SUM(CB$3:CB124) ->  | CJ124: =SUM(CI$3:CI124) ->  | CQ124: =SUM(CP$3:CP124) -> 
A125: Diesel cost PHP/week | B125: =B124*B122 ->  | E125: 123 | F125: =IF('Existing Load'!$D$17='Existing Load'!$D$19,'Existing Load'!J9,'Existing Load'!J9*'Existing Load'!$D$19/'Existing Load'!$D$17) -> 0 | G125: 0 | H125: 0 | I125: 0 | J125: 0 | K125: =IF('Input Solar'!$D$18=Background!$X$2,'Calc Solar'!H125*$H$173,IF('Input Solar'!$D$18=Background!$X$3,'Calc Solar'!I125*$I$173,'Calc Solar'!J125*$J$173)) -> 0 | L125: =IF('Input Solar'!$D$20="Default",IF('Input Solar'!$D$18=Background!$X$2,'Calc Solar'!H125,IF('Input Solar'!$D$18=Background!$X$3,'Calc Solar'!I125,'Calc Solar'!J125)),K125) -> 0 | M125: 0 | N125: 0 | O125: 0 | P125: 0 | R125: 0 | S125: 0 | T125: 0 | X125: 0 | Z125: =MAX(0,X125-Y125) ->  | AF125: =SUM(AE$3:AE125) ->  | AM125: =SUM(AL$3:AL125) ->  | AT125: =SUM(AS$3:AS125) ->  | BA125: =SUM(AZ$3:AZ125) ->  | BH125: =SUM(BG$3:BG125) ->  | BO125: =SUM(BN$3:BN125) ->  | BV125: =SUM(BU$3:BU125) ->  | CC125: =SUM(CB$3:CB125) ->  | CJ125: =SUM(CI$3:CI125) ->  | CQ125: =SUM(CP$3:CP125) -> 
A126: Diesel CAPEX | B126: =IF('Input Solar'!D48="Default",'Input Solar'!D53,'Input Solar'!E53)*B115 -> 0 | E126: 124 | F126: =IF('Existing Load'!$D$17='Existing Load'!$D$19,'Existing Load'!J10,'Existing Load'!J10*'Existing Load'!$D$19/'Existing Load'!$D$17) -> 0 | G126: 0 | H126: 0 | I126: 0 | J126: 0 | K126: =IF('Input Solar'!$D$18=Background!$X$2,'Calc Solar'!H126*$H$173,IF('Input Solar'!$D$18=Background!$X$3,'Calc Solar'!I126*$I$173,'Calc Solar'!J126*$J$173)) -> 0 | L126: =IF('Input Solar'!$D$20="Default",IF('Input Solar'!$D$18=Background!$X$2,'Calc Solar'!H126,IF('Input Solar'!$D$18=Background!$X$3,'Calc Solar'!I126,'Calc Solar'!J126)),K126) -> 0 | M126: 0 | N126: 0 | O126: 0 | P126: 0 | R126: 0 | S126: 0 | T126: 0 | X126: 0 | AF126: =SUM(AE$3:AE126) ->  | AM126: =SUM(AL$3:AL126) ->  | AT126: =SUM(AS$3:AS126) ->  | BA126: =SUM(AZ$3:AZ126) ->  | BH126: =SUM(BG$3:BG126) ->  | BO126: =SUM(BN$3:BN126) ->  | BV126: =SUM(BU$3:BU126) ->  | CC126: =SUM(CB$3:CB126) ->  | CJ126: =SUM(CI$3:CI126) ->  | CQ126: =SUM(CP$3:CP126) -> 
A127: Diesel lifetime | B127: =IF('Input Solar'!D48="Default",'Input Solar'!D60,'Input Solar'!E60) -> 10 | E127: 125 | F127: =IF('Existing Load'!$D$17='Existing Load'!$D$19,'Existing Load'!J11,'Existing Load'!J11*'Existing Load'!$D$19/'Existing Load'!$D$17) -> 0 | G127: 0 | H127: 0 | I127: 0 | J127: 0 | K127: =IF('Input Solar'!$D$18=Background!$X$2,'Calc Solar'!H127*$H$173,IF('Input Solar'!$D$18=Background!$X$3,'Calc Solar'!I127*$I$173,'Calc Solar'!J127*$J$173)) -> 0 | L127: =IF('Input Solar'!$D$20="Default",IF('Input Solar'!$D$18=Background!$X$2,'Calc Solar'!H127,IF('Input Solar'!$D$18=Background!$X$3,'Calc Solar'!I127,'Calc Solar'!J127)),K127) -> 0 | M127: 0 | N127: 0 | O127: 0 | P127: 0 | R127: 0 | S127: 0 | T127: 0 | X127: 0 | AF127: =SUM(AE$3:AE127) ->  | AM127: =SUM(AL$3:AL127) ->  | AT127: =SUM(AS$3:AS127) ->  | BA127: =SUM(AZ$3:AZ127) ->  | BH127: =SUM(BG$3:BG127) ->  | BO127: =SUM(BN$3:BN127) ->  | BV127: =SUM(BU$3:BU127) ->  | CC127: =SUM(CB$3:CB127) ->  | CJ127: =SUM(CI$3:CI127) ->  | CQ127: =SUM(CP$3:CP127) -> 
A128: Diesel CRF | B128: =B$77*POWER(1+B$77,B127)/(POWER(1+B$77,B127)-1) -> 0.1769841642 | E128: 126 | F128: =IF('Existing Load'!$D$17='Existing Load'!$D$19,'Existing Load'!J12,'Existing Load'!J12*'Existing Load'!$D$19/'Existing Load'!$D$17) -> 0 | G128: 0 | H128: 0 | I128: 0 | J128: 0 | K128: =IF('Input Solar'!$D$18=Background!$X$2,'Calc Solar'!H128*$H$173,IF('Input Solar'!$D$18=Background!$X$3,'Calc Solar'!I128*$I$173,'Calc Solar'!J128*$J$173)) -> 0 | L128: =IF('Input Solar'!$D$20="Default",IF('Input Solar'!$D$18=Background!$X$2,'Calc Solar'!H128,IF('Input Solar'!$D$18=Background!$X$3,'Calc Solar'!I128,'Calc Solar'!J128)),K128) -> 0 | M128: 0 | N128: 0 | O128: 0 | P128: 0 | R128: 0 | S128: 0 | T128: 0 | X128: 0 | AF128: =SUM(AE$3:AE128) ->  | AM128: =SUM(AL$3:AL128) ->  | AT128: =SUM(AS$3:AS128) ->  | BA128: =SUM(AZ$3:AZ128) ->  | BH128: =SUM(BG$3:BG128) ->  | BO128: =SUM(BN$3:BN128) ->  | BV128: =SUM(BU$3:BU128) ->  | CC128: =SUM(CB$3:CB128) ->  | CJ128: =SUM(CI$3:CI128) ->  | CQ128: =SUM(CP$3:CP128) -> 
A129: Diesel Ann | B129: =B128*B126 -> 0 | E129: 127 | F129: =IF('Existing Load'!$D$17='Existing Load'!$D$19,'Existing Load'!J13,'Existing Load'!J13*'Existing Load'!$D$19/'Existing Load'!$D$17) -> 0 | G129: 0 | H129: 0 | I129: 0.06176910133 | J129: 0.07653764735 | K129: =IF('Input Solar'!$D$18=Background!$X$2,'Calc Solar'!H129*$H$173,IF('Input Solar'!$D$18=Background!$X$3,'Calc Solar'!I129*$I$173,'Calc Solar'!J129*$J$173)) -> 0 | L129: =IF('Input Solar'!$D$20="Default",IF('Input Solar'!$D$18=Background!$X$2,'Calc Solar'!H129,IF('Input Solar'!$D$18=Background!$X$3,'Calc Solar'!I129,'Calc Solar'!J129)),K129) -> 0 | M129: 0 | N129: 0 | O129: 0 | P129: 0 | R129: 0 | S129: 0 | T129: 0 | X129: 0 | AF129: =SUM(AE$3:AE129) ->  | AM129: =SUM(AL$3:AL129) ->  | AT129: =SUM(AS$3:AS129) ->  | BA129: =SUM(AZ$3:AZ129) ->  | BH129: =SUM(BG$3:BG129) ->  | BO129: =SUM(BN$3:BN129) ->  | BV129: =SUM(BU$3:BU129) ->  | CC129: =SUM(CB$3:CB129) ->  | CJ129: =SUM(CI$3:CI129) ->  | CQ129: =SUM(CP$3:CP129) -> 
A130: Diesel Opex var | B130: =IF('Input Solar'!D48="Default",'Input Solar'!D54,'Input Solar'!E54)*B123*8760/168 ->  | E130: 128 | F130: =IF('Existing Load'!$D$17='Existing Load'!$D$19,'Existing Load'!J14,'Existing Load'!J14*'Existing Load'!$D$19/'Existing Load'!$D$17) -> 0 | G130: 0 | H130: 0.06672569206 | I130: 0.2802414178 | J130: 0.301536982 | K130: =IF('Input Solar'!$D$18=Background!$X$2,'Calc Solar'!H130*$H$173,IF('Input Solar'!$D$18=Background!$X$3,'Calc Solar'!I130*$I$173,'Calc Solar'!J130*$J$173)) -> 0 | L130: =IF('Input Solar'!$D$20="Default",IF('Input Solar'!$D$18=Background!$X$2,'Calc Solar'!H130,IF('Input Solar'!$D$18=Background!$X$3,'Calc Solar'!I130,'Calc Solar'!J130)),K130) -> 0.06672569206 | M130: 0 | N130: 0 | O130: 0 | P130: 0 | R130: 0 | S130: 0 | T130: 0 | X130: 0 | AF130: =SUM(AE$3:AE130) ->  | AM130: =SUM(AL$3:AL130) ->  | AT130: =SUM(AS$3:AS130) ->  | BA130: =SUM(AZ$3:AZ130) ->  | BH130: =SUM(BG$3:BG130) ->  | BO130: =SUM(BN$3:BN130) ->  | BV130: =SUM(BU$3:BU130) ->  | CC130: =SUM(CB$3:CB130) ->  | CJ130: =SUM(CI$3:CI130) ->  | CQ130: =SUM(CP$3:CP130) -> 
A131: Diesel Opex fix | B131: =IF('Input Solar'!D48="Default",'Input Solar'!D55,'Input Solar'!E55)*B115 -> 0 | E131: 129 | F131: =IF('Existing Load'!$D$17='Existing Load'!$D$19,'Existing Load'!J15,'Existing Load'!J15*'Existing Load'!$D$19/'Existing Load'!$D$17) -> 0 | G131: 0 | H131: 0.1568253473 | I131: 0.4629957709 | J131: 0.4723410074 | K131: =IF('Input Solar'!$D$18=Background!$X$2,'Calc Solar'!H131*$H$173,IF('Input Solar'!$D$18=Background!$X$3,'Calc Solar'!I131*$I$173,'Calc Solar'!J131*$J$173)) -> 0 | L131: =IF('Input Solar'!$D$20="Default",IF('Input Solar'!$D$18=Background!$X$2,'Calc Solar'!H131,IF('Input Solar'!$D$18=Background!$X$3,'Calc Solar'!I131,'Calc Solar'!J131)),K131) -> 0.1568253473 | M131: 0 | N131: 0 | O131: =MIN(N131,0) -> 0 | P131: 0 | Q131: =MAX(P131,-(1-DC130)*$B$8) ->  | R131: =MAX(N131,0) -> 0 | S131: 0 | T131: 0 | U131: =MAX(MIN(T131,(DC130-$B$12)*$B$8),0) ->  | W131: =ROUND(MAX(0,N131-V131),5) ->  | X131: =G131*$B$14 -> 0 | AF131: =SUM(AE$3:AE131) ->  | AH131: =MIN(AG131+AD131,$B$96) ->  | AJ131: =AC131-AG131 ->  | AL131: =IF(AJ131<=0,0,MIN(MAX(AJ131,$B$114),($B$116-AK131))) ->  | AM131: =SUM(AL$3:AL131) ->  | AO131: =MIN(AN131+AK131,$B$116) ->  | AP131: =$B$117*AO131 ->  | AQ131: =AJ131-AN131 ->  | AS131: =IF(AQ131<=0,0,MIN(MAX(AQ131,$B$134),($B$136-AR131))) ->  | AT131: =SUM(AS$3:AS131) ->  | AV131: =MIN(AU131+AR131,$B$136) ->  | AW131: =$B$137*AV131 ->  | AX131: =AQ131-AU131 ->  | BA131: =SUM(AZ$3:AZ131) ->  | BD131: =$B$160*BC131 ->  | BH131: =SUM(BG$3:BG131) ->  | BK131: =$B$180*BJ131 ->  | BO131: =SUM(BN$3:BN131) ->  | BR131: =$B$200*BQ131 ->  | BV131: =SUM(BU$3:BU131) ->  | BY131: =$B$220*BX131 ->  | CC131: =SUM(CB$3:CB131) ->  | CF131: =$B$240*CE131 ->  | CJ131: =SUM(CI$3:CI131) ->  | CM131: =$B$260*CL131 ->  | CQ131: =SUM(CP$3:CP131) ->  | CT131: =$B$280*CS131 ->  | CU131: =CS131+CL131+CE131+BX131+BQ131+BJ131+BC131+AV131+AO131+AH131 ->  | CV131: =CU131+M131-G131 ->  | DE131: =MAX(G131-M131-CU131-DA131,0) ->  | DF131: =MAX(G131-CU131-DE131-DA131,0) ->  | DG131: =MAX(DB131,-1*(M131-DF131)) ->  | DH131: =G131-DF131-DA131-DE131 ->  | DJ131: =MAX(DB131-DG131,-1*DI131) -> 
A132: =CONCATENATE("GenCo ",IF('Input Solar'!D70="Default",'Input Solar'!D74,'Input Solar'!E74)) -> GenCo C | E132: 130 | F132: =IF('Existing Load'!$D$17='Existing Load'!$D$19,'Existing Load'!J16,'Existing Load'!J16*'Existing Load'!$D$19/'Existing Load'!$D$17) -> 0 | G132: =F132*(1+$B$4) -> 0 | H132: 0.2415805187 | I132: 0.5826693093 | J132: 0.5751545408 | K132: =IF('Input Solar'!$D$18=Background!$X$2,'Calc Solar'!H132*$H$173,IF('Input Solar'!$D$18=Background!$X$3,'Calc Solar'!I132*$I$173,'Calc Solar'!J132*$J$173)) -> 0 | L132: =IF('Input Solar'!$D$20="Default",IF('Input Solar'!$D$18=Background!$X$2,'Calc Solar'!H132,IF('Input Solar'!$D$18=Background!$X$3,'Calc Solar'!I132,'Calc Solar'!J132)),K132) -> 0.2415805187 | M132: =L132*$B$7 -> 0 | N132: =G132-M132 -> 0 | O132: 0 | P132: =MAX(O132*$B$10,-1*$B$8*$B$9*$B$10) -> 0 | R132: 0 | S132: 0 | T132: =MIN(R132/$B$11,$B$8*$B$9/$B$11) -> 0 | V132: =U132*$B$11 ->  | X132: 0 | Y132: =MIN($B$9*$B$8,(DC131-$B$12)*$B$8*$B$11) ->  | Z132: =MAX(0,X132-Y132) ->  | AA132: =MAX($W132,$Z132) ->  | AB132: =IF(E132<=120,($B$99+$B$119+$B$139+$B$157+$B$177+$B$197+$B$217+$B$237+$B$257+$B$277),($B$100+$B$120+$B$140+$B$158+$B$178+$B$198+$B$218+$B$238+$B$258+$B$278))*S132 ->  | AC132: =MAX($W132,$Z132)-AB132 ->  | AD132: =IF($E132<=120,MIN($B$99*$S132,$B$96),MIN($B$100*$S132,$B$96)) ->  | AE132: =IF(AC132<=0,0,MIN(MAX(AC132,$B$94),($B$96-AD132))) ->  | AF132: =SUM(AE$3:AE132) ->  | AG132: =IF(AF132<=($B$101-($B$99*5+$B$100*2)),AE132,0) ->  | AI132: =$B$97*AH132 ->  | AK132: =IF($E132<=120,MIN($B$119*$S132,$B$116),MIN($B$120*$S132,$B$116)) ->  | AM132: =SUM(AL$3:AL132) ->  | AN132: =IF(AM132<=($B$121-($B$119*5+$B$120*2)),AL132,0) ->  | AR132: =IF(E132<=120,MIN($B$139*S132,$B$136),MIN($B$140*S132,$B$136)) ->  | AT132: =SUM(AS$3:AS132) ->  | AU132: =IF(AT132<=($B$141-($B$139*5+$B$140*2)),AS132,0) ->  | AY132: =IF($E132<=120,MIN($B$157*$S132,$B$156),MIN($B$158*$S132,$B$156)) ->  | AZ132: =IF(AX132<=0,0,MIN(MAX(AX132,$B$154),($B$156-AY132))) ->  | BA132: =SUM(AZ$3:AZ132) ->  | BB132: =IF(BA132<=($B$159-($B$157*5+$B$158*2)),AZ132,0) ->  | BC132: =MIN(BB132+AY132,$B$156) ->  | BE132: =AX132-BC132 ->  | BF132: =IF($E132<=120,MIN($B$177*$S132,$B$176),MIN($B$178*$S132,$B$176)) ->  | BG132: =IF(BE132<=0,0,MIN(MAX(BE132,$B$174),($B$176-BF132))) ->  | BH132: =SUM(BG$3:BG132) ->  | BI132: =IF(BH132<=($B$179-($B$177*5+$B$178*2)),BG132,0) ->  | BJ132: =MIN(BI132+BF132,$B$176) ->  | BL132: =BE132-BJ132 ->  | BM132: =IF($E132<=120,MIN($B$197*$S132,$B$196),MIN($B$198*$S132,$B$196)) ->  | BN132: =IF(BL132<=0,0,MIN(MAX(BL132,$B$194),($B$196-BM132))) ->  | BO132: =SUM(BN$3:BN132) ->  | BP132: =IF(BO132<=($B$199-($B$197*5+$B$198*2)),BN132,0) ->  | BQ132: =MIN(BP132+BM132,$B$196) ->  | BS132: =BL132-BQ132 ->  | BT132: =IF($E132<=120,MIN($B$217*$S132,$B$216),MIN($B$218*$S132,$B$216)) ->  | BU132: =IF(BS132<=0,0,MIN(MAX(BS132,$B$214),($B$216-BT132))) ->  | BV132: =SUM(BU$3:BU132) ->  | BW132: =IF(BV132<=($B$219-($B$217*5+$B$218*2)),BU132,0) ->  | BX132: =MIN(BW132+BT132,$B$216) ->  | BZ132: =BS132-BX132 ->  | CA132: =IF($E132<=120,MIN($B$237*$S132,$B$236),MIN($B$238*$S132,$B$236)) ->  | CB132: =IF(BZ132<=0,0,MIN(MAX(BZ132,$B$234),($B$236-CA132))) ->  | CC132: =SUM(CB$3:CB132) ->  | CD132: =IF(CC132<=($B$239-($B$237*5+$B$238*2)),CB132,0) ->  | CE132: =MIN(CD132+CA132,$B$236) ->  | CG132: =BZ132-CE132 ->  | CH132: =IF($E132<=120,MIN($B$257*$S132,$B$256),MIN($B$258*$S132,$B$256)) ->  | CI132: =IF(CG132<=0,0,MIN(MAX(CG132,$B$254),($B$256-CH132))) ->  | CJ132: =SUM(CI$3:CI132) ->  | CK132: =IF(CJ132<=($B$259-($B$257*5+$B$258*2)),CI132,0) ->  | CL132: =MIN(CK132+CH132,$B$256) ->  | CN132: =CG132-CL132 ->  | CO132: =IF($E132<=120,MIN($B$277*$S132,$B$276),MIN($B$278*$S132,$B$276)) ->  | CP132: =IF(CN132<=0,0,MIN(MAX(CN132,$B$274),($B$276-CO132))) ->  | CQ132: =SUM(CP$3:CP132) ->  | CR132: =IF(CQ132<=($B$279-($B$277*5+$B$278*2)),CP132,0) ->  | CS132: =MIN(CR132+CO132,$B$276) ->  | CW132: =IF(CV132>0,MIN(CV132*$B$10,$B$8*$B$9*$B$10),0) ->  | CX132: =MAX(0,MIN(CW132/$B$8,1-DC131)) ->  | CY132: =IF(CV132<0,MAX(CV132/$B$11,-$B$8*$B$9/$B$11),0) ->  | CZ132: =MIN(0,MAX(CY132/$B$8,-1*(DC131-$B$12))) ->  | DA132: =CZ132*-$B$8*$B$11 ->  | DB132: =CX132*-$B$8 ->  | DC132: =MIN(1,DC131+CZ132+CX132) ->  | DI132: =CU132-DH132 ->  | DK132: =-(DI132+DJ132) ->  | DM132: =DH132-DJ132 -> 
A133: P_smallest gen | B133: =IF('Input Solar'!$D$84="Default",'Input Solar'!$D$88,'Input Solar'!$E$88) -> 0 | E133: 131 | F133: =IF('Existing Load'!$D$17='Existing Load'!$D$19,'Existing Load'!J17,'Existing Load'!J17*'Existing Load'!$D$19/'Existing Load'!$D$17) -> 0 | G133: 0 | H133: 0.3097431746 | I133: 0.6392577291 | J133: 0.6128447318 | K133: =IF('Input Solar'!$D$18=Background!$X$2,'Calc Solar'!H133*$H$173,IF('Input Solar'!$D$18=Background!$X$3,'Calc Solar'!I133*$I$173,'Calc Solar'!J133*$J$173)) -> 0 | L133: =IF('Input Solar'!$D$20="Default",IF('Input Solar'!$D$18=Background!$X$2,'Calc Solar'!H133,IF('Input Solar'!$D$18=Background!$X$3,'Calc Solar'!I133,'Calc Solar'!J133)),K133) -> 0.3097431746 | M133: 0 | N133: 0 | O133: 0 | P133: 0 | R133: 0 | S133: 0 | T133: 0 | X133: 0 | AF133: =SUM(AE$3:AE133) ->  | AM133: =SUM(AL$3:AL133) ->  | AT133: =SUM(AS$3:AS133) ->  | BA133: =SUM(AZ$3:AZ133) ->  | BH133: =SUM(BG$3:BG133) ->  | BO133: =SUM(BN$3:BN133) ->  | BV133: =SUM(BU$3:BU133) ->  | CC133: =SUM(CB$3:CB133) ->  | CJ133: =SUM(CI$3:CI133) ->  | CQ133: =SUM(CP$3:CP133) -> 
A134: P_min | B134: =0.3*B133 -> 0 | E134: 132 | F134: =IF('Existing Load'!$D$17='Existing Load'!$D$19,'Existing Load'!J18,'Existing Load'!J18*'Existing Load'!$D$19/'Existing Load'!$D$17) -> 0 | G134: 0 | H134: 0.4300506956 | I134: 0.6865874386 | J134: 0.5991199143 | K134: =IF('Input Solar'!$D$18=Background!$X$2,'Calc Solar'!H134*$H$173,IF('Input Solar'!$D$18=Background!$X$3,'Calc Solar'!I134*$I$173,'Calc Solar'!J134*$J$173)) -> 0 | L134: =IF('Input Solar'!$D$20="Default",IF('Input Solar'!$D$18=Background!$X$2,'Calc Solar'!H134,IF('Input Solar'!$D$18=Background!$X$3,'Calc Solar'!I134,'Calc Solar'!J134)),K134) -> 0.4300506956 | M134: 0 | N134: 0 | O134: 0 | P134: 0 | R134: 0 | S134: 0 | T134: 0 | X134: 0 | AF134: =SUM(AE$3:AE134) ->  | AM134: =SUM(AL$3:AL134) ->  | AT134: =SUM(AS$3:AS134) ->  | BA134: =SUM(AZ$3:AZ134) ->  | BH134: =SUM(BG$3:BG134) ->  | BO134: =SUM(BN$3:BN134) ->  | BV134: =SUM(BU$3:BU134) ->  | CC134: =SUM(CB$3:CB134) ->  | CJ134: =SUM(CI$3:CI134) ->  | CQ134: =SUM(CP$3:CP134) -> 
A135: P_max | B135: =IF('Input Solar'!$D$84="Default",'Input Solar'!$D$86,'Input Solar'!$E$86) -> 0 | E135: 133 | F135: =IF('Existing Load'!$D$17='Existing Load'!$D$19,'Existing Load'!J19,'Existing Load'!J19*'Existing Load'!$D$19/'Existing Load'!$D$17) -> 0 | G135: 0 | H135: 0.5173951691 | I135: 0.6831637063 | J135: 0.537657004 | K135: =IF('Input Solar'!$D$18=Background!$X$2,'Calc Solar'!H135*$H$173,IF('Input Solar'!$D$18=Background!$X$3,'Calc Solar'!I135*$I$173,'Calc Solar'!J135*$J$173)) -> 0 | L135: =IF('Input Solar'!$D$20="Default",IF('Input Solar'!$D$18=Background!$X$2,'Calc Solar'!H135,IF('Input Solar'!$D$18=Background!$X$3,'Calc Solar'!I135,'Calc Solar'!J135)),K135) -> 0.5173951691 | M135: 0 | N135: 0 | O135: 0 | P135: 0 | R135: 0 | S135: 0 | T135: 0 | X135: 0 | AF135: =SUM(AE$3:AE135) ->  | AM135: =SUM(AL$3:AL135) ->  | AT135: =SUM(AS$3:AS135) ->  | BA135: =SUM(AZ$3:AZ135) ->  | BH135: =SUM(BG$3:BG135) ->  | BO135: =SUM(BN$3:BN135) ->  | BV135: =SUM(BU$3:BU135) ->  | CC135: =SUM(CB$3:CB135) ->  | CJ135: =SUM(CI$3:CI135) ->  | CQ135: =SUM(CP$3:CP135) -> 
A136: P_operational | B136: =IF('Input Solar'!$D$84="Default",'Input Solar'!$D$87,'Input Solar'!$E$87) -> 0 | E136: 134 | F136: =IF('Existing Load'!$D$17='Existing Load'!$D$19,'Existing Load'!J20,'Existing Load'!J20*'Existing Load'!$D$19/'Existing Load'!$D$17) -> 0 | G136: 0 | H136: 0.5504448814 | I136: 0.6283032922 | J136: 0.4392322803 | K136: =IF('Input Solar'!$D$18=Background!$X$2,'Calc Solar'!H136*$H$173,IF('Input Solar'!$D$18=Background!$X$3,'Calc Solar'!I136*$I$173,'Calc Solar'!J136*$J$173)) -> 0 | L136: =IF('Input Solar'!$D$20="Default",IF('Input Solar'!$D$18=Background!$X$2,'Calc Solar'!H136,IF('Input Solar'!$D$18=Background!$X$3,'Calc Solar'!I136,'Calc Solar'!J136)),K136) -> 0.5504448814 | M136: 0 | N136: 0 | O136: 0 | P136: 0 | R136: 0 | S136: 0 | T136: 0 | X136: 0 | AF136: =SUM(AE$3:AE136) ->  | AM136: =SUM(AL$3:AL136) ->  | AT136: =SUM(AS$3:AS136) ->  | BA136: =SUM(AZ$3:AZ136) ->  | BH136: =SUM(BG$3:BG136) ->  | BO136: =SUM(BN$3:BN136) ->  | BV136: =SUM(BU$3:BU136) ->  | CC136: =SUM(CB$3:CB136) ->  | CJ136: =SUM(CI$3:CI136) ->  | CQ136: =SUM(CP$3:CP136) -> 
A137: Liter/kWh | B137: =IF('Input Solar'!$D$70="Default",'Input Solar'!$D78,'Input Solar'!$E78) -> 0.33 | E137: 135 | F137: =IF('Existing Load'!$D$17='Existing Load'!$D$19,'Existing Load'!J21,'Existing Load'!J21*'Existing Load'!$D$19/'Existing Load'!$D$17) -> 0 | G137: 0 | H137: 0.4226218464 | I137: 0.4618703077 | J137: 0.3287764487 | K137: =IF('Input Solar'!$D$18=Background!$X$2,'Calc Solar'!H137*$H$173,IF('Input Solar'!$D$18=Background!$X$3,'Calc Solar'!I137*$I$173,'Calc Solar'!J137*$J$173)) -> 0 | L137: =IF('Input Solar'!$D$20="Default",IF('Input Solar'!$D$18=Background!$X$2,'Calc Solar'!H137,IF('Input Solar'!$D$18=Background!$X$3,'Calc Solar'!I137,'Calc Solar'!J137)),K137) -> 0.4226218464 | M137: 0 | N137: 0 | O137: 0 | P137: 0 | R137: 0 | S137: 0 | T137: 0 | X137: 0 | AF137: =SUM(AE$3:AE137) ->  | AM137: =SUM(AL$3:AL137) ->  | AT137: =SUM(AS$3:AS137) ->  | BA137: =SUM(AZ$3:AZ137) ->  | BH137: =SUM(BG$3:BG137) ->  | BO137: =SUM(BN$3:BN137) ->  | BV137: =SUM(BU$3:BU137) ->  | CC137: =SUM(CB$3:CB137) ->  | CJ137: =SUM(CI$3:CI137) ->  | CQ137: =SUM(CP$3:CP137) -> 
A138: Fuel costs | B138: =IF('Input Solar'!$D$70="Default",'Input Solar'!$D79,'Input Solar'!$E79) -> 35 | E138: 136 | F138: =IF('Existing Load'!$D$17='Existing Load'!$D$19,'Existing Load'!J22,'Existing Load'!J22*'Existing Load'!$D$19/'Existing Load'!$D$17) -> 0 | G138: 0 | H138: 0.2688966677 | I138: 0.2779356169 | J138: 0.206323507 | K138: =IF('Input Solar'!$D$18=Background!$X$2,'Calc Solar'!H138*$H$173,IF('Input Solar'!$D$18=Background!$X$3,'Calc Solar'!I138*$I$173,'Calc Solar'!J138*$J$173)) -> 0 | L138: =IF('Input Solar'!$D$20="Default",IF('Input Solar'!$D$18=Background!$X$2,'Calc Solar'!H138,IF('Input Solar'!$D$18=Background!$X$3,'Calc Solar'!I138,'Calc Solar'!J138)),K138) -> 0.2688966677 | M138: 0 | N138: 0 | O138: 0 | P138: 0 | R138: 0 | S138: 0 | T138: 0 | X138: 0 | AF138: =SUM(AE$3:AE138) ->  | AM138: =SUM(AL$3:AL138) ->  | AT138: =SUM(AS$3:AS138) ->  | BA138: =SUM(AZ$3:AZ138) ->  | BH138: =SUM(BG$3:BG138) ->  | BO138: =SUM(BN$3:BN138) ->  | BV138: =SUM(BU$3:BU138) ->  | CC138: =SUM(CB$3:CB138) ->  | CJ138: =SUM(CI$3:CI138) ->  | CQ138: =SUM(CP$3:CP138) -> 
A139: Min offtake/weekday | B139: =IF('Input Solar'!$D$70="Default",'Input Solar'!$D80,'Input Solar'!$E80)/(5+2*('Existing Load'!$D$19/'Existing Load'!$D$17))*1000/(8760/168) ->  | E139: 137 | F139: =IF('Existing Load'!$D$17='Existing Load'!$D$19,'Existing Load'!J23,'Existing Load'!J23*'Existing Load'!$D$19/'Existing Load'!$D$17) -> 0 | G139: 0 | H139: 0.1085676283 | I139: 0.1038298999 | J139: 0.08872957524 | K139: =IF('Input Solar'!$D$18=Background!$X$2,'Calc Solar'!H139*$H$173,IF('Input Solar'!$D$18=Background!$X$3,'Calc Solar'!I139*$I$173,'Calc Solar'!J139*$J$173)) -> 0 | L139: =IF('Input Solar'!$D$20="Default",IF('Input Solar'!$D$18=Background!$X$2,'Calc Solar'!H139,IF('Input Solar'!$D$18=Background!$X$3,'Calc Solar'!I139,'Calc Solar'!J139)),K139) -> 0.1085676283 | M139: 0 | N139: 0 | O139: 0 | P139: 0 | R139: 0 | S139: 0 | T139: 0 | X139: 0 | AF139: =SUM(AE$3:AE139) ->  | AM139: =SUM(AL$3:AL139) ->  | AT139: =SUM(AS$3:AS139) ->  | BA139: =SUM(AZ$3:AZ139) ->  | BH139: =SUM(BG$3:BG139) ->  | BO139: =SUM(BN$3:BN139) ->  | BV139: =SUM(BU$3:BU139) ->  | CC139: =SUM(CB$3:CB139) ->  | CJ139: =SUM(CI$3:CI139) ->  | CQ139: =SUM(CP$3:CP139) -> 
A140: Min offtake/weekend | B140: =('Existing Load'!$D$19/'Existing Load'!$D$17)*B139 ->  | E140: 138 | F140: =IF('Existing Load'!$D$17='Existing Load'!$D$19,'Existing Load'!J24,'Existing Load'!J24*'Existing Load'!$D$19/'Existing Load'!$D$17) -> 0 | G140: 0 | H140: 0 | I140: 0.0005193722249 | J140: 0.004063512357 | K140: =IF('Input Solar'!$D$18=Background!$X$2,'Calc Solar'!H140*$H$173,IF('Input Solar'!$D$18=Background!$X$3,'Calc Solar'!I140*$I$173,'Calc Solar'!J140*$J$173)) -> 0 | L140: =IF('Input Solar'!$D$20="Default",IF('Input Solar'!$D$18=Background!$X$2,'Calc Solar'!H140,IF('Input Solar'!$D$18=Background!$X$3,'Calc Solar'!I140,'Calc Solar'!J140)),K140) -> 0 | M140: 0 | N140: 0 | O140: 0 | P140: 0 | R140: 0 | S140: 0 | T140: 0 | X140: 0 | AF140: =SUM(AE$3:AE140) ->  | AM140: =SUM(AL$3:AL140) ->  | AT140: =SUM(AS$3:AS140) ->  | BA140: =SUM(AZ$3:AZ140) ->  | BH140: =SUM(BG$3:BG140) ->  | BO140: =SUM(BN$3:BN140) ->  | BV140: =SUM(BU$3:BU140) ->  | CC140: =SUM(CB$3:CB140) ->  | CJ140: =SUM(CI$3:CI140) ->  | CQ140: =SUM(CP$3:CP140) -> 
A141: Max offtake/week | B141: =IF('Input Solar'!$D$70="Default",'Input Solar'!$D81,'Input Solar'!$E81)*1000/(8760/168) -> 0 | E141: 139 | F141: =IF('Existing Load'!$D$17='Existing Load'!$D$19,'Existing Load'!J25,'Existing Load'!J25*'Existing Load'!$D$19/'Existing Load'!$D$17) -> 0 | G141: 0 | H141: 0 | I141: 0 | J141: 0 | K141: =IF('Input Solar'!$D$18=Background!$X$2,'Calc Solar'!H141*$H$173,IF('Input Solar'!$D$18=Background!$X$3,'Calc Solar'!I141*$I$173,'Calc Solar'!J141*$J$173)) -> 0 | L141: =IF('Input Solar'!$D$20="Default",IF('Input Solar'!$D$18=Background!$X$2,'Calc Solar'!H141,IF('Input Solar'!$D$18=Background!$X$3,'Calc Solar'!I141,'Calc Solar'!J141)),K141) -> 0 | M141: 0 | N141: 0 | O141: 0 | P141: 0 | R141: 0 | S141: 0 | T141: 0 | X141: 0 | AF141: =SUM(AE$3:AE141) ->  | AM141: =SUM(AL$3:AL141) ->  | AT141: =SUM(AS$3:AS141) ->  | BA141: =SUM(AZ$3:AZ141) ->  | BH141: =SUM(BG$3:BG141) ->  | BO141: =SUM(BN$3:BN141) ->  | BV141: =SUM(BU$3:BU141) ->  | CC141: =SUM(CB$3:CB141) ->  | CJ141: =SUM(CI$3:CI141) ->  | CQ141: =SUM(CP$3:CP141) -> 
A142: Fuel costs (sim) | B142: =IF(Background!$W$2,B138*(1+B$32)^(Background!$B$56-1),IF(Background!U$2,fuel_costs(B138,B$32,B$34),B138)) -> 35 | E142: 140 | F142: =IF('Existing Load'!$D$17='Existing Load'!$D$19,'Existing Load'!J26,'Existing Load'!J26*'Existing Load'!$D$19/'Existing Load'!$D$17) -> 0 | G142: 0 | H142: 0 | I142: 0 | J142: 0 | K142: =IF('Input Solar'!$D$18=Background!$X$2,'Calc Solar'!H142*$H$173,IF('Input Solar'!$D$18=Background!$X$3,'Calc Solar'!I142*$I$173,'Calc Solar'!J142*$J$173)) -> 0 | L142: =IF('Input Solar'!$D$20="Default",IF('Input Solar'!$D$18=Background!$X$2,'Calc Solar'!H142,IF('Input Solar'!$D$18=Background!$X$3,'Calc Solar'!I142,'Calc Solar'!J142)),K142) -> 0 | M142: 0 | N142: 0 | O142: 0 | P142: 0 | R142: 0 | S142: 0 | T142: 0 | X142: 0 | AF142: =SUM(AE$3:AE142) ->  | AM142: =SUM(AL$3:AL142) ->  | AT142: =SUM(AS$3:AS142) ->  | BA142: =SUM(AZ$3:AZ142) ->  | BH142: =SUM(BG$3:BG142) ->  | BO142: =SUM(BN$3:BN142) ->  | BV142: =SUM(BU$3:BU142) ->  | CC142: =SUM(CB$3:CB142) ->  | CJ142: =SUM(CI$3:CI142) ->  | CQ142: =SUM(CP$3:CP142) -> 
A143: Diesel generation | B143: =SUM(AV3:AV170) ->  | E143: 141 | F143: =IF('Existing Load'!$D$17='Existing Load'!$D$19,'Existing Load'!J27,'Existing Load'!J27*'Existing Load'!$D$19/'Existing Load'!$D$17) -> 0 | G143: 0 | H143: 0 | I143: 0 | J143: 0 | K143: =IF('Input Solar'!$D$18=Background!$X$2,'Calc Solar'!H143*$H$173,IF('Input Solar'!$D$18=Background!$X$3,'Calc Solar'!I143*$I$173,'Calc Solar'!J143*$J$173)) -> 0 | L143: =IF('Input Solar'!$D$20="Default",IF('Input Solar'!$D$18=Background!$X$2,'Calc Solar'!H143,IF('Input Solar'!$D$18=Background!$X$3,'Calc Solar'!I143,'Calc Solar'!J143)),K143) -> 0 | M143: 0 | N143: 0 | O143: 0 | P143: 0 | R143: 0 | S143: 0 | T143: 0 | X143: 0 | AF143: =SUM(AE$3:AE143) ->  | AM143: =SUM(AL$3:AL143) ->  | AT143: =SUM(AS$3:AS143) ->  | BA143: =SUM(AZ$3:AZ143) ->  | BH143: =SUM(BG$3:BG143) ->  | BO143: =SUM(BN$3:BN143) ->  | BV143: =SUM(BU$3:BU143) ->  | CC143: =SUM(CB$3:CB143) ->  | CJ143: =SUM(CI$3:CI143) ->  | CQ143: =SUM(CP$3:CP143) -> 
A144: Diesel l/week | B144: =SUM(AW3:AW170) ->  | E144: 142 | F144: =IF('Existing Load'!$D$17='Existing Load'!$D$19,'Existing Load'!J28,'Existing Load'!J28*'Existing Load'!$D$19/'Existing Load'!$D$17) -> 0 | G144: 0 | H144: 0 | I144: 0 | J144: 0 | K144: =IF('Input Solar'!$D$18=Background!$X$2,'Calc Solar'!H144*$H$173,IF('Input Solar'!$D$18=Background!$X$3,'Calc Solar'!I144*$I$173,'Calc Solar'!J144*$J$173)) -> 0 | L144: =IF('Input Solar'!$D$20="Default",IF('Input Solar'!$D$18=Background!$X$2,'Calc Solar'!H144,IF('Input Solar'!$D$18=Background!$X$3,'Calc Solar'!I144,'Calc Solar'!J144)),K144) -> 0 | M144: 0 | N144: 0 | O144: 0 | P144: 0 | R144: 0 | S144: 0 | T144: 0 | X144: 0 | AF144: =SUM(AE$3:AE144) ->  | AM144: =SUM(AL$3:AL144) ->  | AT144: =SUM(AS$3:AS144) ->  | BA144: =SUM(AZ$3:AZ144) ->  | BH144: =SUM(BG$3:BG144) ->  | BO144: =SUM(BN$3:BN144) ->  | BV144: =SUM(BU$3:BU144) ->  | CC144: =SUM(CB$3:CB144) ->  | CJ144: =SUM(CI$3:CI144) ->  | CQ144: =SUM(CP$3:CP144) -> 
A145: Diesel cost PHP/week | B145: =B144*B142 ->  | E145: 143 | F145: =IF('Existing Load'!$D$17='Existing Load'!$D$19,'Existing Load'!J29,'Existing Load'!J29*'Existing Load'!$D$19/'Existing Load'!$D$17) -> 0 | G145: 0 | H145: 0 | I145: 0 | J145: 0 | K145: =IF('Input Solar'!$D$18=Background!$X$2,'Calc Solar'!H145*$H$173,IF('Input Solar'!$D$18=Background!$X$3,'Calc Solar'!I145*$I$173,'Calc Solar'!J145*$J$173)) -> 0 | L145: =IF('Input Solar'!$D$20="Default",IF('Input Solar'!$D$18=Background!$X$2,'Calc Solar'!H145,IF('Input Solar'!$D$18=Background!$X$3,'Calc Solar'!I145,'Calc Solar'!J145)),K145) -> 0 | M145: 0 | N145: 0 | O145: 0 | P145: 0 | R145: 0 | S145: 0 | T145: 0 | X145: 0 | AF145: =SUM(AE$3:AE145) ->  | AM145: =SUM(AL$3:AL145) ->  | AT145: =SUM(AS$3:AS145) ->  | BA145: =SUM(AZ$3:AZ145) ->  | BH145: =SUM(BG$3:BG145) ->  | BO145: =SUM(BN$3:BN145) ->  | BV145: =SUM(BU$3:BU145) ->  | CC145: =SUM(CB$3:CB145) ->  | CJ145: =SUM(CI$3:CI145) ->  | CQ145: =SUM(CP$3:CP145) -> 
A146: Diesel CAPEX | B146: =IF('Input Solar'!D$70="Default",'Input Solar'!D$75,'Input Solar'!E$75)*B135 -> 0 | C146: leave section empty for VBA usage | E146: 144 | F146: =IF('Existing Load'!$D$17='Existing Load'!$D$19,'Existing Load'!J30,'Existing Load'!J30*'Existing Load'!$D$19/'Existing Load'!$D$17) -> 0 | G146: 0 | H146: 0 | I146: 0 | J146: 0 | K146: =IF('Input Solar'!$D$18=Background!$X$2,'Calc Solar'!H146*$H$173,IF('Input Solar'!$D$18=Background!$X$3,'Calc Solar'!I146*$I$173,'Calc Solar'!J146*$J$173)) -> 0 | L146: =IF('Input Solar'!$D$20="Default",IF('Input Solar'!$D$18=Background!$X$2,'Calc Solar'!H146,IF('Input Solar'!$D$18=Background!$X$3,'Calc Solar'!I146,'Calc Solar'!J146)),K146) -> 0 | M146: 0 | N146: 0 | O146: 0 | P146: 0 | R146: 0 | S146: 0 | T146: 0 | X146: 0 | AF146: =SUM(AE$3:AE146) ->  | AM146: =SUM(AL$3:AL146) ->  | AT146: =SUM(AS$3:AS146) ->  | BA146: =SUM(AZ$3:AZ146) ->  | BH146: =SUM(BG$3:BG146) ->  | BO146: =SUM(BN$3:BN146) ->  | BV146: =SUM(BU$3:BU146) ->  | CC146: =SUM(CB$3:CB146) ->  | CJ146: =SUM(CI$3:CI146) ->  | CQ146: =SUM(CP$3:CP146) -> 
A147: Diesel lifetime | B147: =IF('Input Solar'!D$70="Default",'Input Solar'!D$82,'Input Solar'!E$82) -> 10 | E147: 145 | F147: =IF(E147-E123=24,F123,"") -> 0 | G147: 0 | H147: 0 | I147: 0 | J147: 0 | K147: =IF('Input Solar'!$D$18=Background!$X$2,'Calc Solar'!H147*$H$173,IF('Input Solar'!$D$18=Background!$X$3,'Calc Solar'!I147*$I$173,'Calc Solar'!J147*$J$173)) -> 0 | L147: =IF('Input Solar'!$D$20="Default",IF('Input Solar'!$D$18=Background!$X$2,'Calc Solar'!H147,IF('Input Solar'!$D$18=Background!$X$3,'Calc Solar'!I147,'Calc Solar'!J147)),K147) -> 0 | M147: 0 | N147: 0 | O147: 0 | P147: 0 | R147: 0 | S147: =IFERROR(R147/SUM(R$147:R$170),0) -> 0 | T147: 0 | U147: =MAX(MIN(T147,(DC146-$B$12)*$B$8),0) ->  | X147: 0 | AF147: =SUM(AE$3:AE147) ->  | AM147: =SUM(AL$3:AL147) ->  | AT147: =SUM(AS$3:AS147) ->  | BA147: =SUM(AZ$3:AZ147) ->  | BH147: =SUM(BG$3:BG147) ->  | BO147: =SUM(BN$3:BN147) ->  | BV147: =SUM(BU$3:BU147) ->  | CC147: =SUM(CB$3:CB147) ->  | CJ147: =SUM(CI$3:CI147) ->  | CQ147: =SUM(CP$3:CP147) -> 
A148: Diesel CRF | B148: =B$77*POWER(1+B$77,B147)/(POWER(1+B$77,B147)-1) -> 0.1769841642 | E148: 146 | F148: =IF(E148-E124=24,F124,"") -> 0 | G148: 0 | H148: 0 | I148: 0 | J148: 0 | K148: =IF('Input Solar'!$D$18=Background!$X$2,'Calc Solar'!H148*$H$173,IF('Input Solar'!$D$18=Background!$X$3,'Calc Solar'!I148*$I$173,'Calc Solar'!J148*$J$173)) -> 0 | L148: =IF('Input Solar'!$D$20="Default",IF('Input Solar'!$D$18=Background!$X$2,'Calc Solar'!H148,IF('Input Solar'!$D$18=Background!$X$3,'Calc Solar'!I148,'Calc Solar'!J148)),K148) -> 0 | M148: 0 | N148: 0 | O148: 0 | P148: 0 | R148: 0 | S148: 0 | T148: 0 | X148: 0 | AF148: =SUM(AE$3:AE148) ->  | AM148: =SUM(AL$3:AL148) ->  | AT148: =SUM(AS$3:AS148) ->  | BA148: =SUM(AZ$3:AZ148) ->  | BH148: =SUM(BG$3:BG148) ->  | BO148: =SUM(BN$3:BN148) ->  | BV148: =SUM(BU$3:BU148) ->  | CC148: =SUM(CB$3:CB148) ->  | CJ148: =SUM(CI$3:CI148) ->  | CQ148: =SUM(CP$3:CP148) -> 
A149: Diesel Ann | B149: =B148*B146 -> 0 | E149: 147 | F149: 0 | G149: 0 | H149: 0 | I149: 0 | J149: 0 | K149: =IF('Input Solar'!$D$18=Background!$X$2,'Calc Solar'!H149*$H$173,IF('Input Solar'!$D$18=Background!$X$3,'Calc Solar'!I149*$I$173,'Calc Solar'!J149*$J$173)) -> 0 | L149: =IF('Input Solar'!$D$20="Default",IF('Input Solar'!$D$18=Background!$X$2,'Calc Solar'!H149,IF('Input Solar'!$D$18=Background!$X$3,'Calc Solar'!I149,'Calc Solar'!J149)),K149) -> 0 | M149: 0 | N149: 0 | O149: 0 | P149: 0 | R149: 0 | S149: 0 | T149: 0 | X149: 0 | AF149: =SUM(AE$3:AE149) ->  | AM149: =SUM(AL$3:AL149) ->  | AT149: =SUM(AS$3:AS149) ->  | BA149: =SUM(AZ$3:AZ149) ->  | BH149: =SUM(BG$3:BG149) ->  | BO149: =SUM(BN$3:BN149) ->  | BV149: =SUM(BU$3:BU149) ->  | CC149: =SUM(CB$3:CB149) ->  | CJ149: =SUM(CI$3:CI149) ->  | CQ149: =SUM(CP$3:CP149) -> 
A150: Diesel Opex var | B150: =IF('Input Solar'!D$70="Default",'Input Solar'!D$76,'Input Solar'!E$76)*B143*8760/168 ->  | E150: 148 | F150: 0 | G150: 0 | H150: 0 | I150: 0 | J150: 0 | K150: =IF('Input Solar'!$D$18=Background!$X$2,'Calc Solar'!H150*$H$173,IF('Input Solar'!$D$18=Background!$X$3,'Calc Solar'!I150*$I$173,'Calc Solar'!J150*$J$173)) -> 0 | L150: =IF('Input Solar'!$D$20="Default",IF('Input Solar'!$D$18=Background!$X$2,'Calc Solar'!H150,IF('Input Solar'!$D$18=Background!$X$3,'Calc Solar'!I150,'Calc Solar'!J150)),K150) -> 0 | M150: 0 | N150: 0 | O150: 0 | P150: 0 | R150: 0 | S150: 0 | T150: 0 | X150: 0 | AF150: =SUM(AE$3:AE150) ->  | AM150: =SUM(AL$3:AL150) ->  | AT150: =SUM(AS$3:AS150) ->  | BA150: =SUM(AZ$3:AZ150) ->  | BH150: =SUM(BG$3:BG150) ->  | BO150: =SUM(BN$3:BN150) ->  | BV150: =SUM(BU$3:BU150) ->  | CC150: =SUM(CB$3:CB150) ->  | CJ150: =SUM(CI$3:CI150) ->  | CQ150: =SUM(CP$3:CP150) -> 
A151: Diesel Opex fix | B151: =IF('Input Solar'!D$70="Default",'Input Solar'!D$77,'Input Solar'!E$77)*B135 -> 0 | E151: 149 | F151: 0 | G151: 0 | H151: 0 | I151: 0 | J151: 0 | K151: =IF('Input Solar'!$D$18=Background!$X$2,'Calc Solar'!H151*$H$173,IF('Input Solar'!$D$18=Background!$X$3,'Calc Solar'!I151*$I$173,'Calc Solar'!J151*$J$173)) -> 0 | L151: =IF('Input Solar'!$D$20="Default",IF('Input Solar'!$D$18=Background!$X$2,'Calc Solar'!H151,IF('Input Solar'!$D$18=Background!$X$3,'Calc Solar'!I151,'Calc Solar'!J151)),K151) -> 0 | M151: 0 | N151: 0 | O151: 0 | P151: 0 | R151: 0 | S151: 0 | T151: 0 | X151: 0 | AF151: =SUM(AE$3:AE151) ->  | AM151: =SUM(AL$3:AL151) ->  | AT151: =SUM(AS$3:AS151) ->  | BA151: =SUM(AZ$3:AZ151) ->  | BH151: =SUM(BG$3:BG151) ->  | BO151: =SUM(BN$3:BN151) ->  | BV151: =SUM(BU$3:BU151) ->  | CC151: =SUM(CB$3:CB151) ->  | CJ151: =SUM(CI$3:CI151) ->  | CQ151: =SUM(CP$3:CP151) -> 
A152: =CONCATENATE("GenCo ",IF('Input Solar'!D92="Default",'Input Solar'!D96,'Input Solar'!E96)) -> GenCo D | E152: 150 | F152: 0 | G152: 0 | H152: 0 | I152: 0 | J152: 0 | K152: =IF('Input Solar'!$D$18=Background!$X$2,'Calc Solar'!H152*$H$173,IF('Input Solar'!$D$18=Background!$X$3,'Calc Solar'!I152*$I$173,'Calc Solar'!J152*$J$173)) -> 0 | L152: =IF('Input Solar'!$D$20="Default",IF('Input Solar'!$D$18=Background!$X$2,'Calc Solar'!H152,IF('Input Solar'!$D$18=Background!$X$3,'Calc Solar'!I152,'Calc Solar'!J152)),K152) -> 0 | M152: 0 | N152: 0 | O152: 0 | P152: 0 | R152: 0 | S152: 0 | T152: 0 | X152: 0 | AF152: =SUM(AE$3:AE152) ->  | AM152: =SUM(AL$3:AL152) ->  | AT152: =SUM(AS$3:AS152) ->  | BA152: =SUM(AZ$3:AZ152) ->  | BH152: =SUM(BG$3:BG152) ->  | BO152: =SUM(BN$3:BN152) ->  | BV152: =SUM(BU$3:BU152) ->  | CC152: =SUM(CB$3:CB152) ->  | CJ152: =SUM(CI$3:CI152) ->  | CQ152: =SUM(CP$3:CP152) -> 
A153: P_smallest gen | B153: =IF('Input Solar'!$D$106="Default",'Input Solar'!$D$110,'Input Solar'!$E$110) -> 0 | E153: 151 | F153: 0 | G153: 0 | H153: 0.0244212393 | I153: 0.05526573154 | J153: 0.07342396201 | K153: =IF('Input Solar'!$D$18=Background!$X$2,'Calc Solar'!H153*$H$173,IF('Input Solar'!$D$18=Background!$X$3,'Calc Solar'!I153*$I$173,'Calc Solar'!J153*$J$173)) -> 0 | L153: =IF('Input Solar'!$D$20="Default",IF('Input Solar'!$D$18=Background!$X$2,'Calc Solar'!H153,IF('Input Solar'!$D$18=Background!$X$3,'Calc Solar'!I153,'Calc Solar'!J153)),K153) -> 0.0244212393 | M153: 0 | N153: 0 | O153: 0 | P153: 0 | R153: 0 | S153: 0 | T153: 0 | X153: 0 | AF153: =SUM(AE$3:AE153) ->  | AM153: =SUM(AL$3:AL153) ->  | AT153: =SUM(AS$3:AS153) ->  | BA153: =SUM(AZ$3:AZ153) ->  | BH153: =SUM(BG$3:BG153) ->  | BO153: =SUM(BN$3:BN153) ->  | BV153: =SUM(BU$3:BU153) ->  | CC153: =SUM(CB$3:CB153) ->  | CJ153: =SUM(CI$3:CI153) ->  | CQ153: =SUM(CP$3:CP153) -> 
A154: P_min | B154: =0.3*B153 -> 0 | E154: 152 | F154: 0 | G154: 0 | H154: 0.2981422497 | I154: 0.2435519624 | J154: 0.2879656697 | K154: =IF('Input Solar'!$D$18=Background!$X$2,'Calc Solar'!H154*$H$173,IF('Input Solar'!$D$18=Background!$X$3,'Calc Solar'!I154*$I$173,'Calc Solar'!J154*$J$173)) -> 0 | L154: =IF('Input Solar'!$D$20="Default",IF('Input Solar'!$D$18=Background!$X$2,'Calc Solar'!H154,IF('Input Solar'!$D$18=Background!$X$3,'Calc Solar'!I154,'Calc Solar'!J154)),K154) -> 0.2981422497 | M154: 0 | N154: 0 | O154: 0 | P154: 0 | R154: 0 | S154: 0 | T154: 0 | X154: 0 | AF154: =SUM(AE$3:AE154) ->  | AM154: =SUM(AL$3:AL154) ->  | AT154: =SUM(AS$3:AS154) ->  | BA154: =SUM(AZ$3:AZ154) ->  | BH154: =SUM(BG$3:BG154) ->  | BO154: =SUM(BN$3:BN154) ->  | BV154: =SUM(BU$3:BU154) ->  | CC154: =SUM(CB$3:CB154) ->  | CJ154: =SUM(CI$3:CI154) ->  | CQ154: =SUM(CP$3:CP154) -> 
A155: P_max | B155: =IF('Input Solar'!$D$106="Default",'Input Solar'!$D$108,'Input Solar'!$E$108) -> 0 | E155: 153 | F155: 0 | G155: 0 | H155: 0.5201380353 | I155: 0.4051129608 | J155: 0.4764083831 | K155: =IF('Input Solar'!$D$18=Background!$X$2,'Calc Solar'!H155*$H$173,IF('Input Solar'!$D$18=Background!$X$3,'Calc Solar'!I155*$I$173,'Calc Solar'!J155*$J$173)) -> 0 | L155: =IF('Input Solar'!$D$20="Default",IF('Input Solar'!$D$18=Background!$X$2,'Calc Solar'!H155,IF('Input Solar'!$D$18=Background!$X$3,'Calc Solar'!I155,'Calc Solar'!J155)),K155) -> 0.5201380353 | M155: 0 | N155: 0 | O155: 0 | P155: 0 | R155: 0 | S155: 0 | T155: 0 | X155: 0 | AF155: =SUM(AE$3:AE155) ->  | AM155: =SUM(AL$3:AL155) ->  | AT155: =SUM(AS$3:AS155) ->  | BA155: =SUM(AZ$3:AZ155) ->  | BH155: =SUM(BG$3:BG155) ->  | BO155: =SUM(BN$3:BN155) ->  | BV155: =SUM(BU$3:BU155) ->  | CC155: =SUM(CB$3:CB155) ->  | CJ155: =SUM(CI$3:CI155) ->  | CQ155: =SUM(CP$3:CP155) -> 
A156: P_operational | B156: =IF('Input Solar'!$D$106="Default",'Input Solar'!$D$109,'Input Solar'!$E$109) -> 0 | E156: 154 | F156: 0 | G156: 0 | H156: 0.601429654 | I156: 0.5120653217 | J156: 0.6129250903 | K156: =IF('Input Solar'!$D$18=Background!$X$2,'Calc Solar'!H156*$H$173,IF('Input Solar'!$D$18=Background!$X$3,'Calc Solar'!I156*$I$173,'Calc Solar'!J156*$J$173)) -> 0 | L156: =IF('Input Solar'!$D$20="Default",IF('Input Solar'!$D$18=Background!$X$2,'Calc Solar'!H156,IF('Input Solar'!$D$18=Background!$X$3,'Calc Solar'!I156,'Calc Solar'!J156)),K156) -> 0.601429654 | M156: 0 | N156: 0 | O156: 0 | P156: 0 | R156: 0 | S156: 0 | T156: 0 | X156: 0 | AF156: =SUM(AE$3:AE156) ->  | AM156: =SUM(AL$3:AL156) ->  | AT156: =SUM(AS$3:AS156) ->  | BA156: =SUM(AZ$3:AZ156) ->  | BH156: =SUM(BG$3:BG156) ->  | BO156: =SUM(BN$3:BN156) ->  | BV156: =SUM(BU$3:BU156) ->  | CC156: =SUM(CB$3:CB156) ->  | CJ156: =SUM(CI$3:CI156) ->  | CQ156: =SUM(CP$3:CP156) -> 
A157: Min offtake/weekday | B157: =IF('Input Solar'!$D$92="Default",'Input Solar'!$D102,'Input Solar'!$E102)/(5+2*('Existing Load'!$D$19/'Existing Load'!$D$17))*1000/(8760/168) ->  | E157: 155 | F157: 0 | G157: 0 | H157: 0.5568200686 | I157: 0.5633879509 | J157: 0.6932650334 | K157: =IF('Input Solar'!$D$18=Background!$X$2,'Calc Solar'!H157*$H$173,IF('Input Solar'!$D$18=Background!$X$3,'Calc Solar'!I157*$I$173,'Calc Solar'!J157*$J$173)) -> 0 | L157: =IF('Input Solar'!$D$20="Default",IF('Input Solar'!$D$18=Background!$X$2,'Calc Solar'!H157,IF('Input Solar'!$D$18=Background!$X$3,'Calc Solar'!I157,'Calc Solar'!J157)),K157) -> 0.5568200686 | M157: 0 | N157: 0 | O157: 0 | P157: 0 | R157: 0 | S157: 0 | T157: 0 | X157: 0 | AF157: =SUM(AE$3:AE157) ->  | AM157: =SUM(AL$3:AL157) ->  | AT157: =SUM(AS$3:AS157) ->  | BA157: =SUM(AZ$3:AZ157) ->  | BH157: =SUM(BG$3:BG157) ->  | BO157: =SUM(BN$3:BN157) ->  | BV157: =SUM(BU$3:BU157) ->  | CC157: =SUM(CB$3:CB157) ->  | CJ157: =SUM(CI$3:CI157) ->  | CQ157: =SUM(CP$3:CP157) -> 
A158: Min offtake/weekend | B158: =('Existing Load'!$D$19/'Existing Load'!$D$17)*B157 ->  | E158: 156 | F158: 0 | G158: 0 | H158: 0.6410233219 | I158: 0.6145599445 | J158: 0.668361114 | K158: =IF('Input Solar'!$D$18=Background!$X$2,'Calc Solar'!H158*$H$173,IF('Input Solar'!$D$18=Background!$X$3,'Calc Solar'!I158*$I$173,'Calc Solar'!J158*$J$173)) -> 0 | L158: =IF('Input Solar'!$D$20="Default",IF('Input Solar'!$D$18=Background!$X$2,'Calc Solar'!H158,IF('Input Solar'!$D$18=Background!$X$3,'Calc Solar'!I158,'Calc Solar'!J158)),K158) -> 0.6410233219 | M158: 0 | N158: 0 | O158: 0 | P158: 0 | R158: 0 | S158: 0 | T158: 0 | X158: 0 | AF158: =SUM(AE$3:AE158) ->  | AM158: =SUM(AL$3:AL158) ->  | AT158: =SUM(AS$3:AS158) ->  | BA158: =SUM(AZ$3:AZ158) ->  | BH158: =SUM(BG$3:BG158) ->  | BO158: =SUM(BN$3:BN158) ->  | BV158: =SUM(BU$3:BU158) ->  | CC158: =SUM(CB$3:CB158) ->  | CJ158: =SUM(CI$3:CI158) ->  | CQ158: =SUM(CP$3:CP158) -> 
A159: Max offtake | B159: =IF('Input Solar'!$D$92="Default",'Input Solar'!$D103,'Input Solar'!$E103)*1000/(8760/168) -> 0 | E159: 157 | F159: 0 | G159: 0 | H159: 0.6741186472 | I159: 0.6204218218 | J159: 0.5900394052 | K159: =IF('Input Solar'!$D$18=Background!$X$2,'Calc Solar'!H159*$H$173,IF('Input Solar'!$D$18=Background!$X$3,'Calc Solar'!I159*$I$173,'Calc Solar'!J159*$J$173)) -> 0 | L159: =IF('Input Solar'!$D$20="Default",IF('Input Solar'!$D$18=Background!$X$2,'Calc Solar'!H159,IF('Input Solar'!$D$18=Background!$X$3,'Calc Solar'!I159,'Calc Solar'!J159)),K159) -> 0.6741186472 | M159: 0 | N159: 0 | O159: 0 | P159: 0 | R159: 0 | S159: 0 | T159: 0 | X159: 0 | AF159: =SUM(AE$3:AE159) ->  | AM159: =SUM(AL$3:AL159) ->  | AT159: =SUM(AS$3:AS159) ->  | BA159: =SUM(AZ$3:AZ159) ->  | BH159: =SUM(BG$3:BG159) ->  | BO159: =SUM(BN$3:BN159) ->  | BV159: =SUM(BU$3:BU159) ->  | CC159: =SUM(CB$3:CB159) ->  | CJ159: =SUM(CI$3:CI159) ->  | CQ159: =SUM(CP$3:CP159) -> 
A160: Liter/kWh | B160: =IF('Input Solar'!$D$92="Default",'Input Solar'!$D100,'Input Solar'!$E100) -> 0.33 | E160: 158 | F160: 0 | G160: 0 | H160: 0.6478029449 | I160: 0.5766804678 | J160: 0.4717218349 | K160: =IF('Input Solar'!$D$18=Background!$X$2,'Calc Solar'!H160*$H$173,IF('Input Solar'!$D$18=Background!$X$3,'Calc Solar'!I160*$I$173,'Calc Solar'!J160*$J$173)) -> 0 | L160: =IF('Input Solar'!$D$20="Default",IF('Input Solar'!$D$18=Background!$X$2,'Calc Solar'!H160,IF('Input Solar'!$D$18=Background!$X$3,'Calc Solar'!I160,'Calc Solar'!J160)),K160) -> 0.6478029449 | M160: 0 | N160: 0 | O160: 0 | P160: 0 | R160: 0 | S160: 0 | T160: 0 | X160: 0 | AF160: =SUM(AE$3:AE160) ->  | AM160: =SUM(AL$3:AL160) ->  | AT160: =SUM(AS$3:AS160) ->  | BA160: =SUM(AZ$3:AZ160) ->  | BH160: =SUM(BG$3:BG160) ->  | BO160: =SUM(BN$3:BN160) ->  | BV160: =SUM(BU$3:BU160) ->  | CC160: =SUM(CB$3:CB160) ->  | CJ160: =SUM(CI$3:CI160) ->  | CQ160: =SUM(CP$3:CP160) -> 
A161: Fuel costs start | B161: =IF('Input Solar'!$D$92="Default",'Input Solar'!$D101,'Input Solar'!$E101) -> 35 | E161: 159 | F161: 0 | G161: 0 | H161: 0.4711860853 | I161: 0.4005874366 | J161: 0.3465367047 | K161: =IF('Input Solar'!$D$18=Background!$X$2,'Calc Solar'!H161*$H$173,IF('Input Solar'!$D$18=Background!$X$3,'Calc Solar'!I161*$I$173,'Calc Solar'!J161*$J$173)) -> 0 | L161: =IF('Input Solar'!$D$20="Default",IF('Input Solar'!$D$18=Background!$X$2,'Calc Solar'!H161,IF('Input Solar'!$D$18=Background!$X$3,'Calc Solar'!I161,'Calc Solar'!J161)),K161) -> 0.4711860853 | M161: 0 | N161: 0 | O161: 0 | P161: 0 | R161: 0 | S161: 0 | T161: 0 | X161: 0 | AF161: =SUM(AE$3:AE161) ->  | AM161: =SUM(AL$3:AL161) ->  | AT161: =SUM(AS$3:AS161) ->  | BA161: =SUM(AZ$3:AZ161) ->  | BH161: =SUM(BG$3:BG161) ->  | BO161: =SUM(BN$3:BN161) ->  | BV161: =SUM(BU$3:BU161) ->  | CC161: =SUM(CB$3:CB161) ->  | CJ161: =SUM(CI$3:CI161) ->  | CQ161: =SUM(CP$3:CP161) -> 
A162: Fuel costs (sim) | B162: =IF(Background!$W$2,B161*(1+B$32)^(Background!$B$56-1),IF(Background!U$2,fuel_costs(B161,B$32,B$34),B161)) -> 35 | E162: 160 | F162: 0 | G162: 0 | H162: 0.2784282795 | I162: 0.2218959411 | J162: 0.2120907739 | K162: =IF('Input Solar'!$D$18=Background!$X$2,'Calc Solar'!H162*$H$173,IF('Input Solar'!$D$18=Background!$X$3,'Calc Solar'!I162*$I$173,'Calc Solar'!J162*$J$173)) -> 0 | L162: =IF('Input Solar'!$D$20="Default",IF('Input Solar'!$D$18=Background!$X$2,'Calc Solar'!H162,IF('Input Solar'!$D$18=Background!$X$3,'Calc Solar'!I162,'Calc Solar'!J162)),K162) -> 0.2784282795 | M162: 0 | N162: 0 | O162: 0 | P162: 0 | R162: 0 | S162: 0 | T162: 0 | X162: 0 | AF162: =SUM(AE$3:AE162) ->  | AM162: =SUM(AL$3:AL162) ->  | AT162: =SUM(AS$3:AS162) ->  | BA162: =SUM(AZ$3:AZ162) ->  | BH162: =SUM(BG$3:BG162) ->  | BO162: =SUM(BN$3:BN162) ->  | BV162: =SUM(BU$3:BU162) ->  | CC162: =SUM(CB$3:CB162) ->  | CJ162: =SUM(CI$3:CI162) ->  | CQ162: =SUM(CP$3:CP162) -> 
A163: Diesel generation | B163: =SUM(BC3:BC170) ->  | E163: 161 | F163: 0 | G163: 0 | H163: 0.1025748307 | I163: 0.07312035552 | J163: 0.08829193055 | K163: =IF('Input Solar'!$D$18=Background!$X$2,'Calc Solar'!H163*$H$173,IF('Input Solar'!$D$18=Background!$X$3,'Calc Solar'!I163*$I$173,'Calc Solar'!J163*$J$173)) -> 0 | L163: =IF('Input Solar'!$D$20="Default",IF('Input Solar'!$D$18=Background!$X$2,'Calc Solar'!H163,IF('Input Solar'!$D$18=Background!$X$3,'Calc Solar'!I163,'Calc Solar'!J163)),K163) -> 0.1025748307 | M163: 0 | N163: 0 | O163: =MIN(N163,0) -> 0 | P163: 0 | Q163: =MAX(P163,-(1-DC162)*$B$8) ->  | R163: =MAX(N163,0) -> 0 | S163: 0 | T163: 0 | U163: =MAX(MIN(T163,(DC162-$B$12)*$B$8),0) ->  | W163: =ROUND(MAX(0,N163-V163),5) ->  | X163: =G163*$B$14 -> 0 | AF163: =SUM(AE$3:AE163) ->  | AJ163: =AC163-AG163 ->  | AL163: =IF(AJ163<=0,0,MIN(MAX(AJ163,$B$114),($B$116-AK163))) ->  | AM163: =SUM(AL$3:AL163) ->  | AP163: =$B$117*AO163 ->  | AQ163: =AJ163-AN163 ->  | AS163: =IF(AQ163<=0,0,MIN(MAX(AQ163,$B$134),($B$136-AR163))) ->  | AT163: =SUM(AS$3:AS163) ->  | AW163: =$B$137*AV163 ->  | AX163: =AQ163-AU163 ->  | BA163: =SUM(AZ$3:AZ163) ->  | BD163: =$B$160*BC163 ->  | BH163: =SUM(BG$3:BG163) ->  | BK163: =$B$180*BJ163 ->  | BO163: =SUM(BN$3:BN163) ->  | BR163: =$B$200*BQ163 ->  | BV163: =SUM(BU$3:BU163) ->  | BY163: =$B$220*BX163 ->  | CC163: =SUM(CB$3:CB163) ->  | CF163: =$B$240*CE163 ->  | CJ163: =SUM(CI$3:CI163) ->  | CM163: =$B$260*CL163 ->  | CQ163: =SUM(CP$3:CP163) ->  | CT163: =$B$280*CS163 ->  | CU163: =CS163+CL163+CE163+BX163+BQ163+BJ163+BC163+AV163+AO163+AH163 ->  | CV163: =CU163+M163-G163 ->  | DE163: =MAX(G163-M163-CU163-DA163,0) ->  | DF163: =MAX(G163-CU163-DE163-DA163,0) ->  | DG163: =MAX(DB163,-1*(M163-DF163)) ->  | DH163: =G163-DF163-DA163-DE163 ->  | DJ163: =MAX(DB163-DG163,-1*DI163) -> 
A164: Diesel l/week | B164: =SUM(BD3:BD170) ->  | E164: 162 | F164: 0 | G164: 0 | H164: 0.0001630165617 | I164: 0 | J164: 0.004145230757 | K164: =IF('Input Solar'!$D$18=Background!$X$2,'Calc Solar'!H164*$H$173,IF('Input Solar'!$D$18=Background!$X$3,'Calc Solar'!I164*$I$173,'Calc Solar'!J164*$J$173)) -> 0 | L164: =IF('Input Solar'!$D$20="Default",IF('Input Solar'!$D$18=Background!$X$2,'Calc Solar'!H164,IF('Input Solar'!$D$18=Background!$X$3,'Calc Solar'!I164,'Calc Solar'!J164)),K164) -> 0.0001630165617 | M164: 0 | N164: 0 | O164: 0 | P164: 0 | R164: 0 | S164: 0 | T164: 0 | X164: 0 | AF164: =SUM(AE$3:AE164) ->  | AM164: =SUM(AL$3:AL164) ->  | AT164: =SUM(AS$3:AS164) ->  | BA164: =SUM(AZ$3:AZ164) ->  | BH164: =SUM(BG$3:BG164) ->  | BO164: =SUM(BN$3:BN164) ->  | BV164: =SUM(BU$3:BU164) ->  | CC164: =SUM(CB$3:CB164) ->  | CJ164: =SUM(CI$3:CI164) ->  | CQ164: =SUM(CP$3:CP164) -> 
A165: Diesel cost PHP/week | B165: =B164*B162 ->  | E165: 163 | F165: 0 | G165: 0 | H165: 0 | I165: 0 | J165: 0 | K165: =IF('Input Solar'!$D$18=Background!$X$2,'Calc Solar'!H165*$H$173,IF('Input Solar'!$D$18=Background!$X$3,'Calc Solar'!I165*$I$173,'Calc Solar'!J165*$J$173)) -> 0 | L165: =IF('Input Solar'!$D$20="Default",IF('Input Solar'!$D$18=Background!$X$2,'Calc Solar'!H165,IF('Input Solar'!$D$18=Background!$X$3,'Calc Solar'!I165,'Calc Solar'!J165)),K165) -> 0 | M165: 0 | N165: 0 | O165: 0 | P165: 0 | R165: 0 | S165: 0 | T165: 0 | X165: 0 | AF165: =SUM(AE$3:AE165) ->  | AM165: =SUM(AL$3:AL165) ->  | AT165: =SUM(AS$3:AS165) ->  | BA165: =SUM(AZ$3:AZ165) ->  | BH165: =SUM(BG$3:BG165) ->  | BO165: =SUM(BN$3:BN165) ->  | BV165: =SUM(BU$3:BU165) ->  | CC165: =SUM(CB$3:CB165) ->  | CJ165: =SUM(CI$3:CI165) ->  | CQ165: =SUM(CP$3:CP165) -> 
A166: Diesel CAPEX | B166: =IF('Input Solar'!D$92="Default",'Input Solar'!D$97,'Input Solar'!E$97)*B155 -> 0 | E166: 164 | F166: 0 | G166: 0 | H166: 0 | I166: 0 | J166: 0 | K166: =IF('Input Solar'!$D$18=Background!$X$2,'Calc Solar'!H166*$H$173,IF('Input Solar'!$D$18=Background!$X$3,'Calc Solar'!I166*$I$173,'Calc Solar'!J166*$J$173)) -> 0 | L166: =IF('Input Solar'!$D$20="Default",IF('Input Solar'!$D$18=Background!$X$2,'Calc Solar'!H166,IF('Input Solar'!$D$18=Background!$X$3,'Calc Solar'!I166,'Calc Solar'!J166)),K166) -> 0 | M166: 0 | N166: 0 | O166: 0 | P166: 0 | R166: 0 | S166: 0 | T166: 0 | X166: 0 | AF166: =SUM(AE$3:AE166) ->  | AM166: =SUM(AL$3:AL166) ->  | AT166: =SUM(AS$3:AS166) ->  | BA166: =SUM(AZ$3:AZ166) ->  | BH166: =SUM(BG$3:BG166) ->  | BO166: =SUM(BN$3:BN166) ->  | BV166: =SUM(BU$3:BU166) ->  | CC166: =SUM(CB$3:CB166) ->  | CJ166: =SUM(CI$3:CI166) ->  | CQ166: =SUM(CP$3:CP166) -> 
A167: Diesel lifetime | B167: =IF('Input Solar'!D$92="Default",'Input Solar'!D$104,'Input Solar'!E$104) -> 10 | E167: 165 | F167: 0 | G167: 0 | H167: 0 | I167: 0 | J167: 0 | K167: =IF('Input Solar'!$D$18=Background!$X$2,'Calc Solar'!H167*$H$173,IF('Input Solar'!$D$18=Background!$X$3,'Calc Solar'!I167*$I$173,'Calc Solar'!J167*$J$173)) -> 0 | L167: =IF('Input Solar'!$D$20="Default",IF('Input Solar'!$D$18=Background!$X$2,'Calc Solar'!H167,IF('Input Solar'!$D$18=Background!$X$3,'Calc Solar'!I167,'Calc Solar'!J167)),K167) -> 0 | M167: 0 | N167: 0 | O167: 0 | P167: 0 | R167: 0 | S167: 0 | T167: 0 | X167: 0 | AF167: =SUM(AE$3:AE167) ->  | AM167: =SUM(AL$3:AL167) ->  | AT167: =SUM(AS$3:AS167) ->  | BA167: =SUM(AZ$3:AZ167) ->  | BH167: =SUM(BG$3:BG167) ->  | BO167: =SUM(BN$3:BN167) ->  | BV167: =SUM(BU$3:BU167) ->  | CC167: =SUM(CB$3:CB167) ->  | CJ167: =SUM(CI$3:CI167) ->  | CQ167: =SUM(CP$3:CP167) -> 
A168: Diesel CRF | B168: =B$77*POWER(1+B$77,B167)/(POWER(1+B$77,B167)-1) -> 0.1769841642 | E168: 166 | F168: 0 | G168: 0 | H168: 0 | I168: 0 | J168: 0 | K168: =IF('Input Solar'!$D$18=Background!$X$2,'Calc Solar'!H168*$H$173,IF('Input Solar'!$D$18=Background!$X$3,'Calc Solar'!I168*$I$173,'Calc Solar'!J168*$J$173)) -> 0 | L168: =IF('Input Solar'!$D$20="Default",IF('Input Solar'!$D$18=Background!$X$2,'Calc Solar'!H168,IF('Input Solar'!$D$18=Background!$X$3,'Calc Solar'!I168,'Calc Solar'!J168)),K168) -> 0 | M168: 0 | N168: 0 | O168: 0 | P168: 0 | R168: 0 | S168: 0 | T168: 0 | X168: 0 | AF168: =SUM(AE$3:AE168) ->  | AM168: =SUM(AL$3:AL168) ->  | AT168: =SUM(AS$3:AS168) ->  | BA168: =SUM(AZ$3:AZ168) ->  | BH168: =SUM(BG$3:BG168) ->  | BO168: =SUM(BN$3:BN168) ->  | BV168: =SUM(BU$3:BU168) ->  | CC168: =SUM(CB$3:CB168) ->  | CJ168: =SUM(CI$3:CI168) ->  | CQ168: =SUM(CP$3:CP168) -> 
A169: Diesel Ann | B169: =B168*B166 -> 0 | E169: 167 | F169: 0 | G169: 0 | H169: 0 | I169: 0 | J169: 0 | K169: =IF('Input Solar'!$D$18=Background!$X$2,'Calc Solar'!H169*$H$173,IF('Input Solar'!$D$18=Background!$X$3,'Calc Solar'!I169*$I$173,'Calc Solar'!J169*$J$173)) -> 0 | L169: =IF('Input Solar'!$D$20="Default",IF('Input Solar'!$D$18=Background!$X$2,'Calc Solar'!H169,IF('Input Solar'!$D$18=Background!$X$3,'Calc Solar'!I169,'Calc Solar'!J169)),K169) -> 0 | M169: 0 | N169: 0 | O169: 0 | P169: 0 | R169: 0 | S169: 0 | T169: 0 | X169: 0 | AF169: =SUM(AE$3:AE169) ->  | AM169: =SUM(AL$3:AL169) ->  | AT169: =SUM(AS$3:AS169) ->  | BA169: =SUM(AZ$3:AZ169) ->  | BH169: =SUM(BG$3:BG169) ->  | BO169: =SUM(BN$3:BN169) ->  | BV169: =SUM(BU$3:BU169) ->  | CC169: =SUM(CB$3:CB169) ->  | CJ169: =SUM(CI$3:CI169) ->  | CQ169: =SUM(CP$3:CP169) -> 
A170: Diesel Opex var | B170: =IF('Input Solar'!D$92="Default",'Input Solar'!D$98,'Input Solar'!E$98)*B163*8760/168 ->  | E170: 168 | F170: 0 | G170: 0 | H170: 0 | I170: 0 | J170: 0 | K170: =IF('Input Solar'!$D$18=Background!$X$2,'Calc Solar'!H170*$H$173,IF('Input Solar'!$D$18=Background!$X$3,'Calc Solar'!I170*$I$173,'Calc Solar'!J170*$J$173)) -> 0 | L170: =IF('Input Solar'!$D$20="Default",IF('Input Solar'!$D$18=Background!$X$2,'Calc Solar'!H170,IF('Input Solar'!$D$18=Background!$X$3,'Calc Solar'!I170,'Calc Solar'!J170)),K170) -> 0 | M170: 0 | N170: 0 | O170: 0 | P170: 0 | R170: 0 | S170: 0 | T170: 0 | X170: 0 | AF170: =SUM(AE$3:AE170) ->  | AM170: =SUM(AL$3:AL170) ->  | AT170: =SUM(AS$3:AS170) ->  | BA170: =SUM(AZ$3:AZ170) ->  | BH170: =SUM(BG$3:BG170) ->  | BO170: =SUM(BN$3:BN170) ->  | BV170: =SUM(BU$3:BU170) ->  | CC170: =SUM(CB$3:CB170) ->  | CJ170: =SUM(CI$3:CI170) ->  | CQ170: =SUM(CP$3:CP170) -> 
A171: Diesel Opex fix | B171: =IF('Input Solar'!D$92="Default",'Input Solar'!D$99,'Input Solar'!E$99)*B155 -> 0 | G171: kWh/kWp per day | H171: =SUM(H3:H170)/7 -> 3.738899356 | I171: =SUM(I3:I170)/7 -> 3.859452693 | J171: =SUM(J3:J170)/7 -> 4.046185632 | K171: =IF('Input Solar'!$D$18=Background!$X$2,'Calc Solar'!H171*$H$173,IF('Input Solar'!$D$18=Background!$X$3,'Calc Solar'!I171*$I$173,'Calc Solar'!J171*$J$173)) -> 0 | AH171: 0 | AO171: 0 | AV171: 0 | CU171: 0
A172: =CONCATENATE("GenCo ",IF('Input Solar'!D114="Default",'Input Solar'!D118,'Input Solar'!E118)) -> GenCo E | G172: input | H172: ='Input Solar'!$E$22 -> 0 | I172: ='Input Solar'!$E$22 -> 0 | J172: ='Input Solar'!$E$22 -> 0 | AH172: 0 | AO172: 0 | AV172: 0 | CU172: 0
A173: P_smallest gen | B173: =IF('Input Solar'!$D$128="Default",'Input Solar'!$D$132,'Input Solar'!$E$132) -> 0 | G173: ratio | H173: =H172/H171 -> 0 | I173: =I172/I171 -> 0 | J173: =J172/J171 -> 0 | AH173: 0 | AO173: 0 | AV173: 0 | CU173: 0
A174: P_min | B174: =0.3*B173 -> 0 | AH174: 0 | AO174: 0 | AV174: 0
A175: P_max | B175: =IF('Input Solar'!$D$128="Default",'Input Solar'!$D$130,'Input Solar'!$E$130) -> 0 | AH175: 0 | AO175: 0 | AV175: 0
A176: P_operational | B176: =IF('Input Solar'!$D$128="Default",'Input Solar'!$D$131,'Input Solar'!$E$131) -> 0 | AH176: 0 | AO176: 0 | AV176: 0
A177: Min offtake/weekday | B177: =IF('Input Solar'!$D$114="Default",'Input Solar'!$D124,'Input Solar'!$E124)/(5+2*('Existing Load'!$D$19/'Existing Load'!$D$17))*1000/(8760/168) ->  | AH177: 0 | AO177: 0 | AV177: 0
A178: Min offtake/weekend | B178: =('Existing Load'!$D$19/'Existing Load'!$D$17)*B177 ->  | AH178: 0 | AO178: 0 | AV178: 0
A179: Max offtake | B179: =IF('Input Solar'!$D$114="Default",'Input Solar'!$D125,'Input Solar'!$E125)*1000/(8760/168) -> 0 | AH179: 0 | AO179: 0 | AV179: 0
A180: Liter/kWh | B180: =IF('Input Solar'!$D$114="Default",'Input Solar'!$D122,'Input Solar'!$E122) -> 0.33 | AH180: 0 | AO180: 0 | AV180: 0
A181: Fuel costs start | B181: =IF('Input Solar'!$D$114="Default",'Input Solar'!$D123,'Input Solar'!$E123) -> 35 | AH181: 0 | AO181: 0 | AV181: 0
A182: Fuel costs (sim) | B182: =IF(Background!$W$2,B181*(1+B$32)^(Background!$B$56-1),IF(Background!U$2,fuel_costs(B181,B$32,B$34),B181)) -> 35 | AH182: 0 | AO182: 0 | AV182: 0
A183: Diesel generation | B183: =SUM(BJ3:BJ170) ->  | AH183: 0 | AO183: 0 | AV183: 0
A184: Diesel l/week | B184: =SUM(BK3:BK170) ->  | AH184: 0 | AO184: 0 | AV184: 0
A185: Diesel cost PHP/week | B185: =B184*B182 ->  | AH185: 0 | AO185: 0 | AV185: 0
A186: Diesel CAPEX | B186: =IF('Input Solar'!D$114="Default",'Input Solar'!D$119,'Input Solar'!E$119)*B175 -> 0 | AH186: 0 | AO186: 0 | AV186: 0
A187: Diesel lifetime | B187: =IF('Input Solar'!D$114="Default",'Input Solar'!D$126,'Input Solar'!E$126) -> 10 | AH187: 0 | AO187: 0 | AV187: 0
A188: Diesel CRF | B188: =B$77*POWER(1+B$77,B187)/(POWER(1+B$77,B187)-1) -> 0.1769841642 | AH188: 0 | AO188: 0 | AV188: 0
A189: Diesel Ann | B189: =B188*B186 -> 0 | AH189: 0 | AO189: 0 | AV189: 0
A190: Diesel Opex var | B190: =IF('Input Solar'!D$114="Default",'Input Solar'!D$120,'Input Solar'!E$120)*B183*8760/168 ->  | AH190: 0 | AO190: 0 | AV190: 0
A191: Diesel Opex fix | B191: =IF('Input Solar'!D$114="Default",'Input Solar'!D$121,'Input Solar'!E$121)*B175 -> 0 | AH191: 0 | AO191: 0 | AV191: 0
A192: =CONCATENATE("GenCo ",IF('Input Solar'!D136="Default",'Input Solar'!D140,'Input Solar'!E140)) -> GenCo F | AH192: 0 | AO192: 0 | AV192: 0
A193: P_smallest gen | B193: =IF('Input Solar'!$D$150="Default",'Input Solar'!$D$154,'Input Solar'!$E$154) -> 0 | AH193: 0 | AO193: 0 | AV193: 0
A194: P_min | B194: =0.3*B193 -> 0 | AH194: 0 | AO194: 0 | AV194: 0
A195: P_max | B195: =IF('Input Solar'!$D$150="Default",'Input Solar'!$D$152,'Input Solar'!$E$152) -> 0 | AH195: =MIN(AG195+AD195,$B$96) -> 0 | AO195: =MIN(AN195+AK195,$B$116) -> 0 | AV195: =MIN(AU195+AR195,$B$136) -> 0
A196: P_operational | B196: =IF('Input Solar'!$D$150="Default",'Input Solar'!$D$153,'Input Solar'!$E$153) -> 0 | AH196: 0 | AO196: 0 | AV196: 0
A197: Min offtake/weekday | B197: =IF('Input Solar'!$D$136="Default",'Input Solar'!$D146,'Input Solar'!$E146)/(5+2*('Existing Load'!$D$19/'Existing Load'!$D$17))*1000/(8760/168) ->  | AH197: 0 | AO197: 0 | AV197: 0
A198: Min offtake/weekend | B198: =('Existing Load'!$D$19/'Existing Load'!$D$17)*B197 ->  | AH198: 0 | AO198: 0 | AV198: 0
A199: Max offtake | B199: =IF('Input Solar'!$D$136="Default",'Input Solar'!$D147,'Input Solar'!$E147)*1000/(8760/168) -> 0 | AH199: 0 | AO199: 0 | AV199: 0
A200: Liter/kWh | B200: =IF('Input Solar'!$D$136="Default",'Input Solar'!$D144,'Input Solar'!$E144) -> 0.33 | AH200: 0 | AO200: 0 | AV200: 0
... 91 more rows

Sheet Input Wind
C3: Select wind park costs | D3: Default
C5: Parameters | D5: Value (Default) | E5: Value (Individual) | G5: Unit
C7: Wind CAPEX | D7: =Background!Q14 -> 100000 | G7: PHP/kW
C8: Wind OPEX | D8: =Background!Q15 -> 2000 | G8: PHP/kW/y
C9: Life span | D9: =Background!O6 -> 20 | G9: years
C11: Select wind park size | D11: Default
C13: Mean wind speed (at 50m height) | D13: 7 | G13: m/s
C14: Wind park capacity existing eligible | D14: 0 | G14: kW
C15: Wind park capacity existing non-eligible | D15: 0 | G15: kW
C16: Wind park capacity new | D16: =Background!Q11 -> 0 | G16: kW
C17: Wind park capacity total | D17: =SUM(D14:D16) -> 0 | E17: =SUM(E14:E16) -> 0 | G17: kW
C18: Wind turbine type | D18: =Background!$Q$12 -> 0 | G18: kW
C19: Hub height | D19: =VLOOKUP(D18,Background!$BC$20:$BD$24,2,FALSE) -> 0 | E19: =VLOOKUP(E18,Background!$BC$20:$BD$24,2,FALSE) -> 0 | G19: m
C23: Select diesel GenCo type | D23: Default
C25: Parameters | D25: Value (Default) | E25: Value (Individual) | G25: Unit
C27: Diesel plant name | D27: A
C28: Diesel plant CAPEX | D28: =Background!M4 -> 30000 | G28: PHP/kW
C29: Diesel plant OPEX var. | D29: =Background!M5 -> 2.5 | G29: PHP/kWh
C30: Diesel plant OPEX fix. | D30: =Background!M6 -> 300 | G30: PHP/kW/y
C31: Fuel per kWh | D31: =Background!M7 -> 0.33 | G31: liter/kWh
C32: Initital diesel fuel costs | D32: =Background!M9 -> 35 | G32: PHP/liter
C33: Minimum GenCo offtake | D33: 0 | G33: MWh/year
C34: Maximum GenCo offtake | D34: ='Existing Load'!$I$37*2 -> 0 | G34: MWh/year
C35: Life span | D35: =Background!M11 -> 10 | G35: years
C37: Select diesel plant size | D37: Default
C39: Diesel GenCo total capacity | D39: =Background!$Q$7 -> 0 | G39: kW
C40: Diesel GenCo operational capacity | D40: =Background!$Q$7 -> 0 | G40: kW
C41: Capacity of smallest unit | D41: =D39 -> 0 | G41: kW
C45: Select diesel GenCo type | D45: Default
C47: Parameters | D47: Value (Default) | E47: Value (Individual) | G47: Unit
C49: Diesel plant name | D49: B
C50: Diesel plant CAPEX | D50: =Background!M$4 -> 30000 | G50: PHP/kW
C51: Diesel plant OPEX var. | D51: =Background!M$5 -> 2.5 | G51: PHP/kWh
C52: Diesel plant OPEX fix. | D52: =Background!M$6 -> 300 | G52: PHP/kW/y
C53: Fuel per kWh | D53: =Background!M$7 -> 0.33 | G53: liter/kWh
C54: Initital diesel fuel costs | D54: =Background!M$9 -> 35 | G54: PHP/liter
C55: Minimum GenCo offtake | D55: 0 | G55: MWh/year
C56: Maximum GenCo offtake | D56: ='Existing Load'!$I$37*2 -> 0 | G56: MWh/year
C57: Life span | D57: =Background!M$11 -> 10 | G57: years
C59: Select diesel plant size | D59: Default
C61: Diesel GenCo total capacity | D61: 0 | G61: kW
C62: Diesel GenCo operational capacity | D62: 0 | G62: kW
C63: Capacity of smallest unit | D63: 0 | G63: kW
C67: Select diesel GenCo type | D67: Default
C69: Parameters | D69: Value (Default) | E69: Value (Individual) | G69: Unit
C71: Diesel plant name | D71: C
C72: Diesel plant CAPEX | D72: =Background!M$4 -> 30000 | G72: PHP/kW
C73: Diesel plant OPEX var. | D73: =Background!M$5 -> 2.5 | G73: PHP/kWh
C74: Diesel plant OPEX fix. | D74: =Background!M$6 -> 300 | G74: PHP/kW/y
C75: Fuel per kWh | D75: =Background!M$7 -> 0.33 | G75: liter/kWh
C76: Initital diesel fuel costs | D76: =Background!M$9 -> 35 | G76: PHP/liter
C77: Minimum GenCo offtake | D77: 0 | G77: MWh/year
C78: Maximum GenCo offtake | D78: ='Existing Load'!$I$37*2 -> 0 | G78: MWh/year
C79: Life span | D79: =Background!M$11 -> 10 | G79: years
C81: Select diesel plant size | D81: Default
C83: Diesel GenCo total capacity | D83: 0 | G83: kW
C84: Diesel GenCo operational capacity | D84: 0 | G84: kW
C85: Capacity of smallest unit | D85: 0 | G85: kW
C89: Select diesel GenCo type | D89: Default
C91: Parameters | D91: Value (Default) | E91: Value (Individual) | G91: Unit
C93: Diesel plant name | D93: D
C94: Diesel plant CAPEX | D94: =Background!M$4 -> 30000 | G94: PHP/kW
C95: Diesel plant OPEX var. | D95: =Background!M$5 -> 2.5 | G95: PHP/kWh
C96: Diesel plant OPEX fix. | D96: =Background!M$6 -> 300 | G96: PHP/kW/y
C97: Fuel per kWh | D97: =Background!M$7 -> 0.33 | G97: liter/kWh
C98: Initital diesel fuel costs | D98: =Background!M$9 -> 35 | G98: PHP/liter
C99: Minimum GenCo offtake | D99: 0 | G99: MWh/year
C100: Maximum GenCo offtake | D100: ='Existing Load'!$I$37*2 -> 0 | G100: MWh/year
C101: Life span | D101: =Background!M$11 -> 10 | G101: years
C103: Select diesel plant size | D103: Default
C105: Diesel GenCo total capacity | D105: 0 | G105: kW
C106: Diesel GenCo operational capacity | D106: 0 | G106: kW
C107: Capacity of smallest unit | D107: 0 | G107: kW
C111: Select diesel GenCo type | D111: Default
C113: Parameters | D113: Value (Default) | E113: Value (Individual) | G113: Unit
C115: Diesel plant name | D115: E
C116: Diesel plant CAPEX | D116: =Background!M$4 -> 30000 | G116: PHP/kW
C117: Diesel plant OPEX var. | D117: =Background!M$5 -> 2.5 | G117: PHP/kWh
C118: Diesel plant OPEX fix. | D118: =Background!M$6 -> 300 | G118: PHP/kW/y
C119: Fuel per kWh | D119: =Background!M$7 -> 0.33 | G119: liter/kWh
C120: Initital diesel fuel costs | D120: =Background!M$9 -> 35 | G120: PHP/liter
C121: Minimum GenCo offtake | D121: 0 | G121: MWh/year
C122: Maximum GenCo offtake | D122: ='Existing Load'!$I$37*2 -> 0 | G122: MWh/year
C123: Life span | D123: =Background!M$11 -> 10 | G123: years
C125: Select diesel plant size | D125: Default
C127: Diesel GenCo total capacity | D127: 0 | G127: kW
C128: Diesel GenCo operational capacity | D128: 0 | G128: kW
C129: Capacity of smallest unit | D129: 0 | G129: kW
C133: Select diesel GenCo type | D133: Default
C135: Parameters | D135: Value (Default) | E135: Value (Individual) | G135: Unit
C137: Diesel plant name | D137: F
C138: Diesel plant CAPEX | D138: =Background!M$4 -> 30000 | G138: PHP/kW
C139: Diesel plant OPEX var. | D139: =Background!M$5 -> 2.5 | G139: PHP/kWh
C140: Diesel plant OPEX fix. | D140: =Background!M$6 -> 300 | G140: PHP/kW/y
C141: Fuel per kWh | D141: =Background!M$7 -> 0.33 | G141: liter/kWh
C142: Initital diesel fuel costs | D142: =Background!M$9 -> 35 | G142: PHP/liter
C143: Minimum GenCo offtake | D143: 0 | G143: MWh/year
C144: Maximum GenCo offtake | D144: ='Existing Load'!$I$37*2 -> 0 | G144: MWh/year
C145: Life span | D145: =Background!M$11 -> 10 | G145: years
C147: Select diesel plant size | D147: Default
C149: Diesel GenCo total capacity | D149: 0 | G149: kW
C150: Diesel GenCo operational capacity | D150: 0 | G150: kW
C151: Capacity of smallest unit | D151: 0 | G151: kW
C155: Select diesel GenCo type | D155: Default
C157: Parameters | D157: Value (Default) | E157: Value (Individual) | G157: Unit
C159: Diesel plant name | D159: G
C160: Diesel plant CAPEX | D160: =Background!M$4 -> 30000 | G160: PHP/kW
C161: Diesel plant OPEX var. | D161: =Background!M$5 -> 2.5 | G161: PHP/kWh
C162: Diesel plant OPEX fix. | D162: =Background!M$6 -> 300 | G162: PHP/kW/y
C163: Fuel per kWh | D163: =Background!M$7 -> 0.33 | G163: liter/kWh
C164: Initital diesel fuel costs | D164: =Background!M$9 -> 35 | G164: PHP/liter
C165: Minimum GenCo offtake | D165: 0 | G165: MWh/year
C166: Maximum GenCo offtake | D166: ='Existing Load'!$I$37*2 -> 0 | G166: MWh/year
C167: Life span | D167: =Background!M$11 -> 10 | G167: years
C169: Select diesel plant size | D169: Default
C171: Diesel GenCo total capacity | D171: 0 | G171: kW
C172: Diesel GenCo operational capacity | D172: 0 | G172: kW
C173: Capacity of smallest unit | D173: 0 | G173: kW
C177: Select diesel GenCo type | D177: Default
C179: Parameters | D179: Value (Default) | E179: Value (Individual) | G179: Unit
C181: Diesel plant name | D181: H
C182: Diesel plant CAPEX | D182: =Background!M$4 -> 30000 | G182: PHP/kW
C183: Diesel plant OPEX var. | D183: =Background!M$5 -> 2.5 | G183: PHP/kWh
C184: Diesel plant OPEX fix. | D184: =Background!M$6 -> 300 | G184: PHP/kW/y
C185: Fuel per kWh | D185: =Background!M$7 -> 0.33 | G185: liter/kWh
C186: Initital diesel fuel costs | D186: =Background!M$9 -> 35 | G186: PHP/liter
C187: Minimum GenCo offtake | D187: 0 | G187: MWh/year
C188: Maximum GenCo offtake | D188: ='Existing Load'!$I$37*2 -> 0 | G188: MWh/year
C189: Life span | D189: =Background!M$11 -> 10 | G189: years
C191: Select diesel plant size | D191: Default
C193: Diesel GenCo total capacity | D193: 0 | G193: kW
C194: Diesel GenCo operational capacity | D194: 0 | G194: kW
C195: Capacity of smallest unit | D195: 0 | G195: kW
C199: Select diesel GenCo type | D199: Default
C201: Parameters | D201: Value (Default) | E201: Value (Individual) | G201: Unit
C203: Diesel plant name | D203: I
C204: Diesel plant CAPEX | D204: =Background!M$4 -> 30000 | G204: PHP/kW
C205: Diesel plant OPEX var. | D205: =Background!M$5 -> 2.5 | G205: PHP/kWh
C206: Diesel plant OPEX fix. | D206: =Background!M$6 -> 300 | G206: PHP/kW/y
C207: Fuel per kWh | D207: =Background!M$7 -> 0.33 | G207: liter/kWh
C208: Initital diesel fuel costs | D208: =Background!M$9 -> 35 | G208: PHP/liter
C209: Minimum GenCo offtake | D209: 0 | G209: MWh/year
C210: Maximum GenCo offtake | D210: ='Existing Load'!$I$37*2 -> 0 | G210: MWh/year
C211: Life span | D211: =Background!M$11 -> 10 | G211: years
C213: Select diesel plant size | D213: Default
C215: Diesel GenCo total capacity | D215: 0 | G215: kW
C216: Diesel GenCo operational capacity | D216: 0 | G216: kW
C217: Capacity of smallest unit | D217: 0 | G217: kW
C221: Select diesel GenCo type | D221: Default
C223: Parameters | D223: Value (Default) | E223: Value (Individual) | G223: Unit
C225: Diesel plant name | D225: J
C226: Diesel plant CAPEX | D226: =Background!M$4 -> 30000 | G226: PHP/kW
C227: Diesel plant OPEX var. | D227: =Background!M$5 -> 2.5 | G227: PHP/kWh
C228: Diesel plant OPEX fix. | D228: =Background!M$6 -> 300 | G228: PHP/kW/y
C229: Fuel per kWh | D229: =Background!M$7 -> 0.33 | G229: liter/kWh
C230: Initital diesel fuel costs | D230: =Background!M$9 -> 35 | G230: PHP/liter
C231: Minimum GenCo offtake | D231: 0 | G231: MWh/year
C232: Maximum GenCo offtake | D232: ='Existing Load'!$I$37*2 -> 0 | G232: MWh/year
C233: Life span | D233: =Background!M$11 -> 10 | G233: years
C235: Select diesel plant size | D235: Default
C237: Diesel GenCo total capacity | D237: 0 | G237: kW
C238: Diesel GenCo operational capacity | D238: 0 | G238: kW
C239: Capacity of smallest unit | D239: 0 | G239: kW
C243: Select battery type | D243: Lithium-Ion
C245: Parameters | D245: Value (Default) | E245: Value (Individual) | G245: Unit
C247: Battery system CAPEX | D247: =IF($D$243="Lithium-Ion",Background!H7,Background!J7) -> 27000 | G247: PHP/kWh_cap
C248: Battery OPEX | D248: =IF($D$243="Lithium-Ion",Background!H9,Background!J9) -> 405 | G248: PHP/kWh_cap/y
C249: C-rate (kW/kWh) | D249: =IF($D$243="Lithium-Ion",Background!H10,Background!J10) -> 1 | G249: ratio
C250: Maximum Depth of discharge (DoD) | D250: =IF($D$243="Lithium-Ion",Background!H11,Background!J11) -> 0.8
C251: Charging efficiency | D251: =IF($D$243="Lithium-Ion",Background!H13,Background!J13) -> 0.9
C252: Discharging efficiency | D252: =IF($D$243="Lithium-Ion",Background!H14,Background!J14) -> 0.9
C253: Life span | D253: =IF($D$243="Lithium-Ion",Background!H15,Background!J15) -> 10 | G253: years
C255: Select battery size | D255: Default
C257: Battery capacity | D257: =Background!$Q$6 -> 0 | G257: capacity in kWh
C261: Select system parameters | D261: Default
C263: Parameters | D263: Value (Default) | E263: Value (Individual) | G263: Unit
C265: Discount rate | D265: =Background!Q4 -> 0.12
C266: Project duration | D266: =Background!Q8 -> 20 | G266: years
C267: Distribution losses | D267: =Background!Q9 -> 0.05
C268: System stability factor | D268: =Background!Q10 -> 0.4 | G268: % of load
C270: Fixed project development costs | D270: =Background!M12 -> 500000 | G270: PHP
C271: Fixed other initial costs | D271: =Background!M13 -> 0 | G271: PHP
C272: Fixed other opex | D272: =Background!M14 -> 0 | G272: PHP/year
C273: Fixed personnel costs | D273: =Background!M15 -> 0 | G273: PHP/year
C274: Diesel price increase | D274: =Background!M10 -> 0.03 | G274: per year
C278: Distribution grid parameters | D278: Default
C280: Parameters | D280: Value (Default) | E280: Value (Indiviudal) | G280: Unit
C282: Grid initial costs | D282: =Background!M17 -> 0 | G282: PHP
C283: Fixed grid OPEX | D283: =Background!M18 -> 0 | G283: PHP/year
C284: Life span | D284: =Background!M19 -> 20 | G284: years
C288: RE Certificates (REC) | D288: Default
D290: Value (Default) | E290: Value (Individual)
C291: REC amount | D291: 0
C292: RE generation equivalent per REC | D292: 1 | G292: MWh/REC
C293: RE generation equivalen total | D293: =D291*D292 -> 0 | E293: =E292*E291 -> 0 | G293: MWh
G294: MWh
G295: MWh
C299: System simulation
C300: Overview of sizes for simulation | D300: Value (Default) | E300: Value (Individual)
C302: Wind capacity total | D302: =IF(D11="Default",D17,"") -> 0 | E302: =IF(D11="Default","",E17) ->  | G302: kW
... 20 more rows

Sheet Simulation Results Wind
B2: Techno-economic Results - Wind hybrid system | M2: =Background!M59 -> GenCo A | O2: =Background!O59 -> GenCo B | Q2: =Background!Q59 -> GenCo C | S2: =Background!S59 -> GenCo D | U2: =Background!U59 -> GenCo E | W2: =Background!W59 -> GenCo F | Y2: =Background!Y59 -> GenCo G | AA2: =Background!AA59 -> GenCo H | AC2: =Background!AC59 -> GenCo I | AE2: =Background!AE59 -> GenCo J
B3: =Background!A174 -> 0 | C3: =Background!C60 -> LCOE [PHP/kWh] | D3: =Background!D60 -> RE share eligible | E3: =Background!E60 -> Consumption (+losses) [MWh] | F3: =Background!F60 -> Peak load [kW] | G3: =Background!G60 -> Distribution losses [MWh] | H3: =Background!H60 -> Wind generation potential [MWh] | I3: =Background!I60 -> Existing non-eligible Wind electricity consumed [MWh] | J3: =Background!J60 -> Existing eligible Wind electricity consumed [MWh] | K3: =Background!K60 -> New Wind electricity consumed [MWh] | L3: =Background!L60 -> Total Wind electricity consumed [MWh] | M3: =Background!M60 -> Diesel generation [MWh] | N3: =Background!N60 -> Diesel consumption [L] | O3: =Background!O60 -> Diesel generation [MWh] | P3: =Background!P60 -> Diesel consumption [L] | Q3: =Background!Q60 -> Diesel generation [MWh] | R3: =Background!R60 -> Diesel consumption [L] | S3: =Background!S60 -> Diesel generation [MWh] | T3: =Background!T60 -> Diesel consumption [L] | U3: =Background!U60 -> Diesel generation [MWh] | V3: =Background!V60 -> Diesel consumption [L] | W3: =Background!W60 -> Diesel generation [MWh] | X3: =Background!X60 -> Diesel consumption [L] | Y3: =Background!Y60 -> Diesel generation [MWh] | Z3: =Background!Z60 -> Diesel consumption [L] | AA3: =Background!AA60 -> Diesel generation [MWh] | AB3: =Background!AB60 -> Diesel consumption [L] | AC3: =Background!AC60 -> Diesel generation [MWh] | AD3: =Background!AD60 -> Diesel consumption [L] | AE3: =Background!AE60 -> Diesel generation [MWh] | AF3: =Background!AF60 -> Diesel consumption [L] | AG3: =Background!AG60 -> Total diesel electricity generation [MWh] | AH3: =Background!AH60 -> Total diesel electricity consumed [MWh] | AI3: =Background!AI60 -> Total diesel excess [MWh] | AJ3: =Background!AJ60 -> Total diesel fuel consumption [l] | AK3: =Background!AM60 -> Battery discharge [MWh] | AL3: =Background!AN60 -> Unmet load [MWh]
B4: =Background!A61 -> 1 | C4: =Background!C61 -> 0 | D4: =Background!D61 -> 0 | E4: =Background!E61 -> 0 | F4: =Background!F61 -> 0 | G4: =Background!G61 -> 0 | H4: =Background!H61 -> 0 | I4: =Background!I61 -> 0 | J4: =Background!J61 -> 0 | K4: =Background!K61 -> 0 | L4: =Background!L61 -> 0 | M4: =Background!M61 -> 0 | N4: =Background!N61 -> 0 | O4: =Background!O61 -> 0 | P4: =Background!P61 -> 0 | Q4: =Background!Q61 -> 0 | R4: =Background!R61 -> 0 | S4: =Background!S61 -> 0 | T4: =Background!T61 -> 0 | U4: =Background!U61 -> 0 | V4: =Background!V61 -> 0 | W4: =Background!W61 -> 0 | X4: =Background!X61 -> 0 | Y4: =Background!Y61 -> 0 | Z4: =Background!Z61 -> 0 | AA4: =Background!AA61 -> 0 | AB4: =Background!AB61 -> 0 | AC4: =Background!AC61 -> 0 | AD4: =Background!AD61 -> 0 | AE4: =Background!AE61 -> 0 | AF4: =Background!AF61 -> 0 | AG4: =Background!AG61 -> 0 | AH4: =Background!AH61 -> 0 | AI4: =Background!AI61 -> 0 | AJ4: =Background!AJ61 -> 0 | AK4: =Background!AM61 -> 0 | AL4: =Background!AN61 -> 0
B5: =Background!A62 -> 2 | C5: =Background!C62 -> 0 | D5: =Background!D62 -> 0 | E5: =Background!E62 -> 0 | F5: =Background!F62 -> 0 | G5: =Background!G62 -> 0 | H5: =Background!H62 -> 0 | I5: =Background!I62 -> 0 | J5: =Background!J62 -> 0 | K5: =Background!K62 -> 0 | L5: =Background!L62 -> 0 | M5: =Background!M62 -> 0 | N5: =Background!N62 -> 0 | O5: =Background!O62 -> 0 | P5: =Background!P62 -> 0 | Q5: =Background!Q62 -> 0 | R5: =Background!R62 -> 0 | S5: =Background!S62 -> 0 | T5: =Background!T62 -> 0 | U5: =Background!U62 -> 0 | V5: =Background!V62 -> 0 | W5: =Background!W62 -> 0 | X5: =Background!X62 -> 0 | Y5: =Background!Y62 -> 0 | Z5: =Background!Z62 -> 0 | AA5: =Background!AA62 -> 0 | AB5: =Background!AB62 -> 0 | AC5: =Background!AC62 -> 0 | AD5: =Background!AD62 -> 0 | AE5: =Background!AE62 -> 0 | AF5: =Background!AF62 -> 0 | AG5: =Background!AG62 -> 0 | AH5: =Background!AH62 -> 0 | AI5: =Background!AI62 -> 0 | AJ5: =Background!AJ62 -> 0 | AK5: =Background!AM62 -> 0 | AL5: =Background!AN62 -> 0
B6: =Background!A63 -> 3 | C6: =Background!C63 -> 0 | D6: =Background!D63 -> 0 | E6: =Background!E63 -> 0 | F6: =Background!F63 -> 0 | G6: =Background!G63 -> 0 | H6: =Background!H63 -> 0 | I6: =Background!I63 -> 0 | J6: =Background!J63 -> 0 | K6: =Background!K63 -> 0 | L6: =Background!L63 -> 0 | M6: =Background!M63 -> 0 | N6: =Background!N63 -> 0 | O6: =Background!O63 -> 0 | P6: =Background!P63 -> 0 | Q6: =Background!Q63 -> 0 | R6: =Background!R63 -> 0 | S6: =Background!S63 -> 0 | T6: =Background!T63 -> 0 | U6: =Background!U63 -> 0 | V6: =Background!V63 -> 0 | W6: =Background!W63 -> 0 | X6: =Background!X63 -> 0 | Y6: =Background!Y63 -> 0 | Z6: =Background!Z63 -> 0 | AA6: =Background!AA63 -> 0 | AB6: =Background!AB63 -> 0 | AC6: =Background!AC63 -> 0 | AD6: =Background!AD63 -> 0 | AE6: =Background!AE63 -> 0 | AF6: =Background!AF63 -> 0 | AG6: =Background!AG63 -> 0 | AH6: =Background!AH63 -> 0 | AI6: =Background!AI63 -> 0 | AJ6: =Background!AJ63 -> 0 | AK6: =Background!AM63 -> 0 | AL6: =Background!AN63 -> 0
B7: =Background!A64 -> 4 | C7: =Background!C64 -> 0 | D7: =Background!D64 -> 0 | E7: =Background!E64 -> 0 | F7: =Background!F64 -> 0 | G7: =Background!G64 -> 0 | H7: =Background!H64 -> 0 | I7: =Background!I64 -> 0 | J7: =Background!J64 -> 0 | K7: =Background!K64 -> 0 | L7: =Background!L64 -> 0 | M7: =Background!M64 -> 0 | N7: =Background!N64 -> 0 | O7: =Background!O64 -> 0 | P7: =Background!P64 -> 0 | Q7: =Background!Q64 -> 0 | R7: =Background!R64 -> 0 | S7: =Background!S64 -> 0 | T7: =Background!T64 -> 0 | U7: =Background!U64 -> 0 | V7: =Background!V64 -> 0 | W7: =Background!W64 -> 0 | X7: =Background!X64 -> 0 | Y7: =Background!Y64 -> 0 | Z7: =Background!Z64 -> 0 | AA7: =Background!AA64 -> 0 | AB7: =Background!AB64 -> 0 | AC7: =Background!AC64 -> 0 | AD7: =Background!AD64 -> 0 | AE7: =Background!AE64 -> 0 | AF7: =Background!AF64 -> 0 | AG7: =Background!AG64 -> 0 | AH7: =Background!AH64 -> 0 | AI7: =Background!AI64 -> 0 | AJ7: =Background!AJ64 -> 0 | AK7: =Background!AM64 -> 0 | AL7: =Background!AN64 -> 0
B8: =Background!A65 -> 5 | C8: =Background!C65 -> 0 | D8: =Background!D65 -> 0 | E8: =Background!E65 -> 0 | F8: =Background!F65 -> 0 | G8: =Background!G65 -> 0 | H8: =Background!H65 -> 0 | I8: =Background!I65 -> 0 | J8: =Background!J65 -> 0 | K8: =Background!K65 -> 0 | L8: =Background!L65 -> 0 | M8: =Background!M65 -> 0 | N8: =Background!N65 -> 0 | O8: =Background!O65 -> 0 | P8: =Background!P65 -> 0 | Q8: =Background!Q65 -> 0 | R8: =Background!R65 -> 0 | S8: =Background!S65 -> 0 | T8: =Background!T65 -> 0 | U8: =Background!U65 -> 0 | V8: =Background!V65 -> 0 | W8: =Background!W65 -> 0 | X8: =Background!X65 -> 0 | Y8: =Background!Y65 -> 0 | Z8: =Background!Z65 -> 0 | AA8: =Background!AA65 -> 0 | AB8: =Background!AB65 -> 0 | AC8: =Background!AC65 -> 0 | AD8: =Background!AD65 -> 0 | AE8: =Background!AE65 -> 0 | AF8: =Background!AF65 -> 0 | AG8: =Background!AG65 -> 0 | AH8: =Background!AH65 -> 0 | AI8: =Background!AI65 -> 0 | AJ8: =Background!AJ65 -> 0 | AK8: =Background!AM65 -> 0 | AL8: =Background!AN65 -> 0
B9: =Background!A66 -> 6 | C9: =Background!C66 -> 0 | D9: =Background!D66 -> 0 | E9: =Background!E66 -> 0 | F9: =Background!F66 -> 0 | G9: =Background!G66 -> 0 | H9: =Background!H66 -> 0 | I9: =Background!I66 -> 0 | J9: =Background!J66 -> 0 | K9: =Background!K66 -> 0 | L9: =Background!L66 -> 0 | M9: =Background!M66 -> 0 | N9: =Background!N66 -> 0 | O9: =Background!O66 -> 0 | P9: =Background!P66 -> 0 | Q9: =Background!Q66 -> 0 | R9: =Background!R66 -> 0 | S9: =Background!S66 -> 0 | T9: =Background!T66 -> 0 | U9: =Background!U66 -> 0 | V9: =Background!V66 -> 0 | W9: =Background!W66 -> 0 | X9: =Background!X66 -> 0 | Y9: =Background!Y66 -> 0 | Z9: =Background!Z66 -> 0 | AA9: =Background!AA66 -> 0 | AB9: =Background!AB66 -> 0 | AC9: =Background!AC66 -> 0 | AD9: =Background!AD66 -> 0 | AE9: =Background!AE66 -> 0 | AF9: =Background!AF66 -> 0 | AG9: =Background!AG66 -> 0 | AH9: =Background!AH66 -> 0 | AI9: =Background!AI66 -> 0 | AJ9: =Background!AJ66 -> 0 | AK9: =Background!AM66 -> 0 | AL9: =Background!AN66 -> 0
B10: =Background!A67 -> 7 | C10: =Background!C67 -> 0 | D10: =Background!D67 -> 0 | E10: =Background!E67 -> 0 | F10: =Background!F67 -> 0 | G10: =Background!G67 -> 0 | H10: =Background!H67 -> 0 | I10: =Background!I67 -> 0 | J10: =Background!J67 -> 0 | K10: =Background!K67 -> 0 | L10: =Background!L67 -> 0 | M10: =Background!M67 -> 0 | N10: =Background!N67 -> 0 | O10: =Background!O67 -> 0 | P10: =Background!P67 -> 0 | Q10: =Background!Q67 -> 0 | R10: =Background!R67 -> 0 | S10: =Background!S67 -> 0 | T10: =Background!T67 -> 0 | U10: =Background!U67 -> 0 | V10: =Background!V67 -> 0 | W10: =Background!W67 -> 0 | X10: =Background!X67 -> 0 | Y10: =Background!Y67 -> 0 | Z10: =Background!Z67 -> 0 | AA10: =Background!AA67 -> 0 | AB10: =Background!AB67 -> 0 | AC10: =Background!AC67 -> 0 | AD10: =Background!AD67 -> 0 | AE10: =Background!AE67 -> 0 | AF10: =Background!AF67 -> 0 | AG10: =Background!AG67 -> 0 | AH10: =Background!AH67 -> 0 | AI10: =Background!AI67 -> 0 | AJ10: =Background!AJ67 -> 0 | AK10: =Background!AM67 -> 0 | AL10: =Background!AN67 -> 0
B11: =Background!A68 -> 8 | C11: =Background!C68 -> 0 | D11: =Background!D68 -> 0 | E11: =Background!E68 -> 0 | F11: =Background!F68 -> 0 | G11: =Background!G68 -> 0 | H11: =Background!H68 -> 0 | I11: =Background!I68 -> 0 | J11: =Background!J68 -> 0 | K11: =Background!K68 -> 0 | L11: =Background!L68 -> 0 | M11: =Background!M68 -> 0 | N11: =Background!N68 -> 0 | O11: =Background!O68 -> 0 | P11: =Background!P68 -> 0 | Q11: =Background!Q68 -> 0 | R11: =Background!R68 -> 0 | S11: =Background!S68 -> 0 | T11: =Background!T68 -> 0 | U11: =Background!U68 -> 0 | V11: =Background!V68 -> 0 | W11: =Background!W68 -> 0 | X11: =Background!X68 -> 0 | Y11: =Background!Y68 -> 0 | Z11: =Background!Z68 -> 0 | AA11: =Background!AA68 -> 0 | AB11: =Background!AB68 -> 0 | AC11: =Background!AC68 -> 0 | AD11: =Background!AD68 -> 0 | AE11: =Background!AE68 -> 0 | AF11: =Background!AF68 -> 0 | AG11: =Background!AG68 -> 0 | AH11: =Background!AH68 -> 0 | AI11: =Background!AI68 -> 0 | AJ11: =Background!AJ68 -> 0 | AK11: =Background!AM68 -> 0 | AL11: =Background!AN68 -> 0
B12: =Background!A69 -> 9 | C12: =Background!C69 -> 0 | D12: =Background!D69 -> 0 | E12: =Background!E69 -> 0 | F12: =Background!F69 -> 0 | G12: =Background!G69 -> 0 | H12: =Background!H69 -> 0 | I12: =Background!I69 -> 0 | J12: =Background!J69 -> 0 | K12: =Background!K69 -> 0 | L12: =Background!L69 -> 0 | M12: =Background!M69 -> 0 | N12: =Background!N69 -> 0 | O12: =Background!O69 -> 0 | P12: =Background!P69 -> 0 | Q12: =Background!Q69 -> 0 | R12: =Background!R69 -> 0 | S12: =Background!S69 -> 0 | T12: =Background!T69 -> 0 | U12: =Background!U69 -> 0 | V12: =Background!V69 -> 0 | W12: =Background!W69 -> 0 | X12: =Background!X69 -> 0 | Y12: =Background!Y69 -> 0 | Z12: =Background!Z69 -> 0 | AA12: =Background!AA69 -> 0 | AB12: =Background!AB69 -> 0 | AC12: =Background!AC69 -> 0 | AD12: =Background!AD69 -> 0 | AE12: =Background!AE69 -> 0 | AF12: =Background!AF69 -> 0 | AG12: =Background!AG69 -> 0 | AH12: =Background!AH69 -> 0 | AI12: =Background!AI69 -> 0 | AJ12: =Background!AJ69 -> 0 | AK12: =Background!AM69 -> 0 | AL12: =Background!AN69 -> 0
B13: =Background!A70 -> 10 | C13: =Background!C70 -> 0 | D13: =Background!D70 -> 0 | E13: =Background!E70 -> 0 | F13: =Background!F70 -> 0 | G13: =Background!G70 -> 0 | H13: =Background!H70 -> 0 | I13: =Background!I70 -> 0 | J13: =Background!J70 -> 0 | K13: =Background!K70 -> 0 | L13: =Background!L70 -> 0 | M13: =Background!M70 -> 0 | N13: =Background!N70 -> 0 | O13: =Background!O70 -> 0 | P13: =Background!P70 -> 0 | Q13: =Background!Q70 -> 0 | R13: =Background!R70 -> 0 | S13: =Background!S70 -> 0 | T13: =Background!T70 -> 0 | U13: =Background!U70 -> 0 | V13: =Background!V70 -> 0 | W13: =Background!W70 -> 0 | X13: =Background!X70 -> 0 | Y13: =Background!Y70 -> 0 | Z13: =Background!Z70 -> 0 | AA13: =Background!AA70 -> 0 | AB13: =Background!AB70 -> 0 | AC13: =Background!AC70 -> 0 | AD13: =Background!AD70 -> 0 | AE13: =Background!AE70 -> 0 | AF13: =Background!AF70 -> 0 | AG13: =Background!AG70 -> 0 | AH13: =Background!AH70 -> 0 | AI13: =Background!AI70 -> 0 | AJ13: =Background!AJ70 -> 0 | AK13: =Background!AM70 -> 0 | AL13: =Background!AN70 -> 0
B14: =Background!A71 -> 11 | C14: =Background!C71 -> 0 | D14: =Background!D71 -> 0 | E14: =Background!E71 -> 0 | F14: =Background!F71 -> 0 | G14: =Background!G71 -> 0 | H14: =Background!H71 -> 0 | I14: =Background!I71 -> 0 | J14: =Background!J71 -> 0 | K14: =Background!K71 -> 0 | L14: =Background!L71 -> 0 | M14: =Background!M71 -> 0 | N14: =Background!N71 -> 0 | O14: =Background!O71 -> 0 | P14: =Background!P71 -> 0 | Q14: =Background!Q71 -> 0 | R14: =Background!R71 -> 0 | S14: =Background!S71 -> 0 | T14: =Background!T71 -> 0 | U14: =Background!U71 -> 0 | V14: =Background!V71 -> 0 | W14: =Background!W71 -> 0 | X14: =Background!X71 -> 0 | Y14: =Background!Y71 -> 0 | Z14: =Background!Z71 -> 0 | AA14: =Background!AA71 -> 0 | AB14: =Background!AB71 -> 0 | AC14: =Background!AC71 -> 0 | AD14: =Background!AD71 -> 0 | AE14: =Background!AE71 -> 0 | AF14: =Background!AF71 -> 0 | AG14: =Background!AG71 -> 0 | AH14: =Background!AH71 -> 0 | AI14: =Background!AI71 -> 0 | AJ14: =Background!AJ71 -> 0 | AK14: =Background!AM71 -> 0 | AL14: =Background!AN71 -> 0
B15: =Background!A72 -> 12 | C15: =Background!C72 -> 0 | D15: =Background!D72 -> 0 | E15: =Background!E72 -> 0 | F15: =Background!F72 -> 0 | G15: =Background!G72 -> 0 | H15: =Background!H72 -> 0 | I15: =Background!I72 -> 0 | J15: =Background!J72 -> 0 | K15: =Background!K72 -> 0 | L15: =Background!L72 -> 0 | M15: =Background!M72 -> 0 | N15: =Background!N72 -> 0 | O15: =Background!O72 -> 0 | P15: =Background!P72 -> 0 | Q15: =Background!Q72 -> 0 | R15: =Background!R72 -> 0 | S15: =Background!S72 -> 0 | T15: =Background!T72 -> 0 | U15: =Background!U72 -> 0 | V15: =Background!V72 -> 0 | W15: =Background!W72 -> 0 | X15: =Background!X72 -> 0 | Y15: =Background!Y72 -> 0 | Z15: =Background!Z72 -> 0 | AA15: =Background!AA72 -> 0 | AB15: =Background!AB72 -> 0 | AC15: =Background!AC72 -> 0 | AD15: =Background!AD72 -> 0 | AE15: =Background!AE72 -> 0 | AF15: =Background!AF72 -> 0 | AG15: =Background!AG72 -> 0 | AH15: =Background!AH72 -> 0 | AI15: =Background!AI72 -> 0 | AJ15: =Background!AJ72 -> 0 | AK15: =Background!AM72 -> 0 | AL15: =Background!AN72 -> 0
B16: =Background!A73 -> 13 | C16: =Background!C73 -> 0 | D16: =Background!D73 -> 0 | E16: =Background!E73 -> 0 | F16: =Background!F73 -> 0 | G16: =Background!G73 -> 0 | H16: =Background!H73 -> 0 | I16: =Background!I73 -> 0 | J16: =Background!J73 -> 0 | K16: =Background!K73 -> 0 | L16: =Background!L73 -> 0 | M16: =Background!M73 -> 0 | N16: =Background!N73 -> 0 | O16: =Background!O73 -> 0 | P16: =Background!P73 -> 0 | Q16: =Background!Q73 -> 0 | R16: =Background!R73 -> 0 | S16: =Background!S73 -> 0 | T16: =Background!T73 -> 0 | U16: =Background!U73 -> 0 | V16: =Background!V73 -> 0 | W16: =Background!W73 -> 0 | X16: =Background!X73 -> 0 | Y16: =Background!Y73 -> 0 | Z16: =Background!Z73 -> 0 | AA16: =Background!AA73 -> 0 | AB16: =Background!AB73 -> 0 | AC16: =Background!AC73 -> 0 | AD16: =Background!AD73 -> 0 | AE16: =Background!AE73 -> 0 | AF16: =Background!AF73 -> 0 | AG16: =Background!AG73 -> 0 | AH16: =Background!AH73 -> 0 | AI16: =Background!AI73 -> 0 | AJ16: =Background!AJ73 -> 0 | AK16: =Background!AM73 -> 0 | AL16: =Background!AN73 -> 0
